Workbook

Sheet Read Me

Sheet Data Dictionary
A1: Term | B1: Who reports it? | C1: Definition
A2: Agency | B2: All | C2: The transit agency's name.
A3: City | B3: All | C3: The city in which the agency is headquartered.
A4: State | B4: All | C4: The state in which the agency is headquartered.
A5: Legacy NTD ID | B5: All | C5: A four-digit identifying number for each agency used in the legacy NTD system.
A6: NTD ID | B6: All | C6: A five-digit identifying number for each agency used in the current NTD system.
A7: Organization Type | B7: All | C7: Description of the agency's legal entity.
A8: Reporter Type | B8: All | C8: The type of NTD report that the agency completed this year.
A9: Primary UZA Population | B9: DOES NOT APPLY TO: Rural General Public Transit Sub-recipients, Intercity Bus Sub-recipients | C9: The population of the urbanized area primarily served by the agency.
A10: Agency VOMS | B10: DOES NOT APPLY TO: Building Reporters, Planning Reporters, Separate Service Reporters, Tribal Subsidy Reporters, Intercity Bus Sub-recipients | C10: The number of revenue vehicles operated across the whole agency to meet the annual maximum service requirement. This is the revenue vehicle count during the peak season of the year; on the week and day that maximum service is provided. Vehicles operated in maximum service (VOMS) exclude atypical days and one-time special events.
A11: Mode | B11: DOES NOT APPLY TO: Planning Reporters, Tribal Subsidy Reporters, Intercity Bus Sub-recipients | C11: A system for carrying transit passengers described by specific right-of-way (ROW), technology and operational features.
A12: Type of Service | B12: DOES NOT APPLY TO: Planning Reporters, Tribal Subsidy Reporters, Intercity Bus Sub-recipients | C12: Describes how public transportation services are provided by the transit agency: directly operated (DO) or purchased transportation (PT) services.
A13: Mode VOMS | B13: DOES NOT APPLY TO: Building Reporters, Planning Reporters, Separate Service Reporters, Tribal Subsidy Reporters, Intercity Bus Sub-recipients | C13: The number of revenue vehicles operated by the given mode and type of service to meet the annual maximum service requirement. This is the revenue vehicle count during the peak season of the year; on the week and day that maximum service is provided. Vehicles operated in maximum service (VOMS) exclude atypical days and one-time special events.
A14: Major Mechanical Failures | B14: ONLY APPLIES TO: Full Reporters | C14: A failure of some mechanical element of the revenue vehicle that prevents the vehicle from completing a scheduled revenue trip or from starting the next scheduled revenue trip because actual movement is limited or because of safety concerns.
A15: Other Mechanical Failures | B15: ONLY APPLIES TO: Full Reporters | C15: A failure of some other mechanical element of the revenue vehicle that, because of local agency policy, prevents the revenue vehicle from completing a scheduled revenue trip or from starting the next scheduled revenue trip even though the vehicle is physically able to continue in revenue service. For example, a malfunction in the farebox or the air conditioner would be classified thus.
A16: Total Mechanical Failures | B16: ONLY APPLIES TO: Full Reporters | C16: The sum of major and other mechanical failures.
A17: Vehicle/Passenger Car Miles | B17: DOES NOT APPLY TO: Building Reporters, Planning Reporters, Separate Service Reporters, Tribal Subsidy Reporters, Intercity Bus Sub-recipients, Reduced Reporters | C17: The miles that vehicles (or passenger cars, for rail service) travel while in revenue service (vehicle revenue miles (VRM)) plus deadhead miles. Vehicle miles exclude miles for charter services, school bus service, operator training, and vehicle maintenance testing.
A18: Vehicle/Passenger Car Revenue Miles | B18: DOES NOT APPLY TO: Building Reporters, Planning Reporters, Separate Service Reporters, Tribal Subsidy Reporters, Intercity Bus Sub-recipients | C18: The miles that vehicles (or passenger cars, for rail service) travel while in revenue service. Vehicle revenue miles exclude deadhead, operator training, maintenance testing, and school bus and charter services.
A19: Train Miles | B19: ONLY APPLIES TO: Full Reporters | C19: The miles that trains travel while in revenue service (train revenue miles) plus deadhead miles. Train miles exclude miles for charter services, operator training, and vehicle maintenance testing.
A20: Train Revenue Miles | B20: ONLY APPLIES TO: Full Reporters | C20: The miles that trains travel while in revenue service. Train revenue miles exclude deadhead, operator training, maintenance testing, and charter services.
A21: Rural General Public Transit | C21: Reporter type for agencies that do not operate in an urban area and are not Tribes.
A22: Intercity Bus | C22: Reporter type for private bus lines providing non-transit service connecting wide-ranging areas.
A23: Building Reporter | C23: Reporter type for agencies that are building a new transit service but not yet operating it.
A24: Planning Reporter | C24: Reporter type for entities that expend funds in planning transit but do not operate service.
A25: Separate Service | C25: Reporter type for agencies that have a contractual relationship with another NTD reporter to provide service but do not report any service themselves.
A26: Tribal Subsidy | C26: Reporter type for Tribes that subsidize service but do not operate service or pay the full cost of service.
A27: Full Reporter | C27: Reporter type for agencies that operate urban service and complete the most detailed level of NTD report. Urban agencies that operate more than 30 vehicles or operate Fixed Guideway service are required to complete Full Reports; other urban agencies may do so if they wish.
A28: Reduced Reporter | C28: Reporter type for agencies that operate urban service but complete a simplified NTD report. Urban agencies that operate 30 or fewer vehicles and do not operate Fixed Guideway service are eligible to complete Reduced Reports. This is sometimes called a Small Systems Report.
A29: Urbanized Area (UZA) | C29: An area defined by the U. S. Census Bureau that includes: - One or more incorporated cities, villages, and towns (central place) - The adjacent densely settled surrounding territory (urban fringe) that together has a minimum of 50,000 persons The urban fringe generally consists of contiguous territory having a density of at least 1,000 persons per square mile. Urbanized areas do not conform to congressional districts or any other political boundaries.
A30: Alaska Railroad (AR) | C30: The passenger service portion of the Alaska Railroad Corporation. The service encompasses only car miles for passenger cars; car miles for freight cars are specifically excluded.
A31: Bus (MB) | C31: A transit mode comprised of rubber-tired passenger vehicles operating on fixed routes and schedules over roadways. Vehicles are powered by: - Diesel - Gasoline - Battery - Alternative fuel engines contained within the vehicle
A32: Bus Rapid Transit (RB) | C32: Fixed-route bus mode: - In which the majority of each line operates in a separated right-of-way dedicated for public transportation use during peak periods; and - That includes features that emulate the services provided by rail fixed guideway public transportation systems, including: o Defined stations o Traffic signal priority for public transportation vehicles o Short headway bidirectional services for a substantial part of weekdays and weekend days o Pre-board ticketing, platform level boarding, and separate branding This mode may include portions of service that are fixed-guideway and non-fixed-guideway.
A33: Cable Car (CC) | C33: A transit mode that is an electric railway with individually controlled transit vehicles attached to a moving cable located below the street surface and powered by engines or motors at a central location, not onboard the vehicle.
A34: Commuter Bus (CB) | C34: Fixed-route bus systems that are primarily connecting outlying areas with a central city through bus service that operates with at least five miles of continuous closed-door service. This service may operate motorcoaches (aka over-the-road buses), and usually features peak scheduling, multiple-trip tickets, and limited stops in the central city.
A35: Commuter Rail (CR) | C35: A transit mode that is an electric or diesel propelled railway for urban passenger train service consisting of local short distance travel operating between a central city and adjacent suburbs. Service must be operated on a regular basis by or under contract with a transit operator for the purpose of transporting passengers within urbanized areas (UZAs), or between urbanized areas and outlying areas. Such rail service, using either locomotive hauled or self-propelled railroad passenger cars, is generally characterized by: - Multi-trip tickets - Specific station to station fares - Railroad employment practices - Usually only one or two stations in the central business district It does not include: - Heavy rail (HR) rapid transit - Light rail (LR)/streetcar transit service Intercity rail service is excluded, except for that portion of such service that is operated by or under contract with a public transit agency for predominantly commuter services. Predominantly commuter service means that for any given trip segment (i.e., distance between any two stations), more than 50 percent of the average daily ridership makes a return trip on the same day. Only the predominantly commuter service portion of an intercity route is eligible for inclusion when determining commuter rail (CR) route miles.
A36: Demand Response (DR) | C36: A transit mode comprised of automobiles, vans or small buses operating in response to calls from passengers or their agents to the transit operator, who then dispatches a vehicle to pick up the passengers and transport them to their destinations. A demand response (DR) operation is characterized by the following: - The vehicles do not operate over a fixed route or on a fixed schedule except, perhaps, on a temporary basis to satisfy a special need; and - Typically, the vehicle may be dispatched to pick up several passengers at different pick-up points before taking them to their respective destinations and may even be interrupted en route to these destinations to pick up other passengers. The following types of operations fall under the above definitions provided they are not on a scheduled fixed route basis: - Many origins—many destinations - Many origins—one destination - One origin—many destinations - One origin—one destination
A37: Demand Response Taxi (DT) | C37: A special form of the demand response mode operated through taxicab providers. The mode is always purchased transportation type of service. In order to be reportable, there must be a system in place through which passengers can share rides.
A38: Ferryboat (FB) | C38: A transit mode comprised of vessels carrying passengers and/or vehicles over a body of water that are generally steam or diesel powered. Intercity ferryboat (FB) service is excluded, except for that portion of such service that is operated by or under contract with a public transit agency for predominantly commuter services. Predominantly commuter service means that for any given trip segment (i.e., distance between any two piers), more than 50 percent of the average daily ridership makes a return trip on the ferryboat on the same day. Only the predominantly commuter service portion of an intercity route is eligible for inclusion when determining ferryboat (FB) route miles.
A39: Heavy Rail (HR) | C39: A transit mode that is an electric railway with the capacity for a heavy volume of traffic. It is characterized by: - High speed and rapid acceleration passenger rail cars operating singly or in multi-car trains on fixed rails - Separate rights-of-way (ROW) from which all other vehicular and foot traffic are excluded - Sophisticated signaling - Raised platform loading
A40: Hybrid Rail (YR) | C40: Rail systems primarily operating routes on the National system of railroads, but not operating with the characteristics of commuter rail. This service typically operates light rail-type vehicles as diesel multipleunit trains (DMU’s). These trains do not meet Federal Railroad Administration standards, and so must operate with temporal separation from freight rail traffic.
A41: Inclined Plane (IP) | C41: A transit mode that is a railway operating over exclusive right-of-way (ROW) on steep grades (slopes) with powerless vehicles propelled by moving cables attached to the vehicles and powered by engines or motors at a central location not onboard the vehicle. The special tramway types of vehicles have passenger seats that remain horizontal while the undercarriage (truck) is angled parallel to the slope.
A42: Light Rail (LR) | C42: A transit mode that is typically an electric railway with a light volume traffic capacity compared to heavy rail (HR). It is characterized by: - Passenger rail cars operating singly (or in short, usually two car, trains) on fixed rails in shared or exclusive right-of-way (ROW) - Low or high platform loading - Vehicle power drawn from an overhead electric line via a trolley or a pantograph
A43: Monorail/Automated Guideway (MG) | C43: Monorail and Automated Guideway modes operate on exclusive guideway without using steel wheels on rails.
A44: Streetcar Rail (SR) | C44: This mode is for rail transit systems operating entire routes predominantly on streets in mixed-traffic. This service typically operates with single-car trains powered by overhead catenaries and with frequent stops.
A45: Trolleybus (TB) | C45: A transit mode comprised of electric rubber-tired passenger vehicles, manually steered and operating singly on city streets. Vehicles are propelled by a motor drawing current through overhead wires via trolleys, from a central power source not onboard the vehicle.
A46: Vanpool (VP) | C46: A transit mode comprised of vans, small buses and other vehicles operating as a ride sharing arrangement, providing transportation to a group of individuals traveling directly between their homes and a regular destination within the same geographical area.
A47: Jitney (JT) | C47: A transit mode comprising passenger cars or vans operating on fixed routes (sometimes with minor deviations) as demand warrants without fixed schedules or fixed stops.
A48: Aerial Tramway (TR) | C48: A transit mode that is an electric system of aerial cables with suspended powerless passenger vehicles. The vehicles are propelled by separate cables attached to the vehicle suspension system and powered by engines or motors at a central location not on-board the vehicle.
A49: Publico (PB) | C49: A transit mode comprised of passenger vans or small buses operating with fixed routes but no fixed schedules in Puerto Rico. Publicos (PB) are a privately owned and operated public transit service which is market oriented and unsubsidized, but regulated through a public service commission, state or local government. Publicos (PB) are operated under franchise agreements, fares are regulated by route and there are special insurance requirements. Vehicle capacity varies from 8 to 24, and the vehicles may be owned or leased by the operator.
A50: Questionable (Q) | C50: FTA marks a data point as Questionable when there is reason to believe it is incorrect, but the reporting agency has been unable to correct the data or offer an explanation for its anomalous appearance.
A51: Waived (W) | C51: FTA marks a data point as Waived when the reporting agency has not reported the data point according to NTD reporting requirements, but has received a waiver to report the data as-is for one year.

Sheet Breakdowns
A1: Agency | B1: City | C1: State | D1: Legacy NTD ID | E1: NTD ID | F1: Organization Type | G1: Reporter Type | H1: Primary UZA Population | I1: Agency VOMS | J1: Mode | K1: Type of Service | L1: Mode VOMS | M1: Major Mechanical Failures | N1: Major Mechanical Failures Questionable | O1: Other Mechanical Failures | P1: Other Mechanical Failures Questionable | Q1: Total Mechanical Failures | R1: Total Mechanical Failures Questionable | S1: Vehicle/Passenger Car Miles | T1: Vehicle/Passenger Car Miles Questionable | U1: Vehicle/Passenger Car Revenue Miles | V1: Vehicle/Passenger Car Revenue Miles Questionable | W1: Train Miles | X1: Train Miles Questionable | Y1: Train Revenue Miles | Z1: Train Revenue Miles Questionable | AA1: Any Data Questionable? | AC1: =IF(AC4=1,1,0) -> 1
A2: MTA New York City Transit | B2: New York | C2: NY | D2: 2008 | E2: 20008 | F2: Subsidiary Unit of a Transit Agency, Reporting Separately | G2: Full Reporter | H2: 18351295 | I2: 11004 | J2: HR | K2: DO | L2: 5324 | M2: 3097 | O2: 10196 | Q2: 13293 | S2: 357939619 | U2: 347091534 | W2: 39342476 | Y2: 38134129 | AA2: =IF(OR(Z2="Q",X2="Q",V2="Q",T2="Q",R2="Q",P2="Q",N2="Q"),"Yes","No") -> No | AC2: Hide Questionable Data Tags
A3: MTA New York City Transit | B3: New York | C3: NY | D3: 2008 | E3: 20008 | F3: Subsidiary Unit of a Transit Agency, Reporting Separately | G3: Full Reporter | H3: 18351295 | I3: 11004 | J3: MB | K3: DO | L3: 3286 | M3: 9035 | O3: 3630 | Q3: 12665 | S3: 98994910 | U3: 86863364 | W3: 0 | Y3: 0 | AA3: No | AC3: Show Questionable Data Tags
A4: MTA New York City Transit | B4: New York | C4: NY | D4: 2008 | E4: 20008 | F4: Subsidiary Unit of a Transit Agency, Reporting Separately | G4: Full Reporter | H4: 18351295 | I4: 11004 | J4: DR | K4: PT | L4: 1794 | M4: 2640 | O4: 2515 | Q4: 5155 | S4: 59318874 | U4: 48814480 | W4: 0 | Y4: 0 | AA4: No | AC4: 1
A5: MTA New York City Transit | B5: New York | C5: NY | D5: 2008 | E5: 20008 | F5: Subsidiary Unit of a Transit Agency, Reporting Separately | G5: Full Reporter | H5: 18351295 | I5: 11004 | J5: CB | K5: DO | L5: 455 | M5: 227 | O5: 76 | Q5: 303 | S5: 15561164 | U5: 9214967 | W5: 0 | Y5: 0 | AA5: No
A6: MTA New York City Transit | B6: New York | C6: NY | D6: 2008 | E6: 20008 | F6: Subsidiary Unit of a Transit Agency, Reporting Separately | G6: Full Reporter | H6: 18351295 | I6: 11004 | J6: RB | K6: DO | L6: 145 | M6: 293 | O6: 140 | Q6: 433 | S6: 3183091 | U6: 2988560 | W6: 0 | Y6: 0 | AA6: No
A7: New Jersey Transit Corporation | B7: Newark | C7: NJ | D7: 2080 | E7: 20080 | F7: Other Publicly-Owned or Privately Chartered Corporation | G7: Full Reporter | H7: 18351295 | I7: 4056 | J7: MB | K7: DO | L7: 1857 | M7: 6483 | O7: 3495 | Q7: 9978 | S7: 94165129 | U7: 72451012 | W7: 0 | Y7: 0 | AA7: No
A8: New Jersey Transit Corporation | B8: Newark | C8: NJ | D8: 2080 | E8: 20080 | F8: Other Publicly-Owned or Privately Chartered Corporation | G8: Full Reporter | H8: 18351295 | I8: 4056 | J8: CR | K8: DO | L8: 1267 | M8: 236 | O8: 0 | Q8: 236 | S8: 64713399 | U8: 61393168 | W8: 9525861 | Y8: 9031214 | AA8: No
A9: New Jersey Transit Corporation | B9: Newark | C9: NJ | D9: 2080 | E9: 20080 | F9: Other Publicly-Owned or Privately Chartered Corporation | G9: Full Reporter | H9: 18351295 | I9: 4056 | J9: DR | K9: PT | L9: 474 | M9: 233 | O9: 197 | Q9: 430 | S9: 17857141 | U9: 14882395 | W9: 0 | Y9: 0 | AA9: No
A10: New Jersey Transit Corporation | B10: Newark | C10: NJ | D10: 2080 | E10: 20080 | F10: Other Publicly-Owned or Privately Chartered Corporation | G10: Full Reporter | H10: 18351295 | I10: 4056 | J10: VP | K10: PT | L10: 204 | M10: 8 | O10: 16 | Q10: 24 | S10: 4701081 | U10: 4701081 | W10: 0 | Y10: 0 | AA10: No
A11: New Jersey Transit Corporation | B11: Newark | C11: NJ | D11: 2080 | E11: 20080 | F11: Other Publicly-Owned or Privately Chartered Corporation | G11: Full Reporter | H11: 18351295 | I11: 4056 | J11: MB | K11: PT | L11: 182 | M11: 216 | O11: 907 | Q11: 1123 | S11: 8324242 | U11: 7294248 | W11: 0 | Y11: 0 | AA11: No
A12: New Jersey Transit Corporation | B12: Newark | C12: NJ | D12: 2080 | E12: 20080 | F12: Other Publicly-Owned or Privately Chartered Corporation | G12: Full Reporter | H12: 18351295 | I12: 4056 | J12: LR | K12: PT | L12: 42 | M12: 44 | O12: 5 | Q12: 49 | S12: 1991437 | U12: 1951272 | W12: 1284696 | Y12: 1262188 | AA12: No
A13: New Jersey Transit Corporation | B13: Newark | C13: NJ | D13: 2080 | E13: 20080 | F13: Other Publicly-Owned or Privately Chartered Corporation | G13: Full Reporter | H13: 18351295 | I13: 4056 | J13: YR | K13: PT | L13: 16 | M13: 64 | O13: 3 | Q13: 67 | S13: 1329244 | U13: 1299376 | W13: 1026060 | Y13: 1026060 | AA13: No
A14: New Jersey Transit Corporation | B14: Newark | C14: NJ | D14: 2080 | E14: 20080 | F14: Other Publicly-Owned or Privately Chartered Corporation | G14: Full Reporter | H14: 18351295 | I14: 4056 | J14: LR | K14: DO | L14: 14 | M14: 72 | O14: 5 | Q14: 77 | S14: 522999 | U14: 512245 | W14: 522999 | Y14: 512245 | AA14: No
A15: Los Angeles County Metropolitan Transportation Authority dba: Metro | B15: Los Angeles | C15: CA | D15: 9154 | E15: 90154 | F15: Independent Public Agency or Authority of Transit Service | G15: Full Reporter | H15: 12150996 | I15: 3544 | J15: MB | K15: DO | L15: 1777 | M15: 5706 | O15: 11235 | Q15: 16941 | S15: 81824514 | U15: 68503553 | W15: 0 | Y15: 0 | AA15: No
A16: Los Angeles County Metropolitan Transportation Authority dba: Metro | B16: Los Angeles | C16: CA | D16: 9154 | E16: 90154 | F16: Independent Public Agency or Authority of Transit Service | G16: Full Reporter | H16: 12150996 | I16: 3544 | J16: VP | K16: PT | L16: 1378 | M16: 1 | O16: 103 | Q16: 104 | S16: 32197552 | U16: 32197552 | W16: 0 | Y16: 0 | AA16: No
A17: Los Angeles County Metropolitan Transportation Authority dba: Metro | B17: Los Angeles | C17: CA | D17: 9154 | E17: 90154 | F17: Independent Public Agency or Authority of Transit Service | G17: Full Reporter | H17: 12150996 | I17: 3544 | J17: LR | K17: DO | L17: 161 | M17: 504 | O17: 116 | Q17: 620 | S17: 14190109 | U17: 13746952 | W17: 6473063 | Y17: 6272460 | AA17: No
A18: Los Angeles County Metropolitan Transportation Authority dba: Metro | B18: Los Angeles | C18: CA | D18: 9154 | E18: 90154 | F18: Independent Public Agency or Authority of Transit Service | G18: Full Reporter | H18: 12150996 | I18: 3544 | J18: MB | K18: PT | L18: 125 | M18: 653 | O18: 215 | Q18: 868 | S18: 6919472 | U18: 5679764 | W18: 0 | Y18: 0 | AA18: No
A19: Los Angeles County Metropolitan Transportation Authority dba: Metro | B19: Los Angeles | C19: CA | D19: 9154 | E19: 90154 | F19: Independent Public Agency or Authority of Transit Service | G19: Full Reporter | H19: 12150996 | I19: 3544 | J19: HR | K19: DO | L19: 70 | M19: 57 | O19: 17 | Q19: 74 | S19: 7084353 | U19: 6884795 | W19: 1465782 | Y19: 1426125 | AA19: No
A20: Los Angeles County Metropolitan Transportation Authority dba: Metro | B20: Los Angeles | C20: CA | D20: 9154 | E20: 90154 | F20: Independent Public Agency or Authority of Transit Service | G20: Full Reporter | H20: 12150996 | I20: 3544 | J20: RB | K20: DO | L20: 33 | M20: 157 | O20: 463 | Q20: 620 | S20: 2066164 | U20: 1977433 | W20: 0 | Y20: 0 | AA20: No
A21: Washington Metropolitan Area Transit Authority | B21: Washington | C21: DC | D21: 3030 | E21: 30030 | F21: Independent Public Agency or Authority of Transit Service | G21: Full Reporter | H21: 4586770 | I21: 3172 | J21: MB | K21: DO | L21: 1301 | M21: 4930 | O21: 1397 | Q21: 6327 | S21: 50277092 | U21: 39363678 | W21: 0 | Y21: 0 | AA21: No
A22: Washington Metropolitan Area Transit Authority | B22: Washington | C22: DC | D22: 3030 | E22: 30030 | F22: Independent Public Agency or Authority of Transit Service | G22: Full Reporter | H22: 4586770 | I22: 3172 | J22: HR | K22: DO | L22: 954 | M22: 1512 | O22: 76 | Q22: 1588 | S22: 81483986 | U22: 77967423 | W22: 12842603 | Y22: 12336344 | AA22: No
A23: Washington Metropolitan Area Transit Authority | B23: Washington | C23: DC | D23: 3030 | E23: 30030 | F23: Independent Public Agency or Authority of Transit Service | G23: Full Reporter | H23: 4586770 | I23: 3172 | J23: DR | K23: PT | L23: 642 | M23: 312 | O23: 995 | Q23: 1307 | S23: 22279391 | U23: 18912329 | W23: 0 | Y23: 0 | AA23: No
A24: King County Department of Transportation | B24: Seattle | C24: WA | D24: 1 | E24: 1 | F24: City, County or Local Government Unit or Department of Transportation | G24: Full Reporter | H24: 3059393 | I24: 2818 | J24: VP | K24: DO | L24: 1469 | M24: 34 | O24: 0 | Q24: 34 | S24: 14879324 | U24: 14879324 | W24: 0 | Y24: 0 | AA24: No
A25: King County Department of Transportation | B25: Seattle | C25: WA | D25: 1 | E25: 1 | F25: City, County or Local Government Unit or Department of Transportation | G25: Full Reporter | H25: 3059393 | I25: 2818 | J25: MB | K25: DO | L25: 949 | M25: 6998 | O25: 7328 | Q25: 14326 | S25: 41037935 | U25: 32450352 | W25: 0 | Y25: 0 | AA25: No
A26: King County Department of Transportation | B26: Seattle | C26: WA | D26: 1 | E26: 1 | F26: City, County or Local Government Unit or Department of Transportation | G26: Full Reporter | H26: 3059393 | I26: 2818 | J26: DR | K26: PT | L26: 174 | M26: 70 | O26: 28 | Q26: 98 | S26: 9380470 | U26: 7934196 | W26: 0 | Y26: 0 | AA26: No
A27: King County Department of Transportation | B27: Seattle | C27: WA | D27: 1 | E27: 1 | F27: City, County or Local Government Unit or Department of Transportation | G27: Full Reporter | H27: 3059393 | I27: 2818 | J27: TB | K27: DO | L27: 138 | M27: 2165 | O27: 2021 | Q27: 4186 | S27: 3194807 | U27: 3063846 | W27: 0 | Y27: 0 | AA27: No
A28: King County Department of Transportation | B28: Seattle | C28: WA | D28: 1 | E28: 1 | F28: City, County or Local Government Unit or Department of Transportation | G28: Full Reporter | H28: 3059393 | I28: 2818 | J28: MB | K28: PT | L28: 32 | M28: 25 | O28: 56 | Q28: 81 | S28: 1443318 | U28: 1141070 | W28: 0 | Y28: 0 | AA28: No
A29: King County Department of Transportation | B29: Seattle | C29: WA | D29: 1 | E29: 1 | F29: City, County or Local Government Unit or Department of Transportation | G29: Full Reporter | H29: 3059393 | I29: 2818 | J29: SR | K29: DO | L29: 8 | M29: 38 | O29: 74 | Q29: 112 | S29: 195009 | U29: 191472 | W29: 195009 | Y29: 191472 | AA29: No
A30: King County Department of Transportation | B30: Seattle | C30: WA | D30: 1 | E30: 1 | F30: City, County or Local Government Unit or Department of Transportation | G30: Full Reporter | H30: 3059393 | I30: 2818 | J30: FB | K30: DO | L30: 2 | M30: 0 | O30: 0 | Q30: 0 | S30: 51704 | U30: 51704 | W30: 0 | Y30: 0 | AA30: No
A31: Chicago Transit Authority | B31: Chicago | C31: IL | D31: 5066 | E31: 50066 | F31: Independent Public Agency or Authority of Transit Service | G31: Full Reporter | H31: 8608208 | I31: 2712 | J31: MB | K31: DO | L31: 1572 | M31: 8547 | O31: 9107 | Q31: 17654 | S31: 57732367 | U31: 52304804 | W31: 0 | Y31: 0 | AA31: No
A32: Chicago Transit Authority | B32: Chicago | C32: IL | D32: 5066 | E32: 50066 | F32: Independent Public Agency or Authority of Transit Service | G32: Full Reporter | H32: 8608208 | I32: 2712 | J32: HR | K32: DO | L32: 1140 | M32: 225 | O32: 9117 | Q32: 9342 | S32: 72690180 | U32: 71811535 | W32: 12084328 | Y32: 11949339 | AA32: No
A33: Massachusetts Bay Transportation Authority | B33: Boston | C33: MA | D33: 1003 | E33: 10003 | F33: Independent Public Agency or Authority of Transit Service | G33: Full Reporter | H33: 4181019 | I33: 2374 | J33: MB | K33: DO | L33: 779 | M33: 1334 | O33: 410 | Q33: 1744 | S33: 25479827 | U33: 22704051 | W33: 0 | Y33: 0 | AA33: No
A34: Massachusetts Bay Transportation Authority | B34: Boston | C34: MA | D34: 1003 | E34: 10003 | F34: Independent Public Agency or Authority of Transit Service | G34: Full Reporter | H34: 4181019 | I34: 2374 | J34: DR | K34: PT | L34: 612 | M34: 141 | O34: 1325 | Q34: 1466 | S34: 21329393 | U34: 17828666 | W34: 0 | Y34: 0 | AA34: No
A35: Massachusetts Bay Transportation Authority | B35: Boston | C35: MA | D35: 1003 | E35: 10003 | F35: Independent Public Agency or Authority of Transit Service | G35: Full Reporter | H35: 4181019 | I35: 2374 | J35: CR | K35: PT | L35: 421 | M35: 304 | O35: 34 | Q35: 338 | S35: 24145958 | U35: 23532668 | W35: 4499676 | Y35: 4385812 | AA35: No
A36: Massachusetts Bay Transportation Authority | B36: Boston | C36: MA | D36: 1003 | E36: 10003 | F36: Independent Public Agency or Authority of Transit Service | G36: Full Reporter | H36: 4181019 | I36: 2374 | J36: HR | K36: DO | L36: 336 | M36: 348 | O36: 21 | Q36: 369 | S36: 23810785 | U36: 23247288 | W36: 3968464 | Y36: 3874548 | AA36: No
A37: Massachusetts Bay Transportation Authority | B37: Boston | C37: MA | D37: 1003 | E37: 10003 | F37: Independent Public Agency or Authority of Transit Service | G37: Full Reporter | H37: 4181019 | I37: 2374 | J37: LR | K37: DO | L37: 156 | M37: 1143 | O37: 93 | Q37: 1236 | S37: 6513441 | U37: 6499541 | W37: 3853709 | Y37: 3845486 | AA37: No
A38: Massachusetts Bay Transportation Authority | B38: Boston | C38: MA | D38: 1003 | E38: 10003 | F38: Independent Public Agency or Authority of Transit Service | G38: Full Reporter | H38: 4181019 | I38: 2374 | J38: RB | K38: DO | L38: 30 | M38: 21 | O38: 6 | Q38: 27 | S38: 1119552 | U38: 1064618 | W38: 0 | Y38: 0 | AA38: No
A39: Massachusetts Bay Transportation Authority | B39: Boston | C39: MA | D39: 1003 | E39: 10003 | F39: Independent Public Agency or Authority of Transit Service | G39: Full Reporter | H39: 4181019 | I39: 2374 | J39: TB | K39: DO | L39: 22 | M39: 4 | O39: 3 | Q39: 7 | S39: 258782 | U39: 257499 | W39: 0 | Y39: 0 | AA39: No
A40: Massachusetts Bay Transportation Authority | B40: Boston | C40: MA | D40: 1003 | E40: 10003 | F40: Independent Public Agency or Authority of Transit Service | G40: Full Reporter | H40: 4181019 | I40: 2374 | J40: MB | K40: PT | L40: 9 | M40: 6 | O40: 4 | Q40: 10 | S40: 407608 | U40: 390655 | W40: 0 | Y40: 0 | AA40: No
A41: Massachusetts Bay Transportation Authority | B41: Boston | C41: MA | D41: 1003 | E41: 10003 | F41: Independent Public Agency or Authority of Transit Service | G41: Full Reporter | H41: 4181019 | I41: 2374 | J41: FB | K41: PT | L41: 9 | M41: 0 | O41: 0 | Q41: 0 | S41: 233617 | U41: 230425 | W41: 0 | Y41: 0 | AA41: No
A42: Southeastern Pennsylvania Transportation Authority | B42: Philadelphia | C42: PA | D42: 3019 | E42: 30019 | F42: Independent Public Agency or Authority of Transit Service | G42: Full Reporter | H42: 5441567 | I42: 2339 | J42: MB | K42: DO | L42: 1174 | M42: 5023 | O42: 2304 | Q42: 7327 | S42: 45504084 | U42: 39793477 | W42: 0 | Y42: 0 | AA42: No
A43: Southeastern Pennsylvania Transportation Authority | B43: Philadelphia | C43: PA | D43: 3019 | E43: 30019 | F43: Independent Public Agency or Authority of Transit Service | G43: Full Reporter | H43: 5441567 | I43: 2339 | J43: DR | K43: PT | L43: 391 | M43: 712 | O43: 383 | Q43: 1095 | S43: 13452600 | U43: 11310034 | W43: 0 | Y43: 0 | AA43: No
A44: Southeastern Pennsylvania Transportation Authority | B44: Philadelphia | C44: PA | D44: 3019 | E44: 30019 | F44: Independent Public Agency or Authority of Transit Service | G44: Full Reporter | H44: 5441567 | I44: 2339 | J44: CR | K44: DO | L44: 339 | M44: 8 | O44: 96 | Q44: 104 | S44: 20443066 | U44: 19334288 | W44: 5259514 | Y44: 4984666 | AA44: No
A45: Southeastern Pennsylvania Transportation Authority | B45: Philadelphia | C45: PA | D45: 3019 | E45: 30019 | F45: Independent Public Agency or Authority of Transit Service | G45: Full Reporter | H45: 5441567 | I45: 2339 | J45: HR | K45: DO | L45: 284 | M45: 59 | O45: 3358 | Q45: 3417 | S45: 17419496 | U45: 17265382 | W45: 3356333 | Y45: 3325399 | AA45: No
A46: Southeastern Pennsylvania Transportation Authority | B46: Philadelphia | C46: PA | D46: 3019 | E46: 30019 | F46: Independent Public Agency or Authority of Transit Service | G46: Full Reporter | H46: 5441567 | I46: 2339 | J46: SR | K46: DO | L46: 121 | M46: 18 | O46: 436 | Q46: 454 | S46: 3442485 | U46: 3307488 | W46: 3442485 | Y46: 3307488 | AA46: No
A47: Southeastern Pennsylvania Transportation Authority | B47: Philadelphia | C47: PA | D47: 3019 | E47: 30019 | F47: Independent Public Agency or Authority of Transit Service | G47: Full Reporter | H47: 5441567 | I47: 2339 | J47: TB | K47: DO | L47: 30 | M47: 153 | O47: 43 | Q47: 196 | S47: 893480 | U47: 875662 | W47: 0 | Y47: 0 | AA47: No
A48: Metropolitan Transit Authority of Harris County, Texas | B48: Houston | C48: TX | D48: 6008 | E48: 60008 | F48: Independent Public Agency or Authority of Transit Service | G48: Full Reporter | H48: 4944332 | I48: 2206 | J48: VP | K48: PT | L48: 686 | M48: 26 | O48: 62 | Q48: 88 | S48: 9349083 | U48: 9349083 | W48: 0 | Y48: 0 | AA48: No
A49: Metropolitan Transit Authority of Harris County, Texas | B49: Houston | C49: TX | D49: 6008 | E49: 60008 | F49: Independent Public Agency or Authority of Transit Service | G49: Full Reporter | H49: 4944332 | I49: 2206 | J49: MB | K49: DO | L49: 586 | M49: 3068 | O49: 1505 | Q49: 4573 | S49: 32622171 | U49: 28706380 | W49: 0 | Y49: 0 | AA49: No
A50: Metropolitan Transit Authority of Harris County, Texas | B50: Houston | C50: TX | D50: 6008 | E50: 60008 | F50: Independent Public Agency or Authority of Transit Service | G50: Full Reporter | H50: 4944332 | I50: 2206 | J50: DR | K50: PT | L50: 338 | M50: 210 | O50: 718 | Q50: 928 | S50: 20106401 | U50: 16177939 | W50: 0 | Y50: 0 | AA50: No
A51: Metropolitan Transit Authority of Harris County, Texas | B51: Houston | C51: TX | D51: 6008 | E51: 60008 | F51: Independent Public Agency or Authority of Transit Service | G51: Full Reporter | H51: 4944332 | I51: 2206 | J51: CB | K51: DO | L51: 235 | M51: 380 | O51: 100 | Q51: 480 | S51: 8156290 | U51: 6184864 | W51: 0 | Y51: 0 | AA51: No
A52: Metropolitan Transit Authority of Harris County, Texas | B52: Houston | C52: TX | D52: 6008 | E52: 60008 | F52: Independent Public Agency or Authority of Transit Service | G52: Full Reporter | H52: 4944332 | I52: 2206 | J52: MB | K52: PT | L52: 116 | M52: 494 | O52: 246 | Q52: 740 | S52: 6908519 | U52: 6022798 | W52: 0 | Y52: 0 | AA52: No
A53: Metropolitan Transit Authority of Harris County, Texas | B53: Houston | C53: TX | D53: 6008 | E53: 60008 | F53: Independent Public Agency or Authority of Transit Service | G53: Full Reporter | H53: 4944332 | I53: 2206 | J53: CB | K53: PT | L53: 64 | M53: 114 | O53: 54 | Q53: 168 | S53: 2866253 | U53: 2088875 | W53: 0 | Y53: 0 | AA53: No
A54: Metropolitan Transit Authority of Harris County, Texas | B54: Houston | C54: TX | D54: 6008 | E54: 60008 | F54: Independent Public Agency or Authority of Transit Service | G54: Full Reporter | H54: 4944332 | I54: 2206 | J54: LR | K54: DO | L54: 54 | M54: 33 | O54: 41 | Q54: 74 | S54: 3432126 | U54: 3420828 | W54: 2089545 | Y54: 2077909 | AA54: No
A55: Access Services | B55: El Monte | C55: CA | D55: 9157 | E55: 90157 | F55: Independent Public Agency or Authority of Transit Service | G55: Full Reporter | H55: 12150996 | I55: 1955 | J55: DR | K55: PT | L55: 786 | M55: 739 | O55: 616 | Q55: 1355 | S55: 28425533 | U55: 24707073 | W55: 0 | Y55: 0 | AA55: No
A56: Maryland Transit Administration | B56: Baltimore | C56: MD | D56: 3034 | E56: 30034 | F56: State Government Unit or Department of Transportation | G56: Full Reporter | H56: 2203663 | I56: 1634 | J56: MB | K56: DO | L56: 627 | M56: 3980 | O56: 3501 | Q56: 7481 | S56: 22946367 | U56: 20140861 | W56: 0 | Y56: 0 | AA56: No
A57: Maryland Transit Administration | B57: Baltimore | C57: MD | D57: 3034 | E57: 30034 | F57: State Government Unit or Department of Transportation | G57: Full Reporter | H57: 2203663 | I57: 1634 | J57: DR | K57: PT | L57: 458 | M57: 166 | O57: 68 | Q57: 234 | S57: 20265046 | U57: 17172195 | W57: 0 | Y57: 0 | AA57: No
A58: Maryland Transit Administration | B58: Baltimore | C58: MD | D58: 3034 | E58: 30034 | F58: State Government Unit or Department of Transportation | G58: Full Reporter | H58: 2203663 | I58: 1634 | J58: CB | K58: PT | L58: 280 | M58: 336 | O58: 592 | Q58: 928 | S58: 6486765 | U58: 6285675 | W58: 0 | Y58: 0 | AA58: No
A59: Maryland Transit Administration | B59: Baltimore | C59: MD | D59: 3034 | E59: 30034 | F59: State Government Unit or Department of Transportation | G59: Full Reporter | H59: 2203663 | I59: 1634 | J59: CR | K59: PT | L59: 142 | M59: 94 | O59: 0 | Q59: 94 | S59: 6816669 | U59: 6386294 | W59: 1288731 | Y59: 1221997 | AA59: No
A60: Maryland Transit Administration | B60: Baltimore | C60: MD | D60: 3034 | E60: 30034 | F60: State Government Unit or Department of Transportation | G60: Full Reporter | H60: 2203663 | I60: 1634 | J60: HR | K60: DO | L60: 54 | M60: 554 | O60: 2415 | Q60: 2969 | S60: 5209167 | U60: 5003458 | W60: 1110038 | Y60: 1069076 | AA60: No
A61: Maryland Transit Administration | B61: Baltimore | C61: MD | D61: 3034 | E61: 30034 | F61: State Government Unit or Department of Transportation | G61: Full Reporter | H61: 2203663 | I61: 1634 | J61: LR | K61: DO | L61: 38 | M61: 600 | O61: 710 | Q61: 1310 | S61: 3178087 | U61: 3138056 | W61: 1733891 | Y61: 1716522 | AA61: No
A62: Pace - Suburban Bus Division | B62: Arlington Heights | C62: IL | D62: 5113 | E62: 50113 | F62: Independent Public Agency or Authority of Transit Service | G62: Full Reporter | H62: 8608208 | I62: 1619 | J62: VP | K62: DO | L62: 664 | M62: 64 | O62: 5 | Q62: 69 | S62: 8873999 | U62: 8873999 | W62: 0 | Y62: 0 | AA62: No
A63: Pace - Suburban Bus Division | B63: Arlington Heights | C63: IL | D63: 5113 | E63: 50113 | F63: Independent Public Agency or Authority of Transit Service | G63: Full Reporter | H63: 8608208 | I63: 1619 | J63: MB | K63: DO | L63: 545 | M63: 2172 | O63: 788 | Q63: 2960 | S63: 25688736 | U63: 20561982 | W63: 0 | Y63: 0 | AA63: No
A64: Pace - Suburban Bus Division | B64: Arlington Heights | C64: IL | D64: 5113 | E64: 50113 | F64: Independent Public Agency or Authority of Transit Service | G64: Full Reporter | H64: 8608208 | I64: 1619 | J64: DR | K64: PT | L64: 257 | M64: 79 | O64: 52 | Q64: 131 | S64: 5261024 | U64: 4419578 | W64: 0 | Y64: 0 | AA64: No
A65: Pace - Suburban Bus Division | B65: Arlington Heights | C65: IL | D65: 5113 | E65: 50113 | F65: Independent Public Agency or Authority of Transit Service | G65: Full Reporter | H65: 8608208 | I65: 1619 | J65: MB | K65: PT | L65: 92 | M65: 19 | O65: 19 | Q65: 38 | S65: 2318598 | U65: 1748298 | W65: 0 | Y65: 0 | AA65: No
A66: Pace - Suburban Bus Division | B66: Arlington Heights | C66: IL | D66: 5113 | E66: 50113 | F66: Independent Public Agency or Authority of Transit Service | G66: Full Reporter | H66: 8608208 | I66: 1619 | J66: DR | K66: DO | L66: 8 | M66: 1 | O66: 2 | Q66: 3 | S66: 260385 | U66: 208494 | W66: 0 | Y66: 0 | AA66: =IF(OR(Z66="Q",X66="Q",V66="Q",T66="Q",R66="Q",P66="Q",N66="Q"),"Yes","No") -> No
A67: Orange County Transportation Authority | B67: Orange | C67: CA | D67: 9036 | E67: 90036 | F67: Independent Public Agency or Authority of Transit Service | G67: Full Reporter | H67: 12150996 | I67: 1558 | J67: VP | K67: PT | L67: 510 | M67: 7 | O67: 16 | Q67: 23 | S67: 8842342 | U67: 8842342 | W67: 0 | Y67: 0 | AA67: No
A68: Orange County Transportation Authority | B68: Orange | C68: CA | D68: 9036 | E68: 90036 | F68: Independent Public Agency or Authority of Transit Service | G68: Full Reporter | H68: 12150996 | I68: 1558 | J68: DR | K68: PT | L68: 491 | M68: 231 | O68: 30 | Q68: 261 | S68: 13887489 | U68: 12314143 | W68: 0 | Y68: 0 | AA68: No
A69: Orange County Transportation Authority | B69: Orange | C69: CA | D69: 9036 | E69: 90036 | F69: Independent Public Agency or Authority of Transit Service | G69: Full Reporter | H69: 12150996 | I69: 1558 | J69: MB | K69: DO | L69: 266 | M69: 1208 | O69: 556 | Q69: 1764 | S69: 14233381 | U69: 12047428 | W69: 0 | Y69: 0 | AA69: No
A70: Orange County Transportation Authority | B70: Orange | C70: CA | D70: 9036 | E70: 90036 | F70: Independent Public Agency or Authority of Transit Service | G70: Full Reporter | H70: 12150996 | I70: 1558 | J70: MB | K70: PT | L70: 176 | M70: 965 | O70: 192 | Q70: 1157 | S70: 8929478 | U70: 7100169 | W70: 0 | Y70: 0 | AA70: No
A71: Orange County Transportation Authority | B71: Orange | C71: CA | D71: 9036 | E71: 90036 | F71: Independent Public Agency or Authority of Transit Service | G71: Full Reporter | H71: 12150996 | I71: 1558 | J71: CB | K71: PT | L71: 23 | M71: 36 | O71: 6 | Q71: 42 | S71: 901428 | U71: 460535 | W71: 0 | Y71: 0 | AA71: No
A72: Orange County Transportation Authority | B72: Orange | C72: CA | D72: 9036 | E72: 90036 | F72: Independent Public Agency or Authority of Transit Service | G72: Full Reporter | H72: 12150996 | I72: 1558 | J72: CB | K72: DO | L72: 6 | M72: 7 | O72: 5 | Q72: 12 | S72: 394110 | U72: 240337 | W72: 0 | Y72: 0 | AA72: No
A73: Denver Regional Transportation District | B73: Denver | C73: CO | D73: 8006 | E73: 80006 | F73: Independent Public Agency or Authority of Transit Service | G73: Full Reporter | H73: 2374203 | I73: 1435 | J73: MB | K73: DO | L73: 485 | M73: 302 | O73: 227 | Q73: 529 | S73: 25956782 | U73: 21607916 | W73: 0 | Y73: 0 | AA73: No
A74: Denver Regional Transportation District | B74: Denver | C74: CO | D74: 8006 | E74: 80006 | F74: Independent Public Agency or Authority of Transit Service | G74: Full Reporter | H74: 2374203 | I74: 1435 | J74: DR | K74: PT | L74: 404 | M74: 257 | O74: 225 | Q74: 482 | S74: 13458593 | U74: 10979096 | W74: 0 | Y74: 0 | AA74: No
A75: Denver Regional Transportation District | B75: Denver | C75: CO | D75: 8006 | E75: 80006 | F75: Independent Public Agency or Authority of Transit Service | G75: Full Reporter | H75: 2374203 | I75: 1435 | J75: MB | K75: PT | L75: 388 | M75: 377 | O75: 548 | Q75: 925 | S75: 18286684 | U75: 15151733 | W75: 0 | Y75: 0 | AA75: No
A76: Denver Regional Transportation District | B76: Denver | C76: CO | D76: 8006 | E76: 80006 | F76: Independent Public Agency or Authority of Transit Service | G76: Full Reporter | H76: 2374203 | I76: 1435 | J76: LR | K76: DO | L76: 140 | M76: 285 | O76: 145 | Q76: 430 | S76: 11774959 | U76: 11355973 | W76: 4223016 | Y76: 3988308 | AA76: No
A77: Denver Regional Transportation District | B77: Denver | C77: CO | D77: 8006 | E77: 80006 | F77: Independent Public Agency or Authority of Transit Service | G77: Full Reporter | H77: 2374203 | I77: 1435 | J77: CR | K77: PT | L77: 18 | M77: 45 | O77: 26 | Q77: 71 | S77: 1686184 | U77: 1663629 | W77: 843092 | Y77: 831815 | AA77: No
A78: Miami-Dade Transit | B78: Miami | C78: FL | D78: 4034 | E78: 40034 | F78: City, County or Local Government Unit or Department of Transportation | G78: Full Reporter | H78: 5502379 | I78: 1181 | J78: MB | K78: DO | L78: 709 | M78: 9571 | O78: 9179 | Q78: 18750 | S78: 33794795 | U78: 28242594 | W78: 0 | Y78: 0 | AA78: No
A79: Miami-Dade Transit | B79: Miami | C79: FL | D79: 4034 | E79: 40034 | F79: City, County or Local Government Unit or Department of Transportation | G79: Full Reporter | H79: 5502379 | I79: 1181 | J79: DR | K79: PT | L79: 358 | M79: 108 | O79: 71 | Q79: 179 | S79: 15722226 | U79: 13339934 | W79: 0 | Y79: 0 | AA79: No
A80: Miami-Dade Transit | B80: Miami | C80: FL | D80: 4034 | E80: 40034 | F80: City, County or Local Government Unit or Department of Transportation | G80: Full Reporter | H80: 5502379 | I80: 1181 | J80: HR | K80: DO | L80: 84 | M80: 227 | O80: 2087 | Q80: 2314 | S80: 8582177 | U80: 8189085 | W80: 2111756 | Y80: 1996901 | AA80: No
A81: Miami-Dade Transit | B81: Miami | C81: FL | D81: 4034 | E81: 40034 | F81: City, County or Local Government Unit or Department of Transportation | G81: Full Reporter | H81: 5502379 | I81: 1181 | J81: MG | K81: DO | L81: 23 | M81: 18 | O81: 393 | Q81: 411 | S81: 1219874 | U81: 1189377 | W81: 853912 | Y81: 832564 | AA81: No
A82: Miami-Dade Transit | B82: Miami | C82: FL | D82: 4034 | E82: 40034 | F82: City, County or Local Government Unit or Department of Transportation | G82: Full Reporter | H82: 5502379 | I82: 1181 | J82: CB | K82: PT | L82: 7 | M82: 9 | O82: 60 | Q82: 69 | S82: 799252 | U82: 798674 | W82: 0 | Y82: 0 | AA82: No
A83: Metro-North Commuter Railroad Company, dba: MTA Metro-North Railroad | B83: New York | C83: NY | D83: 2078 | E83: 20078 | F83: Subsidiary Unit of a Transit Agency, Reporting Separately | G83: Full Reporter | H83: 18351295 | I83: 1175 | J83: CR | K83: DO | L83: 1164 | M83: 89 | O83: 0 | Q83: 89 | S83: 77746007 | U83: 69580238 | W83: 10679956 | Y83: 9533735 | AA83: No
A84: Metro-North Commuter Railroad Company, dba: MTA Metro-North Railroad | B84: New York | C84: NY | D84: 2078 | E84: 20078 | F84: Subsidiary Unit of a Transit Agency, Reporting Separately | G84: Full Reporter | H84: 18351295 | I84: 1175 | J84: MB | K84: PT | L84: 9 | M84: 0 | O84: 7 | Q84: 7 | S84: 220531 | U84: 157793 | W84: 0 | Y84: 0 | AA84: No
A85: Metro-North Commuter Railroad Company, dba: MTA Metro-North Railroad | B85: New York | C85: NY | D85: 2078 | E85: 20078 | F85: Subsidiary Unit of a Transit Agency, Reporting Separately | G85: Full Reporter | H85: 18351295 | I85: 1175 | J85: FB | K85: PT | L85: 2 | M85: 3 | O85: 4 | Q85: 7 | S85: 48951 | U85: 48951 | W85: 0 | Y85: 0 | AA85: No
A86: MTA Bus Company | B86: New York | C86: NY | D86: 2188 | E86: 20188 | F86: Subsidiary Unit of a Transit Agency, Reporting Separately | G86: Full Reporter | H86: 18351295 | I86: 1093 | J86: MB | K86: DO | L86: 1093 | M86: 3834 | O86: 3094 | Q86: 6928 | S86: 37084029 | U86: 27082259 | W86: 0 | Y86: 0 | AA86: No
A87: Utah Transit Authority | B87: Salt Lake City | C87: UT | D87: 8001 | E87: 80001 | F87: Independent Public Agency or Authority of Transit Service | G87: Full Reporter | H87: 1021243 | I87: 1087 | J87: VP | K87: DO | L87: 406 | M87: 3 | O87: 0 | Q87: 3 | S87: 6518150 | U87: 6518150 | W87: 0 | Y87: 0 | AA87: No
A88: Utah Transit Authority | B88: Salt Lake City | C88: UT | D88: 8001 | E88: 80001 | F88: Independent Public Agency or Authority of Transit Service | G88: Full Reporter | H88: 1021243 | I88: 1087 | J88: MB | K88: DO | L88: 391 | M88: 907 | O88: 606 | Q88: 1513 | S88: 17511624 | U88: 15462834 | W88: 0 | Y88: 0 | AA88: No
A89: Utah Transit Authority | B89: Salt Lake City | C89: UT | D89: 8001 | E89: 80001 | F89: Independent Public Agency or Authority of Transit Service | G89: Full Reporter | H89: 1021243 | I89: 1087 | J89: LR | K89: DO | L89: 91 | M89: 178 | O89: 65 | Q89: 243 | S89: 6764853 | U89: 6668973 | W89: 2972129 | Y89: 2928141 | AA89: No
A90: Utah Transit Authority | B90: Salt Lake City | C90: UT | D90: 8001 | E90: 80001 | F90: Independent Public Agency or Authority of Transit Service | G90: Full Reporter | H90: 1021243 | I90: 1087 | J90: DR | K90: DO | L90: 61 | M90: 81 | O90: 57 | Q90: 138 | S90: 2019160 | U90: 1731218 | W90: 0 | Y90: 0 | AA90: No
A91: Utah Transit Authority | B91: Salt Lake City | C91: UT | D91: 8001 | E91: 80001 | F91: Independent Public Agency or Authority of Transit Service | G91: Full Reporter | H91: 1021243 | I91: 1087 | J91: CR | K91: DO | L91: 45 | M91: 63 | O91: 14 | Q91: 77 | S91: 5425023 | U91: 5401304 | W91: 1356256 | Y91: 1350327 | AA91: No
A92: Utah Transit Authority | B92: Salt Lake City | C92: UT | D92: 8001 | E92: 80001 | F92: Independent Public Agency or Authority of Transit Service | G92: Full Reporter | H92: 1021243 | I92: 1087 | J92: DR | K92: PT | L92: 44 | M92: 23 | O92: 4 | Q92: 27 | S92: 1235399 | U92: 974125 | W92: 0 | Y92: 0 | AA92: No
A93: Utah Transit Authority | B93: Salt Lake City | C93: UT | D93: 8001 | E93: 80001 | F93: Independent Public Agency or Authority of Transit Service | G93: Full Reporter | H93: 1021243 | I93: 1087 | J93: CB | K93: DO | L93: 43 | M93: 88 | O93: 47 | Q93: 135 | S93: 1421758 | U93: 995499 | W93: 0 | Y93: 0 | AA93: No
A94: Utah Transit Authority | B94: Salt Lake City | C94: UT | D94: 8001 | E94: 80001 | F94: Independent Public Agency or Authority of Transit Service | G94: Full Reporter | H94: 1021243 | I94: 1087 | J94: MB | K94: PT | L94: 6 | M94: 15 | O94: 1 | Q94: 16 | S94: 229650 | U94: 204344 | W94: 0 | Y94: 0 | AA94: No
A95: Dallas Area Rapid Transit | B95: Dallas | C95: TX | D95: 6056 | E95: 60056 | F95: Independent Public Agency or Authority of Transit Service | G95: Full Reporter | H95: 5121892 | I95: 1069 | J95: MB | K95: DO | L95: 533 | M95: 1646 | O95: 1202 | Q95: 2848 | S95: 31645767 | U95: 27499916 | W95: 0 | Y95: 0 | AA95: No
A96: Dallas Area Rapid Transit | B96: Dallas | C96: TX | D96: 6056 | E96: 60056 | F96: Independent Public Agency or Authority of Transit Service | G96: Full Reporter | H96: 5121892 | I96: 1069 | J96: VP | K96: PT | L96: 186 | M96: 0 | O96: 0 | Q96: 0 | S96: 3061242 | U96: 3061242 | W96: 0 | Y96: 0 | AA96: No
A97: Dallas Area Rapid Transit | B97: Dallas | C97: TX | D97: 6056 | E97: 60056 | F97: Independent Public Agency or Authority of Transit Service | G97: Full Reporter | H97: 5121892 | I97: 1069 | J97: DR | K97: PT | L97: 106 | M97: 28 | O97: 482 | Q97: 510 | S97: 3300149 | U97: 1986108 | W97: 0 | Y97: 0 | AA97: No
A98: Dallas Area Rapid Transit | B98: Dallas | C98: TX | D98: 6056 | E98: 60056 | F98: Independent Public Agency or Authority of Transit Service | G98: Full Reporter | H98: 5121892 | I98: 1069 | J98: LR | K98: DO | L98: 104 | M98: 109 | O98: 204 | Q98: 313 | S98: 9909091 | U98: 9829532 | W98: 5414582 | Y98: 5371805 | AA98: No
A99: Dallas Area Rapid Transit | B99: Dallas | C99: TX | D99: 6056 | E99: 60056 | F99: Independent Public Agency or Authority of Transit Service | G99: Full Reporter | H99: 5121892 | I99: 1069 | J99: CR | K99: PT | L99: 23 | M99: 6 | O99: 0 | Q99: 6 | S99: 1379076 | U99: 1164706 | W99: 488476 | Y99: 414838 | AA99: No
A100: Dallas Area Rapid Transit | B100: Dallas | C100: TX | D100: 6056 | E100: 60056 | F100: Independent Public Agency or Authority of Transit Service | G100: Full Reporter | H100: 5121892 | I100: 1069 | J100: SR | K100: DO | L100: 2 | M100: 10 | O100: 21 | Q100: 31 | S100: 37517 | U100: 36779 | W100: 37517 | Y100: 36779 | AA100: No
A101: Northeast Illinois Regional Commuter Railroad Corporation dba: Metra Rail | B101: Chicago | C101: IL | D101: 5118 | E101: 50118 | F101: Independent Public Agency or Authority of Transit Service | G101: Full Reporter | H101: 8608208 | I101: 1061 | J101: CR | K101: DO | L101: 1061 | M101: 105 | O101: 0 | Q101: 105 | S101: 45591649 | U101: 43521315 | W101: 7234375 | Y101: 6907344 | AA101: No
A102: MTA Long Island Rail Road | B102: Jamaica | C102: NY | D102: 2100 | E102: 20100 | F102: Subsidiary Unit of a Transit Agency, Reporting Separately | G102: Full Reporter | H102: 18351295 | I102: 1020 | J102: CR | K102: DO | L102: 1020 | M102: 95 | O102: 37 | Q102: 132 | S102: 76296737 | U102: 66763465 | W102: 8774670 | Y102: 7703687 | AA102: No
A103: Metropolitan Atlanta Rapid Transit Authority | B103: Atlanta | C103: GA | D103: 4022 | E103: 40022 | F103: Independent Public Agency or Authority of Transit Service | G103: Full Reporter | H103: 4515419 | I103: 1011 | J103: MB | K103: DO | L103: 465 | M103: 4460 | O103: 1620 | Q103: 6080 | S103: 28746563 | U103: 25181058 | W103: 0 | Y103: 0 | AA103: No
A104: Metropolitan Atlanta Rapid Transit Authority | B104: Atlanta | C104: GA | D104: 4022 | E104: 40022 | F104: Independent Public Agency or Authority of Transit Service | G104: Full Reporter | H104: 4515419 | I104: 1011 | J104: HR | K104: DO | L104: 208 | M104: 791 | O104: 241 | Q104: 1032 | S104: 23180779 | U104: 22267826 | W104: 4042474 | Y104: 3935007 | AA104: No
A105: Metropolitan Atlanta Rapid Transit Authority | B105: Atlanta | C105: GA | D105: 4022 | E105: 40022 | F105: Independent Public Agency or Authority of Transit Service | G105: Full Reporter | H105: 4515419 | I105: 1011 | J105: DR | K105: DO | L105: 169 | M105: 345 | O105: 108 | Q105: 453 | S105: 7402223 | U105: 5985844 | W105: 0 | Y105: 0 | AA105: No
A106: Metropolitan Atlanta Rapid Transit Authority | B106: Atlanta | C106: GA | D106: 4022 | E106: 40022 | F106: Independent Public Agency or Authority of Transit Service | G106: Full Reporter | H106: 4515419 | I106: 1011 | J106: DR | K106: PT | L106: 169 | M106: 78 | O106: 31 | Q106: 109 | S106: 880294 | U106: 701178 | W106: 0 | Y106: 0 | AA106: No
A107: San Francisco Municipal Railway | B107: San Francisco | C107: CA | D107: 9015 | E107: 90015 | F107: City, County or Local Government Unit or Department of Transportation | G107: Full Reporter | H107: 3281212 | I107: 985 | J107: MB | K107: DO | L107: 475 | M107: 2053 | O107: 154 | Q107: 2207 | S107: 15381690 | U107: 13497051 | W107: 0 | Y107: 0 | AA107: No
A108: San Francisco Municipal Railway | B108: San Francisco | C108: CA | D108: 9015 | E108: 90015 | F108: City, County or Local Government Unit or Department of Transportation | G108: Full Reporter | H108: 3281212 | I108: 985 | J108: TB | K108: DO | L108: 196 | M108: 1572 | O108: 259 | Q108: 1831 | S108: 6495233 | U108: 6204992 | W108: 0 | Y108: 0 | AA108: No
A109: San Francisco Municipal Railway | B109: San Francisco | C109: CA | D109: 9015 | E109: 90015 | F109: City, County or Local Government Unit or Department of Transportation | G109: Full Reporter | H109: 3281212 | I109: 985 | J109: DR | K109: PT | L109: 132 | M109: 52 | O109: 41 | Q109: 93 | S109: 2124961 | U109: 1745564 | W109: 0 | Y109: 0 | AA109: No
A110: San Francisco Municipal Railway | B110: San Francisco | C110: CA | D110: 9015 | E110: 90015 | F110: City, County or Local Government Unit or Department of Transportation | G110: Full Reporter | H110: 3281212 | I110: 985 | J110: LR | K110: DO | L110: 131 | M110: 951 | O110: 4237 | Q110: 5188 | S110: 5177636 | U110: 5170134 | W110: 3442553 | Y110: 3437565 | AA110: No
A111: San Francisco Municipal Railway | B111: San Francisco | C111: CA | D111: 9015 | E111: 90015 | F111: City, County or Local Government Unit or Department of Transportation | G111: Full Reporter | H111: 3281212 | I111: 985 | J111: CC | K111: DO | L111: 27 | M111: 57 | O111: 1977 | Q111: 2034 | S111: 264929 | U111: 258452 | W111: 264929 | Y111: 258452 | AA111: No
A112: San Francisco Municipal Railway | B112: San Francisco | C112: CA | D112: 9015 | E112: 90015 | F112: City, County or Local Government Unit or Department of Transportation | G112: Full Reporter | H112: 3281212 | I112: 985 | J112: SR | K112: DO | L112: 24 | M112: 263 | O112: 1167 | Q112: 1430 | S112: 521939 | U112: 521024 | W112: 521939 | Y112: 521024 | AA112: No
A113: Tri-County Metropolitan Transportation District of Oregon | B113: Portland | C113: OR | D113: 8 | E113: 8 | F113: Independent Public Agency or Authority of Transit Service | G113: Full Reporter | H113: 1849898 | I113: 950 | J113: MB | K113: DO | L113: 534 | M113: 1129 | O113: 4379 | Q113: 5508 | S113: 24264302 | U113: 20698766 | W113: 0 | Y113: 0 | AA113: No
A114: Tri-County Metropolitan Transportation District of Oregon | B114: Portland | C114: OR | D114: 8 | E114: 8 | F114: Independent Public Agency or Authority of Transit Service | G114: Full Reporter | H114: 1849898 | I114: 950 | J114: DR | K114: PT | L114: 226 | M114: 209 | O114: 1097 | Q114: 1306 | S114: 7609090 | U114: 6350618 | W114: 0 | Y114: 0 | AA114: No
A115: Tri-County Metropolitan Transportation District of Oregon | B115: Portland | C115: OR | D115: 8 | E115: 8 | F115: Independent Public Agency or Authority of Transit Service | G115: Full Reporter | H115: 1849898 | I115: 950 | J115: LR | K115: DO | L115: 116 | M115: 305 | O115: 73 | Q115: 378 | S115: 9004469 | U115: 8856111 | W115: 4502765 | Y115: 4428550 | AA115: No
A116: Tri-County Metropolitan Transportation District of Oregon | B116: Portland | C116: OR | D116: 8 | E116: 8 | F116: Independent Public Agency or Authority of Transit Service | G116: Full Reporter | H116: 1849898 | I116: 950 | J116: YR | K116: PT | L116: 4 | M116: 3 | O116: 0 | Q116: 3 | S116: 165966 | U116: 163721 | W116: 120666 | Y116: 118982 | AA116: No
A117: Pace-Suburban Bus Division, ADA Paratransit Services | B117: Arlington Heights | C117: IL | D117: 5182 | E117: 50182 | F117: Independent Public Agency or Authority of Transit Service | G117: Full Reporter | H117: 8608208 | I117: 940 | J117: DR | K117: PT | L117: 919 | M117: 517 | O117: 617 | Q117: 1134 | S117: 38912841 | U117: 33842757 | W117: 0 | Y117: 0 | AA117: No
A118: Port Authority of Allegheny County | B118: Pittsburgh | C118: PA | D118: 3022 | E118: 30022 | F118: Independent Public Agency or Authority of Transit Service | G118: Full Reporter | H118: 1733853 | I118: 939 | J118: MB | K118: DO | L118: 606 | M118: 2300 | O118: 289 | Q118: 2589 | S118: 26718052 | U118: 20848011 | W118: 0 | Y118: 0 | AA118: No
A119: Port Authority of Allegheny County | B119: Pittsburgh | C119: PA | D119: 3022 | E119: 30022 | F119: Independent Public Agency or Authority of Transit Service | G119: Full Reporter | H119: 1733853 | I119: 939 | J119: DR | K119: PT | L119: 271 | M119: 302 | O119: 181 | Q119: 483 | S119: 10776944 | U119: 9517334 | W119: 0 | Y119: 0 | AA119: No
A120: Port Authority of Allegheny County | B120: Pittsburgh | C120: PA | D120: 3022 | E120: 30022 | F120: Independent Public Agency or Authority of Transit Service | G120: Full Reporter | H120: 1733853 | I120: 939 | J120: LR | K120: DO | L120: 60 | M120: 199 | O120: 184 | Q120: 383 | S120: 2252360 | U120: 2170843 | W120: 1556036 | Y120: 1474519 | AA120: No
A121: Port Authority of Allegheny County | B121: Pittsburgh | C121: PA | D121: 3022 | E121: 30022 | F121: Independent Public Agency or Authority of Transit Service | G121: Full Reporter | H121: 1733853 | I121: 939 | J121: IP | K121: DO | L121: 2 | M121: 44 | O121: 0 | Q121: 44 | S121: 11580 | U121: 11580 | W121: 11580 | Y121: 11580 | AA121: No
A122: Metro Transit | B122: Minneapolis | C122: MN | D122: 5027 | E122: 50027 | F122: Subsidiary Unit of a Transit Agency, Reporting Separately | G122: Full Reporter | H122: 2650890 | I122: 843 | J122: MB | K122: DO | L122: 754 | M122: 708 | O122: 6150 | Q122: 6858 | S122: 31598429 | U122: 24591791 | W122: 0 | Y122: 0 | AA122: No
A123: Metro Transit | B123: Minneapolis | C123: MN | D123: 5027 | E123: 50027 | F123: Subsidiary Unit of a Transit Agency, Reporting Separately | G123: Full Reporter | H123: 2650890 | I123: 843 | J123: LR | K123: DO | L123: 69 | M123: 182 | O123: 110 | Q123: 292 | S123: 5318197 | U123: 5228128 | W123: 1926026 | Y123: 1881960 | AA123: No
A124: Metro Transit | B124: Minneapolis | C124: MN | D124: 5027 | E124: 50027 | F124: Subsidiary Unit of a Transit Agency, Reporting Separately | G124: Full Reporter | H124: 2650890 | I124: 843 | J124: CR | K124: PT | L124: 20 | M124: 2 | O124: 0 | Q124: 2 | S124: 550196 | U124: 538172 | W124: 150858 | Y124: 146764 | AA124: No
A125: VIA Metropolitan Transit | B125: San Antonio | C125: TX | D125: 6011 | E125: 60011 | F125: Independent Public Agency or Authority of Transit Service | G125: Full Reporter | H125: 1758210 | I125: 816 | J125: MB | K125: DO | L125: 378 | M125: 1706 | O125: 5400 | Q125: 7106 | S125: 24211207 | U125: 21832408 | W125: 0 | Y125: 0 | AA125: No
A126: VIA Metropolitan Transit | B126: San Antonio | C126: TX | D126: 6011 | E126: 60011 | F126: Independent Public Agency or Authority of Transit Service | G126: Full Reporter | H126: 1758210 | I126: 816 | J126: VP | K126: PT | L126: 214 | M126: 3 | O126: 8 | Q126: 11 | S126: 4437073 | U126: 4437073 | W126: 0 | Y126: 0 | AA126: No
A127: VIA Metropolitan Transit | B127: San Antonio | C127: TX | D127: 6011 | E127: 60011 | F127: Independent Public Agency or Authority of Transit Service | G127: Full Reporter | H127: 1758210 | I127: 816 | J127: DR | K127: PT | L127: 116 | M127: 125 | O127: 239 | Q127: 364 | S127: 7089015 | U127: 5956836 | W127: 0 | Y127: 0 | AA127: No
A128: VIA Metropolitan Transit | B128: San Antonio | C128: TX | D128: 6011 | E128: 60011 | F128: Independent Public Agency or Authority of Transit Service | G128: Full Reporter | H128: 1758210 | I128: 816 | J128: DR | K128: DO | L128: 108 | M128: 424 | O128: 81 | Q128: 505 | S128: 5017025 | U128: 4167328 | W128: 0 | Y128: 0 | AA128: No
A129: City and County of Honolulu Department of Transportation Services | B129: Honolulu | C129: HI | D129: 9002 | E129: 90002 | F129: City, County or Local Government Unit or Department of Transportation | G129: Full Reporter | H129: 802459 | I129: 812 | J129: MB | K129: PT | L129: 455 | M129: 2017 | O129: 4844 | Q129: 6861 | S129: 21545265 | U129: 17889049 | W129: 0 | Y129: 0 | AA129: No
A130: City and County of Honolulu Department of Transportation Services | B130: Honolulu | C130: HI | D130: 9002 | E130: 90002 | F130: City, County or Local Government Unit or Department of Transportation | G130: Full Reporter | H130: 802459 | I130: 812 | J130: DR | K130: PT | L130: 215 | M130: 665 | O130: 836 | Q130: 1501 | S130: 8370524 | U130: 6848351 | W130: 0 | Y130: 0 | AA130: =IF(OR(Z130="Q",X130="Q",V130="Q",T130="Q",R130="Q",P130="Q",N130="Q"),"Yes","No") -> No
A131: San Diego Metropolitan Transit System | B131: San Diego | C131: CA | D131: 9026 | E131: 90026 | F131: Independent Public Agency or Authority of Transit Service | G131: Full Reporter | H131: 2956746 | I131: 765 | J131: MB | K131: PT | L131: 261 | M131: 1611 | O131: 558 | Q131: 2169 | S131: 11541073 | U131: 9984379 | W131: 0 | Y131: 0 | AA131: No
A132: San Diego Metropolitan Transit System | B132: San Diego | C132: CA | D132: 9026 | E132: 90026 | F132: Independent Public Agency or Authority of Transit Service | G132: Full Reporter | H132: 2956746 | I132: 765 | J132: MB | K132: DO | L132: 224 | M132: 1067 | O132: 130 | Q132: 1197 | S132: 11326789 | U132: 9702131 | W132: 0 | Y132: 0 | AA132: No
A133: San Diego Metropolitan Transit System | B133: San Diego | C133: CA | D133: 9026 | E133: 90026 | F133: Independent Public Agency or Authority of Transit Service | G133: Full Reporter | H133: 2956746 | I133: 765 | J133: DR | K133: PT | L133: 166 | M133: 111 | O133: 10 | Q133: 121 | S133: 6110848 | U133: 4634471 | W133: 0 | Y133: 0 | AA133: No
A134: San Diego Metropolitan Transit System | B134: San Diego | C134: CA | D134: 9026 | E134: 90026 | F134: Independent Public Agency or Authority of Transit Service | G134: Full Reporter | H134: 2956746 | I134: 765 | J134: LR | K134: DO | L134: 97 | M134: 466 | O134: 914 | Q134: 1380 | S134: 8786704 | U134: 8673789 | W134: 3140172 | Y134: 3100019 | AA134: No
A135: San Diego Metropolitan Transit System | B135: San Diego | C135: CA | D135: 9026 | E135: 90026 | F135: Independent Public Agency or Authority of Transit Service | G135: Full Reporter | H135: 2956746 | I135: 765 | J135: CB | K135: PT | L135: 17 | M135: 69 | O135: 9 | Q135: 78 | S135: 827128 | U135: 350017 | W135: 0 | Y135: 0 | AA135: No
A136: Capital Metropolitan Transportation Authority | B136: Austin | C136: TX | D136: 6048 | E136: 60048 | F136: Independent Public Agency or Authority of Transit Service | G136: Full Reporter | H136: 1362416 | I136: 732 | J136: MB | K136: PT | L136: 304 | M136: 4078 | O136: 921 | Q136: 4999 | S136: 16057959 | U136: 14475601 | W136: 0 | Y136: 0 | AA136: No
A137: Capital Metropolitan Transportation Authority | B137: Austin | C137: TX | D137: 6048 | E137: 60048 | F137: Independent Public Agency or Authority of Transit Service | G137: Full Reporter | H137: 1362416 | I137: 732 | J137: VP | K137: PT | L137: 217 | M137: 0 | O137: 0 | Q137: 0 | S137: 3109432 | U137: 3109432 | W137: 0 | Y137: 0 | AA137: No
A138: Capital Metropolitan Transportation Authority | B138: Austin | C138: TX | D138: 6048 | E138: 60048 | F138: Independent Public Agency or Authority of Transit Service | G138: Full Reporter | H138: 1362416 | I138: 732 | J138: DR | K138: PT | L138: 153 | M138: 285 | O138: 202 | Q138: 487 | S138: 6057261 | U138: 5028095 | W138: 0 | Y138: 0 | AA138: No
A139: Capital Metropolitan Transportation Authority | B139: Austin | C139: TX | D139: 6048 | E139: 60048 | F139: Independent Public Agency or Authority of Transit Service | G139: Full Reporter | H139: 1362416 | I139: 732 | J139: CB | K139: PT | L139: 35 | M139: 99 | O139: 11 | Q139: 110 | S139: 1119408 | U139: 736798 | W139: 0 | Y139: 0 | AA139: No
A140: Capital Metropolitan Transportation Authority | B140: Austin | C140: TX | D140: 6048 | E140: 60048 | F140: Independent Public Agency or Authority of Transit Service | G140: Full Reporter | H140: 1362416 | I140: 732 | J140: YR | K140: PT | L140: 4 | M140: 3 | O140: 0 | Q140: 3 | S140: 336640 | U140: 298379 | W140: 336640 | Y140: 298379 | AA140: No
A141: San Diego Association of Governments | B141: San Diego | C141: CA | D141: 9095 | E141: 90095 | F141: MPO, COG or Other Planning Agency | G141: Full Reporter | H141: 2956746 | I141: 727 | J141: VP | K141: PT | L141: 727 | M141: 8 | O141: 42 | Q141: 50 | S141: 18312233 | U141: 18312233 | W141: 0 | Y141: 0 | AA141: No
A142: Alameda-Contra Costa Transit District | B142: Oakland | C142: CA | D142: 9014 | E142: 90014 | F142: Independent Public Agency or Authority of Transit Service | G142: Full Reporter | H142: 3281212 | I142: 702 | J142: MB | K142: DO | L142: 381 | M142: 2220 | O142: 1555 | Q142: 3775 | S142: 19801978 | U142: 17683122 | W142: 0 | Y142: 0 | AA142: No
A143: Alameda-Contra Costa Transit District | B143: Oakland | C143: CA | D143: 9014 | E143: 90014 | F143: Independent Public Agency or Authority of Transit Service | G143: Full Reporter | H143: 3281212 | I143: 702 | J143: DR | K143: PT | L143: 203 | M143: 270 | O143: 160 | Q143: 430 | S143: 7988607 | U143: 6579621 | W143: 0 | Y143: 0 | AA143: No
A144: Alameda-Contra Costa Transit District | B144: Oakland | C144: CA | D144: 9014 | E144: 90014 | F144: Independent Public Agency or Authority of Transit Service | G144: Full Reporter | H144: 3281212 | I144: 702 | J144: CB | K144: DO | L144: 104 | M144: 184 | O144: 72 | Q144: 256 | S144: 2980078 | U144: 1650329 | W144: 0 | Y144: 0 | AA144: No
A145: Alameda-Contra Costa Transit District | B145: Oakland | C145: CA | D145: 9014 | E145: 90014 | F145: Independent Public Agency or Authority of Transit Service | G145: Full Reporter | H145: 3281212 | I145: 702 | J145: MB | K145: PT | L145: 14 | M145: 3 | O145: 11 | Q145: 14 | S145: 508271 | U145: 422859 | W145: 0 | Y145: 0 | AA145: No
A146: Santa Clara Valley Transportation Authority | B146: San Jose | C146: CA | D146: 9013 | E146: 90013 | F146: Independent Public Agency or Authority of Transit Service | G146: Full Reporter | H146: 1664496 | I146: 686 | J146: MB | K146: DO | L146: 392 | M146: 1897 | O146: 300 | Q146: 2197 | S146: 18556393 | U146: 15518418 | W146: 0 | Y146: 0 | AA146: No
A147: Santa Clara Valley Transportation Authority | B147: San Jose | C147: CA | D147: 9013 | E147: 90013 | F147: Independent Public Agency or Authority of Transit Service | G147: Full Reporter | H147: 1664496 | I147: 686 | J147: DR | K147: PT | L147: 224 | M147: 2 | O147: 22 | Q147: 24 | S147: 5522211 | U147: 4929806 | W147: 0 | Y147: 0 | AA147: No
A148: Santa Clara Valley Transportation Authority | B148: San Jose | C148: CA | D148: 9013 | E148: 90013 | F148: Independent Public Agency or Authority of Transit Service | G148: Full Reporter | H148: 1664496 | I148: 686 | J148: LR | K148: DO | L148: 59 | M148: 95 | O148: 0 | Q148: 95 | S148: 3749154 | U148: 3470427 | W148: 2234496 | Y148: 2077964 | AA148: No
A149: Santa Clara Valley Transportation Authority | B149: San Jose | C149: CA | D149: 9013 | E149: 90013 | F149: Independent Public Agency or Authority of Transit Service | G149: Full Reporter | H149: 1664496 | I149: 686 | J149: MB | K149: PT | L149: 11 | M149: 2 | O149: 2 | Q149: 4 | S149: 234975 | U149: 193614 | W149: 0 | Y149: 0 | AA149: No
A150: Regional Transportation Commission of Southern Nevada | B150: Las Vegas | C150: NV | D150: 9045 | E150: 90045 | F150: Independent Public Agency or Authority of Transit Service | G150: Full Reporter | H150: 1886011 | I150: 612 | J150: MB | K150: PT | L150: 318 | M150: 1144 | O150: 473 | Q150: 1617 | S150: 17422729 | U150: 15880990 | W150: 0 | Y150: 0 | AA150: No
A151: Regional Transportation Commission of Southern Nevada | B151: Las Vegas | C151: NV | D151: 9045 | E151: 90045 | F151: Independent Public Agency or Authority of Transit Service | G151: Full Reporter | H151: 1886011 | I151: 612 | J151: DR | K151: PT | L151: 271 | M151: 252 | O151: 50 | Q151: 302 | S151: 11475294 | U151: 9982177 | W151: 0 | Y151: 0 | AA151: No
A152: Regional Transportation Commission of Southern Nevada | B152: Las Vegas | C152: NV | D152: 9045 | E152: 90045 | F152: Independent Public Agency or Authority of Transit Service | G152: Full Reporter | H152: 1886011 | I152: 612 | J152: RB | K152: PT | L152: 23 | M152: 53 | O152: 28 | Q152: 81 | S152: 1325851 | U152: 1062129 | W152: 0 | Y152: 0 | AA152: No
A153: Snohomish County Public Transportation Benefit Area Corporation | B153: Everett | C153: WA | D153: 29 | E153: 29 | F153: Independent Public Agency or Authority of Transit Service | G153: Full Reporter | H153: 3059393 | I153: 609 | J153: VP | K153: DO | L153: 364 | M153: 6 | O153: 4 | Q153: 10 | S153: 4586434 | U153: 4586434 | W153: 0 | Y153: 0 | AA153: No
A154: Snohomish County Public Transportation Benefit Area Corporation | B154: Everett | C154: WA | D154: 29 | E154: 29 | F154: Independent Public Agency or Authority of Transit Service | G154: Full Reporter | H154: 3059393 | I154: 609 | J154: MB | K154: DO | L154: 106 | M154: 835 | O154: 186 | Q154: 1021 | S154: 6266965 | U154: 5368515 | W154: 0 | Y154: 0 | AA154: No
A155: Snohomish County Public Transportation Benefit Area Corporation | B155: Everett | C155: WA | D155: 29 | E155: 29 | F155: Independent Public Agency or Authority of Transit Service | G155: Full Reporter | H155: 3059393 | I155: 609 | J155: CB | K155: PT | L155: 54 | M155: 112 | O155: 89 | Q155: 201 | S155: 1955909 | U155: 921961 | W155: 0 | Y155: 0 | AA155: No
A156: Snohomish County Public Transportation Benefit Area Corporation | B156: Everett | C156: WA | D156: 29 | E156: 29 | F156: Independent Public Agency or Authority of Transit Service | G156: Full Reporter | H156: 3059393 | I156: 609 | J156: DR | K156: PT | L156: 45 | M156: 63 | O156: 54 | Q156: 117 | S156: 1703843 | U156: 1537407 | W156: 0 | Y156: 0 | AA156: No
A157: Snohomish County Public Transportation Benefit Area Corporation | B157: Everett | C157: WA | D157: 29 | E157: 29 | F157: Independent Public Agency or Authority of Transit Service | G157: Full Reporter | H157: 3059393 | I157: 609 | J157: CB | K157: DO | L157: 40 | M157: 134 | O157: 11 | Q157: 145 | S157: 1745183 | U157: 812772 | W157: 0 | Y157: 0 | AA157: No
A158: Central Florida Regional Transportation Authority | B158: Orlando | C158: FL | D158: 4035 | E158: 40035 | F158: Independent Public Agency or Authority of Transit Service | G158: Full Reporter | H158: 1510516 | I158: 581 | J158: MB | K158: DO | L158: 250 | M158: 1165 | O158: 82 | Q158: 1247 | S158: 16477109 | U158: 14777315 | W158: 0 | Y158: 0 | AA158: No
A159: Central Florida Regional Transportation Authority | B159: Orlando | C159: FL | D159: 4035 | E159: 40035 | F159: Independent Public Agency or Authority of Transit Service | G159: Full Reporter | H159: 1510516 | I159: 581 | J159: VP | K159: PT | L159: 157 | M159: 0 | O159: 9 | Q159: 9 | S159: 2730252 | U159: 2730252 | W159: 0 | Y159: 0 | AA159: No
A160: Central Florida Regional Transportation Authority | B160: Orlando | C160: FL | D160: 4035 | E160: 40035 | F160: Independent Public Agency or Authority of Transit Service | G160: Full Reporter | H160: 1510516 | I160: 581 | J160: DR | K160: PT | L160: 146 | M160: 81 | O160: 221 | Q160: 302 | S160: 8766031 | U160: 8162222 | W160: 0 | Y160: 0 | AA160: No
A161: Central Florida Regional Transportation Authority | B161: Orlando | C161: FL | D161: 4035 | E161: 40035 | F161: Independent Public Agency or Authority of Transit Service | G161: Full Reporter | H161: 1510516 | I161: 581 | J161: MB | K161: PT | L161: 13 | M161: 27 | O161: 84 | Q161: 111 | S161: 967776 | U161: 712609 | W161: 0 | Y161: 0 | AA161: No
A162: Central Florida Regional Transportation Authority | B162: Orlando | C162: FL | D162: 4035 | E162: 40035 | F162: Independent Public Agency or Authority of Transit Service | G162: Full Reporter | H162: 1510516 | I162: 581 | J162: RB | K162: DO | L162: 13 | M162: 29 | O162: 1 | Q162: 30 | S162: 297271 | U162: 271570 | W162: 0 | Y162: 0 | AA162: No
A163: Central Florida Regional Transportation Authority | B163: Orlando | C163: FL | D163: 4035 | E163: 40035 | F163: Independent Public Agency or Authority of Transit Service | G163: Full Reporter | H163: 1510516 | I163: 581 | J163: CB | K163: PT | L163: 2 | M163: 0 | O163: 0 | Q163: 0 | S163: 94861 | U163: 61580 | W163: 0 | Y163: 0 | AA163: No
A164: City of Phoenix Public Transit Department dba Valley Metro | B164: Phoenix | C164: AZ | D164: 9032 | E164: 90032 | F164: City, County or Local Government Unit or Department of Transportation | G164: Full Reporter | H164: 3629114 | I164: 565 | J164: MB | K164: PT | L164: 456 | M164: 1551 | O164: 61 | Q164: 1612 | S164: 20786877 | U164: 16353392 | W164: 0 | Y164: 0 | AA164: No
A165: City of Phoenix Public Transit Department dba Valley Metro | B165: Phoenix | C165: AZ | D165: 9032 | E165: 90032 | F165: City, County or Local Government Unit or Department of Transportation | G165: Full Reporter | H165: 3629114 | I165: 565 | J165: DR | K165: PT | L165: 109 | M165: 223 | O165: 230 | Q165: 453 | S165: 4642647 | U165: 3924026 | W165: 0 | Y165: 0 | AA165: No
A166: California Vanpool Authority | B166: Hanford | C166: CA | D166: 9230 | E166: 90230 | F166: City, County or Local Government Unit or Department of Transportation | G166: Full Reporter | H166: 87941 | I166: 548 | J166: VP | K166: DO | L166: 548 | M166: 10 | O166: 49 | Q166: 59 | S166: 10368958 | U166: 10368958 | W166: 0 | Y166: 0 | AA166: No
A167: San Francisco Bay Area Rapid Transit District | B167: Oakland | C167: CA | D167: 9003 | E167: 90003 | F167: Independent Public Agency or Authority of Transit Service | G167: Full Reporter | H167: 3281212 | I167: 545 | J167: HR | K167: DO | L167: 541 | M167: 143 | O167: 67 | Q167: 210 | S167: 73194683 | U167: 71628728 | W167: 9448119 | Y167: 9247591 | AA167: No
A168: The Greater Cleveland Regional Transit Authority | B168: Cleveland | C168: OH | D168: 5015 | E168: 50015 | F168: Independent Public Agency or Authority of Transit Service | G168: Full Reporter | H168: 1780673 | I168: 545 | J168: MB | K168: DO | L168: 350 | M168: 1186 | O168: 471 | Q168: 1657 | S168: 15464422 | U168: 13188669 | W168: 0 | Y168: 0 | AA168: No
A169: The Greater Cleveland Regional Transit Authority | B169: Cleveland | C169: OH | D169: 5015 | E169: 50015 | F169: Independent Public Agency or Authority of Transit Service | G169: Full Reporter | H169: 1780673 | I169: 545 | J169: DR | K169: PT | L169: 80 | M169: 55 | O169: 30 | Q169: 85 | S169: 3863518 | U169: 3054559 | W169: 0 | Y169: 0 | AA169: No
A170: The Greater Cleveland Regional Transit Authority | B170: Cleveland | C170: OH | D170: 5015 | E170: 50015 | F170: Independent Public Agency or Authority of Transit Service | G170: Full Reporter | H170: 1780673 | I170: 545 | J170: DR | K170: DO | L170: 68 | M170: 43 | O170: 6 | Q170: 49 | S170: 2793342 | U170: 2289375 | W170: 0 | Y170: 0 | AA170: No
A171: The Greater Cleveland Regional Transit Authority | B171: Cleveland | C171: OH | D171: 5015 | E171: 50015 | F171: Independent Public Agency or Authority of Transit Service | G171: Full Reporter | H171: 1780673 | I171: 545 | J171: HR | K171: DO | L171: 20 | M171: 147 | O171: 1998 | Q171: 2145 | S171: 2669644 | U171: 2661244 | W171: 1340813 | Y171: 1336604 | AA171: No
A172: The Greater Cleveland Regional Transit Authority | B172: Cleveland | C172: OH | D172: 5015 | E172: 50015 | F172: Independent Public Agency or Authority of Transit Service | G172: Full Reporter | H172: 1780673 | I172: 545 | J172: RB | K172: DO | L172: 14 | M172: 32 | O172: 30 | Q172: 62 | S172: 610410 | U172: 595789 | W172: 0 | Y172: 0 | AA172: No
A173: The Greater Cleveland Regional Transit Authority | B173: Cleveland | C173: OH | D173: 5015 | E173: 50015 | F173: Independent Public Agency or Authority of Transit Service | G173: Full Reporter | H173: 1780673 | I173: 545 | J173: LR | K173: DO | L173: 13 | M173: 106 | O173: 1163 | Q173: 1269 | S173: 784746 | U173: 776474 | W173: 770622 | Y173: 762480 | AA173: No
A174: San Francisco Bay Area Rapid Transit District | B174: Oakland | C174: CA | D174: 9003 | E174: 90003 | F174: Independent Public Agency or Authority of Transit Service | G174: Full Reporter | H174: 3281212 | I174: 545 | J174: MG | K174: PT | L174: 4 | M174: 4 | O174: 2 | Q174: 6 | S174: 416609 | U174: 414268 | W174: 416609 | Y174: 414268 | AA174: No
A175: VRide, Inc. - Michigan | B175: Farmington Hills | C175: MI | D175: 5193 | E175: 50193 | F175: Private Provider Reporting on Behalf of a Public Entity | G175: Full Reporter | H175: 3734090 | I175: 537 | J175: VP | K175: DO | L175: 537 | M175: 5 | O175: 3 | Q175: 8 | S175: 9433909 | U175: 9433909 | W175: 0 | Y175: 0 | AA175: No
A176: Pierce County Transportation Benefit Area Authority | B176: Tacoma | C176: WA | D176: 3 | E176: 3 | F176: Independent Public Agency or Authority of Transit Service | G176: Full Reporter | H176: 3059393 | I176: 533 | J176: VP | K176: DO | L176: 324 | M176: 17 | O176: 1 | Q176: 18 | S176: 4707552 | U176: 4707552 | W176: 0 | Y176: 0 | AA176: No
A177: Pierce County Transportation Benefit Area Authority | B177: Tacoma | C177: WA | D177: 3 | E177: 3 | F177: Independent Public Agency or Authority of Transit Service | G177: Full Reporter | H177: 3059393 | I177: 533 | J177: MB | K177: DO | L177: 118 | M177: 620 | O177: 761 | Q177: 1381 | S177: 5404224 | U177: 4534746 | W177: 0 | Y177: 0 | AA177: No
A178: Pierce County Transportation Benefit Area Authority | B178: Tacoma | C178: WA | D178: 3 | E178: 3 | F178: Independent Public Agency or Authority of Transit Service | G178: Full Reporter | H178: 3059393 | I178: 533 | J178: DR | K178: PT | L178: 60 | M178: 32 | O178: 47 | Q178: 79 | S178: 1868761 | U178: 1616578 | W178: 0 | Y178: 0 | AA178: No
A179: Pierce County Transportation Benefit Area Authority | B179: Tacoma | C179: WA | D179: 3 | E179: 3 | F179: Independent Public Agency or Authority of Transit Service | G179: Full Reporter | H179: 3059393 | I179: 533 | J179: DR | K179: DO | L179: 31 | M179: 10 | O179: 29 | Q179: 39 | S179: 732612 | U179: 648133 | W179: 0 | Y179: 0 | AA179: No
A180: Potomac and Rappahannock Transportation Commission | B180: Woodbridge | C180: VA | D180: 3070 | E180: 30070 | F180: Independent Public Agency or Authority of Transit Service | G180: Full Reporter | H180: 4586770 | I180: 532 | J180: VP | K180: PT | L180: 404 | M180: 0 | O180: 0 | Q180: 0 | S180: 8480541 | U180: 8480541 | W180: 0 | Y180: 0 | AA180: No
A181: Potomac and Rappahannock Transportation Commission | B181: Woodbridge | C181: VA | D181: 3070 | E181: 30070 | F181: Independent Public Agency or Authority of Transit Service | G181: Full Reporter | H181: 4586770 | I181: 532 | J181: CB | K181: PT | L181: 92 | M181: 269 | O181: 364 | Q181: 633 | S181: 3243517 | U181: 1911932 | W181: 0 | Y181: 0 | AA181: No
A182: Potomac and Rappahannock Transportation Commission | B182: Woodbridge | C182: VA | D182: 3070 | E182: 30070 | F182: Independent Public Agency or Authority of Transit Service | G182: Full Reporter | H182: 4586770 | I182: 532 | J182: MB | K182: PT | L182: 36 | M182: 263 | O182: 171 | Q182: 434 | S182: 1690777 | U182: 1445528 | W182: 0 | Y182: 0 | AA182: No
A183: Delaware Transit Corporation | B183: Dover | C183: DE | D183: 3075 | E183: 30075 | F183: Independent Public Agency or Authority of Transit Service | G183: Full Reporter | H183: 5441567 | I183: 481 | J183: DR | K183: DO | L183: 265 | M183: 222 | O183: 123 | Q183: 345 | S183: 9894012 | U183: 8349690 | W183: 0 | Y183: 0 | AA183: No
A184: Delaware Transit Corporation | B184: Dover | C184: DE | D184: 3075 | E184: 30075 | F184: Independent Public Agency or Authority of Transit Service | G184: Full Reporter | H184: 5441567 | I184: 481 | J184: MB | K184: DO | L184: 173 | M184: 730 | O184: 388 | Q184: 1118 | S184: 6888434 | U184: 6352378 | W184: 0 | Y184: 0 | AA184: No
A185: Delaware Transit Corporation | B185: Dover | C185: DE | D185: 3075 | E185: 30075 | F185: Independent Public Agency or Authority of Transit Service | G185: Full Reporter | H185: 5441567 | I185: 481 | J185: MB | K185: PT | L185: 31 | M185: 75 | O185: 65 | Q185: 140 | S185: 1381669 | U185: 1214615 | W185: 0 | Y185: 0 | AA185: No
A186: Delaware Transit Corporation | B186: Dover | C186: DE | D186: 3075 | E186: 30075 | F186: Independent Public Agency or Authority of Transit Service | G186: Full Reporter | H186: 5441567 | I186: 481 | J186: DR | K186: PT | L186: 12 | M186: 4 | O186: 3 | Q186: 7 | S186: 365189 | U186: 296532 | W186: 0 | Y186: 0 | AA186: No
A187: Bi-State Development Agency of the Missouri-Illinois Metropolitan District, d.b.a.(St. Louis) Metro | B187: St. Louis | C187: MO | D187: 7006 | E187: 70006 | F187: Independent Public Agency or Authority of Transit Service | G187: Full Reporter | H187: 2150706 | I187: 480 | J187: MB | K187: DO | L187: 321 | M187: 417 | O187: 158 | Q187: 575 | S187: 21051875 | U187: 18469179 | W187: 0 | Y187: 0 | AA187: No
A188: Bi-State Development Agency of the Missouri-Illinois Metropolitan District, d.b.a.(St. Louis) Metro | B188: St. Louis | C188: MO | D188: 7006 | E188: 70006 | F188: Independent Public Agency or Authority of Transit Service | G188: Full Reporter | H188: 2150706 | I188: 480 | J188: DR | K188: DO | L188: 101 | M188: 107 | O188: 9 | Q188: 116 | S188: 5700005 | U188: 5344645 | W188: 0 | Y188: 0 | AA188: No
A189: Bi-State Development Agency of the Missouri-Illinois Metropolitan District, d.b.a.(St. Louis) Metro | B189: St. Louis | C189: MO | D189: 7006 | E189: 70006 | F189: Independent Public Agency or Authority of Transit Service | G189: Full Reporter | H189: 2150706 | I189: 480 | J189: LR | K189: DO | L189: 58 | M189: 296 | O189: 78 | Q189: 374 | S189: 6302667 | U189: 6250140 | W189: 3151333 | Y189: 3125069 | AA189: No
A190: Broward County Transit Division | B190: Plantation | C190: FL | D190: 4029 | E190: 40029 | F190: City, County or Local Government Unit or Department of Transportation | G190: Full Reporter | H190: 5502379 | I190: 471 | J190: MB | K190: DO | L190: 273 | M190: 1897 | O190: 144 | Q190: 2041 | S190: 17724636 | U190: 15077587 | W190: 0 | Y190: 0 | AA190: No
A191: Broward County Transit Division | B191: Plantation | C191: FL | D191: 4029 | E191: 40029 | F191: City, County or Local Government Unit or Department of Transportation | G191: Full Reporter | H191: 5502379 | I191: 471 | J191: DR | K191: PT | L191: 191 | M191: 83 | O191: 5 | Q191: 88 | S191: 9222429 | U191: 7296787 | W191: 0 | Y191: 0 | AA191: No
A192: Broward County Transit Division | B192: Plantation | C192: FL | D192: 4029 | E192: 40029 | F192: City, County or Local Government Unit or Department of Transportation | G192: Full Reporter | H192: 5502379 | I192: 471 | J192: MB | K192: PT | L192: 7 | M192: 29 | O192: 4 | Q192: 33 | S192: 317763 | U192: 236413 | W192: 0 | Y192: 0 | AA192: No
A193: Metro Mobility | B193: St. Paul | C193: MN | D193: 5155 | E193: 50155 | F193: Subsidiary Unit of a Transit Agency, Reporting Separately | G193: Full Reporter | H193: 2650890 | I193: 469 | J193: DR | K193: PT | L193: 469 | M193: 161 | O193: 243 | Q193: 404 | S193: 23938975 | U193: 20222843 | W193: 0 | Y193: 0 | AA193: No
A194: City of Detroit Department of Transportation | B194: Detroit | C194: MI | D194: 5119 | E194: 50119 | F194: City, County or Local Government Unit or Department of Transportation | G194: Full Reporter | H194: 3734090 | I194: 456 | J194: MB | K194: DO | L194: 230 | M194: 2182 | O194: 1100 | Q194: 3282 | S194: 12058959 | U194: 10312124 | W194: 0 | Y194: 0 | AA194: =IF(OR(Z194="Q",X194="Q",V194="Q",T194="Q",R194="Q",P194="Q",N194="Q"),"Yes","No") -> No
A195: City of Detroit Department of Transportation | B195: Detroit | C195: MI | D195: 5119 | E195: 50119 | F195: City, County or Local Government Unit or Department of Transportation | G195: Full Reporter | H195: 3734090 | I195: 456 | J195: DR | K195: PT | L195: 3 | M195: 0 | O195: 0 | Q195: 0 | S195: 83465 | U195: 65585 | W195: 0 | Y195: 0 | AA195: No
A196: Ben Franklin Transit | B196: Richland | C196: WA | D196: 18 | E196: 18 | F196: Independent Public Agency or Authority of Transit Service | G196: Full Reporter | H196: 210975 | I196: 431 | J196: VP | K196: DO | L196: 261 | M196: 5 | O196: 1 | Q196: 6 | S196: 3516347 | U196: 3516347 | W196: 0 | Y196: 0 | AA196: No
A197: Ben Franklin Transit | B197: Richland | C197: WA | D197: 18 | E197: 18 | F197: Independent Public Agency or Authority of Transit Service | G197: Full Reporter | H197: 210975 | I197: 431 | J197: DR | K197: DO | L197: 70 | M197: 197 | O197: 54 | Q197: 251 | S197: 2151824 | U197: 1849758 | W197: 0 | Y197: 0 | AA197: No
A198: Ben Franklin Transit | B198: Richland | C198: WA | D198: 18 | E198: 18 | F198: Independent Public Agency or Authority of Transit Service | G198: Full Reporter | H198: 210975 | I198: 431 | J198: MB | K198: DO | L198: 46 | M198: 87 | O198: 87 | Q198: 174 | S198: 2344817 | U198: 2161030 | W198: 0 | Y198: 0 | AA198: No
A199: Ben Franklin Transit | B199: Richland | C199: WA | D199: 18 | E199: 18 | F199: Independent Public Agency or Authority of Transit Service | G199: Full Reporter | H199: 210975 | I199: 431 | J199: DR | K199: PT | L199: 33 | M199: 5 | O199: 1 | Q199: 6 | S199: 271794 | U199: 213755 | W199: 0 | Y199: 0 | AA199: No
A200: Board of County Commissioners, Palm Beach County, PalmTran, Inc. | B200: West Palm Beach | C200: FL | D200: 4037 | E200: 40037 | F200: City, County or Local Government Unit or Department of Transportation | G200: Full Reporter | H200: 5502379 | I200: 424 | J200: DR | K200: PT | L200: 294 | M200: 785 | O200: 493 | Q200: 1278 | S200: 11261827 | U200: 9554335 | W200: 0 | Y200: 0 | AA200: No
... 1050 more rows

Sheet Summary
A1: To bring up the accessible control panel, press ctrl + a. Some screen reading functionality will not work while the sheet is protected. To unprotect the sheet press alt h o p and enter the password ntd. | F1: National Totals | P1: =IF(P4=1,0,1) -> 0
F2: VOMS | G2: Major Mechanical Failures | H2: Other Mechanical Failures | I2: Total Mechanical Failures | J2: Vehicle/Passenger Car Miles | K2: Vehicle/Passenger Car Revenue Miles | L2: Train Miles | M2: Train Revenue Miles | P2: Include Questionable Data
F3: =IF($P$1,SUMIFS(Breakdowns!L:L,Breakdowns!$AA:$AA,"=No"),SUM(Breakdowns!L:L)) -> 106299 | G3: =IF($P$1,SUMIFS(Breakdowns!M:M,Breakdowns!$AA:$AA,"=No"),SUM(Breakdowns!M:M)) -> 249404 | H3: =IF($P$1,SUMIFS(Breakdowns!O:O,Breakdowns!$AA:$AA,"=No"),SUM(Breakdowns!O:O)) -> 266737 | I3: =IF($P$1,SUMIFS(Breakdowns!Q:Q,Breakdowns!$AA:$AA,"=No"),SUM(Breakdowns!Q:Q)) -> 516141 | J3: =IF($P$1,SUMIFS(Breakdowns!S:S,Breakdowns!$AA:$AA,"=No"),SUM(Breakdowns!S:S)) -> 4522027867 | K3: =IF($P$1,SUMIFS(Breakdowns!U:U,Breakdowns!$AA:$AA,"=No"),SUM(Breakdowns!U:U)) -> 4016193005 | L3: =IF($P$1,SUMIFS(Breakdowns!W:W,Breakdowns!$AA:$AA,"=No"),SUM(Breakdowns!W:W)) -> 223426532 | M3: =IF($P$1,SUMIFS(Breakdowns!Y:Y,Breakdowns!$AA:$AA,"=No"),SUM(Breakdowns!Y:Y)) -> 215231596 | P3: Exclude Questionable Data
P4: 1
A5: By Urbanized Area Size
D6: edit bins below | E6: Column1 | F6: VOMS | G6: Major Mechanical Failures | H6: Other Mechanical Failures | I6: Total Mechanical Failures | J6: Vehicle/Passenger Car Miles | K6: Vehicle/Passenger Car Revenue Miles | L6: Train Miles | M6: Train Revenue Miles | S6: ="Under "&FIXED(B7,0,0) -> Under 200,000 | T6: =IFERROR($K7/$G7,"") -> 18535.04452
A7: Under | B7: =D7 -> 200000 | D7: 200000 | E7: =A7&" "&FIXED(B7,0,0) -> Under 200,000 | F7: =IF($P$1,SUMIFS(Breakdowns!L:L,Breakdowns!$H:$H,"<"&$D7,Breakdowns!$AA:$AA,"=No"),SUMIFS(Breakdowns!L:L,Breakdowns!$H:$H,"<"&$D7)) -> 6946 | G7: =IF($P$1,SUMIFS(Breakdowns!M:M,Breakdowns!$H:$H,"<"&$D7,Breakdowns!$AA:$AA,"=No"),SUMIFS(Breakdowns!M:M,Breakdowns!$H:$H,"<"&$D7)) -> 10736 | H7: =IF($P$1,SUMIFS(Breakdowns!O:O,Breakdowns!$H:$H,"<"&$D7,Breakdowns!$AA:$AA,"=No"),SUMIFS(Breakdowns!O:O,Breakdowns!$H:$H,"<"&$D7)) -> 15503 | I7: =IF($P$1,SUMIFS(Breakdowns!Q:Q,Breakdowns!$H:$H,"<"&$D7,Breakdowns!$AA:$AA,"=No"),SUMIFS(Breakdowns!Q:Q,Breakdowns!$H:$H,"<"&$D7)) -> 26239 | J7: =IF($P$1,SUMIFS(Breakdowns!S:S,Breakdowns!$H:$H,"<"&$D7,Breakdowns!$AA:$AA,"=No"),SUMIFS(Breakdowns!S:S,Breakdowns!$H:$H,"<"&$D7)) -> 216058288 | K7: =IF($P$1,SUMIFS(Breakdowns!U:U,Breakdowns!$H:$H,"<"&$D7,Breakdowns!$AA:$AA,"=No"),SUMIFS(Breakdowns!U:U,Breakdowns!$H:$H,"<"&$D7)) -> 198992238 | L7: =IF($P$1,SUMIFS(Breakdowns!W:W,Breakdowns!$H:$H,"<"&$D7,Breakdowns!$AA:$AA,"=No"),SUMIFS(Breakdowns!W:W,Breakdowns!$H:$H,"<"&$D7)) -> 696726 | M7: =IF($P$1,SUMIFS(Breakdowns!Y:Y,Breakdowns!$H:$H,"<"&$D7,Breakdowns!$AA:$AA,"=No"),SUMIFS(Breakdowns!Y:Y,Breakdowns!$H:$H,"<"&$D7)) -> 688917 | S7: =IFERROR(IF(A8="Over","Over "&FIXED(B8,0,0),FIXED(B8,0,0)&" to "&FIXED(D8,0,0)),"") -> 200,000 to 1,000,000 | T7: =IFERROR($K8/$G8,"") -> 12348.09433
A8: =IF(D8<>"","Between","Over") -> Between | B8: =D7 -> 200000 | C8: =IF(D8<>"","and","") -> and | D8: 1000000 | E8: =IFERROR(IF(A8="between",A8&" "&FIXED(B8,0,0)&" "&C8&" "&FIXED(D8,0,0),A8&" "&FIXED(B8,0,0)),"invalid bin") -> Between 200,000 and 1,000,000 | F8: =IF($P$1,IF($A8="between",SUMIFS(Breakdowns!L:L,Breakdowns!$H:$H,">="&$B8,Breakdowns!$H:$H,"<"&$D8,Breakdowns!$AA:$AA,"=No"),SUMIFS(Breakdowns!L:L,Breakdowns!$H:$H,">="&$B8,Breakdowns!$AA:$AA,"=No")),IF($A8="between",SUMIFS(Breakdowns!L:L,Breakdowns!$H:$H,">="&$B8,Breakdowns!$H:$H,"<"&$D8),SUMIFS(Breakdowns!L:L,Breakdowns!$H:$H,">="&$B8))) -> 16492 | G8: =IF($P$1,IF($A8="between",SUMIFS(Breakdowns!M:M,Breakdowns!$H:$H,">="&$B8,Breakdowns!$H:$H,"<"&$D8,Breakdowns!$AA:$AA,"=No"),SUMIFS(Breakdowns!M:M,Breakdowns!$H:$H,">="&$B8,Breakdowns!$AA:$AA,"=No")),IF($A8="between",SUMIFS(Breakdowns!M:M,Breakdowns!$H:$H,">="&$B8,Breakdowns!$H:$H,"<"&$D8),SUMIFS(Breakdowns!M:M,Breakdowns!$H:$H,">="&$B8))) -> 45170 | H8: =IF($P$1,IF($A8="between",SUMIFS(Breakdowns!O:O,Breakdowns!$H:$H,">="&$B8,Breakdowns!$H:$H,"<"&$D8,Breakdowns!$AA:$AA,"=No"),SUMIFS(Breakdowns!O:O,Breakdowns!$H:$H,">="&$B8,Breakdowns!$AA:$AA,"=No")),IF($A8="between",SUMIFS(Breakdowns!O:O,Breakdowns!$H:$H,">="&$B8,Breakdowns!$H:$H,"<"&$D8),SUMIFS(Breakdowns!O:O,Breakdowns!$H:$H,">="&$B8))) -> 58994 | I8: =IF($P$1,IF($A8="between",SUMIFS(Breakdowns!Q:Q,Breakdowns!$H:$H,">="&$B8,Breakdowns!$H:$H,"<"&$D8,Breakdowns!$AA:$AA,"=No"),SUMIFS(Breakdowns!Q:Q,Breakdowns!$H:$H,">="&$B8,Breakdowns!$AA:$AA,"=No")),IF($A8="between",SUMIFS(Breakdowns!Q:Q,Breakdowns!$H:$H,">="&$B8,Breakdowns!$H:$H,"<"&$D8),SUMIFS(Breakdowns!Q:Q,Breakdowns!$H:$H,">="&$B8))) -> 104164 | J8: =IF($P$1,IF($A8="between",SUMIFS(Breakdowns!S:S,Breakdowns!$H:$H,">="&$B8,Breakdowns!$H:$H,"<"&$D8,Breakdowns!$AA:$AA,"=No"),SUMIFS(Breakdowns!S:S,Breakdowns!$H:$H,">="&$B8,Breakdowns!$AA:$AA,"=No")),IF($A8="between",SUMIFS(Breakdowns!S:S,Breakdowns!$H:$H,">="&$B8,Breakdowns!$H:$H,"<"&$D8),SUMIFS(Breakdowns!S:S,Breakdowns!$H:$H,">="&$B8))) -> 623869003 | K8: =IF($P$1,IF($A8="between",SUMIFS(Breakdowns!U:U,Breakdowns!$H:$H,">="&$B8,Breakdowns!$H:$H,"<"&$D8,Breakdowns!$AA:$AA,"=No"),SUMIFS(Breakdowns!U:U,Breakdowns!$H:$H,">="&$B8,Breakdowns!$AA:$AA,"=No")),IF($A8="between",SUMIFS(Breakdowns!U:U,Breakdowns!$H:$H,">="&$B8,Breakdowns!$H:$H,"<"&$D8),SUMIFS(Breakdowns!U:U,Breakdowns!$H:$H,">="&$B8))) -> 557763421 | L8: =IF($P$1,IF($A8="between",SUMIFS(Breakdowns!W:W,Breakdowns!$H:$H,">="&$B8,Breakdowns!$H:$H,"<"&$D8,Breakdowns!$AA:$AA,"=No"),SUMIFS(Breakdowns!W:W,Breakdowns!$H:$H,">="&$B8,Breakdowns!$AA:$AA,"=No")),IF($A8="between",SUMIFS(Breakdowns!W:W,Breakdowns!$H:$H,">="&$B8,Breakdowns!$H:$H,"<"&$D8),SUMIFS(Breakdowns!W:W,Breakdowns!$H:$H,">="&$B8))) -> 4259852 | M8: =IF($P$1,IF($A8="between",SUMIFS(Breakdowns!Y:Y,Breakdowns!$H:$H,">="&$B8,Breakdowns!$H:$H,"<"&$D8,Breakdowns!$AA:$AA,"=No"),SUMIFS(Breakdowns!Y:Y,Breakdowns!$H:$H,">="&$B8,Breakdowns!$AA:$AA,"=No")),IF($A8="between",SUMIFS(Breakdowns!Y:Y,Breakdowns!$H:$H,">="&$B8,Breakdowns!$H:$H,"<"&$D8),SUMIFS(Breakdowns!Y:Y,Breakdowns!$H:$H,">="&$B8))) -> 4069277 | S8: =IFERROR(IF(A9="Over","Over "&FIXED(B9,0,0),FIXED(B9,0,0)&" to "&FIXED(D9,0,0)),"") -> Over 1,000,000 | T8: 16844.81155
A9: =IF(OR(A8="Over",A8=""),"",IF(D9="","Over","Between")) -> Over | B9: =IF(D8="","",D8) -> 1000000 | C9: =IF(D9<>"","and","") ->  | E9: =IFERROR(IF(A9="between",A9&" "&FIXED(B9,0,0)&" "&C9&" "&FIXED(D9,0,0),A9&" "&FIXED(B9,0,0)),"invalid bin") -> Over 1,000,000 | F9: =IF($P$1,IF($A9="","",IF($A9="between",SUMIFS(Breakdowns!L:L,Breakdowns!$H:$H,">="&$B9,Breakdowns!$H:$H,"<"&$D9,Breakdowns!$AA:$AA,"=No"),SUMIFS(Breakdowns!L:L,Breakdowns!$H:$H,">="&$B9,Breakdowns!$AA:$AA,"=No"))),IF($A9="","",IF($A9="between",SUMIFS(Breakdowns!L:L,Breakdowns!$H:$H,">="&$B9,Breakdowns!$H:$H,"<"&$D9),SUMIFS(Breakdowns!L:L,Breakdowns!$H:$H,">="&$B9)))) -> 82861 | G9: =IF($P$1,IF($A9="","",IF($A9="between",SUMIFS(Breakdowns!M:M,Breakdowns!$H:$H,">="&$B9,Breakdowns!$H:$H,"<"&$D9,Breakdowns!$AA:$AA,"=No"),SUMIFS(Breakdowns!M:M,Breakdowns!$H:$H,">="&$B9,Breakdowns!$AA:$AA,"=No"))),IF($A9="","",IF($A9="between",SUMIFS(Breakdowns!M:M,Breakdowns!$H:$H,">="&$B9,Breakdowns!$H:$H,"<"&$D9),SUMIFS(Breakdowns!M:M,Breakdowns!$H:$H,">="&$B9)))) -> 193498 | H9: =IF($P$1,IF($A9="","",IF($A9="between",SUMIFS(Breakdowns!O:O,Breakdowns!$H:$H,">="&$B9,Breakdowns!$H:$H,"<"&$D9,Breakdowns!$AA:$AA,"=No"),SUMIFS(Breakdowns!O:O,Breakdowns!$H:$H,">="&$B9,Breakdowns!$AA:$AA,"=No"))),IF($A9="","",IF($A9="between",SUMIFS(Breakdowns!O:O,Breakdowns!$H:$H,">="&$B9,Breakdowns!$H:$H,"<"&$D9),SUMIFS(Breakdowns!O:O,Breakdowns!$H:$H,">="&$B9)))) -> 192240 | I9: =IF($P$1,IF($A9="","",IF($A9="between",SUMIFS(Breakdowns!Q:Q,Breakdowns!$H:$H,">="&$B9,Breakdowns!$H:$H,"<"&$D9,Breakdowns!$AA:$AA,"=No"),SUMIFS(Breakdowns!Q:Q,Breakdowns!$H:$H,">="&$B9,Breakdowns!$AA:$AA,"=No"))),IF($A9="","",IF($A9="between",SUMIFS(Breakdowns!Q:Q,Breakdowns!$H:$H,">="&$B9,Breakdowns!$H:$H,"<"&$D9),SUMIFS(Breakdowns!Q:Q,Breakdowns!$H:$H,">="&$B9)))) -> 385738 | J9: =IF($P$1,IF($A9="","",IF($A9="between",SUMIFS(Breakdowns!S:S,Breakdowns!$H:$H,">="&$B9,Breakdowns!$H:$H,"<"&$D9,Breakdowns!$AA:$AA,"=No"),SUMIFS(Breakdowns!S:S,Breakdowns!$H:$H,">="&$B9,Breakdowns!$AA:$AA,"=No"))),IF($A9="","",IF($A9="between",SUMIFS(Breakdowns!S:S,Breakdowns!$H:$H,">="&$B9,Breakdowns!$H:$H,"<"&$D9),SUMIFS(Breakdowns!S:S,Breakdowns!$H:$H,">="&$B9)))) -> 3682100576 | K9: =IF($P$1,IF($A9="","",IF($A9="between",SUMIFS(Breakdowns!U:U,Breakdowns!$H:$H,">="&$B9,Breakdowns!$H:$H,"<"&$D9,Breakdowns!$AA:$AA,"=No"),SUMIFS(Breakdowns!U:U,Breakdowns!$H:$H,">="&$B9,Breakdowns!$AA:$AA,"=No"))),IF($A9="","",IF($A9="between",SUMIFS(Breakdowns!U:U,Breakdowns!$H:$H,">="&$B9,Breakdowns!$H:$H,"<"&$D9),SUMIFS(Breakdowns!U:U,Breakdowns!$H:$H,">="&$B9)))) -> 3259437346 | L9: =IF($P$1,IF($A9="","",IF($A9="between",SUMIFS(Breakdowns!W:W,Breakdowns!$H:$H,">="&$B9,Breakdowns!$H:$H,"<"&$D9,Breakdowns!$AA:$AA,"=No"),SUMIFS(Breakdowns!W:W,Breakdowns!$H:$H,">="&$B9,Breakdowns!$AA:$AA,"=No"))),IF($A9="","",IF($A9="between",SUMIFS(Breakdowns!W:W,Breakdowns!$H:$H,">="&$B9,Breakdowns!$H:$H,"<"&$D9),SUMIFS(Breakdowns!W:W,Breakdowns!$H:$H,">="&$B9)))) -> 218469954 | M9: =IF($P$1,IF($A9="","",IF($A9="between",SUMIFS(Breakdowns!Y:Y,Breakdowns!$H:$H,">="&$B9,Breakdowns!$H:$H,"<"&$D9,Breakdowns!$AA:$AA,"=No"),SUMIFS(Breakdowns!Y:Y,Breakdowns!$H:$H,">="&$B9,Breakdowns!$AA:$AA,"=No"))),IF($A9="","",IF($A9="between",SUMIFS(Breakdowns!Y:Y,Breakdowns!$H:$H,">="&$B9,Breakdowns!$H:$H,"<"&$D9),SUMIFS(Breakdowns!Y:Y,Breakdowns!$H:$H,">="&$B9)))) -> 210473402 | S9: =IFERROR(IF(A10="Over","Over "&FIXED(B10,0,0),FIXED(B10,0,0)&" to "&FIXED(D10,0,0)),"") -> 
A10: =IF(OR(A9="Over",A9=""),"",IF(D10="","Over","Between")) ->  | C10: =IF(D10<>"","and","") ->  | E10: invalid bin | F10: =IF($P$1,IF($A10="","",IF($A10="between",SUMIFS(Breakdowns!L:L,Breakdowns!$H:$H,">="&$B10,Breakdowns!$H:$H,"<"&$D10,Breakdowns!$AA:$AA,"=No"),SUMIFS(Breakdowns!L:L,Breakdowns!$H:$H,">="&$B10,Breakdowns!$AA:$AA,"=No"))),IF($A10="","",IF($A10="between",SUMIFS(Breakdowns!L:L,Breakdowns!$H:$H,">="&$B10,Breakdowns!$H:$H,"<"&$D10),SUMIFS(Breakdowns!L:L,Breakdowns!$H:$H,">="&$B10)))) ->  | G10: =IF($P$1,IF($A10="","",IF($A10="between",SUMIFS(Breakdowns!M:M,Breakdowns!$H:$H,">="&$B10,Breakdowns!$H:$H,"<"&$D10,Breakdowns!$AA:$AA,"=No"),SUMIFS(Breakdowns!M:M,Breakdowns!$H:$H,">="&$B10,Breakdowns!$AA:$AA,"=No"))),IF($A10="","",IF($A10="between",SUMIFS(Breakdowns!M:M,Breakdowns!$H:$H,">="&$B10,Breakdowns!$H:$H,"<"&$D10),SUMIFS(Breakdowns!M:M,Breakdowns!$H:$H,">="&$B10)))) ->  | H10: =IF($P$1,IF($A10="","",IF($A10="between",SUMIFS(Breakdowns!O:O,Breakdowns!$H:$H,">="&$B10,Breakdowns!$H:$H,"<"&$D10,Breakdowns!$AA:$AA,"=No"),SUMIFS(Breakdowns!O:O,Breakdowns!$H:$H,">="&$B10,Breakdowns!$AA:$AA,"=No"))),IF($A10="","",IF($A10="between",SUMIFS(Breakdowns!O:O,Breakdowns!$H:$H,">="&$B10,Breakdowns!$H:$H,"<"&$D10),SUMIFS(Breakdowns!O:O,Breakdowns!$H:$H,">="&$B10)))) ->  | I10: =IF($P$1,IF($A10="","",IF($A10="between",SUMIFS(Breakdowns!Q:Q,Breakdowns!$H:$H,">="&$B10,Breakdowns!$H:$H,"<"&$D10,Breakdowns!$AA:$AA,"=No"),SUMIFS(Breakdowns!Q:Q,Breakdowns!$H:$H,">="&$B10,Breakdowns!$AA:$AA,"=No"))),IF($A10="","",IF($A10="between",SUMIFS(Breakdowns!Q:Q,Breakdowns!$H:$H,">="&$B10,Breakdowns!$H:$H,"<"&$D10),SUMIFS(Breakdowns!Q:Q,Breakdowns!$H:$H,">="&$B10)))) ->  | J10: =IF($P$1,IF($A10="","",IF($A10="between",SUMIFS(Breakdowns!S:S,Breakdowns!$H:$H,">="&$B10,Breakdowns!$H:$H,"<"&$D10,Breakdowns!$AA:$AA,"=No"),SUMIFS(Breakdowns!S:S,Breakdowns!$H:$H,">="&$B10,Breakdowns!$AA:$AA,"=No"))),IF($A10="","",IF($A10="between",SUMIFS(Breakdowns!S:S,Breakdowns!$H:$H,">="&$B10,Breakdowns!$H:$H,"<"&$D10),SUMIFS(Breakdowns!S:S,Breakdowns!$H:$H,">="&$B10)))) ->  | K10: =IF($P$1,IF($A10="","",IF($A10="between",SUMIFS(Breakdowns!U:U,Breakdowns!$H:$H,">="&$B10,Breakdowns!$H:$H,"<"&$D10,Breakdowns!$AA:$AA,"=No"),SUMIFS(Breakdowns!U:U,Breakdowns!$H:$H,">="&$B10,Breakdowns!$AA:$AA,"=No"))),IF($A10="","",IF($A10="between",SUMIFS(Breakdowns!U:U,Breakdowns!$H:$H,">="&$B10,Breakdowns!$H:$H,"<"&$D10),SUMIFS(Breakdowns!U:U,Breakdowns!$H:$H,">="&$B10)))) ->  | L10: =IF($P$1,IF($A10="","",IF($A10="between",SUMIFS(Breakdowns!W:W,Breakdowns!$H:$H,">="&$B10,Breakdowns!$H:$H,"<"&$D10,Breakdowns!$AA:$AA,"=No"),SUMIFS(Breakdowns!W:W,Breakdowns!$H:$H,">="&$B10,Breakdowns!$AA:$AA,"=No"))),IF($A10="","",IF($A10="between",SUMIFS(Breakdowns!W:W,Breakdowns!$H:$H,">="&$B10,Breakdowns!$H:$H,"<"&$D10),SUMIFS(Breakdowns!W:W,Breakdowns!$H:$H,">="&$B10)))) ->  | M10: =IF($P$1,IF($A10="","",IF($A10="between",SUMIFS(Breakdowns!Y:Y,Breakdowns!$H:$H,">="&$B10,Breakdowns!$H:$H,"<"&$D10,Breakdowns!$AA:$AA,"=No"),SUMIFS(Breakdowns!Y:Y,Breakdowns!$H:$H,">="&$B10,Breakdowns!$AA:$AA,"=No"))),IF($A10="","",IF($A10="between",SUMIFS(Breakdowns!Y:Y,Breakdowns!$H:$H,">="&$B10,Breakdowns!$H:$H,"<"&$D10),SUMIFS(Breakdowns!Y:Y,Breakdowns!$H:$H,">="&$B10)))) -> 
E11: invalid bin | F11: =IF($P$1,IF($A11="","",IF($A11="between",SUMIFS(Breakdowns!L:L,Breakdowns!$H:$H,">="&$B11,Breakdowns!$H:$H,"<"&$D11,Breakdowns!$AA:$AA,"=No"),SUMIFS(Breakdowns!L:L,Breakdowns!$H:$H,">="&$B11,Breakdowns!$AA:$AA,"=No"))),IF($A11="","",IF($A11="between",SUMIFS(Breakdowns!L:L,Breakdowns!$H:$H,">="&$B11,Breakdowns!$H:$H,"<"&$D11),SUMIFS(Breakdowns!L:L,Breakdowns!$H:$H,">="&$B11)))) ->  | G11: =IF($P$1,IF($A11="","",IF($A11="between",SUMIFS(Breakdowns!M:M,Breakdowns!$H:$H,">="&$B11,Breakdowns!$H:$H,"<"&$D11,Breakdowns!$AA:$AA,"=No"),SUMIFS(Breakdowns!M:M,Breakdowns!$H:$H,">="&$B11,Breakdowns!$AA:$AA,"=No"))),IF($A11="","",IF($A11="between",SUMIFS(Breakdowns!M:M,Breakdowns!$H:$H,">="&$B11,Breakdowns!$H:$H,"<"&$D11),SUMIFS(Breakdowns!M:M,Breakdowns!$H:$H,">="&$B11)))) ->  | H11: =IF($P$1,IF($A11="","",IF($A11="between",SUMIFS(Breakdowns!O:O,Breakdowns!$H:$H,">="&$B11,Breakdowns!$H:$H,"<"&$D11,Breakdowns!$AA:$AA,"=No"),SUMIFS(Breakdowns!O:O,Breakdowns!$H:$H,">="&$B11,Breakdowns!$AA:$AA,"=No"))),IF($A11="","",IF($A11="between",SUMIFS(Breakdowns!O:O,Breakdowns!$H:$H,">="&$B11,Breakdowns!$H:$H,"<"&$D11),SUMIFS(Breakdowns!O:O,Breakdowns!$H:$H,">="&$B11)))) ->  | I11: =IF($P$1,IF($A11="","",IF($A11="between",SUMIFS(Breakdowns!Q:Q,Breakdowns!$H:$H,">="&$B11,Breakdowns!$H:$H,"<"&$D11,Breakdowns!$AA:$AA,"=No"),SUMIFS(Breakdowns!Q:Q,Breakdowns!$H:$H,">="&$B11,Breakdowns!$AA:$AA,"=No"))),IF($A11="","",IF($A11="between",SUMIFS(Breakdowns!Q:Q,Breakdowns!$H:$H,">="&$B11,Breakdowns!$H:$H,"<"&$D11),SUMIFS(Breakdowns!Q:Q,Breakdowns!$H:$H,">="&$B11)))) ->  | J11: =IF($P$1,IF($A11="","",IF($A11="between",SUMIFS(Breakdowns!S:S,Breakdowns!$H:$H,">="&$B11,Breakdowns!$H:$H,"<"&$D11,Breakdowns!$AA:$AA,"=No"),SUMIFS(Breakdowns!S:S,Breakdowns!$H:$H,">="&$B11,Breakdowns!$AA:$AA,"=No"))),IF($A11="","",IF($A11="between",SUMIFS(Breakdowns!S:S,Breakdowns!$H:$H,">="&$B11,Breakdowns!$H:$H,"<"&$D11),SUMIFS(Breakdowns!S:S,Breakdowns!$H:$H,">="&$B11)))) ->  | K11: =IF($P$1,IF($A11="","",IF($A11="between",SUMIFS(Breakdowns!U:U,Breakdowns!$H:$H,">="&$B11,Breakdowns!$H:$H,"<"&$D11,Breakdowns!$AA:$AA,"=No"),SUMIFS(Breakdowns!U:U,Breakdowns!$H:$H,">="&$B11,Breakdowns!$AA:$AA,"=No"))),IF($A11="","",IF($A11="between",SUMIFS(Breakdowns!U:U,Breakdowns!$H:$H,">="&$B11,Breakdowns!$H:$H,"<"&$D11),SUMIFS(Breakdowns!U:U,Breakdowns!$H:$H,">="&$B11)))) ->  | L11: =IF($P$1,IF($A11="","",IF($A11="between",SUMIFS(Breakdowns!W:W,Breakdowns!$H:$H,">="&$B11,Breakdowns!$H:$H,"<"&$D11,Breakdowns!$AA:$AA,"=No"),SUMIFS(Breakdowns!W:W,Breakdowns!$H:$H,">="&$B11,Breakdowns!$AA:$AA,"=No"))),IF($A11="","",IF($A11="between",SUMIFS(Breakdowns!W:W,Breakdowns!$H:$H,">="&$B11,Breakdowns!$H:$H,"<"&$D11),SUMIFS(Breakdowns!W:W,Breakdowns!$H:$H,">="&$B11)))) ->  | M11: =IF($P$1,IF($A11="","",IF($A11="between",SUMIFS(Breakdowns!Y:Y,Breakdowns!$H:$H,">="&$B11,Breakdowns!$H:$H,"<"&$D11,Breakdowns!$AA:$AA,"=No"),SUMIFS(Breakdowns!Y:Y,Breakdowns!$H:$H,">="&$B11,Breakdowns!$AA:$AA,"=No"))),IF($A11="","",IF($A11="between",SUMIFS(Breakdowns!Y:Y,Breakdowns!$H:$H,">="&$B11,Breakdowns!$H:$H,"<"&$D11),SUMIFS(Breakdowns!Y:Y,Breakdowns!$H:$H,">="&$B11)))) -> 
E12: invalid bin | F12: =IF($P$1,IF($A12="","",IF($A12="between",SUMIFS(Breakdowns!L:L,Breakdowns!$H:$H,">="&$B12,Breakdowns!$H:$H,"<"&$D12,Breakdowns!$AA:$AA,"=No"),SUMIFS(Breakdowns!L:L,Breakdowns!$H:$H,">="&$B12,Breakdowns!$AA:$AA,"=No"))),IF($A12="","",IF($A12="between",SUMIFS(Breakdowns!L:L,Breakdowns!$H:$H,">="&$B12,Breakdowns!$H:$H,"<"&$D12),SUMIFS(Breakdowns!L:L,Breakdowns!$H:$H,">="&$B12)))) ->  | G12: =IF($P$1,IF($A12="","",IF($A12="between",SUMIFS(Breakdowns!M:M,Breakdowns!$H:$H,">="&$B12,Breakdowns!$H:$H,"<"&$D12,Breakdowns!$AA:$AA,"=No"),SUMIFS(Breakdowns!M:M,Breakdowns!$H:$H,">="&$B12,Breakdowns!$AA:$AA,"=No"))),IF($A12="","",IF($A12="between",SUMIFS(Breakdowns!M:M,Breakdowns!$H:$H,">="&$B12,Breakdowns!$H:$H,"<"&$D12),SUMIFS(Breakdowns!M:M,Breakdowns!$H:$H,">="&$B12)))) ->  | H12: =IF($P$1,IF($A12="","",IF($A12="between",SUMIFS(Breakdowns!O:O,Breakdowns!$H:$H,">="&$B12,Breakdowns!$H:$H,"<"&$D12,Breakdowns!$AA:$AA,"=No"),SUMIFS(Breakdowns!O:O,Breakdowns!$H:$H,">="&$B12,Breakdowns!$AA:$AA,"=No"))),IF($A12="","",IF($A12="between",SUMIFS(Breakdowns!O:O,Breakdowns!$H:$H,">="&$B12,Breakdowns!$H:$H,"<"&$D12),SUMIFS(Breakdowns!O:O,Breakdowns!$H:$H,">="&$B12)))) ->  | I12: =IF($P$1,IF($A12="","",IF($A12="between",SUMIFS(Breakdowns!Q:Q,Breakdowns!$H:$H,">="&$B12,Breakdowns!$H:$H,"<"&$D12,Breakdowns!$AA:$AA,"=No"),SUMIFS(Breakdowns!Q:Q,Breakdowns!$H:$H,">="&$B12,Breakdowns!$AA:$AA,"=No"))),IF($A12="","",IF($A12="between",SUMIFS(Breakdowns!Q:Q,Breakdowns!$H:$H,">="&$B12,Breakdowns!$H:$H,"<"&$D12),SUMIFS(Breakdowns!Q:Q,Breakdowns!$H:$H,">="&$B12)))) ->  | J12: =IF($P$1,IF($A12="","",IF($A12="between",SUMIFS(Breakdowns!S:S,Breakdowns!$H:$H,">="&$B12,Breakdowns!$H:$H,"<"&$D12,Breakdowns!$AA:$AA,"=No"),SUMIFS(Breakdowns!S:S,Breakdowns!$H:$H,">="&$B12,Breakdowns!$AA:$AA,"=No"))),IF($A12="","",IF($A12="between",SUMIFS(Breakdowns!S:S,Breakdowns!$H:$H,">="&$B12,Breakdowns!$H:$H,"<"&$D12),SUMIFS(Breakdowns!S:S,Breakdowns!$H:$H,">="&$B12)))) ->  | K12: =IF($P$1,IF($A12="","",IF($A12="between",SUMIFS(Breakdowns!U:U,Breakdowns!$H:$H,">="&$B12,Breakdowns!$H:$H,"<"&$D12,Breakdowns!$AA:$AA,"=No"),SUMIFS(Breakdowns!U:U,Breakdowns!$H:$H,">="&$B12,Breakdowns!$AA:$AA,"=No"))),IF($A12="","",IF($A12="between",SUMIFS(Breakdowns!U:U,Breakdowns!$H:$H,">="&$B12,Breakdowns!$H:$H,"<"&$D12),SUMIFS(Breakdowns!U:U,Breakdowns!$H:$H,">="&$B12)))) ->  | L12: =IF($P$1,IF($A12="","",IF($A12="between",SUMIFS(Breakdowns!W:W,Breakdowns!$H:$H,">="&$B12,Breakdowns!$H:$H,"<"&$D12,Breakdowns!$AA:$AA,"=No"),SUMIFS(Breakdowns!W:W,Breakdowns!$H:$H,">="&$B12,Breakdowns!$AA:$AA,"=No"))),IF($A12="","",IF($A12="between",SUMIFS(Breakdowns!W:W,Breakdowns!$H:$H,">="&$B12,Breakdowns!$H:$H,"<"&$D12),SUMIFS(Breakdowns!W:W,Breakdowns!$H:$H,">="&$B12)))) ->  | M12: =IF($P$1,IF($A12="","",IF($A12="between",SUMIFS(Breakdowns!Y:Y,Breakdowns!$H:$H,">="&$B12,Breakdowns!$H:$H,"<"&$D12,Breakdowns!$AA:$AA,"=No"),SUMIFS(Breakdowns!Y:Y,Breakdowns!$H:$H,">="&$B12,Breakdowns!$AA:$AA,"=No"))),IF($A12="","",IF($A12="between",SUMIFS(Breakdowns!Y:Y,Breakdowns!$H:$H,">="&$B12,Breakdowns!$H:$H,"<"&$D12),SUMIFS(Breakdowns!Y:Y,Breakdowns!$H:$H,">="&$B12)))) -> 
E13: invalid bin | F13: =IF($P$1,IF($A13="","",IF($A13="between",SUMIFS(Breakdowns!L:L,Breakdowns!$H:$H,">="&$B13,Breakdowns!$H:$H,"<"&$D13,Breakdowns!$AA:$AA,"=No"),SUMIFS(Breakdowns!L:L,Breakdowns!$H:$H,">="&$B13,Breakdowns!$AA:$AA,"=No"))),IF($A13="","",IF($A13="between",SUMIFS(Breakdowns!L:L,Breakdowns!$H:$H,">="&$B13,Breakdowns!$H:$H,"<"&$D13),SUMIFS(Breakdowns!L:L,Breakdowns!$H:$H,">="&$B13)))) ->  | G13: =IF($P$1,IF($A13="","",IF($A13="between",SUMIFS(Breakdowns!M:M,Breakdowns!$H:$H,">="&$B13,Breakdowns!$H:$H,"<"&$D13,Breakdowns!$AA:$AA,"=No"),SUMIFS(Breakdowns!M:M,Breakdowns!$H:$H,">="&$B13,Breakdowns!$AA:$AA,"=No"))),IF($A13="","",IF($A13="between",SUMIFS(Breakdowns!M:M,Breakdowns!$H:$H,">="&$B13,Breakdowns!$H:$H,"<"&$D13),SUMIFS(Breakdowns!M:M,Breakdowns!$H:$H,">="&$B13)))) ->  | H13: =IF($P$1,IF($A13="","",IF($A13="between",SUMIFS(Breakdowns!O:O,Breakdowns!$H:$H,">="&$B13,Breakdowns!$H:$H,"<"&$D13,Breakdowns!$AA:$AA,"=No"),SUMIFS(Breakdowns!O:O,Breakdowns!$H:$H,">="&$B13,Breakdowns!$AA:$AA,"=No"))),IF($A13="","",IF($A13="between",SUMIFS(Breakdowns!O:O,Breakdowns!$H:$H,">="&$B13,Breakdowns!$H:$H,"<"&$D13),SUMIFS(Breakdowns!O:O,Breakdowns!$H:$H,">="&$B13)))) ->  | I13: =IF($P$1,IF($A13="","",IF($A13="between",SUMIFS(Breakdowns!Q:Q,Breakdowns!$H:$H,">="&$B13,Breakdowns!$H:$H,"<"&$D13,Breakdowns!$AA:$AA,"=No"),SUMIFS(Breakdowns!Q:Q,Breakdowns!$H:$H,">="&$B13,Breakdowns!$AA:$AA,"=No"))),IF($A13="","",IF($A13="between",SUMIFS(Breakdowns!Q:Q,Breakdowns!$H:$H,">="&$B13,Breakdowns!$H:$H,"<"&$D13),SUMIFS(Breakdowns!Q:Q,Breakdowns!$H:$H,">="&$B13)))) ->  | J13: =IF($P$1,IF($A13="","",IF($A13="between",SUMIFS(Breakdowns!S:S,Breakdowns!$H:$H,">="&$B13,Breakdowns!$H:$H,"<"&$D13,Breakdowns!$AA:$AA,"=No"),SUMIFS(Breakdowns!S:S,Breakdowns!$H:$H,">="&$B13,Breakdowns!$AA:$AA,"=No"))),IF($A13="","",IF($A13="between",SUMIFS(Breakdowns!S:S,Breakdowns!$H:$H,">="&$B13,Breakdowns!$H:$H,"<"&$D13),SUMIFS(Breakdowns!S:S,Breakdowns!$H:$H,">="&$B13)))) ->  | K13: =IF($P$1,IF($A13="","",IF($A13="between",SUMIFS(Breakdowns!U:U,Breakdowns!$H:$H,">="&$B13,Breakdowns!$H:$H,"<"&$D13,Breakdowns!$AA:$AA,"=No"),SUMIFS(Breakdowns!U:U,Breakdowns!$H:$H,">="&$B13,Breakdowns!$AA:$AA,"=No"))),IF($A13="","",IF($A13="between",SUMIFS(Breakdowns!U:U,Breakdowns!$H:$H,">="&$B13,Breakdowns!$H:$H,"<"&$D13),SUMIFS(Breakdowns!U:U,Breakdowns!$H:$H,">="&$B13)))) ->  | L13: =IF($P$1,IF($A13="","",IF($A13="between",SUMIFS(Breakdowns!W:W,Breakdowns!$H:$H,">="&$B13,Breakdowns!$H:$H,"<"&$D13,Breakdowns!$AA:$AA,"=No"),SUMIFS(Breakdowns!W:W,Breakdowns!$H:$H,">="&$B13,Breakdowns!$AA:$AA,"=No"))),IF($A13="","",IF($A13="between",SUMIFS(Breakdowns!W:W,Breakdowns!$H:$H,">="&$B13,Breakdowns!$H:$H,"<"&$D13),SUMIFS(Breakdowns!W:W,Breakdowns!$H:$H,">="&$B13)))) ->  | M13: =IF($P$1,IF($A13="","",IF($A13="between",SUMIFS(Breakdowns!Y:Y,Breakdowns!$H:$H,">="&$B13,Breakdowns!$H:$H,"<"&$D13,Breakdowns!$AA:$AA,"=No"),SUMIFS(Breakdowns!Y:Y,Breakdowns!$H:$H,">="&$B13,Breakdowns!$AA:$AA,"=No"))),IF($A13="","",IF($A13="between",SUMIFS(Breakdowns!Y:Y,Breakdowns!$H:$H,">="&$B13,Breakdowns!$H:$H,"<"&$D13),SUMIFS(Breakdowns!Y:Y,Breakdowns!$H:$H,">="&$B13)))) -> 
E14: invalid bin | F14: =IF($P$1,IF($A14="","",IF($A14="between",SUMIFS(Breakdowns!L:L,Breakdowns!$H:$H,">="&$B14,Breakdowns!$H:$H,"<"&$D14,Breakdowns!$AA:$AA,"=No"),SUMIFS(Breakdowns!L:L,Breakdowns!$H:$H,">="&$B14,Breakdowns!$AA:$AA,"=No"))),IF($A14="","",IF($A14="between",SUMIFS(Breakdowns!L:L,Breakdowns!$H:$H,">="&$B14,Breakdowns!$H:$H,"<"&$D14),SUMIFS(Breakdowns!L:L,Breakdowns!$H:$H,">="&$B14)))) ->  | G14: =IF($P$1,IF($A14="","",IF($A14="between",SUMIFS(Breakdowns!M:M,Breakdowns!$H:$H,">="&$B14,Breakdowns!$H:$H,"<"&$D14,Breakdowns!$AA:$AA,"=No"),SUMIFS(Breakdowns!M:M,Breakdowns!$H:$H,">="&$B14,Breakdowns!$AA:$AA,"=No"))),IF($A14="","",IF($A14="between",SUMIFS(Breakdowns!M:M,Breakdowns!$H:$H,">="&$B14,Breakdowns!$H:$H,"<"&$D14),SUMIFS(Breakdowns!M:M,Breakdowns!$H:$H,">="&$B14)))) ->  | H14: =IF($P$1,IF($A14="","",IF($A14="between",SUMIFS(Breakdowns!O:O,Breakdowns!$H:$H,">="&$B14,Breakdowns!$H:$H,"<"&$D14,Breakdowns!$AA:$AA,"=No"),SUMIFS(Breakdowns!O:O,Breakdowns!$H:$H,">="&$B14,Breakdowns!$AA:$AA,"=No"))),IF($A14="","",IF($A14="between",SUMIFS(Breakdowns!O:O,Breakdowns!$H:$H,">="&$B14,Breakdowns!$H:$H,"<"&$D14),SUMIFS(Breakdowns!O:O,Breakdowns!$H:$H,">="&$B14)))) ->  | I14: =IF($P$1,IF($A14="","",IF($A14="between",SUMIFS(Breakdowns!Q:Q,Breakdowns!$H:$H,">="&$B14,Breakdowns!$H:$H,"<"&$D14,Breakdowns!$AA:$AA,"=No"),SUMIFS(Breakdowns!Q:Q,Breakdowns!$H:$H,">="&$B14,Breakdowns!$AA:$AA,"=No"))),IF($A14="","",IF($A14="between",SUMIFS(Breakdowns!Q:Q,Breakdowns!$H:$H,">="&$B14,Breakdowns!$H:$H,"<"&$D14),SUMIFS(Breakdowns!Q:Q,Breakdowns!$H:$H,">="&$B14)))) ->  | J14: =IF($P$1,IF($A14="","",IF($A14="between",SUMIFS(Breakdowns!S:S,Breakdowns!$H:$H,">="&$B14,Breakdowns!$H:$H,"<"&$D14,Breakdowns!$AA:$AA,"=No"),SUMIFS(Breakdowns!S:S,Breakdowns!$H:$H,">="&$B14,Breakdowns!$AA:$AA,"=No"))),IF($A14="","",IF($A14="between",SUMIFS(Breakdowns!S:S,Breakdowns!$H:$H,">="&$B14,Breakdowns!$H:$H,"<"&$D14),SUMIFS(Breakdowns!S:S,Breakdowns!$H:$H,">="&$B14)))) ->  | K14: =IF($P$1,IF($A14="","",IF($A14="between",SUMIFS(Breakdowns!U:U,Breakdowns!$H:$H,">="&$B14,Breakdowns!$H:$H,"<"&$D14,Breakdowns!$AA:$AA,"=No"),SUMIFS(Breakdowns!U:U,Breakdowns!$H:$H,">="&$B14,Breakdowns!$AA:$AA,"=No"))),IF($A14="","",IF($A14="between",SUMIFS(Breakdowns!U:U,Breakdowns!$H:$H,">="&$B14,Breakdowns!$H:$H,"<"&$D14),SUMIFS(Breakdowns!U:U,Breakdowns!$H:$H,">="&$B14)))) ->  | L14: =IF($P$1,IF($A14="","",IF($A14="between",SUMIFS(Breakdowns!W:W,Breakdowns!$H:$H,">="&$B14,Breakdowns!$H:$H,"<"&$D14,Breakdowns!$AA:$AA,"=No"),SUMIFS(Breakdowns!W:W,Breakdowns!$H:$H,">="&$B14,Breakdowns!$AA:$AA,"=No"))),IF($A14="","",IF($A14="between",SUMIFS(Breakdowns!W:W,Breakdowns!$H:$H,">="&$B14,Breakdowns!$H:$H,"<"&$D14),SUMIFS(Breakdowns!W:W,Breakdowns!$H:$H,">="&$B14)))) ->  | M14: =IF($P$1,IF($A14="","",IF($A14="between",SUMIFS(Breakdowns!Y:Y,Breakdowns!$H:$H,">="&$B14,Breakdowns!$H:$H,"<"&$D14,Breakdowns!$AA:$AA,"=No"),SUMIFS(Breakdowns!Y:Y,Breakdowns!$H:$H,">="&$B14,Breakdowns!$AA:$AA,"=No"))),IF($A14="","",IF($A14="between",SUMIFS(Breakdowns!Y:Y,Breakdowns!$H:$H,">="&$B14,Breakdowns!$H:$H,"<"&$D14),SUMIFS(Breakdowns!Y:Y,Breakdowns!$H:$H,">="&$B14)))) -> 
E15: invalid bin | F15: =IF($P$1,IF($A15="","",IF($A15="between",SUMIFS(Breakdowns!L:L,Breakdowns!$H:$H,">="&$B15,Breakdowns!$H:$H,"<"&$D15,Breakdowns!$AA:$AA,"=No"),SUMIFS(Breakdowns!L:L,Breakdowns!$H:$H,">="&$B15,Breakdowns!$AA:$AA,"=No"))),IF($A15="","",IF($A15="between",SUMIFS(Breakdowns!L:L,Breakdowns!$H:$H,">="&$B15,Breakdowns!$H:$H,"<"&$D15),SUMIFS(Breakdowns!L:L,Breakdowns!$H:$H,">="&$B15)))) ->  | G15: =IF($P$1,IF($A15="","",IF($A15="between",SUMIFS(Breakdowns!M:M,Breakdowns!$H:$H,">="&$B15,Breakdowns!$H:$H,"<"&$D15,Breakdowns!$AA:$AA,"=No"),SUMIFS(Breakdowns!M:M,Breakdowns!$H:$H,">="&$B15,Breakdowns!$AA:$AA,"=No"))),IF($A15="","",IF($A15="between",SUMIFS(Breakdowns!M:M,Breakdowns!$H:$H,">="&$B15,Breakdowns!$H:$H,"<"&$D15),SUMIFS(Breakdowns!M:M,Breakdowns!$H:$H,">="&$B15)))) ->  | H15: =IF($P$1,IF($A15="","",IF($A15="between",SUMIFS(Breakdowns!O:O,Breakdowns!$H:$H,">="&$B15,Breakdowns!$H:$H,"<"&$D15,Breakdowns!$AA:$AA,"=No"),SUMIFS(Breakdowns!O:O,Breakdowns!$H:$H,">="&$B15,Breakdowns!$AA:$AA,"=No"))),IF($A15="","",IF($A15="between",SUMIFS(Breakdowns!O:O,Breakdowns!$H:$H,">="&$B15,Breakdowns!$H:$H,"<"&$D15),SUMIFS(Breakdowns!O:O,Breakdowns!$H:$H,">="&$B15)))) ->  | I15: =IF($P$1,IF($A15="","",IF($A15="between",SUMIFS(Breakdowns!Q:Q,Breakdowns!$H:$H,">="&$B15,Breakdowns!$H:$H,"<"&$D15,Breakdowns!$AA:$AA,"=No"),SUMIFS(Breakdowns!Q:Q,Breakdowns!$H:$H,">="&$B15,Breakdowns!$AA:$AA,"=No"))),IF($A15="","",IF($A15="between",SUMIFS(Breakdowns!Q:Q,Breakdowns!$H:$H,">="&$B15,Breakdowns!$H:$H,"<"&$D15),SUMIFS(Breakdowns!Q:Q,Breakdowns!$H:$H,">="&$B15)))) ->  | J15: =IF($P$1,IF($A15="","",IF($A15="between",SUMIFS(Breakdowns!S:S,Breakdowns!$H:$H,">="&$B15,Breakdowns!$H:$H,"<"&$D15,Breakdowns!$AA:$AA,"=No"),SUMIFS(Breakdowns!S:S,Breakdowns!$H:$H,">="&$B15,Breakdowns!$AA:$AA,"=No"))),IF($A15="","",IF($A15="between",SUMIFS(Breakdowns!S:S,Breakdowns!$H:$H,">="&$B15,Breakdowns!$H:$H,"<"&$D15),SUMIFS(Breakdowns!S:S,Breakdowns!$H:$H,">="&$B15)))) ->  | K15: =IF($P$1,IF($A15="","",IF($A15="between",SUMIFS(Breakdowns!U:U,Breakdowns!$H:$H,">="&$B15,Breakdowns!$H:$H,"<"&$D15,Breakdowns!$AA:$AA,"=No"),SUMIFS(Breakdowns!U:U,Breakdowns!$H:$H,">="&$B15,Breakdowns!$AA:$AA,"=No"))),IF($A15="","",IF($A15="between",SUMIFS(Breakdowns!U:U,Breakdowns!$H:$H,">="&$B15,Breakdowns!$H:$H,"<"&$D15),SUMIFS(Breakdowns!U:U,Breakdowns!$H:$H,">="&$B15)))) ->  | L15: =IF($P$1,IF($A15="","",IF($A15="between",SUMIFS(Breakdowns!W:W,Breakdowns!$H:$H,">="&$B15,Breakdowns!$H:$H,"<"&$D15,Breakdowns!$AA:$AA,"=No"),SUMIFS(Breakdowns!W:W,Breakdowns!$H:$H,">="&$B15,Breakdowns!$AA:$AA,"=No"))),IF($A15="","",IF($A15="between",SUMIFS(Breakdowns!W:W,Breakdowns!$H:$H,">="&$B15,Breakdowns!$H:$H,"<"&$D15),SUMIFS(Breakdowns!W:W,Breakdowns!$H:$H,">="&$B15)))) ->  | M15: =IF($P$1,IF($A15="","",IF($A15="between",SUMIFS(Breakdowns!Y:Y,Breakdowns!$H:$H,">="&$B15,Breakdowns!$H:$H,"<"&$D15,Breakdowns!$AA:$AA,"=No"),SUMIFS(Breakdowns!Y:Y,Breakdowns!$H:$H,">="&$B15,Breakdowns!$AA:$AA,"=No"))),IF($A15="","",IF($A15="between",SUMIFS(Breakdowns!Y:Y,Breakdowns!$H:$H,">="&$B15,Breakdowns!$H:$H,"<"&$D15),SUMIFS(Breakdowns!Y:Y,Breakdowns!$H:$H,">="&$B15)))) -> 
S16: =IFERROR(S6&": "&FIXED(T6,0,0)&CHAR(10),"")&IFERROR(S7&": "&FIXED(T7,0,0)&CHAR(10),"")&IFERROR(S8&": "&FIXED(T8,0,0)&CHAR(10),"")&IFERROR(S9&": "&FIXED(T9,0,0)&CHAR(10),"")&IFERROR(S10&": "&FIXED(T10,0,0)&CHAR(10),"")&IFERROR(S11&": "&FIXED(T11,0,0)&CHAR(10),"")&IFERROR(S12&": "&FIXED(T12,0,0)&CHAR(10),"")&IFERROR(S13&": "&FIXED(T13,0,0)&CHAR(10),"")&IFERROR(S14&": "&FIXED(T14,0,0),"") -> Under 200,000: 18,535 200,000 to 1,000,000: 12,348 Over 1,000,000: 16,845
A19: By Mode/Type of Service
A20: Mode | B20: Type | C20: Description | D20: Column1 | E20: Column2 | F20: VOMS | G20: Major Mechanical Failures | H20: Other Mechanical Failures | I20: Total Mechanical Failures | J20: Vehicle/Passenger Car Miles | K20: Vehicle/Passenger Car Revenue Miles | L20: Train Miles | M20: Train Revenue Miles
A21: TR | B21: PT | C21: Aerial Tramway - Purchased Transportation | F21: =IF($P$1,SUMIFS(Breakdowns!L:L,Breakdowns!$J:$J,"="&$A21,Breakdowns!$K:$K,"="&$B21,Breakdowns!$AA:$AA,"=No"),SUMIFS(Breakdowns!L:L,Breakdowns!$J:$J,"="&$A21,Breakdowns!$K:$K,"="&$B21)) -> 2 | G21: =IF($P$1,SUMIFS(Breakdowns!M:M,Breakdowns!$J:$J,"="&$A21,Breakdowns!$K:$K,"="&$B21,Breakdowns!$AA:$AA,"=No"),SUMIFS(Breakdowns!M:M,Breakdowns!$J:$J,"="&$A21,Breakdowns!$K:$K,"="&$B21)) -> 0 | H21: =IF($P$1,SUMIFS(Breakdowns!O:O,Breakdowns!$J:$J,"="&$A21,Breakdowns!$K:$K,"="&$B21,Breakdowns!$AA:$AA,"=No"),SUMIFS(Breakdowns!O:O,Breakdowns!$J:$J,"="&$A21,Breakdowns!$K:$K,"="&$B21)) -> 0 | I21: =IF($P$1,SUMIFS(Breakdowns!Q:Q,Breakdowns!$J:$J,"="&$A21,Breakdowns!$K:$K,"="&$B21,Breakdowns!$AA:$AA,"=No"),SUMIFS(Breakdowns!Q:Q,Breakdowns!$J:$J,"="&$A21,Breakdowns!$K:$K,"="&$B21)) -> 0 | J21: =IF($P$1,SUMIFS(Breakdowns!S:S,Breakdowns!$J:$J,"="&$A21,Breakdowns!$K:$K,"="&$B21,Breakdowns!$AA:$AA,"=No"),SUMIFS(Breakdowns!S:S,Breakdowns!$J:$J,"="&$A21,Breakdowns!$K:$K,"="&$B21)) -> 32729 | K21: =IF($P$1,SUMIFS(Breakdowns!U:U,Breakdowns!$J:$J,"="&$A21,Breakdowns!$K:$K,"="&$B21,Breakdowns!$AA:$AA,"=No"),SUMIFS(Breakdowns!U:U,Breakdowns!$J:$J,"="&$A21,Breakdowns!$K:$K,"="&$B21)) -> 32729 | L21: =IF($P$1,SUMIFS(Breakdowns!W:W,Breakdowns!$J:$J,"="&$A21,Breakdowns!$K:$K,"="&$B21,Breakdowns!$AA:$AA,"=No"),SUMIFS(Breakdowns!W:W,Breakdowns!$J:$J,"="&$A21,Breakdowns!$K:$K,"="&$B21)) -> 0 | M21: =IF($P$1,SUMIFS(Breakdowns!Y:Y,Breakdowns!$J:$J,"="&$A21,Breakdowns!$K:$K,"="&$B21,Breakdowns!$AA:$AA,"=No"),SUMIFS(Breakdowns!Y:Y,Breakdowns!$J:$J,"="&$A21,Breakdowns!$K:$K,"="&$B21)) -> 0
A22: AR | B22: DO | C22: Alaska Railroad - Directly Operated | F22: =IF($P$1,SUMIFS(Breakdowns!L:L,Breakdowns!$J:$J,"="&$A22,Breakdowns!$K:$K,"="&$B22,Breakdowns!$AA:$AA,"=No"),SUMIFS(Breakdowns!L:L,Breakdowns!$J:$J,"="&$A22,Breakdowns!$K:$K,"="&$B22)) -> 39 | G22: =IF($P$1,SUMIFS(Breakdowns!M:M,Breakdowns!$J:$J,"="&$A22,Breakdowns!$K:$K,"="&$B22,Breakdowns!$AA:$AA,"=No"),SUMIFS(Breakdowns!M:M,Breakdowns!$J:$J,"="&$A22,Breakdowns!$K:$K,"="&$B22)) -> 3 | H22: =IF($P$1,SUMIFS(Breakdowns!O:O,Breakdowns!$J:$J,"="&$A22,Breakdowns!$K:$K,"="&$B22,Breakdowns!$AA:$AA,"=No"),SUMIFS(Breakdowns!O:O,Breakdowns!$J:$J,"="&$A22,Breakdowns!$K:$K,"="&$B22)) -> 2 | I22: =IF($P$1,SUMIFS(Breakdowns!Q:Q,Breakdowns!$J:$J,"="&$A22,Breakdowns!$K:$K,"="&$B22,Breakdowns!$AA:$AA,"=No"),SUMIFS(Breakdowns!Q:Q,Breakdowns!$J:$J,"="&$A22,Breakdowns!$K:$K,"="&$B22)) -> 5 | J22: =IF($P$1,SUMIFS(Breakdowns!S:S,Breakdowns!$J:$J,"="&$A22,Breakdowns!$K:$K,"="&$B22,Breakdowns!$AA:$AA,"=No"),SUMIFS(Breakdowns!S:S,Breakdowns!$J:$J,"="&$A22,Breakdowns!$K:$K,"="&$B22)) -> 1104192 | K22: =IF($P$1,SUMIFS(Breakdowns!U:U,Breakdowns!$J:$J,"="&$A22,Breakdowns!$K:$K,"="&$B22,Breakdowns!$AA:$AA,"=No"),SUMIFS(Breakdowns!U:U,Breakdowns!$J:$J,"="&$A22,Breakdowns!$K:$K,"="&$B22)) -> 1103518 | L22: =IF($P$1,SUMIFS(Breakdowns!W:W,Breakdowns!$J:$J,"="&$A22,Breakdowns!$K:$K,"="&$B22,Breakdowns!$AA:$AA,"=No"),SUMIFS(Breakdowns!W:W,Breakdowns!$J:$J,"="&$A22,Breakdowns!$K:$K,"="&$B22)) -> 187671 | M22: =IF($P$1,SUMIFS(Breakdowns!Y:Y,Breakdowns!$J:$J,"="&$A22,Breakdowns!$K:$K,"="&$B22,Breakdowns!$AA:$AA,"=No"),SUMIFS(Breakdowns!Y:Y,Breakdowns!$J:$J,"="&$A22,Breakdowns!$K:$K,"="&$B22)) -> 187447
A23: MB | B23: DO | C23: Bus - Directly Operated | F23: =IF($P$1,SUMIFS(Breakdowns!L:L,Breakdowns!$J:$J,"="&$A23,Breakdowns!$K:$K,"="&$B23,Breakdowns!$AA:$AA,"=No"),SUMIFS(Breakdowns!L:L,Breakdowns!$J:$J,"="&$A23,Breakdowns!$K:$K,"="&$B23)) -> 38366 | G23: =IF($P$1,SUMIFS(Breakdowns!M:M,Breakdowns!$J:$J,"="&$A23,Breakdowns!$K:$K,"="&$B23,Breakdowns!$AA:$AA,"=No"),SUMIFS(Breakdowns!M:M,Breakdowns!$J:$J,"="&$A23,Breakdowns!$K:$K,"="&$B23)) -> 162740 | H23: =IF($P$1,SUMIFS(Breakdowns!O:O,Breakdowns!$J:$J,"="&$A23,Breakdowns!$K:$K,"="&$B23,Breakdowns!$AA:$AA,"=No"),SUMIFS(Breakdowns!O:O,Breakdowns!$J:$J,"="&$A23,Breakdowns!$K:$K,"="&$B23)) -> 153631 | I23: =IF($P$1,SUMIFS(Breakdowns!Q:Q,Breakdowns!$J:$J,"="&$A23,Breakdowns!$K:$K,"="&$B23,Breakdowns!$AA:$AA,"=No"),SUMIFS(Breakdowns!Q:Q,Breakdowns!$J:$J,"="&$A23,Breakdowns!$K:$K,"="&$B23)) -> 316371 | J23: =IF($P$1,SUMIFS(Breakdowns!S:S,Breakdowns!$J:$J,"="&$A23,Breakdowns!$K:$K,"="&$B23,Breakdowns!$AA:$AA,"=No"),SUMIFS(Breakdowns!S:S,Breakdowns!$J:$J,"="&$A23,Breakdowns!$K:$K,"="&$B23)) -> 1675858675 | K23: =IF($P$1,SUMIFS(Breakdowns!U:U,Breakdowns!$J:$J,"="&$A23,Breakdowns!$K:$K,"="&$B23,Breakdowns!$AA:$AA,"=No"),SUMIFS(Breakdowns!U:U,Breakdowns!$J:$J,"="&$A23,Breakdowns!$K:$K,"="&$B23)) -> 1449043183 | L23: =IF($P$1,SUMIFS(Breakdowns!W:W,Breakdowns!$J:$J,"="&$A23,Breakdowns!$K:$K,"="&$B23,Breakdowns!$AA:$AA,"=No"),SUMIFS(Breakdowns!W:W,Breakdowns!$J:$J,"="&$A23,Breakdowns!$K:$K,"="&$B23)) -> 0 | M23: =IF($P$1,SUMIFS(Breakdowns!Y:Y,Breakdowns!$J:$J,"="&$A23,Breakdowns!$K:$K,"="&$B23,Breakdowns!$AA:$AA,"=No"),SUMIFS(Breakdowns!Y:Y,Breakdowns!$J:$J,"="&$A23,Breakdowns!$K:$K,"="&$B23)) -> 0
A24: MB | B24: PT | C24: Bus - Purchased Transportation | F24: =IF($P$1,SUMIFS(Breakdowns!L:L,Breakdowns!$J:$J,"="&$A24,Breakdowns!$K:$K,"="&$B24,Breakdowns!$AA:$AA,"=No"),SUMIFS(Breakdowns!L:L,Breakdowns!$J:$J,"="&$A24,Breakdowns!$K:$K,"="&$B24)) -> 8356 | G24: =IF($P$1,SUMIFS(Breakdowns!M:M,Breakdowns!$J:$J,"="&$A24,Breakdowns!$K:$K,"="&$B24,Breakdowns!$AA:$AA,"=No"),SUMIFS(Breakdowns!M:M,Breakdowns!$J:$J,"="&$A24,Breakdowns!$K:$K,"="&$B24)) -> 34681 | H24: =IF($P$1,SUMIFS(Breakdowns!O:O,Breakdowns!$J:$J,"="&$A24,Breakdowns!$K:$K,"="&$B24,Breakdowns!$AA:$AA,"=No"),SUMIFS(Breakdowns!O:O,Breakdowns!$J:$J,"="&$A24,Breakdowns!$K:$K,"="&$B24)) -> 31379 | I24: =IF($P$1,SUMIFS(Breakdowns!Q:Q,Breakdowns!$J:$J,"="&$A24,Breakdowns!$K:$K,"="&$B24,Breakdowns!$AA:$AA,"=No"),SUMIFS(Breakdowns!Q:Q,Breakdowns!$J:$J,"="&$A24,Breakdowns!$K:$K,"="&$B24)) -> 66060 | J24: =IF($P$1,SUMIFS(Breakdowns!S:S,Breakdowns!$J:$J,"="&$A24,Breakdowns!$K:$K,"="&$B24,Breakdowns!$AA:$AA,"=No"),SUMIFS(Breakdowns!S:S,Breakdowns!$J:$J,"="&$A24,Breakdowns!$K:$K,"="&$B24)) -> 392717107 | K24: =IF($P$1,SUMIFS(Breakdowns!U:U,Breakdowns!$J:$J,"="&$A24,Breakdowns!$K:$K,"="&$B24,Breakdowns!$AA:$AA,"=No"),SUMIFS(Breakdowns!U:U,Breakdowns!$J:$J,"="&$A24,Breakdowns!$K:$K,"="&$B24)) -> 334091089 | L24: =IF($P$1,SUMIFS(Breakdowns!W:W,Breakdowns!$J:$J,"="&$A24,Breakdowns!$K:$K,"="&$B24,Breakdowns!$AA:$AA,"=No"),SUMIFS(Breakdowns!W:W,Breakdowns!$J:$J,"="&$A24,Breakdowns!$K:$K,"="&$B24)) -> 0 | M24: =IF($P$1,SUMIFS(Breakdowns!Y:Y,Breakdowns!$J:$J,"="&$A24,Breakdowns!$K:$K,"="&$B24,Breakdowns!$AA:$AA,"=No"),SUMIFS(Breakdowns!Y:Y,Breakdowns!$J:$J,"="&$A24,Breakdowns!$K:$K,"="&$B24)) -> 0
A25: RB | B25: DO | C25: Bus Rapid Transit - Directly Operated | F25: =IF($P$1,SUMIFS(Breakdowns!L:L,Breakdowns!$J:$J,"="&$A25,Breakdowns!$K:$K,"="&$B25,Breakdowns!$AA:$AA,"=No"),SUMIFS(Breakdowns!L:L,Breakdowns!$J:$J,"="&$A25,Breakdowns!$K:$K,"="&$B25)) -> 277 | G25: =IF($P$1,SUMIFS(Breakdowns!M:M,Breakdowns!$J:$J,"="&$A25,Breakdowns!$K:$K,"="&$B25,Breakdowns!$AA:$AA,"=No"),SUMIFS(Breakdowns!M:M,Breakdowns!$J:$J,"="&$A25,Breakdowns!$K:$K,"="&$B25)) -> 772 | H25: =IF($P$1,SUMIFS(Breakdowns!O:O,Breakdowns!$J:$J,"="&$A25,Breakdowns!$K:$K,"="&$B25,Breakdowns!$AA:$AA,"=No"),SUMIFS(Breakdowns!O:O,Breakdowns!$J:$J,"="&$A25,Breakdowns!$K:$K,"="&$B25)) -> 1219 | I25: =IF($P$1,SUMIFS(Breakdowns!Q:Q,Breakdowns!$J:$J,"="&$A25,Breakdowns!$K:$K,"="&$B25,Breakdowns!$AA:$AA,"=No"),SUMIFS(Breakdowns!Q:Q,Breakdowns!$J:$J,"="&$A25,Breakdowns!$K:$K,"="&$B25)) -> 1991 | J25: =IF($P$1,SUMIFS(Breakdowns!S:S,Breakdowns!$J:$J,"="&$A25,Breakdowns!$K:$K,"="&$B25,Breakdowns!$AA:$AA,"=No"),SUMIFS(Breakdowns!S:S,Breakdowns!$J:$J,"="&$A25,Breakdowns!$K:$K,"="&$B25)) -> 9749638 | K25: =IF($P$1,SUMIFS(Breakdowns!U:U,Breakdowns!$J:$J,"="&$A25,Breakdowns!$K:$K,"="&$B25,Breakdowns!$AA:$AA,"=No"),SUMIFS(Breakdowns!U:U,Breakdowns!$J:$J,"="&$A25,Breakdowns!$K:$K,"="&$B25)) -> 9233423 | L25: =IF($P$1,SUMIFS(Breakdowns!W:W,Breakdowns!$J:$J,"="&$A25,Breakdowns!$K:$K,"="&$B25,Breakdowns!$AA:$AA,"=No"),SUMIFS(Breakdowns!W:W,Breakdowns!$J:$J,"="&$A25,Breakdowns!$K:$K,"="&$B25)) -> 0 | M25: =IF($P$1,SUMIFS(Breakdowns!Y:Y,Breakdowns!$J:$J,"="&$A25,Breakdowns!$K:$K,"="&$B25,Breakdowns!$AA:$AA,"=No"),SUMIFS(Breakdowns!Y:Y,Breakdowns!$J:$J,"="&$A25,Breakdowns!$K:$K,"="&$B25)) -> 0
A26: RB | B26: PT | C26: Bus Rapid Transit - Purchased Transportation | F26: =IF($P$1,SUMIFS(Breakdowns!L:L,Breakdowns!$J:$J,"="&$A26,Breakdowns!$K:$K,"="&$B26,Breakdowns!$AA:$AA,"=No"),SUMIFS(Breakdowns!L:L,Breakdowns!$J:$J,"="&$A26,Breakdowns!$K:$K,"="&$B26)) -> 23 | G26: =IF($P$1,SUMIFS(Breakdowns!M:M,Breakdowns!$J:$J,"="&$A26,Breakdowns!$K:$K,"="&$B26,Breakdowns!$AA:$AA,"=No"),SUMIFS(Breakdowns!M:M,Breakdowns!$J:$J,"="&$A26,Breakdowns!$K:$K,"="&$B26)) -> 53 | H26: =IF($P$1,SUMIFS(Breakdowns!O:O,Breakdowns!$J:$J,"="&$A26,Breakdowns!$K:$K,"="&$B26,Breakdowns!$AA:$AA,"=No"),SUMIFS(Breakdowns!O:O,Breakdowns!$J:$J,"="&$A26,Breakdowns!$K:$K,"="&$B26)) -> 28 | I26: =IF($P$1,SUMIFS(Breakdowns!Q:Q,Breakdowns!$J:$J,"="&$A26,Breakdowns!$K:$K,"="&$B26,Breakdowns!$AA:$AA,"=No"),SUMIFS(Breakdowns!Q:Q,Breakdowns!$J:$J,"="&$A26,Breakdowns!$K:$K,"="&$B26)) -> 81 | J26: =IF($P$1,SUMIFS(Breakdowns!S:S,Breakdowns!$J:$J,"="&$A26,Breakdowns!$K:$K,"="&$B26,Breakdowns!$AA:$AA,"=No"),SUMIFS(Breakdowns!S:S,Breakdowns!$J:$J,"="&$A26,Breakdowns!$K:$K,"="&$B26)) -> 1325851 | K26: =IF($P$1,SUMIFS(Breakdowns!U:U,Breakdowns!$J:$J,"="&$A26,Breakdowns!$K:$K,"="&$B26,Breakdowns!$AA:$AA,"=No"),SUMIFS(Breakdowns!U:U,Breakdowns!$J:$J,"="&$A26,Breakdowns!$K:$K,"="&$B26)) -> 1062129 | L26: =IF($P$1,SUMIFS(Breakdowns!W:W,Breakdowns!$J:$J,"="&$A26,Breakdowns!$K:$K,"="&$B26,Breakdowns!$AA:$AA,"=No"),SUMIFS(Breakdowns!W:W,Breakdowns!$J:$J,"="&$A26,Breakdowns!$K:$K,"="&$B26)) -> 0 | M26: =IF($P$1,SUMIFS(Breakdowns!Y:Y,Breakdowns!$J:$J,"="&$A26,Breakdowns!$K:$K,"="&$B26,Breakdowns!$AA:$AA,"=No"),SUMIFS(Breakdowns!Y:Y,Breakdowns!$J:$J,"="&$A26,Breakdowns!$K:$K,"="&$B26)) -> 0
A27: CC | B27: DO | C27: Cable Car - Directly Operated | F27: =IF($P$1,SUMIFS(Breakdowns!L:L,Breakdowns!$J:$J,"="&$A27,Breakdowns!$K:$K,"="&$B27,Breakdowns!$AA:$AA,"=No"),SUMIFS(Breakdowns!L:L,Breakdowns!$J:$J,"="&$A27,Breakdowns!$K:$K,"="&$B27)) -> 27 | G27: =IF($P$1,SUMIFS(Breakdowns!M:M,Breakdowns!$J:$J,"="&$A27,Breakdowns!$K:$K,"="&$B27,Breakdowns!$AA:$AA,"=No"),SUMIFS(Breakdowns!M:M,Breakdowns!$J:$J,"="&$A27,Breakdowns!$K:$K,"="&$B27)) -> 57 | H27: =IF($P$1,SUMIFS(Breakdowns!O:O,Breakdowns!$J:$J,"="&$A27,Breakdowns!$K:$K,"="&$B27,Breakdowns!$AA:$AA,"=No"),SUMIFS(Breakdowns!O:O,Breakdowns!$J:$J,"="&$A27,Breakdowns!$K:$K,"="&$B27)) -> 1977 | I27: =IF($P$1,SUMIFS(Breakdowns!Q:Q,Breakdowns!$J:$J,"="&$A27,Breakdowns!$K:$K,"="&$B27,Breakdowns!$AA:$AA,"=No"),SUMIFS(Breakdowns!Q:Q,Breakdowns!$J:$J,"="&$A27,Breakdowns!$K:$K,"="&$B27)) -> 2034 | J27: =IF($P$1,SUMIFS(Breakdowns!S:S,Breakdowns!$J:$J,"="&$A27,Breakdowns!$K:$K,"="&$B27,Breakdowns!$AA:$AA,"=No"),SUMIFS(Breakdowns!S:S,Breakdowns!$J:$J,"="&$A27,Breakdowns!$K:$K,"="&$B27)) -> 264929 | K27: =IF($P$1,SUMIFS(Breakdowns!U:U,Breakdowns!$J:$J,"="&$A27,Breakdowns!$K:$K,"="&$B27,Breakdowns!$AA:$AA,"=No"),SUMIFS(Breakdowns!U:U,Breakdowns!$J:$J,"="&$A27,Breakdowns!$K:$K,"="&$B27)) -> 258452 | L27: =IF($P$1,SUMIFS(Breakdowns!W:W,Breakdowns!$J:$J,"="&$A27,Breakdowns!$K:$K,"="&$B27,Breakdowns!$AA:$AA,"=No"),SUMIFS(Breakdowns!W:W,Breakdowns!$J:$J,"="&$A27,Breakdowns!$K:$K,"="&$B27)) -> 264929 | M27: =IF($P$1,SUMIFS(Breakdowns!Y:Y,Breakdowns!$J:$J,"="&$A27,Breakdowns!$K:$K,"="&$B27,Breakdowns!$AA:$AA,"=No"),SUMIFS(Breakdowns!Y:Y,Breakdowns!$J:$J,"="&$A27,Breakdowns!$K:$K,"="&$B27)) -> 258452
A28: CB | B28: DO | C28: Commuter Bus - Directly Operated | F28: =IF($P$1,SUMIFS(Breakdowns!L:L,Breakdowns!$J:$J,"="&$A28,Breakdowns!$K:$K,"="&$B28,Breakdowns!$AA:$AA,"=No"),SUMIFS(Breakdowns!L:L,Breakdowns!$J:$J,"="&$A28,Breakdowns!$K:$K,"="&$B28)) -> 2344 | G28: =IF($P$1,SUMIFS(Breakdowns!M:M,Breakdowns!$J:$J,"="&$A28,Breakdowns!$K:$K,"="&$B28,Breakdowns!$AA:$AA,"=No"),SUMIFS(Breakdowns!M:M,Breakdowns!$J:$J,"="&$A28,Breakdowns!$K:$K,"="&$B28)) -> 3588 | H28: =IF($P$1,SUMIFS(Breakdowns!O:O,Breakdowns!$J:$J,"="&$A28,Breakdowns!$K:$K,"="&$B28,Breakdowns!$AA:$AA,"=No"),SUMIFS(Breakdowns!O:O,Breakdowns!$J:$J,"="&$A28,Breakdowns!$K:$K,"="&$B28)) -> 3513 | I28: =IF($P$1,SUMIFS(Breakdowns!Q:Q,Breakdowns!$J:$J,"="&$A28,Breakdowns!$K:$K,"="&$B28,Breakdowns!$AA:$AA,"=No"),SUMIFS(Breakdowns!Q:Q,Breakdowns!$J:$J,"="&$A28,Breakdowns!$K:$K,"="&$B28)) -> 7101 | J28: =IF($P$1,SUMIFS(Breakdowns!S:S,Breakdowns!$J:$J,"="&$A28,Breakdowns!$K:$K,"="&$B28,Breakdowns!$AA:$AA,"=No"),SUMIFS(Breakdowns!S:S,Breakdowns!$J:$J,"="&$A28,Breakdowns!$K:$K,"="&$B28)) -> 106157768 | K28: =IF($P$1,SUMIFS(Breakdowns!U:U,Breakdowns!$J:$J,"="&$A28,Breakdowns!$K:$K,"="&$B28,Breakdowns!$AA:$AA,"=No"),SUMIFS(Breakdowns!U:U,Breakdowns!$J:$J,"="&$A28,Breakdowns!$K:$K,"="&$B28)) -> 82407579 | L28: =IF($P$1,SUMIFS(Breakdowns!W:W,Breakdowns!$J:$J,"="&$A28,Breakdowns!$K:$K,"="&$B28,Breakdowns!$AA:$AA,"=No"),SUMIFS(Breakdowns!W:W,Breakdowns!$J:$J,"="&$A28,Breakdowns!$K:$K,"="&$B28)) -> 0 | M28: =IF($P$1,SUMIFS(Breakdowns!Y:Y,Breakdowns!$J:$J,"="&$A28,Breakdowns!$K:$K,"="&$B28,Breakdowns!$AA:$AA,"=No"),SUMIFS(Breakdowns!Y:Y,Breakdowns!$J:$J,"="&$A28,Breakdowns!$K:$K,"="&$B28)) -> 0
A29: CB | B29: PT | C29: Commuter Bus - Purchased Transportation | F29: =IF($P$1,SUMIFS(Breakdowns!L:L,Breakdowns!$J:$J,"="&$A29,Breakdowns!$K:$K,"="&$B29,Breakdowns!$AA:$AA,"=No"),SUMIFS(Breakdowns!L:L,Breakdowns!$J:$J,"="&$A29,Breakdowns!$K:$K,"="&$B29)) -> 1382 | G29: =IF($P$1,SUMIFS(Breakdowns!M:M,Breakdowns!$J:$J,"="&$A29,Breakdowns!$K:$K,"="&$B29,Breakdowns!$AA:$AA,"=No"),SUMIFS(Breakdowns!M:M,Breakdowns!$J:$J,"="&$A29,Breakdowns!$K:$K,"="&$B29)) -> 2431 | H29: =IF($P$1,SUMIFS(Breakdowns!O:O,Breakdowns!$J:$J,"="&$A29,Breakdowns!$K:$K,"="&$B29,Breakdowns!$AA:$AA,"=No"),SUMIFS(Breakdowns!O:O,Breakdowns!$J:$J,"="&$A29,Breakdowns!$K:$K,"="&$B29)) -> 2092 | I29: =IF($P$1,SUMIFS(Breakdowns!Q:Q,Breakdowns!$J:$J,"="&$A29,Breakdowns!$K:$K,"="&$B29,Breakdowns!$AA:$AA,"=No"),SUMIFS(Breakdowns!Q:Q,Breakdowns!$J:$J,"="&$A29,Breakdowns!$K:$K,"="&$B29)) -> 4523 | J29: =IF($P$1,SUMIFS(Breakdowns!S:S,Breakdowns!$J:$J,"="&$A29,Breakdowns!$K:$K,"="&$B29,Breakdowns!$AA:$AA,"=No"),SUMIFS(Breakdowns!S:S,Breakdowns!$J:$J,"="&$A29,Breakdowns!$K:$K,"="&$B29)) -> 57656119 | K29: =IF($P$1,SUMIFS(Breakdowns!U:U,Breakdowns!$J:$J,"="&$A29,Breakdowns!$K:$K,"="&$B29,Breakdowns!$AA:$AA,"=No"),SUMIFS(Breakdowns!U:U,Breakdowns!$J:$J,"="&$A29,Breakdowns!$K:$K,"="&$B29)) -> 40646172 | L29: =IF($P$1,SUMIFS(Breakdowns!W:W,Breakdowns!$J:$J,"="&$A29,Breakdowns!$K:$K,"="&$B29,Breakdowns!$AA:$AA,"=No"),SUMIFS(Breakdowns!W:W,Breakdowns!$J:$J,"="&$A29,Breakdowns!$K:$K,"="&$B29)) -> 0 | M29: =IF($P$1,SUMIFS(Breakdowns!Y:Y,Breakdowns!$J:$J,"="&$A29,Breakdowns!$K:$K,"="&$B29,Breakdowns!$AA:$AA,"=No"),SUMIFS(Breakdowns!Y:Y,Breakdowns!$J:$J,"="&$A29,Breakdowns!$K:$K,"="&$B29)) -> 0
A30: CR | B30: DO | C30: Commuter Rail - Directly Operated | F30: =IF($P$1,SUMIFS(Breakdowns!L:L,Breakdowns!$J:$J,"="&$A30,Breakdowns!$K:$K,"="&$B30,Breakdowns!$AA:$AA,"=No"),SUMIFS(Breakdowns!L:L,Breakdowns!$J:$J,"="&$A30,Breakdowns!$K:$K,"="&$B30)) -> 4966 | G30: =IF($P$1,SUMIFS(Breakdowns!M:M,Breakdowns!$J:$J,"="&$A30,Breakdowns!$K:$K,"="&$B30,Breakdowns!$AA:$AA,"=No"),SUMIFS(Breakdowns!M:M,Breakdowns!$J:$J,"="&$A30,Breakdowns!$K:$K,"="&$B30)) -> 602 | H30: =IF($P$1,SUMIFS(Breakdowns!O:O,Breakdowns!$J:$J,"="&$A30,Breakdowns!$K:$K,"="&$B30,Breakdowns!$AA:$AA,"=No"),SUMIFS(Breakdowns!O:O,Breakdowns!$J:$J,"="&$A30,Breakdowns!$K:$K,"="&$B30)) -> 147 | I30: =IF($P$1,SUMIFS(Breakdowns!Q:Q,Breakdowns!$J:$J,"="&$A30,Breakdowns!$K:$K,"="&$B30,Breakdowns!$AA:$AA,"=No"),SUMIFS(Breakdowns!Q:Q,Breakdowns!$J:$J,"="&$A30,Breakdowns!$K:$K,"="&$B30)) -> 749 | J30: =IF($P$1,SUMIFS(Breakdowns!S:S,Breakdowns!$J:$J,"="&$A30,Breakdowns!$K:$K,"="&$B30,Breakdowns!$AA:$AA,"=No"),SUMIFS(Breakdowns!S:S,Breakdowns!$J:$J,"="&$A30,Breakdowns!$K:$K,"="&$B30)) -> 294588316 | K30: =IF($P$1,SUMIFS(Breakdowns!U:U,Breakdowns!$J:$J,"="&$A30,Breakdowns!$K:$K,"="&$B30,Breakdowns!$AA:$AA,"=No"),SUMIFS(Breakdowns!U:U,Breakdowns!$J:$J,"="&$A30,Breakdowns!$K:$K,"="&$B30)) -> 270227376 | L30: =IF($P$1,SUMIFS(Breakdowns!W:W,Breakdowns!$J:$J,"="&$A30,Breakdowns!$K:$K,"="&$B30,Breakdowns!$AA:$AA,"=No"),SUMIFS(Breakdowns!W:W,Breakdowns!$J:$J,"="&$A30,Breakdowns!$K:$K,"="&$B30)) -> 43622294 | M30: =IF($P$1,SUMIFS(Breakdowns!Y:Y,Breakdowns!$J:$J,"="&$A30,Breakdowns!$K:$K,"="&$B30,Breakdowns!$AA:$AA,"=No"),SUMIFS(Breakdowns!Y:Y,Breakdowns!$J:$J,"="&$A30,Breakdowns!$K:$K,"="&$B30)) -> 40287448
A31: CR | B31: PT | C31: Commuter Rail - Purchased Transportation | F31: =IF($P$1,SUMIFS(Breakdowns!L:L,Breakdowns!$J:$J,"="&$A31,Breakdowns!$K:$K,"="&$B31,Breakdowns!$AA:$AA,"=No"),SUMIFS(Breakdowns!L:L,Breakdowns!$J:$J,"="&$A31,Breakdowns!$K:$K,"="&$B31)) -> 1318 | G31: =IF($P$1,SUMIFS(Breakdowns!M:M,Breakdowns!$J:$J,"="&$A31,Breakdowns!$K:$K,"="&$B31,Breakdowns!$AA:$AA,"=No"),SUMIFS(Breakdowns!M:M,Breakdowns!$J:$J,"="&$A31,Breakdowns!$K:$K,"="&$B31)) -> 810 | H31: =IF($P$1,SUMIFS(Breakdowns!O:O,Breakdowns!$J:$J,"="&$A31,Breakdowns!$K:$K,"="&$B31,Breakdowns!$AA:$AA,"=No"),SUMIFS(Breakdowns!O:O,Breakdowns!$J:$J,"="&$A31,Breakdowns!$K:$K,"="&$B31)) -> 113 | I31: =IF($P$1,SUMIFS(Breakdowns!Q:Q,Breakdowns!$J:$J,"="&$A31,Breakdowns!$K:$K,"="&$B31,Breakdowns!$AA:$AA,"=No"),SUMIFS(Breakdowns!Q:Q,Breakdowns!$J:$J,"="&$A31,Breakdowns!$K:$K,"="&$B31)) -> 923 | J31: =IF($P$1,SUMIFS(Breakdowns!S:S,Breakdowns!$J:$J,"="&$A31,Breakdowns!$K:$K,"="&$B31,Breakdowns!$AA:$AA,"=No"),SUMIFS(Breakdowns!S:S,Breakdowns!$J:$J,"="&$A31,Breakdowns!$K:$K,"="&$B31)) -> 77088934 | K31: =IF($P$1,SUMIFS(Breakdowns!U:U,Breakdowns!$J:$J,"="&$A31,Breakdowns!$K:$K,"="&$B31,Breakdowns!$AA:$AA,"=No"),SUMIFS(Breakdowns!U:U,Breakdowns!$J:$J,"="&$A31,Breakdowns!$K:$K,"="&$B31)) -> 74161544 | L31: =IF($P$1,SUMIFS(Breakdowns!W:W,Breakdowns!$J:$J,"="&$A31,Breakdowns!$K:$K,"="&$B31,Breakdowns!$AA:$AA,"=No"),SUMIFS(Breakdowns!W:W,Breakdowns!$J:$J,"="&$A31,Breakdowns!$K:$K,"="&$B31)) -> 16673701 | M31: =IF($P$1,SUMIFS(Breakdowns!Y:Y,Breakdowns!$J:$J,"="&$A31,Breakdowns!$K:$K,"="&$B31,Breakdowns!$AA:$AA,"=No"),SUMIFS(Breakdowns!Y:Y,Breakdowns!$J:$J,"="&$A31,Breakdowns!$K:$K,"="&$B31)) -> 16002676
A32: DR | B32: DO | C32: Demand Response - Directly Operated | F32: =IF($P$1,SUMIFS(Breakdowns!L:L,Breakdowns!$J:$J,"="&$A32,Breakdowns!$K:$K,"="&$B32,Breakdowns!$AA:$AA,"=No"),SUMIFS(Breakdowns!L:L,Breakdowns!$J:$J,"="&$A32,Breakdowns!$K:$K,"="&$B32)) -> 6087 | G32: =IF($P$1,SUMIFS(Breakdowns!M:M,Breakdowns!$J:$J,"="&$A32,Breakdowns!$K:$K,"="&$B32,Breakdowns!$AA:$AA,"=No"),SUMIFS(Breakdowns!M:M,Breakdowns!$J:$J,"="&$A32,Breakdowns!$K:$K,"="&$B32)) -> 7211 | H32: =IF($P$1,SUMIFS(Breakdowns!O:O,Breakdowns!$J:$J,"="&$A32,Breakdowns!$K:$K,"="&$B32,Breakdowns!$AA:$AA,"=No"),SUMIFS(Breakdowns!O:O,Breakdowns!$J:$J,"="&$A32,Breakdowns!$K:$K,"="&$B32)) -> 8000 | I32: =IF($P$1,SUMIFS(Breakdowns!Q:Q,Breakdowns!$J:$J,"="&$A32,Breakdowns!$K:$K,"="&$B32,Breakdowns!$AA:$AA,"=No"),SUMIFS(Breakdowns!Q:Q,Breakdowns!$J:$J,"="&$A32,Breakdowns!$K:$K,"="&$B32)) -> 15211 | J32: =IF($P$1,SUMIFS(Breakdowns!S:S,Breakdowns!$J:$J,"="&$A32,Breakdowns!$K:$K,"="&$B32,Breakdowns!$AA:$AA,"=No"),SUMIFS(Breakdowns!S:S,Breakdowns!$J:$J,"="&$A32,Breakdowns!$K:$K,"="&$B32)) -> 188523366 | K32: =IF($P$1,SUMIFS(Breakdowns!U:U,Breakdowns!$J:$J,"="&$A32,Breakdowns!$K:$K,"="&$B32,Breakdowns!$AA:$AA,"=No"),SUMIFS(Breakdowns!U:U,Breakdowns!$J:$J,"="&$A32,Breakdowns!$K:$K,"="&$B32)) -> 160923133 | L32: =IF($P$1,SUMIFS(Breakdowns!W:W,Breakdowns!$J:$J,"="&$A32,Breakdowns!$K:$K,"="&$B32,Breakdowns!$AA:$AA,"=No"),SUMIFS(Breakdowns!W:W,Breakdowns!$J:$J,"="&$A32,Breakdowns!$K:$K,"="&$B32)) -> 0 | M32: =IF($P$1,SUMIFS(Breakdowns!Y:Y,Breakdowns!$J:$J,"="&$A32,Breakdowns!$K:$K,"="&$B32,Breakdowns!$AA:$AA,"=No"),SUMIFS(Breakdowns!Y:Y,Breakdowns!$J:$J,"="&$A32,Breakdowns!$K:$K,"="&$B32)) -> 0
A33: DR | B33: PT | C33: Demand Response - Purchased Transportation | F33: =IF($P$1,SUMIFS(Breakdowns!L:L,Breakdowns!$J:$J,"="&$A33,Breakdowns!$K:$K,"="&$B33,Breakdowns!$AA:$AA,"=No"),SUMIFS(Breakdowns!L:L,Breakdowns!$J:$J,"="&$A33,Breakdowns!$K:$K,"="&$B33)) -> 18195 | G33: =IF($P$1,SUMIFS(Breakdowns!M:M,Breakdowns!$J:$J,"="&$A33,Breakdowns!$K:$K,"="&$B33,Breakdowns!$AA:$AA,"=No"),SUMIFS(Breakdowns!M:M,Breakdowns!$J:$J,"="&$A33,Breakdowns!$K:$K,"="&$B33)) -> 15253 | H33: =IF($P$1,SUMIFS(Breakdowns!O:O,Breakdowns!$J:$J,"="&$A33,Breakdowns!$K:$K,"="&$B33,Breakdowns!$AA:$AA,"=No"),SUMIFS(Breakdowns!O:O,Breakdowns!$J:$J,"="&$A33,Breakdowns!$K:$K,"="&$B33)) -> 19597 | I33: =IF($P$1,SUMIFS(Breakdowns!Q:Q,Breakdowns!$J:$J,"="&$A33,Breakdowns!$K:$K,"="&$B33,Breakdowns!$AA:$AA,"=No"),SUMIFS(Breakdowns!Q:Q,Breakdowns!$J:$J,"="&$A33,Breakdowns!$K:$K,"="&$B33)) -> 34850 | J33: =IF($P$1,SUMIFS(Breakdowns!S:S,Breakdowns!$J:$J,"="&$A33,Breakdowns!$K:$K,"="&$B33,Breakdowns!$AA:$AA,"=No"),SUMIFS(Breakdowns!S:S,Breakdowns!$J:$J,"="&$A33,Breakdowns!$K:$K,"="&$B33)) -> 649721443 | K33: =IF($P$1,SUMIFS(Breakdowns!U:U,Breakdowns!$J:$J,"="&$A33,Breakdowns!$K:$K,"="&$B33,Breakdowns!$AA:$AA,"=No"),SUMIFS(Breakdowns!U:U,Breakdowns!$J:$J,"="&$A33,Breakdowns!$K:$K,"="&$B33)) -> 549544567 | L33: =IF($P$1,SUMIFS(Breakdowns!W:W,Breakdowns!$J:$J,"="&$A33,Breakdowns!$K:$K,"="&$B33,Breakdowns!$AA:$AA,"=No"),SUMIFS(Breakdowns!W:W,Breakdowns!$J:$J,"="&$A33,Breakdowns!$K:$K,"="&$B33)) -> 0 | M33: =IF($P$1,SUMIFS(Breakdowns!Y:Y,Breakdowns!$J:$J,"="&$A33,Breakdowns!$K:$K,"="&$B33,Breakdowns!$AA:$AA,"=No"),SUMIFS(Breakdowns!Y:Y,Breakdowns!$J:$J,"="&$A33,Breakdowns!$K:$K,"="&$B33)) -> 0
A34: FB | B34: DO | C34: Ferryboat - Directly Operated | F34: =IF($P$1,SUMIFS(Breakdowns!L:L,Breakdowns!$J:$J,"="&$A34,Breakdowns!$K:$K,"="&$B34,Breakdowns!$AA:$AA,"=No"),SUMIFS(Breakdowns!L:L,Breakdowns!$J:$J,"="&$A34,Breakdowns!$K:$K,"="&$B34)) -> 77 | G34: =IF($P$1,SUMIFS(Breakdowns!M:M,Breakdowns!$J:$J,"="&$A34,Breakdowns!$K:$K,"="&$B34,Breakdowns!$AA:$AA,"=No"),SUMIFS(Breakdowns!M:M,Breakdowns!$J:$J,"="&$A34,Breakdowns!$K:$K,"="&$B34)) -> 104 | H34: =IF($P$1,SUMIFS(Breakdowns!O:O,Breakdowns!$J:$J,"="&$A34,Breakdowns!$K:$K,"="&$B34,Breakdowns!$AA:$AA,"=No"),SUMIFS(Breakdowns!O:O,Breakdowns!$J:$J,"="&$A34,Breakdowns!$K:$K,"="&$B34)) -> 53 | I34: =IF($P$1,SUMIFS(Breakdowns!Q:Q,Breakdowns!$J:$J,"="&$A34,Breakdowns!$K:$K,"="&$B34,Breakdowns!$AA:$AA,"=No"),SUMIFS(Breakdowns!Q:Q,Breakdowns!$J:$J,"="&$A34,Breakdowns!$K:$K,"="&$B34)) -> 157 | J34: =IF($P$1,SUMIFS(Breakdowns!S:S,Breakdowns!$J:$J,"="&$A34,Breakdowns!$K:$K,"="&$B34,Breakdowns!$AA:$AA,"=No"),SUMIFS(Breakdowns!S:S,Breakdowns!$J:$J,"="&$A34,Breakdowns!$K:$K,"="&$B34)) -> 2709252 | K34: =IF($P$1,SUMIFS(Breakdowns!U:U,Breakdowns!$J:$J,"="&$A34,Breakdowns!$K:$K,"="&$B34,Breakdowns!$AA:$AA,"=No"),SUMIFS(Breakdowns!U:U,Breakdowns!$J:$J,"="&$A34,Breakdowns!$K:$K,"="&$B34)) -> 2663268 | L34: =IF($P$1,SUMIFS(Breakdowns!W:W,Breakdowns!$J:$J,"="&$A34,Breakdowns!$K:$K,"="&$B34,Breakdowns!$AA:$AA,"=No"),SUMIFS(Breakdowns!W:W,Breakdowns!$J:$J,"="&$A34,Breakdowns!$K:$K,"="&$B34)) -> 0 | M34: =IF($P$1,SUMIFS(Breakdowns!Y:Y,Breakdowns!$J:$J,"="&$A34,Breakdowns!$K:$K,"="&$B34,Breakdowns!$AA:$AA,"=No"),SUMIFS(Breakdowns!Y:Y,Breakdowns!$J:$J,"="&$A34,Breakdowns!$K:$K,"="&$B34)) -> 0
A35: FB | B35: PT | C35: Ferryboat - Purchased Transportation | F35: =IF($P$1,SUMIFS(Breakdowns!L:L,Breakdowns!$J:$J,"="&$A35,Breakdowns!$K:$K,"="&$B35,Breakdowns!$AA:$AA,"=No"),SUMIFS(Breakdowns!L:L,Breakdowns!$J:$J,"="&$A35,Breakdowns!$K:$K,"="&$B35)) -> 48 | G35: =IF($P$1,SUMIFS(Breakdowns!M:M,Breakdowns!$J:$J,"="&$A35,Breakdowns!$K:$K,"="&$B35,Breakdowns!$AA:$AA,"=No"),SUMIFS(Breakdowns!M:M,Breakdowns!$J:$J,"="&$A35,Breakdowns!$K:$K,"="&$B35)) -> 62 | H35: =IF($P$1,SUMIFS(Breakdowns!O:O,Breakdowns!$J:$J,"="&$A35,Breakdowns!$K:$K,"="&$B35,Breakdowns!$AA:$AA,"=No"),SUMIFS(Breakdowns!O:O,Breakdowns!$J:$J,"="&$A35,Breakdowns!$K:$K,"="&$B35)) -> 60 | I35: =IF($P$1,SUMIFS(Breakdowns!Q:Q,Breakdowns!$J:$J,"="&$A35,Breakdowns!$K:$K,"="&$B35,Breakdowns!$AA:$AA,"=No"),SUMIFS(Breakdowns!Q:Q,Breakdowns!$J:$J,"="&$A35,Breakdowns!$K:$K,"="&$B35)) -> 122 | J35: =IF($P$1,SUMIFS(Breakdowns!S:S,Breakdowns!$J:$J,"="&$A35,Breakdowns!$K:$K,"="&$B35,Breakdowns!$AA:$AA,"=No"),SUMIFS(Breakdowns!S:S,Breakdowns!$J:$J,"="&$A35,Breakdowns!$K:$K,"="&$B35)) -> 1065985 | K35: =IF($P$1,SUMIFS(Breakdowns!U:U,Breakdowns!$J:$J,"="&$A35,Breakdowns!$K:$K,"="&$B35,Breakdowns!$AA:$AA,"=No"),SUMIFS(Breakdowns!U:U,Breakdowns!$J:$J,"="&$A35,Breakdowns!$K:$K,"="&$B35)) -> 1004330 | L35: =IF($P$1,SUMIFS(Breakdowns!W:W,Breakdowns!$J:$J,"="&$A35,Breakdowns!$K:$K,"="&$B35,Breakdowns!$AA:$AA,"=No"),SUMIFS(Breakdowns!W:W,Breakdowns!$J:$J,"="&$A35,Breakdowns!$K:$K,"="&$B35)) -> 0 | M35: =IF($P$1,SUMIFS(Breakdowns!Y:Y,Breakdowns!$J:$J,"="&$A35,Breakdowns!$K:$K,"="&$B35,Breakdowns!$AA:$AA,"=No"),SUMIFS(Breakdowns!Y:Y,Breakdowns!$J:$J,"="&$A35,Breakdowns!$K:$K,"="&$B35)) -> 0
A36: HR | B36: DO | C36: Heavy Rail - Directly Operated | F36: =IF($P$1,SUMIFS(Breakdowns!L:L,Breakdowns!$J:$J,"="&$A36,Breakdowns!$K:$K,"="&$B36,Breakdowns!$AA:$AA,"=No"),SUMIFS(Breakdowns!L:L,Breakdowns!$J:$J,"="&$A36,Breakdowns!$K:$K,"="&$B36)) -> 9435 | G36: =IF($P$1,SUMIFS(Breakdowns!M:M,Breakdowns!$J:$J,"="&$A36,Breakdowns!$K:$K,"="&$B36,Breakdowns!$AA:$AA,"=No"),SUMIFS(Breakdowns!M:M,Breakdowns!$J:$J,"="&$A36,Breakdowns!$K:$K,"="&$B36)) -> 7607 | H36: =IF($P$1,SUMIFS(Breakdowns!O:O,Breakdowns!$J:$J,"="&$A36,Breakdowns!$K:$K,"="&$B36,Breakdowns!$AA:$AA,"=No"),SUMIFS(Breakdowns!O:O,Breakdowns!$J:$J,"="&$A36,Breakdowns!$K:$K,"="&$B36)) -> 29876 | I36: =IF($P$1,SUMIFS(Breakdowns!Q:Q,Breakdowns!$J:$J,"="&$A36,Breakdowns!$K:$K,"="&$B36,Breakdowns!$AA:$AA,"=No"),SUMIFS(Breakdowns!Q:Q,Breakdowns!$J:$J,"="&$A36,Breakdowns!$K:$K,"="&$B36)) -> 37483 | J36: =IF($P$1,SUMIFS(Breakdowns!S:S,Breakdowns!$J:$J,"="&$A36,Breakdowns!$K:$K,"="&$B36,Breakdowns!$AA:$AA,"=No"),SUMIFS(Breakdowns!S:S,Breakdowns!$J:$J,"="&$A36,Breakdowns!$K:$K,"="&$B36)) -> 694336504 | K36: =IF($P$1,SUMIFS(Breakdowns!U:U,Breakdowns!$J:$J,"="&$A36,Breakdowns!$K:$K,"="&$B36,Breakdowns!$AA:$AA,"=No"),SUMIFS(Breakdowns!U:U,Breakdowns!$J:$J,"="&$A36,Breakdowns!$K:$K,"="&$B36)) -> 673977895 | L36: =IF($P$1,SUMIFS(Breakdowns!W:W,Breakdowns!$J:$J,"="&$A36,Breakdowns!$K:$K,"="&$B36,Breakdowns!$AA:$AA,"=No"),SUMIFS(Breakdowns!W:W,Breakdowns!$J:$J,"="&$A36,Breakdowns!$K:$K,"="&$B36)) -> 94628386 | M36: =IF($P$1,SUMIFS(Breakdowns!Y:Y,Breakdowns!$J:$J,"="&$A36,Breakdowns!$K:$K,"="&$B36,Breakdowns!$AA:$AA,"=No"),SUMIFS(Breakdowns!Y:Y,Breakdowns!$J:$J,"="&$A36,Breakdowns!$K:$K,"="&$B36)) -> 91974392
A37: HR | B37: PT | C37: Heavy Rail - Purchased Transportation | F37: =IF($P$1,SUMIFS(Breakdowns!L:L,Breakdowns!$J:$J,"="&$A37,Breakdowns!$K:$K,"="&$B37,Breakdowns!$AA:$AA,"=No"),SUMIFS(Breakdowns!L:L,Breakdowns!$J:$J,"="&$A37,Breakdowns!$K:$K,"="&$B37)) -> 32 | G37: =IF($P$1,SUMIFS(Breakdowns!M:M,Breakdowns!$J:$J,"="&$A37,Breakdowns!$K:$K,"="&$B37,Breakdowns!$AA:$AA,"=No"),SUMIFS(Breakdowns!M:M,Breakdowns!$J:$J,"="&$A37,Breakdowns!$K:$K,"="&$B37)) -> 42 | H37: =IF($P$1,SUMIFS(Breakdowns!O:O,Breakdowns!$J:$J,"="&$A37,Breakdowns!$K:$K,"="&$B37,Breakdowns!$AA:$AA,"=No"),SUMIFS(Breakdowns!O:O,Breakdowns!$J:$J,"="&$A37,Breakdowns!$K:$K,"="&$B37)) -> 491 | I37: =IF($P$1,SUMIFS(Breakdowns!Q:Q,Breakdowns!$J:$J,"="&$A37,Breakdowns!$K:$K,"="&$B37,Breakdowns!$AA:$AA,"=No"),SUMIFS(Breakdowns!Q:Q,Breakdowns!$J:$J,"="&$A37,Breakdowns!$K:$K,"="&$B37)) -> 533 | J37: =IF($P$1,SUMIFS(Breakdowns!S:S,Breakdowns!$J:$J,"="&$A37,Breakdowns!$K:$K,"="&$B37,Breakdowns!$AA:$AA,"=No"),SUMIFS(Breakdowns!S:S,Breakdowns!$J:$J,"="&$A37,Breakdowns!$K:$K,"="&$B37)) -> 2033342 | K37: =IF($P$1,SUMIFS(Breakdowns!U:U,Breakdowns!$J:$J,"="&$A37,Breakdowns!$K:$K,"="&$B37,Breakdowns!$AA:$AA,"=No"),SUMIFS(Breakdowns!U:U,Breakdowns!$J:$J,"="&$A37,Breakdowns!$K:$K,"="&$B37)) -> 1910657 | L37: =IF($P$1,SUMIFS(Breakdowns!W:W,Breakdowns!$J:$J,"="&$A37,Breakdowns!$K:$K,"="&$B37,Breakdowns!$AA:$AA,"=No"),SUMIFS(Breakdowns!W:W,Breakdowns!$J:$J,"="&$A37,Breakdowns!$K:$K,"="&$B37)) -> 625384 | M37: =IF($P$1,SUMIFS(Breakdowns!Y:Y,Breakdowns!$J:$J,"="&$A37,Breakdowns!$K:$K,"="&$B37,Breakdowns!$AA:$AA,"=No"),SUMIFS(Breakdowns!Y:Y,Breakdowns!$J:$J,"="&$A37,Breakdowns!$K:$K,"="&$B37)) -> 592614
A38: YR | B38: PT | C38: Hybrid Rail - Purchased Transportation | F38: =IF($P$1,SUMIFS(Breakdowns!L:L,Breakdowns!$J:$J,"="&$A38,Breakdowns!$K:$K,"="&$B38,Breakdowns!$AA:$AA,"=No"),SUMIFS(Breakdowns!L:L,Breakdowns!$J:$J,"="&$A38,Breakdowns!$K:$K,"="&$B38)) -> 40 | G38: =IF($P$1,SUMIFS(Breakdowns!M:M,Breakdowns!$J:$J,"="&$A38,Breakdowns!$K:$K,"="&$B38,Breakdowns!$AA:$AA,"=No"),SUMIFS(Breakdowns!M:M,Breakdowns!$J:$J,"="&$A38,Breakdowns!$K:$K,"="&$B38)) -> 92 | H38: =IF($P$1,SUMIFS(Breakdowns!O:O,Breakdowns!$J:$J,"="&$A38,Breakdowns!$K:$K,"="&$B38,Breakdowns!$AA:$AA,"=No"),SUMIFS(Breakdowns!O:O,Breakdowns!$J:$J,"="&$A38,Breakdowns!$K:$K,"="&$B38)) -> 22 | I38: =IF($P$1,SUMIFS(Breakdowns!Q:Q,Breakdowns!$J:$J,"="&$A38,Breakdowns!$K:$K,"="&$B38,Breakdowns!$AA:$AA,"=No"),SUMIFS(Breakdowns!Q:Q,Breakdowns!$J:$J,"="&$A38,Breakdowns!$K:$K,"="&$B38)) -> 114 | J38: =IF($P$1,SUMIFS(Breakdowns!S:S,Breakdowns!$J:$J,"="&$A38,Breakdowns!$K:$K,"="&$B38,Breakdowns!$AA:$AA,"=No"),SUMIFS(Breakdowns!S:S,Breakdowns!$J:$J,"="&$A38,Breakdowns!$K:$K,"="&$B38)) -> 3193599 | K38: =IF($P$1,SUMIFS(Breakdowns!U:U,Breakdowns!$J:$J,"="&$A38,Breakdowns!$K:$K,"="&$B38,Breakdowns!$AA:$AA,"=No"),SUMIFS(Breakdowns!U:U,Breakdowns!$J:$J,"="&$A38,Breakdowns!$K:$K,"="&$B38)) -> 3090763 | L38: =IF($P$1,SUMIFS(Breakdowns!W:W,Breakdowns!$J:$J,"="&$A38,Breakdowns!$K:$K,"="&$B38,Breakdowns!$AA:$AA,"=No"),SUMIFS(Breakdowns!W:W,Breakdowns!$J:$J,"="&$A38,Breakdowns!$K:$K,"="&$B38)) -> 2353654 | M38: =IF($P$1,SUMIFS(Breakdowns!Y:Y,Breakdowns!$J:$J,"="&$A38,Breakdowns!$K:$K,"="&$B38,Breakdowns!$AA:$AA,"=No"),SUMIFS(Breakdowns!Y:Y,Breakdowns!$J:$J,"="&$A38,Breakdowns!$K:$K,"="&$B38)) -> 2296724
A39: IP | B39: DO | C39: Inclined Plane - Directly Operated | F39: =IF($P$1,SUMIFS(Breakdowns!L:L,Breakdowns!$J:$J,"="&$A39,Breakdowns!$K:$K,"="&$B39,Breakdowns!$AA:$AA,"=No"),SUMIFS(Breakdowns!L:L,Breakdowns!$J:$J,"="&$A39,Breakdowns!$K:$K,"="&$B39)) -> 6 | G39: =IF($P$1,SUMIFS(Breakdowns!M:M,Breakdowns!$J:$J,"="&$A39,Breakdowns!$K:$K,"="&$B39,Breakdowns!$AA:$AA,"=No"),SUMIFS(Breakdowns!M:M,Breakdowns!$J:$J,"="&$A39,Breakdowns!$K:$K,"="&$B39)) -> 53 | H39: =IF($P$1,SUMIFS(Breakdowns!O:O,Breakdowns!$J:$J,"="&$A39,Breakdowns!$K:$K,"="&$B39,Breakdowns!$AA:$AA,"=No"),SUMIFS(Breakdowns!O:O,Breakdowns!$J:$J,"="&$A39,Breakdowns!$K:$K,"="&$B39)) -> 0 | I39: =IF($P$1,SUMIFS(Breakdowns!Q:Q,Breakdowns!$J:$J,"="&$A39,Breakdowns!$K:$K,"="&$B39,Breakdowns!$AA:$AA,"=No"),SUMIFS(Breakdowns!Q:Q,Breakdowns!$J:$J,"="&$A39,Breakdowns!$K:$K,"="&$B39)) -> 53 | J39: =IF($P$1,SUMIFS(Breakdowns!S:S,Breakdowns!$J:$J,"="&$A39,Breakdowns!$K:$K,"="&$B39,Breakdowns!$AA:$AA,"=No"),SUMIFS(Breakdowns!S:S,Breakdowns!$J:$J,"="&$A39,Breakdowns!$K:$K,"="&$B39)) -> 32116 | K39: =IF($P$1,SUMIFS(Breakdowns!U:U,Breakdowns!$J:$J,"="&$A39,Breakdowns!$K:$K,"="&$B39,Breakdowns!$AA:$AA,"=No"),SUMIFS(Breakdowns!U:U,Breakdowns!$J:$J,"="&$A39,Breakdowns!$K:$K,"="&$B39)) -> 32116 | L39: =IF($P$1,SUMIFS(Breakdowns!W:W,Breakdowns!$J:$J,"="&$A39,Breakdowns!$K:$K,"="&$B39,Breakdowns!$AA:$AA,"=No"),SUMIFS(Breakdowns!W:W,Breakdowns!$J:$J,"="&$A39,Breakdowns!$K:$K,"="&$B39)) -> 32116 | M39: =IF($P$1,SUMIFS(Breakdowns!Y:Y,Breakdowns!$J:$J,"="&$A39,Breakdowns!$K:$K,"="&$B39,Breakdowns!$AA:$AA,"=No"),SUMIFS(Breakdowns!Y:Y,Breakdowns!$J:$J,"="&$A39,Breakdowns!$K:$K,"="&$B39)) -> 32116
A40: LR | B40: DO | C40: Light Rail - Directly Operated | F40: =IF($P$1,SUMIFS(Breakdowns!L:L,Breakdowns!$J:$J,"="&$A40,Breakdowns!$K:$K,"="&$B40,Breakdowns!$AA:$AA,"=No"),SUMIFS(Breakdowns!L:L,Breakdowns!$J:$J,"="&$A40,Breakdowns!$K:$K,"="&$B40)) -> 1522 | G40: =IF($P$1,SUMIFS(Breakdowns!M:M,Breakdowns!$J:$J,"="&$A40,Breakdowns!$K:$K,"="&$B40,Breakdowns!$AA:$AA,"=No"),SUMIFS(Breakdowns!M:M,Breakdowns!$J:$J,"="&$A40,Breakdowns!$K:$K,"="&$B40)) -> 5965 | H40: =IF($P$1,SUMIFS(Breakdowns!O:O,Breakdowns!$J:$J,"="&$A40,Breakdowns!$K:$K,"="&$B40,Breakdowns!$AA:$AA,"=No"),SUMIFS(Breakdowns!O:O,Breakdowns!$J:$J,"="&$A40,Breakdowns!$K:$K,"="&$B40)) -> 8384 | I40: =IF($P$1,SUMIFS(Breakdowns!Q:Q,Breakdowns!$J:$J,"="&$A40,Breakdowns!$K:$K,"="&$B40,Breakdowns!$AA:$AA,"=No"),SUMIFS(Breakdowns!Q:Q,Breakdowns!$J:$J,"="&$A40,Breakdowns!$K:$K,"="&$B40)) -> 14349 | J40: =IF($P$1,SUMIFS(Breakdowns!S:S,Breakdowns!$J:$J,"="&$A40,Breakdowns!$K:$K,"="&$B40,Breakdowns!$AA:$AA,"=No"),SUMIFS(Breakdowns!S:S,Breakdowns!$J:$J,"="&$A40,Breakdowns!$K:$K,"="&$B40)) -> 108900391 | K40: =IF($P$1,SUMIFS(Breakdowns!U:U,Breakdowns!$J:$J,"="&$A40,Breakdowns!$K:$K,"="&$B40,Breakdowns!$AA:$AA,"=No"),SUMIFS(Breakdowns!U:U,Breakdowns!$J:$J,"="&$A40,Breakdowns!$K:$K,"="&$B40)) -> 106583745 | L40: =IF($P$1,SUMIFS(Breakdowns!W:W,Breakdowns!$J:$J,"="&$A40,Breakdowns!$K:$K,"="&$B40,Breakdowns!$AA:$AA,"=No"),SUMIFS(Breakdowns!W:W,Breakdowns!$J:$J,"="&$A40,Breakdowns!$K:$K,"="&$B40)) -> 52878465 | M40: =IF($P$1,SUMIFS(Breakdowns!Y:Y,Breakdowns!$J:$J,"="&$A40,Breakdowns!$K:$K,"="&$B40,Breakdowns!$AA:$AA,"=No"),SUMIFS(Breakdowns!Y:Y,Breakdowns!$J:$J,"="&$A40,Breakdowns!$K:$K,"="&$B40)) -> 51686023
A41: LR | B41: PT | C41: Light Rail - Purchased Transportation | F41: =IF($P$1,SUMIFS(Breakdowns!L:L,Breakdowns!$J:$J,"="&$A41,Breakdowns!$K:$K,"="&$B41,Breakdowns!$AA:$AA,"=No"),SUMIFS(Breakdowns!L:L,Breakdowns!$J:$J,"="&$A41,Breakdowns!$K:$K,"="&$B41)) -> 80 | G41: =IF($P$1,SUMIFS(Breakdowns!M:M,Breakdowns!$J:$J,"="&$A41,Breakdowns!$K:$K,"="&$B41,Breakdowns!$AA:$AA,"=No"),SUMIFS(Breakdowns!M:M,Breakdowns!$J:$J,"="&$A41,Breakdowns!$K:$K,"="&$B41)) -> 119 | H41: =IF($P$1,SUMIFS(Breakdowns!O:O,Breakdowns!$J:$J,"="&$A41,Breakdowns!$K:$K,"="&$B41,Breakdowns!$AA:$AA,"=No"),SUMIFS(Breakdowns!O:O,Breakdowns!$J:$J,"="&$A41,Breakdowns!$K:$K,"="&$B41)) -> 158 | I41: =IF($P$1,SUMIFS(Breakdowns!Q:Q,Breakdowns!$J:$J,"="&$A41,Breakdowns!$K:$K,"="&$B41,Breakdowns!$AA:$AA,"=No"),SUMIFS(Breakdowns!Q:Q,Breakdowns!$J:$J,"="&$A41,Breakdowns!$K:$K,"="&$B41)) -> 277 | J41: =IF($P$1,SUMIFS(Breakdowns!S:S,Breakdowns!$J:$J,"="&$A41,Breakdowns!$K:$K,"="&$B41,Breakdowns!$AA:$AA,"=No"),SUMIFS(Breakdowns!S:S,Breakdowns!$J:$J,"="&$A41,Breakdowns!$K:$K,"="&$B41)) -> 4952472 | K41: =IF($P$1,SUMIFS(Breakdowns!U:U,Breakdowns!$J:$J,"="&$A41,Breakdowns!$K:$K,"="&$B41,Breakdowns!$AA:$AA,"=No"),SUMIFS(Breakdowns!U:U,Breakdowns!$J:$J,"="&$A41,Breakdowns!$K:$K,"="&$B41)) -> 4863301 | L41: =IF($P$1,SUMIFS(Breakdowns!W:W,Breakdowns!$J:$J,"="&$A41,Breakdowns!$K:$K,"="&$B41,Breakdowns!$AA:$AA,"=No"),SUMIFS(Breakdowns!W:W,Breakdowns!$J:$J,"="&$A41,Breakdowns!$K:$K,"="&$B41)) -> 2764715 | M41: =IF($P$1,SUMIFS(Breakdowns!Y:Y,Breakdowns!$J:$J,"="&$A41,Breakdowns!$K:$K,"="&$B41,Breakdowns!$AA:$AA,"=No"),SUMIFS(Breakdowns!Y:Y,Breakdowns!$J:$J,"="&$A41,Breakdowns!$K:$K,"="&$B41)) -> 2718204
A42: MG | B42: DO | C42: Monorail/Automated Guideway - Directly Operated | F42: =IF($P$1,SUMIFS(Breakdowns!L:L,Breakdowns!$J:$J,"="&$A42,Breakdowns!$K:$K,"="&$B42,Breakdowns!$AA:$AA,"=No"),SUMIFS(Breakdowns!L:L,Breakdowns!$J:$J,"="&$A42,Breakdowns!$K:$K,"="&$B42)) -> 110 | G42: =IF($P$1,SUMIFS(Breakdowns!M:M,Breakdowns!$J:$J,"="&$A42,Breakdowns!$K:$K,"="&$B42,Breakdowns!$AA:$AA,"=No"),SUMIFS(Breakdowns!M:M,Breakdowns!$J:$J,"="&$A42,Breakdowns!$K:$K,"="&$B42)) -> 473 | H42: =IF($P$1,SUMIFS(Breakdowns!O:O,Breakdowns!$J:$J,"="&$A42,Breakdowns!$K:$K,"="&$B42,Breakdowns!$AA:$AA,"=No"),SUMIFS(Breakdowns!O:O,Breakdowns!$J:$J,"="&$A42,Breakdowns!$K:$K,"="&$B42)) -> 943 | I42: =IF($P$1,SUMIFS(Breakdowns!Q:Q,Breakdowns!$J:$J,"="&$A42,Breakdowns!$K:$K,"="&$B42,Breakdowns!$AA:$AA,"=No"),SUMIFS(Breakdowns!Q:Q,Breakdowns!$J:$J,"="&$A42,Breakdowns!$K:$K,"="&$B42)) -> 1416 | J42: =IF($P$1,SUMIFS(Breakdowns!S:S,Breakdowns!$J:$J,"="&$A42,Breakdowns!$K:$K,"="&$B42,Breakdowns!$AA:$AA,"=No"),SUMIFS(Breakdowns!S:S,Breakdowns!$J:$J,"="&$A42,Breakdowns!$K:$K,"="&$B42)) -> 4490240 | K42: =IF($P$1,SUMIFS(Breakdowns!U:U,Breakdowns!$J:$J,"="&$A42,Breakdowns!$K:$K,"="&$B42,Breakdowns!$AA:$AA,"=No"),SUMIFS(Breakdowns!U:U,Breakdowns!$J:$J,"="&$A42,Breakdowns!$K:$K,"="&$B42)) -> 4434322 | L42: =IF($P$1,SUMIFS(Breakdowns!W:W,Breakdowns!$J:$J,"="&$A42,Breakdowns!$K:$K,"="&$B42,Breakdowns!$AA:$AA,"=No"),SUMIFS(Breakdowns!W:W,Breakdowns!$J:$J,"="&$A42,Breakdowns!$K:$K,"="&$B42)) -> 2440932 | M42: =IF($P$1,SUMIFS(Breakdowns!Y:Y,Breakdowns!$J:$J,"="&$A42,Breakdowns!$K:$K,"="&$B42,Breakdowns!$AA:$AA,"=No"),SUMIFS(Breakdowns!Y:Y,Breakdowns!$J:$J,"="&$A42,Breakdowns!$K:$K,"="&$B42)) -> 2405330
A43: MG | B43: PT | C43: Monorail/Automated Guideway - Purchased Transportation | F43: =IF($P$1,SUMIFS(Breakdowns!L:L,Breakdowns!$J:$J,"="&$A43,Breakdowns!$K:$K,"="&$B43,Breakdowns!$AA:$AA,"=No"),SUMIFS(Breakdowns!L:L,Breakdowns!$J:$J,"="&$A43,Breakdowns!$K:$K,"="&$B43)) -> 12 | G43: =IF($P$1,SUMIFS(Breakdowns!M:M,Breakdowns!$J:$J,"="&$A43,Breakdowns!$K:$K,"="&$B43,Breakdowns!$AA:$AA,"=No"),SUMIFS(Breakdowns!M:M,Breakdowns!$J:$J,"="&$A43,Breakdowns!$K:$K,"="&$B43)) -> 4 | H43: =IF($P$1,SUMIFS(Breakdowns!O:O,Breakdowns!$J:$J,"="&$A43,Breakdowns!$K:$K,"="&$B43,Breakdowns!$AA:$AA,"=No"),SUMIFS(Breakdowns!O:O,Breakdowns!$J:$J,"="&$A43,Breakdowns!$K:$K,"="&$B43)) -> 39 | I43: =IF($P$1,SUMIFS(Breakdowns!Q:Q,Breakdowns!$J:$J,"="&$A43,Breakdowns!$K:$K,"="&$B43,Breakdowns!$AA:$AA,"=No"),SUMIFS(Breakdowns!Q:Q,Breakdowns!$J:$J,"="&$A43,Breakdowns!$K:$K,"="&$B43)) -> 43 | J43: =IF($P$1,SUMIFS(Breakdowns!S:S,Breakdowns!$J:$J,"="&$A43,Breakdowns!$K:$K,"="&$B43,Breakdowns!$AA:$AA,"=No"),SUMIFS(Breakdowns!S:S,Breakdowns!$J:$J,"="&$A43,Breakdowns!$K:$K,"="&$B43)) -> 646393 | K43: =IF($P$1,SUMIFS(Breakdowns!U:U,Breakdowns!$J:$J,"="&$A43,Breakdowns!$K:$K,"="&$B43,Breakdowns!$AA:$AA,"=No"),SUMIFS(Breakdowns!U:U,Breakdowns!$J:$J,"="&$A43,Breakdowns!$K:$K,"="&$B43)) -> 644052 | L43: =IF($P$1,SUMIFS(Breakdowns!W:W,Breakdowns!$J:$J,"="&$A43,Breakdowns!$K:$K,"="&$B43,Breakdowns!$AA:$AA,"=No"),SUMIFS(Breakdowns!W:W,Breakdowns!$J:$J,"="&$A43,Breakdowns!$K:$K,"="&$B43)) -> 474055 | M43: =IF($P$1,SUMIFS(Breakdowns!Y:Y,Breakdowns!$J:$J,"="&$A43,Breakdowns!$K:$K,"="&$B43,Breakdowns!$AA:$AA,"=No"),SUMIFS(Breakdowns!Y:Y,Breakdowns!$J:$J,"="&$A43,Breakdowns!$K:$K,"="&$B43)) -> 471714
A44: SR | B44: DO | C44: Street Car Rail - Directly Operated | F44: =IF($P$1,SUMIFS(Breakdowns!L:L,Breakdowns!$J:$J,"="&$A44,Breakdowns!$K:$K,"="&$B44,Breakdowns!$AA:$AA,"=No"),SUMIFS(Breakdowns!L:L,Breakdowns!$J:$J,"="&$A44,Breakdowns!$K:$K,"="&$B44)) -> 180 | G44: =IF($P$1,SUMIFS(Breakdowns!M:M,Breakdowns!$J:$J,"="&$A44,Breakdowns!$K:$K,"="&$B44,Breakdowns!$AA:$AA,"=No"),SUMIFS(Breakdowns!M:M,Breakdowns!$J:$J,"="&$A44,Breakdowns!$K:$K,"="&$B44)) -> 647 | H44: =IF($P$1,SUMIFS(Breakdowns!O:O,Breakdowns!$J:$J,"="&$A44,Breakdowns!$K:$K,"="&$B44,Breakdowns!$AA:$AA,"=No"),SUMIFS(Breakdowns!O:O,Breakdowns!$J:$J,"="&$A44,Breakdowns!$K:$K,"="&$B44)) -> 1797 | I44: =IF($P$1,SUMIFS(Breakdowns!Q:Q,Breakdowns!$J:$J,"="&$A44,Breakdowns!$K:$K,"="&$B44,Breakdowns!$AA:$AA,"=No"),SUMIFS(Breakdowns!Q:Q,Breakdowns!$J:$J,"="&$A44,Breakdowns!$K:$K,"="&$B44)) -> 2444 | J44: =IF($P$1,SUMIFS(Breakdowns!S:S,Breakdowns!$J:$J,"="&$A44,Breakdowns!$K:$K,"="&$B44,Breakdowns!$AA:$AA,"=No"),SUMIFS(Breakdowns!S:S,Breakdowns!$J:$J,"="&$A44,Breakdowns!$K:$K,"="&$B44)) -> 4782563 | K44: =IF($P$1,SUMIFS(Breakdowns!U:U,Breakdowns!$J:$J,"="&$A44,Breakdowns!$K:$K,"="&$B44,Breakdowns!$AA:$AA,"=No"),SUMIFS(Breakdowns!U:U,Breakdowns!$J:$J,"="&$A44,Breakdowns!$K:$K,"="&$B44)) -> 4633061 | L44: =IF($P$1,SUMIFS(Breakdowns!W:W,Breakdowns!$J:$J,"="&$A44,Breakdowns!$K:$K,"="&$B44,Breakdowns!$AA:$AA,"=No"),SUMIFS(Breakdowns!W:W,Breakdowns!$J:$J,"="&$A44,Breakdowns!$K:$K,"="&$B44)) -> 4782563 | M44: =IF($P$1,SUMIFS(Breakdowns!Y:Y,Breakdowns!$J:$J,"="&$A44,Breakdowns!$K:$K,"="&$B44,Breakdowns!$AA:$AA,"=No"),SUMIFS(Breakdowns!Y:Y,Breakdowns!$J:$J,"="&$A44,Breakdowns!$K:$K,"="&$B44)) -> 4633061
A45: SR | B45: PT | C45: Street Car Rail - Purchased Transportation | F45: =IF($P$1,SUMIFS(Breakdowns!L:L,Breakdowns!$J:$J,"="&$A45,Breakdowns!$K:$K,"="&$B45,Breakdowns!$AA:$AA,"=No"),SUMIFS(Breakdowns!L:L,Breakdowns!$J:$J,"="&$A45,Breakdowns!$K:$K,"="&$B45)) -> 53 | G45: =IF($P$1,SUMIFS(Breakdowns!M:M,Breakdowns!$J:$J,"="&$A45,Breakdowns!$K:$K,"="&$B45,Breakdowns!$AA:$AA,"=No"),SUMIFS(Breakdowns!M:M,Breakdowns!$J:$J,"="&$A45,Breakdowns!$K:$K,"="&$B45)) -> 186 | H45: =IF($P$1,SUMIFS(Breakdowns!O:O,Breakdowns!$J:$J,"="&$A45,Breakdowns!$K:$K,"="&$B45,Breakdowns!$AA:$AA,"=No"),SUMIFS(Breakdowns!O:O,Breakdowns!$J:$J,"="&$A45,Breakdowns!$K:$K,"="&$B45)) -> 205 | I45: =IF($P$1,SUMIFS(Breakdowns!Q:Q,Breakdowns!$J:$J,"="&$A45,Breakdowns!$K:$K,"="&$B45,Breakdowns!$AA:$AA,"=No"),SUMIFS(Breakdowns!Q:Q,Breakdowns!$J:$J,"="&$A45,Breakdowns!$K:$K,"="&$B45)) -> 391 | J45: =IF($P$1,SUMIFS(Breakdowns!S:S,Breakdowns!$J:$J,"="&$A45,Breakdowns!$K:$K,"="&$B45,Breakdowns!$AA:$AA,"=No"),SUMIFS(Breakdowns!S:S,Breakdowns!$J:$J,"="&$A45,Breakdowns!$K:$K,"="&$B45)) -> 1697667 | K45: =IF($P$1,SUMIFS(Breakdowns!U:U,Breakdowns!$J:$J,"="&$A45,Breakdowns!$K:$K,"="&$B45,Breakdowns!$AA:$AA,"=No"),SUMIFS(Breakdowns!U:U,Breakdowns!$J:$J,"="&$A45,Breakdowns!$K:$K,"="&$B45)) -> 1685395 | L45: =IF($P$1,SUMIFS(Breakdowns!W:W,Breakdowns!$J:$J,"="&$A45,Breakdowns!$K:$K,"="&$B45,Breakdowns!$AA:$AA,"=No"),SUMIFS(Breakdowns!W:W,Breakdowns!$J:$J,"="&$A45,Breakdowns!$K:$K,"="&$B45)) -> 1697667 | M45: =IF($P$1,SUMIFS(Breakdowns!Y:Y,Breakdowns!$J:$J,"="&$A45,Breakdowns!$K:$K,"="&$B45,Breakdowns!$AA:$AA,"=No"),SUMIFS(Breakdowns!Y:Y,Breakdowns!$J:$J,"="&$A45,Breakdowns!$K:$K,"="&$B45)) -> 1685395
A46: TB | B46: DO | C46: Trolleybus - Directly Operated | F46: =IF($P$1,SUMIFS(Breakdowns!L:L,Breakdowns!$J:$J,"="&$A46,Breakdowns!$K:$K,"="&$B46,Breakdowns!$AA:$AA,"=No"),SUMIFS(Breakdowns!L:L,Breakdowns!$J:$J,"="&$A46,Breakdowns!$K:$K,"="&$B46)) -> 412 | G46: =IF($P$1,SUMIFS(Breakdowns!M:M,Breakdowns!$J:$J,"="&$A46,Breakdowns!$K:$K,"="&$B46,Breakdowns!$AA:$AA,"=No"),SUMIFS(Breakdowns!M:M,Breakdowns!$J:$J,"="&$A46,Breakdowns!$K:$K,"="&$B46)) -> 5425 | H46: =IF($P$1,SUMIFS(Breakdowns!O:O,Breakdowns!$J:$J,"="&$A46,Breakdowns!$K:$K,"="&$B46,Breakdowns!$AA:$AA,"=No"),SUMIFS(Breakdowns!O:O,Breakdowns!$J:$J,"="&$A46,Breakdowns!$K:$K,"="&$B46)) -> 2461 | I46: =IF($P$1,SUMIFS(Breakdowns!Q:Q,Breakdowns!$J:$J,"="&$A46,Breakdowns!$K:$K,"="&$B46,Breakdowns!$AA:$AA,"=No"),SUMIFS(Breakdowns!Q:Q,Breakdowns!$J:$J,"="&$A46,Breakdowns!$K:$K,"="&$B46)) -> 7886 | J46: =IF($P$1,SUMIFS(Breakdowns!S:S,Breakdowns!$J:$J,"="&$A46,Breakdowns!$K:$K,"="&$B46,Breakdowns!$AA:$AA,"=No"),SUMIFS(Breakdowns!S:S,Breakdowns!$J:$J,"="&$A46,Breakdowns!$K:$K,"="&$B46)) -> 11771818 | K46: =IF($P$1,SUMIFS(Breakdowns!U:U,Breakdowns!$J:$J,"="&$A46,Breakdowns!$K:$K,"="&$B46,Breakdowns!$AA:$AA,"=No"),SUMIFS(Breakdowns!U:U,Breakdowns!$J:$J,"="&$A46,Breakdowns!$K:$K,"="&$B46)) -> 11308748 | L46: =IF($P$1,SUMIFS(Breakdowns!W:W,Breakdowns!$J:$J,"="&$A46,Breakdowns!$K:$K,"="&$B46,Breakdowns!$AA:$AA,"=No"),SUMIFS(Breakdowns!W:W,Breakdowns!$J:$J,"="&$A46,Breakdowns!$K:$K,"="&$B46)) -> 0 | M46: =IF($P$1,SUMIFS(Breakdowns!Y:Y,Breakdowns!$J:$J,"="&$A46,Breakdowns!$K:$K,"="&$B46,Breakdowns!$AA:$AA,"=No"),SUMIFS(Breakdowns!Y:Y,Breakdowns!$J:$J,"="&$A46,Breakdowns!$K:$K,"="&$B46)) -> 0
A47: VP | B47: DO | C47: Vanpool - Directly Operated | F47: =IF($P$1,SUMIFS(Breakdowns!L:L,Breakdowns!$J:$J,"="&$A47,Breakdowns!$K:$K,"="&$B47,Breakdowns!$AA:$AA,"=No"),SUMIFS(Breakdowns!L:L,Breakdowns!$J:$J,"="&$A47,Breakdowns!$K:$K,"="&$B47)) -> 6987 | G47: =IF($P$1,SUMIFS(Breakdowns!M:M,Breakdowns!$J:$J,"="&$A47,Breakdowns!$K:$K,"="&$B47,Breakdowns!$AA:$AA,"=No"),SUMIFS(Breakdowns!M:M,Breakdowns!$J:$J,"="&$A47,Breakdowns!$K:$K,"="&$B47)) -> 332 | H47: =IF($P$1,SUMIFS(Breakdowns!O:O,Breakdowns!$J:$J,"="&$A47,Breakdowns!$K:$K,"="&$B47,Breakdowns!$AA:$AA,"=No"),SUMIFS(Breakdowns!O:O,Breakdowns!$J:$J,"="&$A47,Breakdowns!$K:$K,"="&$B47)) -> 256 | I47: =IF($P$1,SUMIFS(Breakdowns!Q:Q,Breakdowns!$J:$J,"="&$A47,Breakdowns!$K:$K,"="&$B47,Breakdowns!$AA:$AA,"=No"),SUMIFS(Breakdowns!Q:Q,Breakdowns!$J:$J,"="&$A47,Breakdowns!$K:$K,"="&$B47)) -> 588 | J47: =IF($P$1,SUMIFS(Breakdowns!S:S,Breakdowns!$J:$J,"="&$A47,Breakdowns!$K:$K,"="&$B47,Breakdowns!$AA:$AA,"=No"),SUMIFS(Breakdowns!S:S,Breakdowns!$J:$J,"="&$A47,Breakdowns!$K:$K,"="&$B47)) -> 104590409 | K47: =IF($P$1,SUMIFS(Breakdowns!U:U,Breakdowns!$J:$J,"="&$A47,Breakdowns!$K:$K,"="&$B47,Breakdowns!$AA:$AA,"=No"),SUMIFS(Breakdowns!U:U,Breakdowns!$J:$J,"="&$A47,Breakdowns!$K:$K,"="&$B47)) -> 104590409 | L47: =IF($P$1,SUMIFS(Breakdowns!W:W,Breakdowns!$J:$J,"="&$A47,Breakdowns!$K:$K,"="&$B47,Breakdowns!$AA:$AA,"=No"),SUMIFS(Breakdowns!W:W,Breakdowns!$J:$J,"="&$A47,Breakdowns!$K:$K,"="&$B47)) -> 0 | M47: =IF($P$1,SUMIFS(Breakdowns!Y:Y,Breakdowns!$J:$J,"="&$A47,Breakdowns!$K:$K,"="&$B47,Breakdowns!$AA:$AA,"=No"),SUMIFS(Breakdowns!Y:Y,Breakdowns!$J:$J,"="&$A47,Breakdowns!$K:$K,"="&$B47)) -> 0
A48: VP | B48: PT | C48: Vanpool - Purchased Transportation | F48: =IF($P$1,SUMIFS(Breakdowns!L:L,Breakdowns!$J:$J,"="&$A48,Breakdowns!$K:$K,"="&$B48,Breakdowns!$AA:$AA,"=No"),SUMIFS(Breakdowns!L:L,Breakdowns!$J:$J,"="&$A48,Breakdowns!$K:$K,"="&$B48)) -> 5923 | G48: =IF($P$1,SUMIFS(Breakdowns!M:M,Breakdowns!$J:$J,"="&$A48,Breakdowns!$K:$K,"="&$B48,Breakdowns!$AA:$AA,"=No"),SUMIFS(Breakdowns!M:M,Breakdowns!$J:$J,"="&$A48,Breakdowns!$K:$K,"="&$B48)) -> 92 | H48: =IF($P$1,SUMIFS(Breakdowns!O:O,Breakdowns!$J:$J,"="&$A48,Breakdowns!$K:$K,"="&$B48,Breakdowns!$AA:$AA,"=No"),SUMIFS(Breakdowns!O:O,Breakdowns!$J:$J,"="&$A48,Breakdowns!$K:$K,"="&$B48)) -> 294 | I48: =IF($P$1,SUMIFS(Breakdowns!Q:Q,Breakdowns!$J:$J,"="&$A48,Breakdowns!$K:$K,"="&$B48,Breakdowns!$AA:$AA,"=No"),SUMIFS(Breakdowns!Q:Q,Breakdowns!$J:$J,"="&$A48,Breakdowns!$K:$K,"="&$B48)) -> 386 | J48: =IF($P$1,SUMIFS(Breakdowns!S:S,Breakdowns!$J:$J,"="&$A48,Breakdowns!$K:$K,"="&$B48,Breakdowns!$AA:$AA,"=No"),SUMIFS(Breakdowns!S:S,Breakdowns!$J:$J,"="&$A48,Breakdowns!$K:$K,"="&$B48)) -> 122036049 | K48: =IF($P$1,SUMIFS(Breakdowns!U:U,Breakdowns!$J:$J,"="&$A48,Breakdowns!$K:$K,"="&$B48,Breakdowns!$AA:$AA,"=No"),SUMIFS(Breakdowns!U:U,Breakdowns!$J:$J,"="&$A48,Breakdowns!$K:$K,"="&$B48)) -> 122036049 | L48: =IF($P$1,SUMIFS(Breakdowns!W:W,Breakdowns!$J:$J,"="&$A48,Breakdowns!$K:$K,"="&$B48,Breakdowns!$AA:$AA,"=No"),SUMIFS(Breakdowns!W:W,Breakdowns!$J:$J,"="&$A48,Breakdowns!$K:$K,"="&$B48)) -> 0 | M48: =IF($P$1,SUMIFS(Breakdowns!Y:Y,Breakdowns!$J:$J,"="&$A48,Breakdowns!$K:$K,"="&$B48,Breakdowns!$AA:$AA,"=No"),SUMIFS(Breakdowns!Y:Y,Breakdowns!$J:$J,"="&$A48,Breakdowns!$K:$K,"="&$B48)) -> 0
A50: By Agency Size (Vehicles)
D51: edit bins below | E51: Column1 | F51: VOMS | G51: Major Mechanical Failures | H51: Other Mechanical Failures | I51: Total Mechanical Failures | J51: Vehicle/Passenger Car Miles | K51: Vehicle/Passenger Car Revenue Miles | L51: Train Miles | M51: Train Revenue Miles | U51: ="under "&FIXED(B52,0,0) -> under 10 | V51: =IFERROR($K52/$G52,"") -> 18922.1992
A52: under | B52: =D52 -> 10 | D52: 10 | E52: =A52&" "&FIXED(B52,0,0) -> under 10 | F52: =IF($P$1,SUMIFS(Breakdowns!L:L,Breakdowns!$I:$I,"<"&$D52,Breakdowns!$AA:$AA,"=No"),SUMIFS(Breakdowns!L:L,Breakdowns!$I:$I,"<"&$D52)) -> 145 | G52: =IF($P$1,SUMIFS(Breakdowns!M:M,Breakdowns!$I:$I,"<"&$D52,Breakdowns!$AA:$AA,"=No"),SUMIFS(Breakdowns!M:M,Breakdowns!$I:$I,"<"&$D52)) -> 251 | H52: =IF($P$1,SUMIFS(Breakdowns!O:O,Breakdowns!$I:$I,"<"&$D52,Breakdowns!$AA:$AA,"=No"),SUMIFS(Breakdowns!O:O,Breakdowns!$I:$I,"<"&$D52)) -> 550 | I52: =IF($P$1,SUMIFS(Breakdowns!Q:Q,Breakdowns!$I:$I,"<"&$D52,Breakdowns!$AA:$AA,"=No"),SUMIFS(Breakdowns!Q:Q,Breakdowns!$I:$I,"<"&$D52)) -> 801 | J52: =IF($P$1,SUMIFS(Breakdowns!S:S,Breakdowns!$I:$I,"<"&$D52,Breakdowns!$AA:$AA,"=No"),SUMIFS(Breakdowns!S:S,Breakdowns!$I:$I,"<"&$D52)) -> 5070000 | K52: =IF($P$1,SUMIFS(Breakdowns!U:U,Breakdowns!$I:$I,"<"&$D52,Breakdowns!$AA:$AA,"=No"),SUMIFS(Breakdowns!U:U,Breakdowns!$I:$I,"<"&$D52)) -> 4749472 | L52: =IF($P$1,SUMIFS(Breakdowns!W:W,Breakdowns!$I:$I,"<"&$D52,Breakdowns!$AA:$AA,"=No"),SUMIFS(Breakdowns!W:W,Breakdowns!$I:$I,"<"&$D52)) -> 175103 | M52: =IF($P$1,SUMIFS(Breakdowns!Y:Y,Breakdowns!$I:$I,"<"&$D52,Breakdowns!$AA:$AA,"=No"),SUMIFS(Breakdowns!Y:Y,Breakdowns!$I:$I,"<"&$D52)) -> 173202 | U52: =IFERROR(IF(A53="over","over "&FIXED(B53,0,0),FIXED(B53,0,0)&" to "&FIXED(D53,0,0)),"") -> 10 to 25 | V52: =IFERROR($K53/$G53,"") -> 13422.26927
A53: =IF(D53<>"","between","over") -> between | B53: =D52 -> 10 | C53: =IF(D53<>"","and","") -> and | D53: 25 | E53: =IFERROR(IF(A53="between",A53&" "&FIXED(B53,0,0)&" "&C53&" "&FIXED(D53,0,0),A53&" "&FIXED(B53,0,0)),"invalid bin") -> between 10 and 25 | F53: =IF($P$1,IF($A53="between",SUMIFS(Breakdowns!L:L,Breakdowns!$I:$I,">="&$B53,Breakdowns!$I:$I,"<"&$D53,Breakdowns!$AA:$AA,"=No"),SUMIFS(Breakdowns!L:L,Breakdowns!$I:$I,">="&$B53,Breakdowns!$AA:$AA,"=No")),IF($A53="between",SUMIFS(Breakdowns!L:L,Breakdowns!$I:$I,">="&$B53,Breakdowns!$I:$I,"<"&$D53),SUMIFS(Breakdowns!L:L,Breakdowns!$I:$I,">="&$B53))) -> 1330 | G53: =IF($P$1,IF($A53="between",SUMIFS(Breakdowns!M:M,Breakdowns!$I:$I,">="&$B53,Breakdowns!$I:$I,"<"&$D53,Breakdowns!$AA:$AA,"=No"),SUMIFS(Breakdowns!M:M,Breakdowns!$I:$I,">="&$B53,Breakdowns!$AA:$AA,"=No")),IF($A53="between",SUMIFS(Breakdowns!M:M,Breakdowns!$I:$I,">="&$B53,Breakdowns!$I:$I,"<"&$D53),SUMIFS(Breakdowns!M:M,Breakdowns!$I:$I,">="&$B53))) -> 3710 | H53: =IF($P$1,IF($A53="between",SUMIFS(Breakdowns!O:O,Breakdowns!$I:$I,">="&$B53,Breakdowns!$I:$I,"<"&$D53,Breakdowns!$AA:$AA,"=No"),SUMIFS(Breakdowns!O:O,Breakdowns!$I:$I,">="&$B53,Breakdowns!$AA:$AA,"=No")),IF($A53="between",SUMIFS(Breakdowns!O:O,Breakdowns!$I:$I,">="&$B53,Breakdowns!$I:$I,"<"&$D53),SUMIFS(Breakdowns!O:O,Breakdowns!$I:$I,">="&$B53))) -> 6819 | I53: =IF($P$1,IF($A53="between",SUMIFS(Breakdowns!Q:Q,Breakdowns!$I:$I,">="&$B53,Breakdowns!$I:$I,"<"&$D53,Breakdowns!$AA:$AA,"=No"),SUMIFS(Breakdowns!Q:Q,Breakdowns!$I:$I,">="&$B53,Breakdowns!$AA:$AA,"=No")),IF($A53="between",SUMIFS(Breakdowns!Q:Q,Breakdowns!$I:$I,">="&$B53,Breakdowns!$I:$I,"<"&$D53),SUMIFS(Breakdowns!Q:Q,Breakdowns!$I:$I,">="&$B53))) -> 10529 | J53: =IF($P$1,IF($A53="between",SUMIFS(Breakdowns!S:S,Breakdowns!$I:$I,">="&$B53,Breakdowns!$I:$I,"<"&$D53,Breakdowns!$AA:$AA,"=No"),SUMIFS(Breakdowns!S:S,Breakdowns!$I:$I,">="&$B53,Breakdowns!$AA:$AA,"=No")),IF($A53="between",SUMIFS(Breakdowns!S:S,Breakdowns!$I:$I,">="&$B53,Breakdowns!$I:$I,"<"&$D53),SUMIFS(Breakdowns!S:S,Breakdowns!$I:$I,">="&$B53))) -> 53416989 | K53: =IF($P$1,IF($A53="between",SUMIFS(Breakdowns!U:U,Breakdowns!$I:$I,">="&$B53,Breakdowns!$I:$I,"<"&$D53,Breakdowns!$AA:$AA,"=No"),SUMIFS(Breakdowns!U:U,Breakdowns!$I:$I,">="&$B53,Breakdowns!$AA:$AA,"=No")),IF($A53="between",SUMIFS(Breakdowns!U:U,Breakdowns!$I:$I,">="&$B53,Breakdowns!$I:$I,"<"&$D53),SUMIFS(Breakdowns!U:U,Breakdowns!$I:$I,">="&$B53))) -> 49796619 | L53: =IF($P$1,IF($A53="between",SUMIFS(Breakdowns!W:W,Breakdowns!$I:$I,">="&$B53,Breakdowns!$I:$I,"<"&$D53,Breakdowns!$AA:$AA,"=No"),SUMIFS(Breakdowns!W:W,Breakdowns!$I:$I,">="&$B53,Breakdowns!$AA:$AA,"=No")),IF($A53="between",SUMIFS(Breakdowns!W:W,Breakdowns!$I:$I,">="&$B53,Breakdowns!$I:$I,"<"&$D53),SUMIFS(Breakdowns!W:W,Breakdowns!$I:$I,">="&$B53))) -> 1915515 | M53: =IF($P$1,IF($A53="between",SUMIFS(Breakdowns!Y:Y,Breakdowns!$I:$I,">="&$B53,Breakdowns!$I:$I,"<"&$D53,Breakdowns!$AA:$AA,"=No"),SUMIFS(Breakdowns!Y:Y,Breakdowns!$I:$I,">="&$B53,Breakdowns!$AA:$AA,"=No")),IF($A53="between",SUMIFS(Breakdowns!Y:Y,Breakdowns!$I:$I,">="&$B53,Breakdowns!$I:$I,"<"&$D53),SUMIFS(Breakdowns!Y:Y,Breakdowns!$I:$I,">="&$B53))) -> 1882857 | U53: =IFERROR(IF(A54="over","over "&FIXED(B54,0,0),FIXED(B54,0,0)&" to "&FIXED(D54,0,0)),"") -> 25 to 50 | V53: 17533.34427
A54: =IF(OR(A53="over",A53=""),"",IF(D54="","over","between")) -> between | B54: =IF(D53="","",D53) -> 25 | C54: =IF(D54<>"","and","") -> and | D54: 50 | E54: =IFERROR(IF(A54="between",A54&" "&FIXED(B54,0,0)&" "&C54&" "&FIXED(D54,0,0),A54&" "&FIXED(B54,0,0)),"invalid bin") -> between 25 and 50 | F54: =IF($P$1,IF($A54="","",IF($A54="between",SUMIFS(Breakdowns!L:L,Breakdowns!$I:$I,">="&$B54,Breakdowns!$I:$I,"<"&$D54,Breakdowns!$AA:$AA,"=No"),SUMIFS(Breakdowns!L:L,Breakdowns!$I:$I,">="&$B54,Breakdowns!$AA:$AA,"=No"))),IF($A54="","",IF($A54="between",SUMIFS(Breakdowns!L:L,Breakdowns!$I:$I,">="&$B54,Breakdowns!$I:$I,"<"&$D54),SUMIFS(Breakdowns!L:L,Breakdowns!$I:$I,">="&$B54)))) -> 5152 | G54: =IF($P$1,IF($A54="","",IF($A54="between",SUMIFS(Breakdowns!M:M,Breakdowns!$I:$I,">="&$B54,Breakdowns!$I:$I,"<"&$D54,Breakdowns!$AA:$AA,"=No"),SUMIFS(Breakdowns!M:M,Breakdowns!$I:$I,">="&$B54,Breakdowns!$AA:$AA,"=No"))),IF($A54="","",IF($A54="between",SUMIFS(Breakdowns!M:M,Breakdowns!$I:$I,">="&$B54,Breakdowns!$I:$I,"<"&$D54),SUMIFS(Breakdowns!M:M,Breakdowns!$I:$I,">="&$B54)))) -> 10184 | H54: =IF($P$1,IF($A54="","",IF($A54="between",SUMIFS(Breakdowns!O:O,Breakdowns!$I:$I,">="&$B54,Breakdowns!$I:$I,"<"&$D54,Breakdowns!$AA:$AA,"=No"),SUMIFS(Breakdowns!O:O,Breakdowns!$I:$I,">="&$B54,Breakdowns!$AA:$AA,"=No"))),IF($A54="","",IF($A54="between",SUMIFS(Breakdowns!O:O,Breakdowns!$I:$I,">="&$B54,Breakdowns!$I:$I,"<"&$D54),SUMIFS(Breakdowns!O:O,Breakdowns!$I:$I,">="&$B54)))) -> 13289 | I54: =IF($P$1,IF($A54="","",IF($A54="between",SUMIFS(Breakdowns!Q:Q,Breakdowns!$I:$I,">="&$B54,Breakdowns!$I:$I,"<"&$D54,Breakdowns!$AA:$AA,"=No"),SUMIFS(Breakdowns!Q:Q,Breakdowns!$I:$I,">="&$B54,Breakdowns!$AA:$AA,"=No"))),IF($A54="","",IF($A54="between",SUMIFS(Breakdowns!Q:Q,Breakdowns!$I:$I,">="&$B54,Breakdowns!$I:$I,"<"&$D54),SUMIFS(Breakdowns!Q:Q,Breakdowns!$I:$I,">="&$B54)))) -> 23473 | J54: =IF($P$1,IF($A54="","",IF($A54="between",SUMIFS(Breakdowns!S:S,Breakdowns!$I:$I,">="&$B54,Breakdowns!$I:$I,"<"&$D54,Breakdowns!$AA:$AA,"=No"),SUMIFS(Breakdowns!S:S,Breakdowns!$I:$I,">="&$B54,Breakdowns!$AA:$AA,"=No"))),IF($A54="","",IF($A54="between",SUMIFS(Breakdowns!S:S,Breakdowns!$I:$I,">="&$B54,Breakdowns!$I:$I,"<"&$D54),SUMIFS(Breakdowns!S:S,Breakdowns!$I:$I,">="&$B54)))) -> 198287390 | K54: =IF($P$1,IF($A54="","",IF($A54="between",SUMIFS(Breakdowns!U:U,Breakdowns!$I:$I,">="&$B54,Breakdowns!$I:$I,"<"&$D54,Breakdowns!$AA:$AA,"=No"),SUMIFS(Breakdowns!U:U,Breakdowns!$I:$I,">="&$B54,Breakdowns!$AA:$AA,"=No"))),IF($A54="","",IF($A54="between",SUMIFS(Breakdowns!U:U,Breakdowns!$I:$I,">="&$B54,Breakdowns!$I:$I,"<"&$D54),SUMIFS(Breakdowns!U:U,Breakdowns!$I:$I,">="&$B54)))) -> 178559578 | L54: =IF($P$1,IF($A54="","",IF($A54="between",SUMIFS(Breakdowns!W:W,Breakdowns!$I:$I,">="&$B54,Breakdowns!$I:$I,"<"&$D54,Breakdowns!$AA:$AA,"=No"),SUMIFS(Breakdowns!W:W,Breakdowns!$I:$I,">="&$B54,Breakdowns!$AA:$AA,"=No"))),IF($A54="","",IF($A54="between",SUMIFS(Breakdowns!W:W,Breakdowns!$I:$I,">="&$B54,Breakdowns!$I:$I,"<"&$D54),SUMIFS(Breakdowns!W:W,Breakdowns!$I:$I,">="&$B54)))) -> 4696636 | M54: =IF($P$1,IF($A54="","",IF($A54="between",SUMIFS(Breakdowns!Y:Y,Breakdowns!$I:$I,">="&$B54,Breakdowns!$I:$I,"<"&$D54,Breakdowns!$AA:$AA,"=No"),SUMIFS(Breakdowns!Y:Y,Breakdowns!$I:$I,">="&$B54,Breakdowns!$AA:$AA,"=No"))),IF($A54="","",IF($A54="between",SUMIFS(Breakdowns!Y:Y,Breakdowns!$I:$I,">="&$B54,Breakdowns!$I:$I,"<"&$D54),SUMIFS(Breakdowns!Y:Y,Breakdowns!$I:$I,">="&$B54)))) -> 4492214 | U54: 50 to 100 | V54: 17292.63804
A55: between | B55: 50 | C55: =IF(D55<>"","and","") -> and | D55: 100 | E55: between 50 and 100 | F55: =IF($P$1,IF($A55="","",IF($A55="between",SUMIFS(Breakdowns!L:L,Breakdowns!$I:$I,">="&$B55,Breakdowns!$I:$I,"<"&$D55,Breakdowns!$AA:$AA,"=No"),SUMIFS(Breakdowns!L:L,Breakdowns!$I:$I,">="&$B55,Breakdowns!$AA:$AA,"=No"))),IF($A55="","",IF($A55="between",SUMIFS(Breakdowns!L:L,Breakdowns!$I:$I,">="&$B55,Breakdowns!$I:$I,"<"&$D55),SUMIFS(Breakdowns!L:L,Breakdowns!$I:$I,">="&$B55)))) -> 8482 | G55: =IF($P$1,IF($A55="","",IF($A55="between",SUMIFS(Breakdowns!M:M,Breakdowns!$I:$I,">="&$B55,Breakdowns!$I:$I,"<"&$D55,Breakdowns!$AA:$AA,"=No"),SUMIFS(Breakdowns!M:M,Breakdowns!$I:$I,">="&$B55,Breakdowns!$AA:$AA,"=No"))),IF($A55="","",IF($A55="between",SUMIFS(Breakdowns!M:M,Breakdowns!$I:$I,">="&$B55,Breakdowns!$I:$I,"<"&$D55),SUMIFS(Breakdowns!M:M,Breakdowns!$I:$I,">="&$B55)))) -> 16115 | H55: =IF($P$1,IF($A55="","",IF($A55="between",SUMIFS(Breakdowns!O:O,Breakdowns!$I:$I,">="&$B55,Breakdowns!$I:$I,"<"&$D55,Breakdowns!$AA:$AA,"=No"),SUMIFS(Breakdowns!O:O,Breakdowns!$I:$I,">="&$B55,Breakdowns!$AA:$AA,"=No"))),IF($A55="","",IF($A55="between",SUMIFS(Breakdowns!O:O,Breakdowns!$I:$I,">="&$B55,Breakdowns!$I:$I,"<"&$D55),SUMIFS(Breakdowns!O:O,Breakdowns!$I:$I,">="&$B55)))) -> 23713 | I55: =IF($P$1,IF($A55="","",IF($A55="between",SUMIFS(Breakdowns!Q:Q,Breakdowns!$I:$I,">="&$B55,Breakdowns!$I:$I,"<"&$D55,Breakdowns!$AA:$AA,"=No"),SUMIFS(Breakdowns!Q:Q,Breakdowns!$I:$I,">="&$B55,Breakdowns!$AA:$AA,"=No"))),IF($A55="","",IF($A55="between",SUMIFS(Breakdowns!Q:Q,Breakdowns!$I:$I,">="&$B55,Breakdowns!$I:$I,"<"&$D55),SUMIFS(Breakdowns!Q:Q,Breakdowns!$I:$I,">="&$B55)))) -> 39828 | J55: =IF($P$1,IF($A55="","",IF($A55="between",SUMIFS(Breakdowns!S:S,Breakdowns!$I:$I,">="&$B55,Breakdowns!$I:$I,"<"&$D55,Breakdowns!$AA:$AA,"=No"),SUMIFS(Breakdowns!S:S,Breakdowns!$I:$I,">="&$B55,Breakdowns!$AA:$AA,"=No"))),IF($A55="","",IF($A55="between",SUMIFS(Breakdowns!S:S,Breakdowns!$I:$I,">="&$B55,Breakdowns!$I:$I,"<"&$D55),SUMIFS(Breakdowns!S:S,Breakdowns!$I:$I,">="&$B55)))) -> 310601257 | K55: =IF($P$1,IF($A55="","",IF($A55="between",SUMIFS(Breakdowns!U:U,Breakdowns!$I:$I,">="&$B55,Breakdowns!$I:$I,"<"&$D55,Breakdowns!$AA:$AA,"=No"),SUMIFS(Breakdowns!U:U,Breakdowns!$I:$I,">="&$B55,Breakdowns!$AA:$AA,"=No"))),IF($A55="","",IF($A55="between",SUMIFS(Breakdowns!U:U,Breakdowns!$I:$I,">="&$B55,Breakdowns!$I:$I,"<"&$D55),SUMIFS(Breakdowns!U:U,Breakdowns!$I:$I,">="&$B55)))) -> 278670862 | L55: =IF($P$1,IF($A55="","",IF($A55="between",SUMIFS(Breakdowns!W:W,Breakdowns!$I:$I,">="&$B55,Breakdowns!$I:$I,"<"&$D55,Breakdowns!$AA:$AA,"=No"),SUMIFS(Breakdowns!W:W,Breakdowns!$I:$I,">="&$B55,Breakdowns!$AA:$AA,"=No"))),IF($A55="","",IF($A55="between",SUMIFS(Breakdowns!W:W,Breakdowns!$I:$I,">="&$B55,Breakdowns!$I:$I,"<"&$D55),SUMIFS(Breakdowns!W:W,Breakdowns!$I:$I,">="&$B55)))) -> 4741498 | M55: =IF($P$1,IF($A55="","",IF($A55="between",SUMIFS(Breakdowns!Y:Y,Breakdowns!$I:$I,">="&$B55,Breakdowns!$I:$I,"<"&$D55,Breakdowns!$AA:$AA,"=No"),SUMIFS(Breakdowns!Y:Y,Breakdowns!$I:$I,">="&$B55,Breakdowns!$AA:$AA,"=No"))),IF($A55="","",IF($A55="between",SUMIFS(Breakdowns!Y:Y,Breakdowns!$I:$I,">="&$B55,Breakdowns!$I:$I,"<"&$D55),SUMIFS(Breakdowns!Y:Y,Breakdowns!$I:$I,">="&$B55)))) -> 4576847 | U55: 100 to 250 | V55: 11845.79246
A56: between | B56: 100 | C56: and | D56: 250 | E56: between 100 and 250 | F56: =IF($P$1,IF($A56="","",IF($A56="between",SUMIFS(Breakdowns!L:L,Breakdowns!$I:$I,">="&$B56,Breakdowns!$I:$I,"<"&$D56,Breakdowns!$AA:$AA,"=No"),SUMIFS(Breakdowns!L:L,Breakdowns!$I:$I,">="&$B56,Breakdowns!$AA:$AA,"=No"))),IF($A56="","",IF($A56="between",SUMIFS(Breakdowns!L:L,Breakdowns!$I:$I,">="&$B56,Breakdowns!$I:$I,"<"&$D56),SUMIFS(Breakdowns!L:L,Breakdowns!$I:$I,">="&$B56)))) -> 11376 | G56: =IF($P$1,IF($A56="","",IF($A56="between",SUMIFS(Breakdowns!M:M,Breakdowns!$I:$I,">="&$B56,Breakdowns!$I:$I,"<"&$D56,Breakdowns!$AA:$AA,"=No"),SUMIFS(Breakdowns!M:M,Breakdowns!$I:$I,">="&$B56,Breakdowns!$AA:$AA,"=No"))),IF($A56="","",IF($A56="between",SUMIFS(Breakdowns!M:M,Breakdowns!$I:$I,">="&$B56,Breakdowns!$I:$I,"<"&$D56),SUMIFS(Breakdowns!M:M,Breakdowns!$I:$I,">="&$B56)))) -> 33772 | H56: =IF($P$1,IF($A56="","",IF($A56="between",SUMIFS(Breakdowns!O:O,Breakdowns!$I:$I,">="&$B56,Breakdowns!$I:$I,"<"&$D56,Breakdowns!$AA:$AA,"=No"),SUMIFS(Breakdowns!O:O,Breakdowns!$I:$I,">="&$B56,Breakdowns!$AA:$AA,"=No"))),IF($A56="","",IF($A56="between",SUMIFS(Breakdowns!O:O,Breakdowns!$I:$I,">="&$B56,Breakdowns!$I:$I,"<"&$D56),SUMIFS(Breakdowns!O:O,Breakdowns!$I:$I,">="&$B56)))) -> 33347 | I56: =IF($P$1,IF($A56="","",IF($A56="between",SUMIFS(Breakdowns!Q:Q,Breakdowns!$I:$I,">="&$B56,Breakdowns!$I:$I,"<"&$D56,Breakdowns!$AA:$AA,"=No"),SUMIFS(Breakdowns!Q:Q,Breakdowns!$I:$I,">="&$B56,Breakdowns!$AA:$AA,"=No"))),IF($A56="","",IF($A56="between",SUMIFS(Breakdowns!Q:Q,Breakdowns!$I:$I,">="&$B56,Breakdowns!$I:$I,"<"&$D56),SUMIFS(Breakdowns!Q:Q,Breakdowns!$I:$I,">="&$B56)))) -> 67119 | J56: =IF($P$1,IF($A56="","",IF($A56="between",SUMIFS(Breakdowns!S:S,Breakdowns!$I:$I,">="&$B56,Breakdowns!$I:$I,"<"&$D56,Breakdowns!$AA:$AA,"=No"),SUMIFS(Breakdowns!S:S,Breakdowns!$I:$I,">="&$B56,Breakdowns!$AA:$AA,"=No"))),IF($A56="","",IF($A56="between",SUMIFS(Breakdowns!S:S,Breakdowns!$I:$I,">="&$B56,Breakdowns!$I:$I,"<"&$D56),SUMIFS(Breakdowns!S:S,Breakdowns!$I:$I,">="&$B56)))) -> 453884771 | K56: =IF($P$1,IF($A56="","",IF($A56="between",SUMIFS(Breakdowns!U:U,Breakdowns!$I:$I,">="&$B56,Breakdowns!$I:$I,"<"&$D56,Breakdowns!$AA:$AA,"=No"),SUMIFS(Breakdowns!U:U,Breakdowns!$I:$I,">="&$B56,Breakdowns!$AA:$AA,"=No"))),IF($A56="","",IF($A56="between",SUMIFS(Breakdowns!U:U,Breakdowns!$I:$I,">="&$B56,Breakdowns!$I:$I,"<"&$D56),SUMIFS(Breakdowns!U:U,Breakdowns!$I:$I,">="&$B56)))) -> 400056103 | L56: =IF($P$1,IF($A56="","",IF($A56="between",SUMIFS(Breakdowns!W:W,Breakdowns!$I:$I,">="&$B56,Breakdowns!$I:$I,"<"&$D56,Breakdowns!$AA:$AA,"=No"),SUMIFS(Breakdowns!W:W,Breakdowns!$I:$I,">="&$B56,Breakdowns!$AA:$AA,"=No"))),IF($A56="","",IF($A56="between",SUMIFS(Breakdowns!W:W,Breakdowns!$I:$I,">="&$B56,Breakdowns!$I:$I,"<"&$D56),SUMIFS(Breakdowns!W:W,Breakdowns!$I:$I,">="&$B56)))) -> 8469963 | M56: =IF($P$1,IF($A56="","",IF($A56="between",SUMIFS(Breakdowns!Y:Y,Breakdowns!$I:$I,">="&$B56,Breakdowns!$I:$I,"<"&$D56,Breakdowns!$AA:$AA,"=No"),SUMIFS(Breakdowns!Y:Y,Breakdowns!$I:$I,">="&$B56,Breakdowns!$AA:$AA,"=No"))),IF($A56="","",IF($A56="between",SUMIFS(Breakdowns!Y:Y,Breakdowns!$I:$I,">="&$B56,Breakdowns!$I:$I,"<"&$D56),SUMIFS(Breakdowns!Y:Y,Breakdowns!$I:$I,">="&$B56)))) -> 8239654 | U56: 250 to 500 | V56: 12232.25789
A57: between | B57: 250 | C57: and | D57: 500 | E57: between 250 and 500 | F57: =IF($P$1,IF($A57="","",IF($A57="between",SUMIFS(Breakdowns!L:L,Breakdowns!$I:$I,">="&$B57,Breakdowns!$I:$I,"<"&$D57,Breakdowns!$AA:$AA,"=No"),SUMIFS(Breakdowns!L:L,Breakdowns!$I:$I,">="&$B57,Breakdowns!$AA:$AA,"=No"))),IF($A57="","",IF($A57="between",SUMIFS(Breakdowns!L:L,Breakdowns!$I:$I,">="&$B57,Breakdowns!$I:$I,"<"&$D57),SUMIFS(Breakdowns!L:L,Breakdowns!$I:$I,">="&$B57)))) -> 15345 | G57: =IF($P$1,IF($A57="","",IF($A57="between",SUMIFS(Breakdowns!M:M,Breakdowns!$I:$I,">="&$B57,Breakdowns!$I:$I,"<"&$D57,Breakdowns!$AA:$AA,"=No"),SUMIFS(Breakdowns!M:M,Breakdowns!$I:$I,">="&$B57,Breakdowns!$AA:$AA,"=No"))),IF($A57="","",IF($A57="between",SUMIFS(Breakdowns!M:M,Breakdowns!$I:$I,">="&$B57,Breakdowns!$I:$I,"<"&$D57),SUMIFS(Breakdowns!M:M,Breakdowns!$I:$I,">="&$B57)))) -> 44902 | H57: =IF($P$1,IF($A57="","",IF($A57="between",SUMIFS(Breakdowns!O:O,Breakdowns!$I:$I,">="&$B57,Breakdowns!$I:$I,"<"&$D57,Breakdowns!$AA:$AA,"=No"),SUMIFS(Breakdowns!O:O,Breakdowns!$I:$I,">="&$B57,Breakdowns!$AA:$AA,"=No"))),IF($A57="","",IF($A57="between",SUMIFS(Breakdowns!O:O,Breakdowns!$I:$I,">="&$B57,Breakdowns!$I:$I,"<"&$D57),SUMIFS(Breakdowns!O:O,Breakdowns!$I:$I,">="&$B57)))) -> 39848 | I57: =IF($P$1,IF($A57="","",IF($A57="between",SUMIFS(Breakdowns!Q:Q,Breakdowns!$I:$I,">="&$B57,Breakdowns!$I:$I,"<"&$D57,Breakdowns!$AA:$AA,"=No"),SUMIFS(Breakdowns!Q:Q,Breakdowns!$I:$I,">="&$B57,Breakdowns!$AA:$AA,"=No"))),IF($A57="","",IF($A57="between",SUMIFS(Breakdowns!Q:Q,Breakdowns!$I:$I,">="&$B57,Breakdowns!$I:$I,"<"&$D57),SUMIFS(Breakdowns!Q:Q,Breakdowns!$I:$I,">="&$B57)))) -> 84750 | J57: =IF($P$1,IF($A57="","",IF($A57="between",SUMIFS(Breakdowns!S:S,Breakdowns!$I:$I,">="&$B57,Breakdowns!$I:$I,"<"&$D57,Breakdowns!$AA:$AA,"=No"),SUMIFS(Breakdowns!S:S,Breakdowns!$I:$I,">="&$B57,Breakdowns!$AA:$AA,"=No"))),IF($A57="","",IF($A57="between",SUMIFS(Breakdowns!S:S,Breakdowns!$I:$I,">="&$B57,Breakdowns!$I:$I,"<"&$D57),SUMIFS(Breakdowns!S:S,Breakdowns!$I:$I,">="&$B57)))) -> 635766692 | K57: =IF($P$1,IF($A57="","",IF($A57="between",SUMIFS(Breakdowns!U:U,Breakdowns!$I:$I,">="&$B57,Breakdowns!$I:$I,"<"&$D57,Breakdowns!$AA:$AA,"=No"),SUMIFS(Breakdowns!U:U,Breakdowns!$I:$I,">="&$B57,Breakdowns!$AA:$AA,"=No"))),IF($A57="","",IF($A57="between",SUMIFS(Breakdowns!U:U,Breakdowns!$I:$I,">="&$B57,Breakdowns!$I:$I,"<"&$D57),SUMIFS(Breakdowns!U:U,Breakdowns!$I:$I,">="&$B57)))) -> 549252844 | L57: =IF($P$1,IF($A57="","",IF($A57="between",SUMIFS(Breakdowns!W:W,Breakdowns!$I:$I,">="&$B57,Breakdowns!$I:$I,"<"&$D57,Breakdowns!$AA:$AA,"=No"),SUMIFS(Breakdowns!W:W,Breakdowns!$I:$I,">="&$B57,Breakdowns!$AA:$AA,"=No"))),IF($A57="","",IF($A57="between",SUMIFS(Breakdowns!W:W,Breakdowns!$I:$I,">="&$B57,Breakdowns!$I:$I,"<"&$D57),SUMIFS(Breakdowns!W:W,Breakdowns!$I:$I,">="&$B57)))) -> 8845520 | M57: =IF($P$1,IF($A57="","",IF($A57="between",SUMIFS(Breakdowns!Y:Y,Breakdowns!$I:$I,">="&$B57,Breakdowns!$I:$I,"<"&$D57,Breakdowns!$AA:$AA,"=No"),SUMIFS(Breakdowns!Y:Y,Breakdowns!$I:$I,">="&$B57,Breakdowns!$AA:$AA,"=No"))),IF($A57="","",IF($A57="between",SUMIFS(Breakdowns!Y:Y,Breakdowns!$I:$I,">="&$B57,Breakdowns!$I:$I,"<"&$D57),SUMIFS(Breakdowns!Y:Y,Breakdowns!$I:$I,">="&$B57)))) -> 8568391 | U57: 500 to 1,000 | V57: 15511.91726
A58: between | B58: 500 | C58: and | D58: 1000 | E58: between 500 and 1,000 | F58: =IF($P$1,IF($A58="","",IF($A58="between",SUMIFS(Breakdowns!L:L,Breakdowns!$I:$I,">="&$B58,Breakdowns!$I:$I,"<"&$D58,Breakdowns!$AA:$AA,"=No"),SUMIFS(Breakdowns!L:L,Breakdowns!$I:$I,">="&$B58,Breakdowns!$AA:$AA,"=No"))),IF($A58="","",IF($A58="between",SUMIFS(Breakdowns!L:L,Breakdowns!$I:$I,">="&$B58,Breakdowns!$I:$I,"<"&$D58),SUMIFS(Breakdowns!L:L,Breakdowns!$I:$I,">="&$B58)))) -> 15252 | G58: =IF($P$1,IF($A58="","",IF($A58="between",SUMIFS(Breakdowns!M:M,Breakdowns!$I:$I,">="&$B58,Breakdowns!$I:$I,"<"&$D58,Breakdowns!$AA:$AA,"=No"),SUMIFS(Breakdowns!M:M,Breakdowns!$I:$I,">="&$B58,Breakdowns!$AA:$AA,"=No"))),IF($A58="","",IF($A58="between",SUMIFS(Breakdowns!M:M,Breakdowns!$I:$I,">="&$B58,Breakdowns!$I:$I,"<"&$D58),SUMIFS(Breakdowns!M:M,Breakdowns!$I:$I,">="&$B58)))) -> 36875 | H58: =IF($P$1,IF($A58="","",IF($A58="between",SUMIFS(Breakdowns!O:O,Breakdowns!$I:$I,">="&$B58,Breakdowns!$I:$I,"<"&$D58,Breakdowns!$AA:$AA,"=No"),SUMIFS(Breakdowns!O:O,Breakdowns!$I:$I,">="&$B58,Breakdowns!$AA:$AA,"=No"))),IF($A58="","",IF($A58="between",SUMIFS(Breakdowns!O:O,Breakdowns!$I:$I,">="&$B58,Breakdowns!$I:$I,"<"&$D58),SUMIFS(Breakdowns!O:O,Breakdowns!$I:$I,">="&$B58)))) -> 44017 | I58: =IF($P$1,IF($A58="","",IF($A58="between",SUMIFS(Breakdowns!Q:Q,Breakdowns!$I:$I,">="&$B58,Breakdowns!$I:$I,"<"&$D58,Breakdowns!$AA:$AA,"=No"),SUMIFS(Breakdowns!Q:Q,Breakdowns!$I:$I,">="&$B58,Breakdowns!$AA:$AA,"=No"))),IF($A58="","",IF($A58="between",SUMIFS(Breakdowns!Q:Q,Breakdowns!$I:$I,">="&$B58,Breakdowns!$I:$I,"<"&$D58),SUMIFS(Breakdowns!Q:Q,Breakdowns!$I:$I,">="&$B58)))) -> 80892 | J58: =IF($P$1,IF($A58="","",IF($A58="between",SUMIFS(Breakdowns!S:S,Breakdowns!$I:$I,">="&$B58,Breakdowns!$I:$I,"<"&$D58,Breakdowns!$AA:$AA,"=No"),SUMIFS(Breakdowns!S:S,Breakdowns!$I:$I,">="&$B58,Breakdowns!$AA:$AA,"=No"))),IF($A58="","",IF($A58="between",SUMIFS(Breakdowns!S:S,Breakdowns!$I:$I,">="&$B58,Breakdowns!$I:$I,"<"&$D58),SUMIFS(Breakdowns!S:S,Breakdowns!$I:$I,">="&$B58)))) -> 647719322 | K58: =IF($P$1,IF($A58="","",IF($A58="between",SUMIFS(Breakdowns!U:U,Breakdowns!$I:$I,">="&$B58,Breakdowns!$I:$I,"<"&$D58,Breakdowns!$AA:$AA,"=No"),SUMIFS(Breakdowns!U:U,Breakdowns!$I:$I,">="&$B58,Breakdowns!$AA:$AA,"=No"))),IF($A58="","",IF($A58="between",SUMIFS(Breakdowns!U:U,Breakdowns!$I:$I,">="&$B58,Breakdowns!$I:$I,"<"&$D58),SUMIFS(Breakdowns!U:U,Breakdowns!$I:$I,">="&$B58)))) -> 572001949 | L58: =IF($P$1,IF($A58="","",IF($A58="between",SUMIFS(Breakdowns!W:W,Breakdowns!$I:$I,">="&$B58,Breakdowns!$I:$I,"<"&$D58,Breakdowns!$AA:$AA,"=No"),SUMIFS(Breakdowns!W:W,Breakdowns!$I:$I,">="&$B58,Breakdowns!$AA:$AA,"=No"))),IF($A58="","",IF($A58="between",SUMIFS(Breakdowns!W:W,Breakdowns!$I:$I,">="&$B58,Breakdowns!$I:$I,"<"&$D58),SUMIFS(Breakdowns!W:W,Breakdowns!$I:$I,">="&$B58)))) -> 30184823 | M58: =IF($P$1,IF($A58="","",IF($A58="between",SUMIFS(Breakdowns!Y:Y,Breakdowns!$I:$I,">="&$B58,Breakdowns!$I:$I,"<"&$D58,Breakdowns!$AA:$AA,"=No"),SUMIFS(Breakdowns!Y:Y,Breakdowns!$I:$I,">="&$B58,Breakdowns!$AA:$AA,"=No"))),IF($A58="","",IF($A58="between",SUMIFS(Breakdowns!Y:Y,Breakdowns!$I:$I,">="&$B58,Breakdowns!$I:$I,"<"&$D58),SUMIFS(Breakdowns!Y:Y,Breakdowns!$I:$I,">="&$B58)))) -> 29516701 | U58: 1,000 to 2,000 | V58: 17365.8323
A59: between | B59: 1000 | C59: and | D59: 2000 | E59: between 1,000 and 2,000 | F59: =IF($P$1,IF($A59="","",IF($A59="between",SUMIFS(Breakdowns!L:L,Breakdowns!$I:$I,">="&$B59,Breakdowns!$I:$I,"<"&$D59,Breakdowns!$AA:$AA,"=No"),SUMIFS(Breakdowns!L:L,Breakdowns!$I:$I,">="&$B59,Breakdowns!$AA:$AA,"=No"))),IF($A59="","",IF($A59="between",SUMIFS(Breakdowns!L:L,Breakdowns!$I:$I,">="&$B59,Breakdowns!$I:$I,"<"&$D59),SUMIFS(Breakdowns!L:L,Breakdowns!$I:$I,">="&$B59)))) -> 15440 | G59: =IF($P$1,IF($A59="","",IF($A59="between",SUMIFS(Breakdowns!M:M,Breakdowns!$I:$I,">="&$B59,Breakdowns!$I:$I,"<"&$D59,Breakdowns!$AA:$AA,"=No"),SUMIFS(Breakdowns!M:M,Breakdowns!$I:$I,">="&$B59,Breakdowns!$AA:$AA,"=No"))),IF($A59="","",IF($A59="between",SUMIFS(Breakdowns!M:M,Breakdowns!$I:$I,">="&$B59,Breakdowns!$I:$I,"<"&$D59),SUMIFS(Breakdowns!M:M,Breakdowns!$I:$I,">="&$B59)))) -> 35414 | H59: =IF($P$1,IF($A59="","",IF($A59="between",SUMIFS(Breakdowns!O:O,Breakdowns!$I:$I,">="&$B59,Breakdowns!$I:$I,"<"&$D59,Breakdowns!$AA:$AA,"=No"),SUMIFS(Breakdowns!O:O,Breakdowns!$I:$I,">="&$B59,Breakdowns!$AA:$AA,"=No"))),IF($A59="","",IF($A59="between",SUMIFS(Breakdowns!O:O,Breakdowns!$I:$I,">="&$B59,Breakdowns!$I:$I,"<"&$D59),SUMIFS(Breakdowns!O:O,Breakdowns!$I:$I,">="&$B59)))) -> 30379 | I59: =IF($P$1,IF($A59="","",IF($A59="between",SUMIFS(Breakdowns!Q:Q,Breakdowns!$I:$I,">="&$B59,Breakdowns!$I:$I,"<"&$D59,Breakdowns!$AA:$AA,"=No"),SUMIFS(Breakdowns!Q:Q,Breakdowns!$I:$I,">="&$B59,Breakdowns!$AA:$AA,"=No"))),IF($A59="","",IF($A59="between",SUMIFS(Breakdowns!Q:Q,Breakdowns!$I:$I,">="&$B59,Breakdowns!$I:$I,"<"&$D59),SUMIFS(Breakdowns!Q:Q,Breakdowns!$I:$I,">="&$B59)))) -> 65793 | J59: =IF($P$1,IF($A59="","",IF($A59="between",SUMIFS(Breakdowns!S:S,Breakdowns!$I:$I,">="&$B59,Breakdowns!$I:$I,"<"&$D59,Breakdowns!$AA:$AA,"=No"),SUMIFS(Breakdowns!S:S,Breakdowns!$I:$I,">="&$B59,Breakdowns!$AA:$AA,"=No"))),IF($A59="","",IF($A59="between",SUMIFS(Breakdowns!S:S,Breakdowns!$I:$I,">="&$B59,Breakdowns!$I:$I,"<"&$D59),SUMIFS(Breakdowns!S:S,Breakdowns!$I:$I,">="&$B59)))) -> 701856352 | K59: =IF($P$1,IF($A59="","",IF($A59="between",SUMIFS(Breakdowns!U:U,Breakdowns!$I:$I,">="&$B59,Breakdowns!$I:$I,"<"&$D59,Breakdowns!$AA:$AA,"=No"),SUMIFS(Breakdowns!U:U,Breakdowns!$I:$I,">="&$B59,Breakdowns!$AA:$AA,"=No"))),IF($A59="","",IF($A59="between",SUMIFS(Breakdowns!U:U,Breakdowns!$I:$I,">="&$B59,Breakdowns!$I:$I,"<"&$D59),SUMIFS(Breakdowns!U:U,Breakdowns!$I:$I,">="&$B59)))) -> 614993585 | L59: =IF($P$1,IF($A59="","",IF($A59="between",SUMIFS(Breakdowns!W:W,Breakdowns!$I:$I,">="&$B59,Breakdowns!$I:$I,"<"&$D59,Breakdowns!$AA:$AA,"=No"),SUMIFS(Breakdowns!W:W,Breakdowns!$I:$I,">="&$B59,Breakdowns!$AA:$AA,"=No"))),IF($A59="","",IF($A59="between",SUMIFS(Breakdowns!W:W,Breakdowns!$I:$I,">="&$B59,Breakdowns!$I:$I,"<"&$D59),SUMIFS(Breakdowns!W:W,Breakdowns!$I:$I,">="&$B59)))) -> 53164871 | M59: =IF($P$1,IF($A59="","",IF($A59="between",SUMIFS(Breakdowns!Y:Y,Breakdowns!$I:$I,">="&$B59,Breakdowns!$I:$I,"<"&$D59,Breakdowns!$AA:$AA,"=No"),SUMIFS(Breakdowns!Y:Y,Breakdowns!$I:$I,">="&$B59,Breakdowns!$AA:$AA,"=No"))),IF($A59="","",IF($A59="between",SUMIFS(Breakdowns!Y:Y,Breakdowns!$I:$I,">="&$B59,Breakdowns!$I:$I,"<"&$D59),SUMIFS(Breakdowns!Y:Y,Breakdowns!$I:$I,">="&$B59)))) -> 49838846 | U59: over 2,000 | V59: 20065.88335
A60: over | B60: 2000 | E60: over 2,000 | F60: =IF($P$1,IF($A60="","",IF($A60="between",SUMIFS(Breakdowns!L:L,Breakdowns!$I:$I,">="&$B60,Breakdowns!$I:$I,"<"&$D60,Breakdowns!$AA:$AA,"=No"),SUMIFS(Breakdowns!L:L,Breakdowns!$I:$I,">="&$B60,Breakdowns!$AA:$AA,"=No"))),IF($A60="","",IF($A60="between",SUMIFS(Breakdowns!L:L,Breakdowns!$I:$I,">="&$B60,Breakdowns!$I:$I,"<"&$D60),SUMIFS(Breakdowns!L:L,Breakdowns!$I:$I,">="&$B60)))) -> 33777 | G60: =IF($P$1,IF($A60="","",IF($A60="between",SUMIFS(Breakdowns!M:M,Breakdowns!$I:$I,">="&$B60,Breakdowns!$I:$I,"<"&$D60,Breakdowns!$AA:$AA,"=No"),SUMIFS(Breakdowns!M:M,Breakdowns!$I:$I,">="&$B60,Breakdowns!$AA:$AA,"=No"))),IF($A60="","",IF($A60="between",SUMIFS(Breakdowns!M:M,Breakdowns!$I:$I,">="&$B60,Breakdowns!$I:$I,"<"&$D60),SUMIFS(Breakdowns!M:M,Breakdowns!$I:$I,">="&$B60)))) -> 68181 | H60: =IF($P$1,IF($A60="","",IF($A60="between",SUMIFS(Breakdowns!O:O,Breakdowns!$I:$I,">="&$B60,Breakdowns!$I:$I,"<"&$D60,Breakdowns!$AA:$AA,"=No"),SUMIFS(Breakdowns!O:O,Breakdowns!$I:$I,">="&$B60,Breakdowns!$AA:$AA,"=No"))),IF($A60="","",IF($A60="between",SUMIFS(Breakdowns!O:O,Breakdowns!$I:$I,">="&$B60,Breakdowns!$I:$I,"<"&$D60),SUMIFS(Breakdowns!O:O,Breakdowns!$I:$I,">="&$B60)))) -> 74775 | I60: =IF($P$1,IF($A60="","",IF($A60="between",SUMIFS(Breakdowns!Q:Q,Breakdowns!$I:$I,">="&$B60,Breakdowns!$I:$I,"<"&$D60,Breakdowns!$AA:$AA,"=No"),SUMIFS(Breakdowns!Q:Q,Breakdowns!$I:$I,">="&$B60,Breakdowns!$AA:$AA,"=No"))),IF($A60="","",IF($A60="between",SUMIFS(Breakdowns!Q:Q,Breakdowns!$I:$I,">="&$B60,Breakdowns!$I:$I,"<"&$D60),SUMIFS(Breakdowns!Q:Q,Breakdowns!$I:$I,">="&$B60)))) -> 142956 | J60: =IF($P$1,IF($A60="","",IF($A60="between",SUMIFS(Breakdowns!S:S,Breakdowns!$I:$I,">="&$B60,Breakdowns!$I:$I,"<"&$D60,Breakdowns!$AA:$AA,"=No"),SUMIFS(Breakdowns!S:S,Breakdowns!$I:$I,">="&$B60,Breakdowns!$AA:$AA,"=No"))),IF($A60="","",IF($A60="between",SUMIFS(Breakdowns!S:S,Breakdowns!$I:$I,">="&$B60,Breakdowns!$I:$I,"<"&$D60),SUMIFS(Breakdowns!S:S,Breakdowns!$I:$I,">="&$B60)))) -> 1515425094 | K60: =IF($P$1,IF($A60="","",IF($A60="between",SUMIFS(Breakdowns!U:U,Breakdowns!$I:$I,">="&$B60,Breakdowns!$I:$I,"<"&$D60,Breakdowns!$AA:$AA,"=No"),SUMIFS(Breakdowns!U:U,Breakdowns!$I:$I,">="&$B60,Breakdowns!$AA:$AA,"=No"))),IF($A60="","",IF($A60="between",SUMIFS(Breakdowns!U:U,Breakdowns!$I:$I,">="&$B60,Breakdowns!$I:$I,"<"&$D60),SUMIFS(Breakdowns!U:U,Breakdowns!$I:$I,">="&$B60)))) -> 1368111993 | L60: =IF($P$1,IF($A60="","",IF($A60="between",SUMIFS(Breakdowns!W:W,Breakdowns!$I:$I,">="&$B60,Breakdowns!$I:$I,"<"&$D60,Breakdowns!$AA:$AA,"=No"),SUMIFS(Breakdowns!W:W,Breakdowns!$I:$I,">="&$B60,Breakdowns!$AA:$AA,"=No"))),IF($A60="","",IF($A60="between",SUMIFS(Breakdowns!W:W,Breakdowns!$I:$I,">="&$B60,Breakdowns!$I:$I,"<"&$D60),SUMIFS(Breakdowns!W:W,Breakdowns!$I:$I,">="&$B60)))) -> 111232603 | M60: =IF($P$1,IF($A60="","",IF($A60="between",SUMIFS(Breakdowns!Y:Y,Breakdowns!$I:$I,">="&$B60,Breakdowns!$I:$I,"<"&$D60,Breakdowns!$AA:$AA,"=No"),SUMIFS(Breakdowns!Y:Y,Breakdowns!$I:$I,">="&$B60,Breakdowns!$AA:$AA,"=No"))),IF($A60="","",IF($A60="between",SUMIFS(Breakdowns!Y:Y,Breakdowns!$I:$I,">="&$B60,Breakdowns!$I:$I,"<"&$D60),SUMIFS(Breakdowns!Y:Y,Breakdowns!$I:$I,">="&$B60)))) -> 107942884
U61: =IFERROR(U51&": "&FIXED(V51,0,0)&CHAR(10),"")&IFERROR(U52&": "&FIXED(V52,0,0)&CHAR(10),"")&IFERROR(U53&": "&FIXED(V53,0,0)&CHAR(10),"")&IFERROR(U54&": "&FIXED(V54,0,0)&CHAR(10),"")&IFERROR(U55&": "&FIXED(V55,0,0)&CHAR(10),"")&IFERROR(U56&": "&FIXED(V56,0,0)&CHAR(10),"")&IFERROR(U57&": "&FIXED(V57,0,0)&CHAR(10),"")&IFERROR(U58&": "&FIXED(V58,0,0)&CHAR(10),"")&IFERROR(U59&": "&FIXED(V59,0,0),"") -> under 10: 18,922 10 to 25: 13,422 25 to 50: 17,533 50 to 100: 17,293 100 to 250: 11,846 250 to 500: 12,232 500 to 1,000: 15,512 1,000 to 2,000: 17,366 over 2,000: 20,066
A64: By State
A65: Abbreviation | B65: State | C65: Column1 | D65: Column2 | E65: Column3 | F65: VOMS | G65: Major Mechanical Failures | H65: Other Mechanical Failures | I65: Total Mechanical Failures | J65: Vehicle/Passenger Car Miles | K65: Vehicle/Passenger Car Revenue Miles | L65: Train Miles | M65: Train Revenue Miles
A66: AK | B66: Alaska | F66: =IF($P$1,SUMIFS(Breakdowns!L:L,Breakdowns!$C:$C,"="&$A66,Breakdowns!$AA:$AA,"=No"),SUMIFS(Breakdowns!L:L,Breakdowns!$C:$C,"="&$A66)) -> 191 | G66: =IF($P$1,SUMIFS(Breakdowns!M:M,Breakdowns!$C:$C,"="&$A66,Breakdowns!$AA:$AA,"=No"),SUMIFS(Breakdowns!M:M,Breakdowns!$C:$C,"="&$A66)) -> 536 | H66: =IF($P$1,SUMIFS(Breakdowns!O:O,Breakdowns!$C:$C,"="&$A66,Breakdowns!$AA:$AA,"=No"),SUMIFS(Breakdowns!O:O,Breakdowns!$C:$C,"="&$A66)) -> 319 | I66: =IF($P$1,SUMIFS(Breakdowns!Q:Q,Breakdowns!$C:$C,"="&$A66,Breakdowns!$AA:$AA,"=No"),SUMIFS(Breakdowns!Q:Q,Breakdowns!$C:$C,"="&$A66)) -> 855 | J66: =IF($P$1,SUMIFS(Breakdowns!S:S,Breakdowns!$C:$C,"="&$A66,Breakdowns!$AA:$AA,"=No"),SUMIFS(Breakdowns!S:S,Breakdowns!$C:$C,"="&$A66)) -> 5650467 | K66: =IF($P$1,SUMIFS(Breakdowns!U:U,Breakdowns!$C:$C,"="&$A66,Breakdowns!$AA:$AA,"=No"),SUMIFS(Breakdowns!U:U,Breakdowns!$C:$C,"="&$A66)) -> 5288797 | L66: =IF($P$1,SUMIFS(Breakdowns!W:W,Breakdowns!$C:$C,"="&$A66,Breakdowns!$AA:$AA,"=No"),SUMIFS(Breakdowns!W:W,Breakdowns!$C:$C,"="&$A66)) -> 187671 | M66: =IF($P$1,SUMIFS(Breakdowns!Y:Y,Breakdowns!$C:$C,"="&$A66,Breakdowns!$AA:$AA,"=No"),SUMIFS(Breakdowns!Y:Y,Breakdowns!$C:$C,"="&$A66)) -> 187447
A67: AL | B67: Alabama | F67: =IF($P$1,SUMIFS(Breakdowns!L:L,Breakdowns!$C:$C,"="&$A67,Breakdowns!$AA:$AA,"=No"),SUMIFS(Breakdowns!L:L,Breakdowns!$C:$C,"="&$A67)) -> 353 | G67: =IF($P$1,SUMIFS(Breakdowns!M:M,Breakdowns!$C:$C,"="&$A67,Breakdowns!$AA:$AA,"=No"),SUMIFS(Breakdowns!M:M,Breakdowns!$C:$C,"="&$A67)) -> 1574 | H67: =IF($P$1,SUMIFS(Breakdowns!O:O,Breakdowns!$C:$C,"="&$A67,Breakdowns!$AA:$AA,"=No"),SUMIFS(Breakdowns!O:O,Breakdowns!$C:$C,"="&$A67)) -> 1566 | I67: =IF($P$1,SUMIFS(Breakdowns!Q:Q,Breakdowns!$C:$C,"="&$A67,Breakdowns!$AA:$AA,"=No"),SUMIFS(Breakdowns!Q:Q,Breakdowns!$C:$C,"="&$A67)) -> 3140 | J67: =IF($P$1,SUMIFS(Breakdowns!S:S,Breakdowns!$C:$C,"="&$A67,Breakdowns!$AA:$AA,"=No"),SUMIFS(Breakdowns!S:S,Breakdowns!$C:$C,"="&$A67)) -> 12201443 | K67: =IF($P$1,SUMIFS(Breakdowns!U:U,Breakdowns!$C:$C,"="&$A67,Breakdowns!$AA:$AA,"=No"),SUMIFS(Breakdowns!U:U,Breakdowns!$C:$C,"="&$A67)) -> 11109838 | L67: =IF($P$1,SUMIFS(Breakdowns!W:W,Breakdowns!$C:$C,"="&$A67,Breakdowns!$AA:$AA,"=No"),SUMIFS(Breakdowns!W:W,Breakdowns!$C:$C,"="&$A67)) -> 0 | M67: =IF($P$1,SUMIFS(Breakdowns!Y:Y,Breakdowns!$C:$C,"="&$A67,Breakdowns!$AA:$AA,"=No"),SUMIFS(Breakdowns!Y:Y,Breakdowns!$C:$C,"="&$A67)) -> 0
A68: AR | B68: Arkansas | F68: =IF($P$1,SUMIFS(Breakdowns!L:L,Breakdowns!$C:$C,"="&$A68,Breakdowns!$AA:$AA,"=No"),SUMIFS(Breakdowns!L:L,Breakdowns!$C:$C,"="&$A68)) -> 99 | G68: =IF($P$1,SUMIFS(Breakdowns!M:M,Breakdowns!$C:$C,"="&$A68,Breakdowns!$AA:$AA,"=No"),SUMIFS(Breakdowns!M:M,Breakdowns!$C:$C,"="&$A68)) -> 175 | H68: =IF($P$1,SUMIFS(Breakdowns!O:O,Breakdowns!$C:$C,"="&$A68,Breakdowns!$AA:$AA,"=No"),SUMIFS(Breakdowns!O:O,Breakdowns!$C:$C,"="&$A68)) -> 342 | I68: =IF($P$1,SUMIFS(Breakdowns!Q:Q,Breakdowns!$C:$C,"="&$A68,Breakdowns!$AA:$AA,"=No"),SUMIFS(Breakdowns!Q:Q,Breakdowns!$C:$C,"="&$A68)) -> 517 | J68: =IF($P$1,SUMIFS(Breakdowns!S:S,Breakdowns!$C:$C,"="&$A68,Breakdowns!$AA:$AA,"=No"),SUMIFS(Breakdowns!S:S,Breakdowns!$C:$C,"="&$A68)) -> 4704749 | K68: =IF($P$1,SUMIFS(Breakdowns!U:U,Breakdowns!$C:$C,"="&$A68,Breakdowns!$AA:$AA,"=No"),SUMIFS(Breakdowns!U:U,Breakdowns!$C:$C,"="&$A68)) -> 4326833 | L68: =IF($P$1,SUMIFS(Breakdowns!W:W,Breakdowns!$C:$C,"="&$A68,Breakdowns!$AA:$AA,"=No"),SUMIFS(Breakdowns!W:W,Breakdowns!$C:$C,"="&$A68)) -> 52112 | M68: =IF($P$1,SUMIFS(Breakdowns!Y:Y,Breakdowns!$C:$C,"="&$A68,Breakdowns!$AA:$AA,"=No"),SUMIFS(Breakdowns!Y:Y,Breakdowns!$C:$C,"="&$A68)) -> 52112
A69: AS | B69: American Samoa | F69: =IF($P$1,SUMIFS(Breakdowns!L:L,Breakdowns!$C:$C,"="&$A69,Breakdowns!$AA:$AA,"=No"),SUMIFS(Breakdowns!L:L,Breakdowns!$C:$C,"="&$A69)) -> 0 | G69: =IF($P$1,SUMIFS(Breakdowns!M:M,Breakdowns!$C:$C,"="&$A69,Breakdowns!$AA:$AA,"=No"),SUMIFS(Breakdowns!M:M,Breakdowns!$C:$C,"="&$A69)) -> 0 | H69: =IF($P$1,SUMIFS(Breakdowns!O:O,Breakdowns!$C:$C,"="&$A69,Breakdowns!$AA:$AA,"=No"),SUMIFS(Breakdowns!O:O,Breakdowns!$C:$C,"="&$A69)) -> 0 | I69: =IF($P$1,SUMIFS(Breakdowns!Q:Q,Breakdowns!$C:$C,"="&$A69,Breakdowns!$AA:$AA,"=No"),SUMIFS(Breakdowns!Q:Q,Breakdowns!$C:$C,"="&$A69)) -> 0 | J69: =IF($P$1,SUMIFS(Breakdowns!S:S,Breakdowns!$C:$C,"="&$A69,Breakdowns!$AA:$AA,"=No"),SUMIFS(Breakdowns!S:S,Breakdowns!$C:$C,"="&$A69)) -> 0 | K69: =IF($P$1,SUMIFS(Breakdowns!U:U,Breakdowns!$C:$C,"="&$A69,Breakdowns!$AA:$AA,"=No"),SUMIFS(Breakdowns!U:U,Breakdowns!$C:$C,"="&$A69)) -> 0 | L69: =IF($P$1,SUMIFS(Breakdowns!W:W,Breakdowns!$C:$C,"="&$A69,Breakdowns!$AA:$AA,"=No"),SUMIFS(Breakdowns!W:W,Breakdowns!$C:$C,"="&$A69)) -> 0 | M69: =IF($P$1,SUMIFS(Breakdowns!Y:Y,Breakdowns!$C:$C,"="&$A69,Breakdowns!$AA:$AA,"=No"),SUMIFS(Breakdowns!Y:Y,Breakdowns!$C:$C,"="&$A69)) -> 0
A70: AZ | B70: Arizona | F70: =IF($P$1,SUMIFS(Breakdowns!L:L,Breakdowns!$C:$C,"="&$A70,Breakdowns!$AA:$AA,"=No"),SUMIFS(Breakdowns!L:L,Breakdowns!$C:$C,"="&$A70)) -> 1762 | G70: =IF($P$1,SUMIFS(Breakdowns!M:M,Breakdowns!$C:$C,"="&$A70,Breakdowns!$AA:$AA,"=No"),SUMIFS(Breakdowns!M:M,Breakdowns!$C:$C,"="&$A70)) -> 5822 | H70: =IF($P$1,SUMIFS(Breakdowns!O:O,Breakdowns!$C:$C,"="&$A70,Breakdowns!$AA:$AA,"=No"),SUMIFS(Breakdowns!O:O,Breakdowns!$C:$C,"="&$A70)) -> 2409 | I70: =IF($P$1,SUMIFS(Breakdowns!Q:Q,Breakdowns!$C:$C,"="&$A70,Breakdowns!$AA:$AA,"=No"),SUMIFS(Breakdowns!Q:Q,Breakdowns!$C:$C,"="&$A70)) -> 8231 | J70: =IF($P$1,SUMIFS(Breakdowns!S:S,Breakdowns!$C:$C,"="&$A70,Breakdowns!$AA:$AA,"=No"),SUMIFS(Breakdowns!S:S,Breakdowns!$C:$C,"="&$A70)) -> 67286420 | K70: =IF($P$1,SUMIFS(Breakdowns!U:U,Breakdowns!$C:$C,"="&$A70,Breakdowns!$AA:$AA,"=No"),SUMIFS(Breakdowns!U:U,Breakdowns!$C:$C,"="&$A70)) -> 57522915 | L70: =IF($P$1,SUMIFS(Breakdowns!W:W,Breakdowns!$C:$C,"="&$A70,Breakdowns!$AA:$AA,"=No"),SUMIFS(Breakdowns!W:W,Breakdowns!$C:$C,"="&$A70)) -> 1676807 | M70: =IF($P$1,SUMIFS(Breakdowns!Y:Y,Breakdowns!$C:$C,"="&$A70,Breakdowns!$AA:$AA,"=No"),SUMIFS(Breakdowns!Y:Y,Breakdowns!$C:$C,"="&$A70)) -> 1649876
A71: CA | B71: California | F71: =IF($P$1,SUMIFS(Breakdowns!L:L,Breakdowns!$C:$C,"="&$A71,Breakdowns!$AA:$AA,"=No"),SUMIFS(Breakdowns!L:L,Breakdowns!$C:$C,"="&$A71)) -> 16728 | G71: =IF($P$1,SUMIFS(Breakdowns!M:M,Breakdowns!$C:$C,"="&$A71,Breakdowns!$AA:$AA,"=No"),SUMIFS(Breakdowns!M:M,Breakdowns!$C:$C,"="&$A71)) -> 36558 | H71: =IF($P$1,SUMIFS(Breakdowns!O:O,Breakdowns!$C:$C,"="&$A71,Breakdowns!$AA:$AA,"=No"),SUMIFS(Breakdowns!O:O,Breakdowns!$C:$C,"="&$A71)) -> 34316 | I71: =IF($P$1,SUMIFS(Breakdowns!Q:Q,Breakdowns!$C:$C,"="&$A71,Breakdowns!$AA:$AA,"=No"),SUMIFS(Breakdowns!Q:Q,Breakdowns!$C:$C,"="&$A71)) -> 70874 | J71: =IF($P$1,SUMIFS(Breakdowns!S:S,Breakdowns!$C:$C,"="&$A71,Breakdowns!$AA:$AA,"=No"),SUMIFS(Breakdowns!S:S,Breakdowns!$C:$C,"="&$A71)) -> 707921547 | K71: =IF($P$1,SUMIFS(Breakdowns!U:U,Breakdowns!$C:$C,"="&$A71,Breakdowns!$AA:$AA,"=No"),SUMIFS(Breakdowns!U:U,Breakdowns!$C:$C,"="&$A71)) -> 629538127 | L71: =IF($P$1,SUMIFS(Breakdowns!W:W,Breakdowns!$C:$C,"="&$A71,Breakdowns!$AA:$AA,"=No"),SUMIFS(Breakdowns!W:W,Breakdowns!$C:$C,"="&$A71)) -> 34273500 | M71: =IF($P$1,SUMIFS(Breakdowns!Y:Y,Breakdowns!$C:$C,"="&$A71,Breakdowns!$AA:$AA,"=No"),SUMIFS(Breakdowns!Y:Y,Breakdowns!$C:$C,"="&$A71)) -> 33409060
A72: CO | B72: Colorado | F72: =IF($P$1,SUMIFS(Breakdowns!L:L,Breakdowns!$C:$C,"="&$A72,Breakdowns!$AA:$AA,"=No"),SUMIFS(Breakdowns!L:L,Breakdowns!$C:$C,"="&$A72)) -> 1869 | G72: =IF($P$1,SUMIFS(Breakdowns!M:M,Breakdowns!$C:$C,"="&$A72,Breakdowns!$AA:$AA,"=No"),SUMIFS(Breakdowns!M:M,Breakdowns!$C:$C,"="&$A72)) -> 1757 | H72: =IF($P$1,SUMIFS(Breakdowns!O:O,Breakdowns!$C:$C,"="&$A72,Breakdowns!$AA:$AA,"=No"),SUMIFS(Breakdowns!O:O,Breakdowns!$C:$C,"="&$A72)) -> 1837 | I72: =IF($P$1,SUMIFS(Breakdowns!Q:Q,Breakdowns!$C:$C,"="&$A72,Breakdowns!$AA:$AA,"=No"),SUMIFS(Breakdowns!Q:Q,Breakdowns!$C:$C,"="&$A72)) -> 3594 | J72: =IF($P$1,SUMIFS(Breakdowns!S:S,Breakdowns!$C:$C,"="&$A72,Breakdowns!$AA:$AA,"=No"),SUMIFS(Breakdowns!S:S,Breakdowns!$C:$C,"="&$A72)) -> 82699684 | K72: =IF($P$1,SUMIFS(Breakdowns!U:U,Breakdowns!$C:$C,"="&$A72,Breakdowns!$AA:$AA,"=No"),SUMIFS(Breakdowns!U:U,Breakdowns!$C:$C,"="&$A72)) -> 71513884 | L72: =IF($P$1,SUMIFS(Breakdowns!W:W,Breakdowns!$C:$C,"="&$A72,Breakdowns!$AA:$AA,"=No"),SUMIFS(Breakdowns!W:W,Breakdowns!$C:$C,"="&$A72)) -> 5066108 | M72: =IF($P$1,SUMIFS(Breakdowns!Y:Y,Breakdowns!$C:$C,"="&$A72,Breakdowns!$AA:$AA,"=No"),SUMIFS(Breakdowns!Y:Y,Breakdowns!$C:$C,"="&$A72)) -> 4820123
A73: CT | B73: Connecticut | F73: =IF($P$1,SUMIFS(Breakdowns!L:L,Breakdowns!$C:$C,"="&$A73,Breakdowns!$AA:$AA,"=No"),SUMIFS(Breakdowns!L:L,Breakdowns!$C:$C,"="&$A73)) -> 1010 | G73: =IF($P$1,SUMIFS(Breakdowns!M:M,Breakdowns!$C:$C,"="&$A73,Breakdowns!$AA:$AA,"=No"),SUMIFS(Breakdowns!M:M,Breakdowns!$C:$C,"="&$A73)) -> 2122 | H73: =IF($P$1,SUMIFS(Breakdowns!O:O,Breakdowns!$C:$C,"="&$A73,Breakdowns!$AA:$AA,"=No"),SUMIFS(Breakdowns!O:O,Breakdowns!$C:$C,"="&$A73)) -> 10442 | I73: =IF($P$1,SUMIFS(Breakdowns!Q:Q,Breakdowns!$C:$C,"="&$A73,Breakdowns!$AA:$AA,"=No"),SUMIFS(Breakdowns!Q:Q,Breakdowns!$C:$C,"="&$A73)) -> 12564 | J73: =IF($P$1,SUMIFS(Breakdowns!S:S,Breakdowns!$C:$C,"="&$A73,Breakdowns!$AA:$AA,"=No"),SUMIFS(Breakdowns!S:S,Breakdowns!$C:$C,"="&$A73)) -> 39476491 | K73: =IF($P$1,SUMIFS(Breakdowns!U:U,Breakdowns!$C:$C,"="&$A73,Breakdowns!$AA:$AA,"=No"),SUMIFS(Breakdowns!U:U,Breakdowns!$C:$C,"="&$A73)) -> 34222484 | L73: =IF($P$1,SUMIFS(Breakdowns!W:W,Breakdowns!$C:$C,"="&$A73,Breakdowns!$AA:$AA,"=No"),SUMIFS(Breakdowns!W:W,Breakdowns!$C:$C,"="&$A73)) -> 613281 | M73: =IF($P$1,SUMIFS(Breakdowns!Y:Y,Breakdowns!$C:$C,"="&$A73,Breakdowns!$AA:$AA,"=No"),SUMIFS(Breakdowns!Y:Y,Breakdowns!$C:$C,"="&$A73)) -> 495368
A74: DC | B74: District of Columbia | F74: =IF($P$1,SUMIFS(Breakdowns!L:L,Breakdowns!$C:$C,"="&$A74,Breakdowns!$AA:$AA,"=No"),SUMIFS(Breakdowns!L:L,Breakdowns!$C:$C,"="&$A74)) -> 2954 | G74: =IF($P$1,SUMIFS(Breakdowns!M:M,Breakdowns!$C:$C,"="&$A74,Breakdowns!$AA:$AA,"=No"),SUMIFS(Breakdowns!M:M,Breakdowns!$C:$C,"="&$A74)) -> 6897 | H74: =IF($P$1,SUMIFS(Breakdowns!O:O,Breakdowns!$C:$C,"="&$A74,Breakdowns!$AA:$AA,"=No"),SUMIFS(Breakdowns!O:O,Breakdowns!$C:$C,"="&$A74)) -> 2640 | I74: =IF($P$1,SUMIFS(Breakdowns!Q:Q,Breakdowns!$C:$C,"="&$A74,Breakdowns!$AA:$AA,"=No"),SUMIFS(Breakdowns!Q:Q,Breakdowns!$C:$C,"="&$A74)) -> 9537 | J74: =IF($P$1,SUMIFS(Breakdowns!S:S,Breakdowns!$C:$C,"="&$A74,Breakdowns!$AA:$AA,"=No"),SUMIFS(Breakdowns!S:S,Breakdowns!$C:$C,"="&$A74)) -> 155485957 | K74: =IF($P$1,SUMIFS(Breakdowns!U:U,Breakdowns!$C:$C,"="&$A74,Breakdowns!$AA:$AA,"=No"),SUMIFS(Breakdowns!U:U,Breakdowns!$C:$C,"="&$A74)) -> 137546203 | L74: =IF($P$1,SUMIFS(Breakdowns!W:W,Breakdowns!$C:$C,"="&$A74,Breakdowns!$AA:$AA,"=No"),SUMIFS(Breakdowns!W:W,Breakdowns!$C:$C,"="&$A74)) -> 12903321 | M74: =IF($P$1,SUMIFS(Breakdowns!Y:Y,Breakdowns!$C:$C,"="&$A74,Breakdowns!$AA:$AA,"=No"),SUMIFS(Breakdowns!Y:Y,Breakdowns!$C:$C,"="&$A74)) -> 12394629
A75: DE | B75: Delaware | F75: =IF($P$1,SUMIFS(Breakdowns!L:L,Breakdowns!$C:$C,"="&$A75,Breakdowns!$AA:$AA,"=No"),SUMIFS(Breakdowns!L:L,Breakdowns!$C:$C,"="&$A75)) -> 481 | G75: =IF($P$1,SUMIFS(Breakdowns!M:M,Breakdowns!$C:$C,"="&$A75,Breakdowns!$AA:$AA,"=No"),SUMIFS(Breakdowns!M:M,Breakdowns!$C:$C,"="&$A75)) -> 1031 | H75: =IF($P$1,SUMIFS(Breakdowns!O:O,Breakdowns!$C:$C,"="&$A75,Breakdowns!$AA:$AA,"=No"),SUMIFS(Breakdowns!O:O,Breakdowns!$C:$C,"="&$A75)) -> 579 | I75: =IF($P$1,SUMIFS(Breakdowns!Q:Q,Breakdowns!$C:$C,"="&$A75,Breakdowns!$AA:$AA,"=No"),SUMIFS(Breakdowns!Q:Q,Breakdowns!$C:$C,"="&$A75)) -> 1610 | J75: =IF($P$1,SUMIFS(Breakdowns!S:S,Breakdowns!$C:$C,"="&$A75,Breakdowns!$AA:$AA,"=No"),SUMIFS(Breakdowns!S:S,Breakdowns!$C:$C,"="&$A75)) -> 18529304 | K75: =IF($P$1,SUMIFS(Breakdowns!U:U,Breakdowns!$C:$C,"="&$A75,Breakdowns!$AA:$AA,"=No"),SUMIFS(Breakdowns!U:U,Breakdowns!$C:$C,"="&$A75)) -> 16213215 | L75: =IF($P$1,SUMIFS(Breakdowns!W:W,Breakdowns!$C:$C,"="&$A75,Breakdowns!$AA:$AA,"=No"),SUMIFS(Breakdowns!W:W,Breakdowns!$C:$C,"="&$A75)) -> 0 | M75: =IF($P$1,SUMIFS(Breakdowns!Y:Y,Breakdowns!$C:$C,"="&$A75,Breakdowns!$AA:$AA,"=No"),SUMIFS(Breakdowns!Y:Y,Breakdowns!$C:$C,"="&$A75)) -> 0
A76: FL | B76: Florida | F76: =IF($P$1,SUMIFS(Breakdowns!L:L,Breakdowns!$C:$C,"="&$A76,Breakdowns!$AA:$AA,"=No"),SUMIFS(Breakdowns!L:L,Breakdowns!$C:$C,"="&$A76)) -> 5056 | G76: =IF($P$1,SUMIFS(Breakdowns!M:M,Breakdowns!$C:$C,"="&$A76,Breakdowns!$AA:$AA,"=No"),SUMIFS(Breakdowns!M:M,Breakdowns!$C:$C,"="&$A76)) -> 20804 | H76: =IF($P$1,SUMIFS(Breakdowns!O:O,Breakdowns!$C:$C,"="&$A76,Breakdowns!$AA:$AA,"=No"),SUMIFS(Breakdowns!O:O,Breakdowns!$C:$C,"="&$A76)) -> 17740 | I76: =IF($P$1,SUMIFS(Breakdowns!Q:Q,Breakdowns!$C:$C,"="&$A76,Breakdowns!$AA:$AA,"=No"),SUMIFS(Breakdowns!Q:Q,Breakdowns!$C:$C,"="&$A76)) -> 38544 | J76: =IF($P$1,SUMIFS(Breakdowns!S:S,Breakdowns!$C:$C,"="&$A76,Breakdowns!$AA:$AA,"=No"),SUMIFS(Breakdowns!S:S,Breakdowns!$C:$C,"="&$A76)) -> 234686207 | K76: =IF($P$1,SUMIFS(Breakdowns!U:U,Breakdowns!$C:$C,"="&$A76,Breakdowns!$AA:$AA,"=No"),SUMIFS(Breakdowns!U:U,Breakdowns!$C:$C,"="&$A76)) -> 207695412 | L76: =IF($P$1,SUMIFS(Breakdowns!W:W,Breakdowns!$C:$C,"="&$A76,Breakdowns!$AA:$AA,"=No"),SUMIFS(Breakdowns!W:W,Breakdowns!$C:$C,"="&$A76)) -> 4659187 | M76: =IF($P$1,SUMIFS(Breakdowns!Y:Y,Breakdowns!$C:$C,"="&$A76,Breakdowns!$AA:$AA,"=No"),SUMIFS(Breakdowns!Y:Y,Breakdowns!$C:$C,"="&$A76)) -> 4480821
A77: GA | B77: Georgia | F77: =IF($P$1,SUMIFS(Breakdowns!L:L,Breakdowns!$C:$C,"="&$A77,Breakdowns!$AA:$AA,"=No"),SUMIFS(Breakdowns!L:L,Breakdowns!$C:$C,"="&$A77)) -> 1888 | G77: =IF($P$1,SUMIFS(Breakdowns!M:M,Breakdowns!$C:$C,"="&$A77,Breakdowns!$AA:$AA,"=No"),SUMIFS(Breakdowns!M:M,Breakdowns!$C:$C,"="&$A77)) -> 7118 | H77: =IF($P$1,SUMIFS(Breakdowns!O:O,Breakdowns!$C:$C,"="&$A77,Breakdowns!$AA:$AA,"=No"),SUMIFS(Breakdowns!O:O,Breakdowns!$C:$C,"="&$A77)) -> 3061 | I77: =IF($P$1,SUMIFS(Breakdowns!Q:Q,Breakdowns!$C:$C,"="&$A77,Breakdowns!$AA:$AA,"=No"),SUMIFS(Breakdowns!Q:Q,Breakdowns!$C:$C,"="&$A77)) -> 10179 | J77: =IF($P$1,SUMIFS(Breakdowns!S:S,Breakdowns!$C:$C,"="&$A77,Breakdowns!$AA:$AA,"=No"),SUMIFS(Breakdowns!S:S,Breakdowns!$C:$C,"="&$A77)) -> 86334669 | K77: =IF($P$1,SUMIFS(Breakdowns!U:U,Breakdowns!$C:$C,"="&$A77,Breakdowns!$AA:$AA,"=No"),SUMIFS(Breakdowns!U:U,Breakdowns!$C:$C,"="&$A77)) -> 76368559 | L77: =IF($P$1,SUMIFS(Breakdowns!W:W,Breakdowns!$C:$C,"="&$A77,Breakdowns!$AA:$AA,"=No"),SUMIFS(Breakdowns!W:W,Breakdowns!$C:$C,"="&$A77)) -> 4106228 | M77: =IF($P$1,SUMIFS(Breakdowns!Y:Y,Breakdowns!$C:$C,"="&$A77,Breakdowns!$AA:$AA,"=No"),SUMIFS(Breakdowns!Y:Y,Breakdowns!$C:$C,"="&$A77)) -> 3998305
A78: GU | B78: Guam | F78: =IF($P$1,SUMIFS(Breakdowns!L:L,Breakdowns!$C:$C,"="&$A78,Breakdowns!$AA:$AA,"=No"),SUMIFS(Breakdowns!L:L,Breakdowns!$C:$C,"="&$A78)) -> 0 | G78: =IF($P$1,SUMIFS(Breakdowns!M:M,Breakdowns!$C:$C,"="&$A78,Breakdowns!$AA:$AA,"=No"),SUMIFS(Breakdowns!M:M,Breakdowns!$C:$C,"="&$A78)) -> 0 | H78: =IF($P$1,SUMIFS(Breakdowns!O:O,Breakdowns!$C:$C,"="&$A78,Breakdowns!$AA:$AA,"=No"),SUMIFS(Breakdowns!O:O,Breakdowns!$C:$C,"="&$A78)) -> 0 | I78: =IF($P$1,SUMIFS(Breakdowns!Q:Q,Breakdowns!$C:$C,"="&$A78,Breakdowns!$AA:$AA,"=No"),SUMIFS(Breakdowns!Q:Q,Breakdowns!$C:$C,"="&$A78)) -> 0 | J78: =IF($P$1,SUMIFS(Breakdowns!S:S,Breakdowns!$C:$C,"="&$A78,Breakdowns!$AA:$AA,"=No"),SUMIFS(Breakdowns!S:S,Breakdowns!$C:$C,"="&$A78)) -> 0 | K78: =IF($P$1,SUMIFS(Breakdowns!U:U,Breakdowns!$C:$C,"="&$A78,Breakdowns!$AA:$AA,"=No"),SUMIFS(Breakdowns!U:U,Breakdowns!$C:$C,"="&$A78)) -> 0 | L78: =IF($P$1,SUMIFS(Breakdowns!W:W,Breakdowns!$C:$C,"="&$A78,Breakdowns!$AA:$AA,"=No"),SUMIFS(Breakdowns!W:W,Breakdowns!$C:$C,"="&$A78)) -> 0 | M78: =IF($P$1,SUMIFS(Breakdowns!Y:Y,Breakdowns!$C:$C,"="&$A78,Breakdowns!$AA:$AA,"=No"),SUMIFS(Breakdowns!Y:Y,Breakdowns!$C:$C,"="&$A78)) -> 0
A79: HI | B79: Hawaii | F79: =IF($P$1,SUMIFS(Breakdowns!L:L,Breakdowns!$C:$C,"="&$A79,Breakdowns!$AA:$AA,"=No"),SUMIFS(Breakdowns!L:L,Breakdowns!$C:$C,"="&$A79)) -> 749 | G79: =IF($P$1,SUMIFS(Breakdowns!M:M,Breakdowns!$C:$C,"="&$A79,Breakdowns!$AA:$AA,"=No"),SUMIFS(Breakdowns!M:M,Breakdowns!$C:$C,"="&$A79)) -> 2687 | H79: =IF($P$1,SUMIFS(Breakdowns!O:O,Breakdowns!$C:$C,"="&$A79,Breakdowns!$AA:$AA,"=No"),SUMIFS(Breakdowns!O:O,Breakdowns!$C:$C,"="&$A79)) -> 5800 | I79: =IF($P$1,SUMIFS(Breakdowns!Q:Q,Breakdowns!$C:$C,"="&$A79,Breakdowns!$AA:$AA,"=No"),SUMIFS(Breakdowns!Q:Q,Breakdowns!$C:$C,"="&$A79)) -> 8487 | J79: =IF($P$1,SUMIFS(Breakdowns!S:S,Breakdowns!$C:$C,"="&$A79,Breakdowns!$AA:$AA,"=No"),SUMIFS(Breakdowns!S:S,Breakdowns!$C:$C,"="&$A79)) -> 33189220 | K79: =IF($P$1,SUMIFS(Breakdowns!U:U,Breakdowns!$C:$C,"="&$A79,Breakdowns!$AA:$AA,"=No"),SUMIFS(Breakdowns!U:U,Breakdowns!$C:$C,"="&$A79)) -> 27692665 | L79: =IF($P$1,SUMIFS(Breakdowns!W:W,Breakdowns!$C:$C,"="&$A79,Breakdowns!$AA:$AA,"=No"),SUMIFS(Breakdowns!W:W,Breakdowns!$C:$C,"="&$A79)) -> 0 | M79: =IF($P$1,SUMIFS(Breakdowns!Y:Y,Breakdowns!$C:$C,"="&$A79,Breakdowns!$AA:$AA,"=No"),SUMIFS(Breakdowns!Y:Y,Breakdowns!$C:$C,"="&$A79)) -> 0
A80: IA | B80: Iowa | F80: =IF($P$1,SUMIFS(Breakdowns!L:L,Breakdowns!$C:$C,"="&$A80,Breakdowns!$AA:$AA,"=No"),SUMIFS(Breakdowns!L:L,Breakdowns!$C:$C,"="&$A80)) -> 484 | G80: =IF($P$1,SUMIFS(Breakdowns!M:M,Breakdowns!$C:$C,"="&$A80,Breakdowns!$AA:$AA,"=No"),SUMIFS(Breakdowns!M:M,Breakdowns!$C:$C,"="&$A80)) -> 707 | H80: =IF($P$1,SUMIFS(Breakdowns!O:O,Breakdowns!$C:$C,"="&$A80,Breakdowns!$AA:$AA,"=No"),SUMIFS(Breakdowns!O:O,Breakdowns!$C:$C,"="&$A80)) -> 1045 | I80: =IF($P$1,SUMIFS(Breakdowns!Q:Q,Breakdowns!$C:$C,"="&$A80,Breakdowns!$AA:$AA,"=No"),SUMIFS(Breakdowns!Q:Q,Breakdowns!$C:$C,"="&$A80)) -> 1752 | J80: =IF($P$1,SUMIFS(Breakdowns!S:S,Breakdowns!$C:$C,"="&$A80,Breakdowns!$AA:$AA,"=No"),SUMIFS(Breakdowns!S:S,Breakdowns!$C:$C,"="&$A80)) -> 12566699 | K80: =IF($P$1,SUMIFS(Breakdowns!U:U,Breakdowns!$C:$C,"="&$A80,Breakdowns!$AA:$AA,"=No"),SUMIFS(Breakdowns!U:U,Breakdowns!$C:$C,"="&$A80)) -> 11507842 | L80: =IF($P$1,SUMIFS(Breakdowns!W:W,Breakdowns!$C:$C,"="&$A80,Breakdowns!$AA:$AA,"=No"),SUMIFS(Breakdowns!W:W,Breakdowns!$C:$C,"="&$A80)) -> 0 | M80: =IF($P$1,SUMIFS(Breakdowns!Y:Y,Breakdowns!$C:$C,"="&$A80,Breakdowns!$AA:$AA,"=No"),SUMIFS(Breakdowns!Y:Y,Breakdowns!$C:$C,"="&$A80)) -> 0
A81: ID | B81: Idaho | F81: =IF($P$1,SUMIFS(Breakdowns!L:L,Breakdowns!$C:$C,"="&$A81,Breakdowns!$AA:$AA,"=No"),SUMIFS(Breakdowns!L:L,Breakdowns!$C:$C,"="&$A81)) -> 60 | G81: =IF($P$1,SUMIFS(Breakdowns!M:M,Breakdowns!$C:$C,"="&$A81,Breakdowns!$AA:$AA,"=No"),SUMIFS(Breakdowns!M:M,Breakdowns!$C:$C,"="&$A81)) -> 118 | H81: =IF($P$1,SUMIFS(Breakdowns!O:O,Breakdowns!$C:$C,"="&$A81,Breakdowns!$AA:$AA,"=No"),SUMIFS(Breakdowns!O:O,Breakdowns!$C:$C,"="&$A81)) -> 17 | I81: =IF($P$1,SUMIFS(Breakdowns!Q:Q,Breakdowns!$C:$C,"="&$A81,Breakdowns!$AA:$AA,"=No"),SUMIFS(Breakdowns!Q:Q,Breakdowns!$C:$C,"="&$A81)) -> 135 | J81: =IF($P$1,SUMIFS(Breakdowns!S:S,Breakdowns!$C:$C,"="&$A81,Breakdowns!$AA:$AA,"=No"),SUMIFS(Breakdowns!S:S,Breakdowns!$C:$C,"="&$A81)) -> 2029631 | K81: =IF($P$1,SUMIFS(Breakdowns!U:U,Breakdowns!$C:$C,"="&$A81,Breakdowns!$AA:$AA,"=No"),SUMIFS(Breakdowns!U:U,Breakdowns!$C:$C,"="&$A81)) -> 1774472 | L81: =IF($P$1,SUMIFS(Breakdowns!W:W,Breakdowns!$C:$C,"="&$A81,Breakdowns!$AA:$AA,"=No"),SUMIFS(Breakdowns!W:W,Breakdowns!$C:$C,"="&$A81)) -> 0 | M81: =IF($P$1,SUMIFS(Breakdowns!Y:Y,Breakdowns!$C:$C,"="&$A81,Breakdowns!$AA:$AA,"=No"),SUMIFS(Breakdowns!Y:Y,Breakdowns!$C:$C,"="&$A81)) -> 0
A82: IL | B82: Illinois | F82: =IF($P$1,SUMIFS(Breakdowns!L:L,Breakdowns!$C:$C,"="&$A82,Breakdowns!$AA:$AA,"=No"),SUMIFS(Breakdowns!L:L,Breakdowns!$C:$C,"="&$A82)) -> 6975 | G82: =IF($P$1,SUMIFS(Breakdowns!M:M,Breakdowns!$C:$C,"="&$A82,Breakdowns!$AA:$AA,"=No"),SUMIFS(Breakdowns!M:M,Breakdowns!$C:$C,"="&$A82)) -> 14569 | H82: =IF($P$1,SUMIFS(Breakdowns!O:O,Breakdowns!$C:$C,"="&$A82,Breakdowns!$AA:$AA,"=No"),SUMIFS(Breakdowns!O:O,Breakdowns!$C:$C,"="&$A82)) -> 21885 | I82: =IF($P$1,SUMIFS(Breakdowns!Q:Q,Breakdowns!$C:$C,"="&$A82,Breakdowns!$AA:$AA,"=No"),SUMIFS(Breakdowns!Q:Q,Breakdowns!$C:$C,"="&$A82)) -> 36454 | J82: =IF($P$1,SUMIFS(Breakdowns!S:S,Breakdowns!$C:$C,"="&$A82,Breakdowns!$AA:$AA,"=No"),SUMIFS(Breakdowns!S:S,Breakdowns!$C:$C,"="&$A82)) -> 285412406 | K82: =IF($P$1,SUMIFS(Breakdowns!U:U,Breakdowns!$C:$C,"="&$A82,Breakdowns!$AA:$AA,"=No"),SUMIFS(Breakdowns!U:U,Breakdowns!$C:$C,"="&$A82)) -> 262799434 | L82: =IF($P$1,SUMIFS(Breakdowns!W:W,Breakdowns!$C:$C,"="&$A82,Breakdowns!$AA:$AA,"=No"),SUMIFS(Breakdowns!W:W,Breakdowns!$C:$C,"="&$A82)) -> 19318703 | M82: =IF($P$1,SUMIFS(Breakdowns!Y:Y,Breakdowns!$C:$C,"="&$A82,Breakdowns!$AA:$AA,"=No"),SUMIFS(Breakdowns!Y:Y,Breakdowns!$C:$C,"="&$A82)) -> 18856683
A83: IN | B83: Indiana | F83: =IF($P$1,SUMIFS(Breakdowns!L:L,Breakdowns!$C:$C,"="&$A83,Breakdowns!$AA:$AA,"=No"),SUMIFS(Breakdowns!L:L,Breakdowns!$C:$C,"="&$A83)) -> 664 | G83: =IF($P$1,SUMIFS(Breakdowns!M:M,Breakdowns!$C:$C,"="&$A83,Breakdowns!$AA:$AA,"=No"),SUMIFS(Breakdowns!M:M,Breakdowns!$C:$C,"="&$A83)) -> 2338 | H83: =IF($P$1,SUMIFS(Breakdowns!O:O,Breakdowns!$C:$C,"="&$A83,Breakdowns!$AA:$AA,"=No"),SUMIFS(Breakdowns!O:O,Breakdowns!$C:$C,"="&$A83)) -> 1358 | I83: =IF($P$1,SUMIFS(Breakdowns!Q:Q,Breakdowns!$C:$C,"="&$A83,Breakdowns!$AA:$AA,"=No"),SUMIFS(Breakdowns!Q:Q,Breakdowns!$C:$C,"="&$A83)) -> 3696 | J83: =IF($P$1,SUMIFS(Breakdowns!S:S,Breakdowns!$C:$C,"="&$A83,Breakdowns!$AA:$AA,"=No"),SUMIFS(Breakdowns!S:S,Breakdowns!$C:$C,"="&$A83)) -> 30067882 | K83: =IF($P$1,SUMIFS(Breakdowns!U:U,Breakdowns!$C:$C,"="&$A83,Breakdowns!$AA:$AA,"=No"),SUMIFS(Breakdowns!U:U,Breakdowns!$C:$C,"="&$A83)) -> 27341428 | L83: =IF($P$1,SUMIFS(Breakdowns!W:W,Breakdowns!$C:$C,"="&$A83,Breakdowns!$AA:$AA,"=No"),SUMIFS(Breakdowns!W:W,Breakdowns!$C:$C,"="&$A83)) -> 791662 | M83: =IF($P$1,SUMIFS(Breakdowns!Y:Y,Breakdowns!$C:$C,"="&$A83,Breakdowns!$AA:$AA,"=No"),SUMIFS(Breakdowns!Y:Y,Breakdowns!$C:$C,"="&$A83)) -> 776475
A84: KS | B84: Kansas | F84: =IF($P$1,SUMIFS(Breakdowns!L:L,Breakdowns!$C:$C,"="&$A84,Breakdowns!$AA:$AA,"=No"),SUMIFS(Breakdowns!L:L,Breakdowns!$C:$C,"="&$A84)) -> 324 | G84: =IF($P$1,SUMIFS(Breakdowns!M:M,Breakdowns!$C:$C,"="&$A84,Breakdowns!$AA:$AA,"=No"),SUMIFS(Breakdowns!M:M,Breakdowns!$C:$C,"="&$A84)) -> 417 | H84: =IF($P$1,SUMIFS(Breakdowns!O:O,Breakdowns!$C:$C,"="&$A84,Breakdowns!$AA:$AA,"=No"),SUMIFS(Breakdowns!O:O,Breakdowns!$C:$C,"="&$A84)) -> 527 | I84: =IF($P$1,SUMIFS(Breakdowns!Q:Q,Breakdowns!$C:$C,"="&$A84,Breakdowns!$AA:$AA,"=No"),SUMIFS(Breakdowns!Q:Q,Breakdowns!$C:$C,"="&$A84)) -> 944 | J84: =IF($P$1,SUMIFS(Breakdowns!S:S,Breakdowns!$C:$C,"="&$A84,Breakdowns!$AA:$AA,"=No"),SUMIFS(Breakdowns!S:S,Breakdowns!$C:$C,"="&$A84)) -> 7951662 | K84: =IF($P$1,SUMIFS(Breakdowns!U:U,Breakdowns!$C:$C,"="&$A84,Breakdowns!$AA:$AA,"=No"),SUMIFS(Breakdowns!U:U,Breakdowns!$C:$C,"="&$A84)) -> 6637347 | L84: =IF($P$1,SUMIFS(Breakdowns!W:W,Breakdowns!$C:$C,"="&$A84,Breakdowns!$AA:$AA,"=No"),SUMIFS(Breakdowns!W:W,Breakdowns!$C:$C,"="&$A84)) -> 0 | M84: =IF($P$1,SUMIFS(Breakdowns!Y:Y,Breakdowns!$C:$C,"="&$A84,Breakdowns!$AA:$AA,"=No"),SUMIFS(Breakdowns!Y:Y,Breakdowns!$C:$C,"="&$A84)) -> 0
A85: KY | B85: Kentucky | F85: =IF($P$1,SUMIFS(Breakdowns!L:L,Breakdowns!$C:$C,"="&$A85,Breakdowns!$AA:$AA,"=No"),SUMIFS(Breakdowns!L:L,Breakdowns!$C:$C,"="&$A85)) -> 703 | G85: =IF($P$1,SUMIFS(Breakdowns!M:M,Breakdowns!$C:$C,"="&$A85,Breakdowns!$AA:$AA,"=No"),SUMIFS(Breakdowns!M:M,Breakdowns!$C:$C,"="&$A85)) -> 2316 | H85: =IF($P$1,SUMIFS(Breakdowns!O:O,Breakdowns!$C:$C,"="&$A85,Breakdowns!$AA:$AA,"=No"),SUMIFS(Breakdowns!O:O,Breakdowns!$C:$C,"="&$A85)) -> 4464 | I85: =IF($P$1,SUMIFS(Breakdowns!Q:Q,Breakdowns!$C:$C,"="&$A85,Breakdowns!$AA:$AA,"=No"),SUMIFS(Breakdowns!Q:Q,Breakdowns!$C:$C,"="&$A85)) -> 6780 | J85: =IF($P$1,SUMIFS(Breakdowns!S:S,Breakdowns!$C:$C,"="&$A85,Breakdowns!$AA:$AA,"=No"),SUMIFS(Breakdowns!S:S,Breakdowns!$C:$C,"="&$A85)) -> 25675660 | K85: =IF($P$1,SUMIFS(Breakdowns!U:U,Breakdowns!$C:$C,"="&$A85,Breakdowns!$AA:$AA,"=No"),SUMIFS(Breakdowns!U:U,Breakdowns!$C:$C,"="&$A85)) -> 22829094 | L85: =IF($P$1,SUMIFS(Breakdowns!W:W,Breakdowns!$C:$C,"="&$A85,Breakdowns!$AA:$AA,"=No"),SUMIFS(Breakdowns!W:W,Breakdowns!$C:$C,"="&$A85)) -> 0 | M85: =IF($P$1,SUMIFS(Breakdowns!Y:Y,Breakdowns!$C:$C,"="&$A85,Breakdowns!$AA:$AA,"=No"),SUMIFS(Breakdowns!Y:Y,Breakdowns!$C:$C,"="&$A85)) -> 0
A86: LA | B86: Lousiana | F86: =IF($P$1,SUMIFS(Breakdowns!L:L,Breakdowns!$C:$C,"="&$A86,Breakdowns!$AA:$AA,"=No"),SUMIFS(Breakdowns!L:L,Breakdowns!$C:$C,"="&$A86)) -> 364 | G86: =IF($P$1,SUMIFS(Breakdowns!M:M,Breakdowns!$C:$C,"="&$A86,Breakdowns!$AA:$AA,"=No"),SUMIFS(Breakdowns!M:M,Breakdowns!$C:$C,"="&$A86)) -> 1740 | H86: =IF($P$1,SUMIFS(Breakdowns!O:O,Breakdowns!$C:$C,"="&$A86,Breakdowns!$AA:$AA,"=No"),SUMIFS(Breakdowns!O:O,Breakdowns!$C:$C,"="&$A86)) -> 2988 | I86: =IF($P$1,SUMIFS(Breakdowns!Q:Q,Breakdowns!$C:$C,"="&$A86,Breakdowns!$AA:$AA,"=No"),SUMIFS(Breakdowns!Q:Q,Breakdowns!$C:$C,"="&$A86)) -> 4728 | J86: =IF($P$1,SUMIFS(Breakdowns!S:S,Breakdowns!$C:$C,"="&$A86,Breakdowns!$AA:$AA,"=No"),SUMIFS(Breakdowns!S:S,Breakdowns!$C:$C,"="&$A86)) -> 18437389 | K86: =IF($P$1,SUMIFS(Breakdowns!U:U,Breakdowns!$C:$C,"="&$A86,Breakdowns!$AA:$AA,"=No"),SUMIFS(Breakdowns!U:U,Breakdowns!$C:$C,"="&$A86)) -> 17260089 | L86: =IF($P$1,SUMIFS(Breakdowns!W:W,Breakdowns!$C:$C,"="&$A86,Breakdowns!$AA:$AA,"=No"),SUMIFS(Breakdowns!W:W,Breakdowns!$C:$C,"="&$A86)) -> 1201611 | M86: =IF($P$1,SUMIFS(Breakdowns!Y:Y,Breakdowns!$C:$C,"="&$A86,Breakdowns!$AA:$AA,"=No"),SUMIFS(Breakdowns!Y:Y,Breakdowns!$C:$C,"="&$A86)) -> 1192948
A87: MA | B87: Massachusetts | F87: =IF($P$1,SUMIFS(Breakdowns!L:L,Breakdowns!$C:$C,"="&$A87,Breakdowns!$AA:$AA,"=No"),SUMIFS(Breakdowns!L:L,Breakdowns!$C:$C,"="&$A87)) -> 3810 | G87: =IF($P$1,SUMIFS(Breakdowns!M:M,Breakdowns!$C:$C,"="&$A87,Breakdowns!$AA:$AA,"=No"),SUMIFS(Breakdowns!M:M,Breakdowns!$C:$C,"="&$A87)) -> 4977 | H87: =IF($P$1,SUMIFS(Breakdowns!O:O,Breakdowns!$C:$C,"="&$A87,Breakdowns!$AA:$AA,"=No"),SUMIFS(Breakdowns!O:O,Breakdowns!$C:$C,"="&$A87)) -> 6692 | I87: =IF($P$1,SUMIFS(Breakdowns!Q:Q,Breakdowns!$C:$C,"="&$A87,Breakdowns!$AA:$AA,"=No"),SUMIFS(Breakdowns!Q:Q,Breakdowns!$C:$C,"="&$A87)) -> 11669 | J87: =IF($P$1,SUMIFS(Breakdowns!S:S,Breakdowns!$C:$C,"="&$A87,Breakdowns!$AA:$AA,"=No"),SUMIFS(Breakdowns!S:S,Breakdowns!$C:$C,"="&$A87)) -> 144060414 | K87: =IF($P$1,SUMIFS(Breakdowns!U:U,Breakdowns!$C:$C,"="&$A87,Breakdowns!$AA:$AA,"=No"),SUMIFS(Breakdowns!U:U,Breakdowns!$C:$C,"="&$A87)) -> 132385998 | L87: =IF($P$1,SUMIFS(Breakdowns!W:W,Breakdowns!$C:$C,"="&$A87,Breakdowns!$AA:$AA,"=No"),SUMIFS(Breakdowns!W:W,Breakdowns!$C:$C,"="&$A87)) -> 12321849 | M87: =IF($P$1,SUMIFS(Breakdowns!Y:Y,Breakdowns!$C:$C,"="&$A87,Breakdowns!$AA:$AA,"=No"),SUMIFS(Breakdowns!Y:Y,Breakdowns!$C:$C,"="&$A87)) -> 12105846
A88: MD | B88: Maryland | F88: =IF($P$1,SUMIFS(Breakdowns!L:L,Breakdowns!$C:$C,"="&$A88,Breakdowns!$AA:$AA,"=No"),SUMIFS(Breakdowns!L:L,Breakdowns!$C:$C,"="&$A88)) -> 2209 | G88: =IF($P$1,SUMIFS(Breakdowns!M:M,Breakdowns!$C:$C,"="&$A88,Breakdowns!$AA:$AA,"=No"),SUMIFS(Breakdowns!M:M,Breakdowns!$C:$C,"="&$A88)) -> 6967 | H88: =IF($P$1,SUMIFS(Breakdowns!O:O,Breakdowns!$C:$C,"="&$A88,Breakdowns!$AA:$AA,"=No"),SUMIFS(Breakdowns!O:O,Breakdowns!$C:$C,"="&$A88)) -> 10937 | I88: =IF($P$1,SUMIFS(Breakdowns!Q:Q,Breakdowns!$C:$C,"="&$A88,Breakdowns!$AA:$AA,"=No"),SUMIFS(Breakdowns!Q:Q,Breakdowns!$C:$C,"="&$A88)) -> 17904 | J88: =IF($P$1,SUMIFS(Breakdowns!S:S,Breakdowns!$C:$C,"="&$A88,Breakdowns!$AA:$AA,"=No"),SUMIFS(Breakdowns!S:S,Breakdowns!$C:$C,"="&$A88)) -> 92949264 | K88: =IF($P$1,SUMIFS(Breakdowns!U:U,Breakdowns!$C:$C,"="&$A88,Breakdowns!$AA:$AA,"=No"),SUMIFS(Breakdowns!U:U,Breakdowns!$C:$C,"="&$A88)) -> 82302880 | L88: =IF($P$1,SUMIFS(Breakdowns!W:W,Breakdowns!$C:$C,"="&$A88,Breakdowns!$AA:$AA,"=No"),SUMIFS(Breakdowns!W:W,Breakdowns!$C:$C,"="&$A88)) -> 4132660 | M88: =IF($P$1,SUMIFS(Breakdowns!Y:Y,Breakdowns!$C:$C,"="&$A88,Breakdowns!$AA:$AA,"=No"),SUMIFS(Breakdowns!Y:Y,Breakdowns!$C:$C,"="&$A88)) -> 4007595
A89: ME | B89: Maine | F89: =IF($P$1,SUMIFS(Breakdowns!L:L,Breakdowns!$C:$C,"="&$A89,Breakdowns!$AA:$AA,"=No"),SUMIFS(Breakdowns!L:L,Breakdowns!$C:$C,"="&$A89)) -> 82 | G89: =IF($P$1,SUMIFS(Breakdowns!M:M,Breakdowns!$C:$C,"="&$A89,Breakdowns!$AA:$AA,"=No"),SUMIFS(Breakdowns!M:M,Breakdowns!$C:$C,"="&$A89)) -> 248 | H89: =IF($P$1,SUMIFS(Breakdowns!O:O,Breakdowns!$C:$C,"="&$A89,Breakdowns!$AA:$AA,"=No"),SUMIFS(Breakdowns!O:O,Breakdowns!$C:$C,"="&$A89)) -> 840 | I89: =IF($P$1,SUMIFS(Breakdowns!Q:Q,Breakdowns!$C:$C,"="&$A89,Breakdowns!$AA:$AA,"=No"),SUMIFS(Breakdowns!Q:Q,Breakdowns!$C:$C,"="&$A89)) -> 1088 | J89: =IF($P$1,SUMIFS(Breakdowns!S:S,Breakdowns!$C:$C,"="&$A89,Breakdowns!$AA:$AA,"=No"),SUMIFS(Breakdowns!S:S,Breakdowns!$C:$C,"="&$A89)) -> 3965691 | K89: =IF($P$1,SUMIFS(Breakdowns!U:U,Breakdowns!$C:$C,"="&$A89,Breakdowns!$AA:$AA,"=No"),SUMIFS(Breakdowns!U:U,Breakdowns!$C:$C,"="&$A89)) -> 3631056 | L89: =IF($P$1,SUMIFS(Breakdowns!W:W,Breakdowns!$C:$C,"="&$A89,Breakdowns!$AA:$AA,"=No"),SUMIFS(Breakdowns!W:W,Breakdowns!$C:$C,"="&$A89)) -> 481468 | M89: =IF($P$1,SUMIFS(Breakdowns!Y:Y,Breakdowns!$C:$C,"="&$A89,Breakdowns!$AA:$AA,"=No"),SUMIFS(Breakdowns!Y:Y,Breakdowns!$C:$C,"="&$A89)) -> 459627
A90: MI | B90: Michigan | F90: =IF($P$1,SUMIFS(Breakdowns!L:L,Breakdowns!$C:$C,"="&$A90,Breakdowns!$AA:$AA,"=No"),SUMIFS(Breakdowns!L:L,Breakdowns!$C:$C,"="&$A90)) -> 2301 | G90: =IF($P$1,SUMIFS(Breakdowns!M:M,Breakdowns!$C:$C,"="&$A90,Breakdowns!$AA:$AA,"=No"),SUMIFS(Breakdowns!M:M,Breakdowns!$C:$C,"="&$A90)) -> 5085 | H90: =IF($P$1,SUMIFS(Breakdowns!O:O,Breakdowns!$C:$C,"="&$A90,Breakdowns!$AA:$AA,"=No"),SUMIFS(Breakdowns!O:O,Breakdowns!$C:$C,"="&$A90)) -> 4978 | I90: =IF($P$1,SUMIFS(Breakdowns!Q:Q,Breakdowns!$C:$C,"="&$A90,Breakdowns!$AA:$AA,"=No"),SUMIFS(Breakdowns!Q:Q,Breakdowns!$C:$C,"="&$A90)) -> 10063 | J90: =IF($P$1,SUMIFS(Breakdowns!S:S,Breakdowns!$C:$C,"="&$A90,Breakdowns!$AA:$AA,"=No"),SUMIFS(Breakdowns!S:S,Breakdowns!$C:$C,"="&$A90)) -> 77033059 | K90: =IF($P$1,SUMIFS(Breakdowns!U:U,Breakdowns!$C:$C,"="&$A90,Breakdowns!$AA:$AA,"=No"),SUMIFS(Breakdowns!U:U,Breakdowns!$C:$C,"="&$A90)) -> 69164826 | L90: =IF($P$1,SUMIFS(Breakdowns!W:W,Breakdowns!$C:$C,"="&$A90,Breakdowns!$AA:$AA,"=No"),SUMIFS(Breakdowns!W:W,Breakdowns!$C:$C,"="&$A90)) -> 273967 | M90: =IF($P$1,SUMIFS(Breakdowns!Y:Y,Breakdowns!$C:$C,"="&$A90,Breakdowns!$AA:$AA,"=No"),SUMIFS(Breakdowns!Y:Y,Breakdowns!$C:$C,"="&$A90)) -> 271763
A91: MN | B91: Minnesota | F91: =IF($P$1,SUMIFS(Breakdowns!L:L,Breakdowns!$C:$C,"="&$A91,Breakdowns!$AA:$AA,"=No"),SUMIFS(Breakdowns!L:L,Breakdowns!$C:$C,"="&$A91)) -> 1961 | G91: =IF($P$1,SUMIFS(Breakdowns!M:M,Breakdowns!$C:$C,"="&$A91,Breakdowns!$AA:$AA,"=No"),SUMIFS(Breakdowns!M:M,Breakdowns!$C:$C,"="&$A91)) -> 1918 | H91: =IF($P$1,SUMIFS(Breakdowns!O:O,Breakdowns!$C:$C,"="&$A91,Breakdowns!$AA:$AA,"=No"),SUMIFS(Breakdowns!O:O,Breakdowns!$C:$C,"="&$A91)) -> 7246 | I91: =IF($P$1,SUMIFS(Breakdowns!Q:Q,Breakdowns!$C:$C,"="&$A91,Breakdowns!$AA:$AA,"=No"),SUMIFS(Breakdowns!Q:Q,Breakdowns!$C:$C,"="&$A91)) -> 9164 | J91: =IF($P$1,SUMIFS(Breakdowns!S:S,Breakdowns!$C:$C,"="&$A91,Breakdowns!$AA:$AA,"=No"),SUMIFS(Breakdowns!S:S,Breakdowns!$C:$C,"="&$A91)) -> 85769097 | K91: =IF($P$1,SUMIFS(Breakdowns!U:U,Breakdowns!$C:$C,"="&$A91,Breakdowns!$AA:$AA,"=No"),SUMIFS(Breakdowns!U:U,Breakdowns!$C:$C,"="&$A91)) -> 70112371 | L91: =IF($P$1,SUMIFS(Breakdowns!W:W,Breakdowns!$C:$C,"="&$A91,Breakdowns!$AA:$AA,"=No"),SUMIFS(Breakdowns!W:W,Breakdowns!$C:$C,"="&$A91)) -> 2076884 | M91: =IF($P$1,SUMIFS(Breakdowns!Y:Y,Breakdowns!$C:$C,"="&$A91,Breakdowns!$AA:$AA,"=No"),SUMIFS(Breakdowns!Y:Y,Breakdowns!$C:$C,"="&$A91)) -> 2028724
A92: MO | B92: Missouri | F92: =IF($P$1,SUMIFS(Breakdowns!L:L,Breakdowns!$C:$C,"="&$A92,Breakdowns!$AA:$AA,"=No"),SUMIFS(Breakdowns!L:L,Breakdowns!$C:$C,"="&$A92)) -> 824 | G92: =IF($P$1,SUMIFS(Breakdowns!M:M,Breakdowns!$C:$C,"="&$A92,Breakdowns!$AA:$AA,"=No"),SUMIFS(Breakdowns!M:M,Breakdowns!$C:$C,"="&$A92)) -> 1716 | H92: =IF($P$1,SUMIFS(Breakdowns!O:O,Breakdowns!$C:$C,"="&$A92,Breakdowns!$AA:$AA,"=No"),SUMIFS(Breakdowns!O:O,Breakdowns!$C:$C,"="&$A92)) -> 807 | I92: =IF($P$1,SUMIFS(Breakdowns!Q:Q,Breakdowns!$C:$C,"="&$A92,Breakdowns!$AA:$AA,"=No"),SUMIFS(Breakdowns!Q:Q,Breakdowns!$C:$C,"="&$A92)) -> 2523 | J92: =IF($P$1,SUMIFS(Breakdowns!S:S,Breakdowns!$C:$C,"="&$A92,Breakdowns!$AA:$AA,"=No"),SUMIFS(Breakdowns!S:S,Breakdowns!$C:$C,"="&$A92)) -> 48333823 | K92: =IF($P$1,SUMIFS(Breakdowns!U:U,Breakdowns!$C:$C,"="&$A92,Breakdowns!$AA:$AA,"=No"),SUMIFS(Breakdowns!U:U,Breakdowns!$C:$C,"="&$A92)) -> 43632147 | L92: =IF($P$1,SUMIFS(Breakdowns!W:W,Breakdowns!$C:$C,"="&$A92,Breakdowns!$AA:$AA,"=No"),SUMIFS(Breakdowns!W:W,Breakdowns!$C:$C,"="&$A92)) -> 3151333 | M92: =IF($P$1,SUMIFS(Breakdowns!Y:Y,Breakdowns!$C:$C,"="&$A92,Breakdowns!$AA:$AA,"=No"),SUMIFS(Breakdowns!Y:Y,Breakdowns!$C:$C,"="&$A92)) -> 3125069
A93: MP | B93: Northern Marianas | F93: =IF($P$1,SUMIFS(Breakdowns!L:L,Breakdowns!$C:$C,"="&$A93,Breakdowns!$AA:$AA,"=No"),SUMIFS(Breakdowns!L:L,Breakdowns!$C:$C,"="&$A93)) -> 0 | G93: =IF($P$1,SUMIFS(Breakdowns!M:M,Breakdowns!$C:$C,"="&$A93,Breakdowns!$AA:$AA,"=No"),SUMIFS(Breakdowns!M:M,Breakdowns!$C:$C,"="&$A93)) -> 0 | H93: =IF($P$1,SUMIFS(Breakdowns!O:O,Breakdowns!$C:$C,"="&$A93,Breakdowns!$AA:$AA,"=No"),SUMIFS(Breakdowns!O:O,Breakdowns!$C:$C,"="&$A93)) -> 0 | I93: =IF($P$1,SUMIFS(Breakdowns!Q:Q,Breakdowns!$C:$C,"="&$A93,Breakdowns!$AA:$AA,"=No"),SUMIFS(Breakdowns!Q:Q,Breakdowns!$C:$C,"="&$A93)) -> 0 | J93: =IF($P$1,SUMIFS(Breakdowns!S:S,Breakdowns!$C:$C,"="&$A93,Breakdowns!$AA:$AA,"=No"),SUMIFS(Breakdowns!S:S,Breakdowns!$C:$C,"="&$A93)) -> 0 | K93: =IF($P$1,SUMIFS(Breakdowns!U:U,Breakdowns!$C:$C,"="&$A93,Breakdowns!$AA:$AA,"=No"),SUMIFS(Breakdowns!U:U,Breakdowns!$C:$C,"="&$A93)) -> 0 | L93: =IF($P$1,SUMIFS(Breakdowns!W:W,Breakdowns!$C:$C,"="&$A93,Breakdowns!$AA:$AA,"=No"),SUMIFS(Breakdowns!W:W,Breakdowns!$C:$C,"="&$A93)) -> 0 | M93: =IF($P$1,SUMIFS(Breakdowns!Y:Y,Breakdowns!$C:$C,"="&$A93,Breakdowns!$AA:$AA,"=No"),SUMIFS(Breakdowns!Y:Y,Breakdowns!$C:$C,"="&$A93)) -> 0
A94: MS | B94: Mississippi | F94: =IF($P$1,SUMIFS(Breakdowns!L:L,Breakdowns!$C:$C,"="&$A94,Breakdowns!$AA:$AA,"=No"),SUMIFS(Breakdowns!L:L,Breakdowns!$C:$C,"="&$A94)) -> 99 | G94: =IF($P$1,SUMIFS(Breakdowns!M:M,Breakdowns!$C:$C,"="&$A94,Breakdowns!$AA:$AA,"=No"),SUMIFS(Breakdowns!M:M,Breakdowns!$C:$C,"="&$A94)) -> 256 | H94: =IF($P$1,SUMIFS(Breakdowns!O:O,Breakdowns!$C:$C,"="&$A94,Breakdowns!$AA:$AA,"=No"),SUMIFS(Breakdowns!O:O,Breakdowns!$C:$C,"="&$A94)) -> 1688 | I94: =IF($P$1,SUMIFS(Breakdowns!Q:Q,Breakdowns!$C:$C,"="&$A94,Breakdowns!$AA:$AA,"=No"),SUMIFS(Breakdowns!Q:Q,Breakdowns!$C:$C,"="&$A94)) -> 1944 | J94: =IF($P$1,SUMIFS(Breakdowns!S:S,Breakdowns!$C:$C,"="&$A94,Breakdowns!$AA:$AA,"=No"),SUMIFS(Breakdowns!S:S,Breakdowns!$C:$C,"="&$A94)) -> 3272533 | K94: =IF($P$1,SUMIFS(Breakdowns!U:U,Breakdowns!$C:$C,"="&$A94,Breakdowns!$AA:$AA,"=No"),SUMIFS(Breakdowns!U:U,Breakdowns!$C:$C,"="&$A94)) -> 3080166 | L94: =IF($P$1,SUMIFS(Breakdowns!W:W,Breakdowns!$C:$C,"="&$A94,Breakdowns!$AA:$AA,"=No"),SUMIFS(Breakdowns!W:W,Breakdowns!$C:$C,"="&$A94)) -> 0 | M94: =IF($P$1,SUMIFS(Breakdowns!Y:Y,Breakdowns!$C:$C,"="&$A94,Breakdowns!$AA:$AA,"=No"),SUMIFS(Breakdowns!Y:Y,Breakdowns!$C:$C,"="&$A94)) -> 0
A95: MT | B95: Montana | F95: =IF($P$1,SUMIFS(Breakdowns!L:L,Breakdowns!$C:$C,"="&$A95,Breakdowns!$AA:$AA,"=No"),SUMIFS(Breakdowns!L:L,Breakdowns!$C:$C,"="&$A95)) -> 89 | G95: =IF($P$1,SUMIFS(Breakdowns!M:M,Breakdowns!$C:$C,"="&$A95,Breakdowns!$AA:$AA,"=No"),SUMIFS(Breakdowns!M:M,Breakdowns!$C:$C,"="&$A95)) -> 456 | H95: =IF($P$1,SUMIFS(Breakdowns!O:O,Breakdowns!$C:$C,"="&$A95,Breakdowns!$AA:$AA,"=No"),SUMIFS(Breakdowns!O:O,Breakdowns!$C:$C,"="&$A95)) -> 438 | I95: =IF($P$1,SUMIFS(Breakdowns!Q:Q,Breakdowns!$C:$C,"="&$A95,Breakdowns!$AA:$AA,"=No"),SUMIFS(Breakdowns!Q:Q,Breakdowns!$C:$C,"="&$A95)) -> 894 | J95: =IF($P$1,SUMIFS(Breakdowns!S:S,Breakdowns!$C:$C,"="&$A95,Breakdowns!$AA:$AA,"=No"),SUMIFS(Breakdowns!S:S,Breakdowns!$C:$C,"="&$A95)) -> 2472034 | K95: =IF($P$1,SUMIFS(Breakdowns!U:U,Breakdowns!$C:$C,"="&$A95,Breakdowns!$AA:$AA,"=No"),SUMIFS(Breakdowns!U:U,Breakdowns!$C:$C,"="&$A95)) -> 2275955 | L95: =IF($P$1,SUMIFS(Breakdowns!W:W,Breakdowns!$C:$C,"="&$A95,Breakdowns!$AA:$AA,"=No"),SUMIFS(Breakdowns!W:W,Breakdowns!$C:$C,"="&$A95)) -> 0 | M95: =IF($P$1,SUMIFS(Breakdowns!Y:Y,Breakdowns!$C:$C,"="&$A95,Breakdowns!$AA:$AA,"=No"),SUMIFS(Breakdowns!Y:Y,Breakdowns!$C:$C,"="&$A95)) -> 0
A96: NC | B96: North Carolina | F96: =IF($P$1,SUMIFS(Breakdowns!L:L,Breakdowns!$C:$C,"="&$A96,Breakdowns!$AA:$AA,"=No"),SUMIFS(Breakdowns!L:L,Breakdowns!$C:$C,"="&$A96)) -> 1320 | G96: =IF($P$1,SUMIFS(Breakdowns!M:M,Breakdowns!$C:$C,"="&$A96,Breakdowns!$AA:$AA,"=No"),SUMIFS(Breakdowns!M:M,Breakdowns!$C:$C,"="&$A96)) -> 3190 | H96: =IF($P$1,SUMIFS(Breakdowns!O:O,Breakdowns!$C:$C,"="&$A96,Breakdowns!$AA:$AA,"=No"),SUMIFS(Breakdowns!O:O,Breakdowns!$C:$C,"="&$A96)) -> 3894 | I96: =IF($P$1,SUMIFS(Breakdowns!Q:Q,Breakdowns!$C:$C,"="&$A96,Breakdowns!$AA:$AA,"=No"),SUMIFS(Breakdowns!Q:Q,Breakdowns!$C:$C,"="&$A96)) -> 7084 | J96: =IF($P$1,SUMIFS(Breakdowns!S:S,Breakdowns!$C:$C,"="&$A96,Breakdowns!$AA:$AA,"=No"),SUMIFS(Breakdowns!S:S,Breakdowns!$C:$C,"="&$A96)) -> 54533124 | K96: =IF($P$1,SUMIFS(Breakdowns!U:U,Breakdowns!$C:$C,"="&$A96,Breakdowns!$AA:$AA,"=No"),SUMIFS(Breakdowns!U:U,Breakdowns!$C:$C,"="&$A96)) -> 48925121 | L96: =IF($P$1,SUMIFS(Breakdowns!W:W,Breakdowns!$C:$C,"="&$A96,Breakdowns!$AA:$AA,"=No"),SUMIFS(Breakdowns!W:W,Breakdowns!$C:$C,"="&$A96)) -> 577598 | M96: =IF($P$1,SUMIFS(Breakdowns!Y:Y,Breakdowns!$C:$C,"="&$A96,Breakdowns!$AA:$AA,"=No"),SUMIFS(Breakdowns!Y:Y,Breakdowns!$C:$C,"="&$A96)) -> 555279
A97: ND | B97: North Dakota | F97: =IF($P$1,SUMIFS(Breakdowns!L:L,Breakdowns!$C:$C,"="&$A97,Breakdowns!$AA:$AA,"=No"),SUMIFS(Breakdowns!L:L,Breakdowns!$C:$C,"="&$A97)) -> 53 | G97: =IF($P$1,SUMIFS(Breakdowns!M:M,Breakdowns!$C:$C,"="&$A97,Breakdowns!$AA:$AA,"=No"),SUMIFS(Breakdowns!M:M,Breakdowns!$C:$C,"="&$A97)) -> 46 | H97: =IF($P$1,SUMIFS(Breakdowns!O:O,Breakdowns!$C:$C,"="&$A97,Breakdowns!$AA:$AA,"=No"),SUMIFS(Breakdowns!O:O,Breakdowns!$C:$C,"="&$A97)) -> 176 | I97: =IF($P$1,SUMIFS(Breakdowns!Q:Q,Breakdowns!$C:$C,"="&$A97,Breakdowns!$AA:$AA,"=No"),SUMIFS(Breakdowns!Q:Q,Breakdowns!$C:$C,"="&$A97)) -> 222 | J97: =IF($P$1,SUMIFS(Breakdowns!S:S,Breakdowns!$C:$C,"="&$A97,Breakdowns!$AA:$AA,"=No"),SUMIFS(Breakdowns!S:S,Breakdowns!$C:$C,"="&$A97)) -> 1938858 | K97: =IF($P$1,SUMIFS(Breakdowns!U:U,Breakdowns!$C:$C,"="&$A97,Breakdowns!$AA:$AA,"=No"),SUMIFS(Breakdowns!U:U,Breakdowns!$C:$C,"="&$A97)) -> 1857305 | L97: =IF($P$1,SUMIFS(Breakdowns!W:W,Breakdowns!$C:$C,"="&$A97,Breakdowns!$AA:$AA,"=No"),SUMIFS(Breakdowns!W:W,Breakdowns!$C:$C,"="&$A97)) -> 0 | M97: =IF($P$1,SUMIFS(Breakdowns!Y:Y,Breakdowns!$C:$C,"="&$A97,Breakdowns!$AA:$AA,"=No"),SUMIFS(Breakdowns!Y:Y,Breakdowns!$C:$C,"="&$A97)) -> 0
A98: NE | B98: Nebraska | F98: =IF($P$1,SUMIFS(Breakdowns!L:L,Breakdowns!$C:$C,"="&$A98,Breakdowns!$AA:$AA,"=No"),SUMIFS(Breakdowns!L:L,Breakdowns!$C:$C,"="&$A98)) -> 177 | G98: =IF($P$1,SUMIFS(Breakdowns!M:M,Breakdowns!$C:$C,"="&$A98,Breakdowns!$AA:$AA,"=No"),SUMIFS(Breakdowns!M:M,Breakdowns!$C:$C,"="&$A98)) -> 450 | H98: =IF($P$1,SUMIFS(Breakdowns!O:O,Breakdowns!$C:$C,"="&$A98,Breakdowns!$AA:$AA,"=No"),SUMIFS(Breakdowns!O:O,Breakdowns!$C:$C,"="&$A98)) -> 2869 | I98: =IF($P$1,SUMIFS(Breakdowns!Q:Q,Breakdowns!$C:$C,"="&$A98,Breakdowns!$AA:$AA,"=No"),SUMIFS(Breakdowns!Q:Q,Breakdowns!$C:$C,"="&$A98)) -> 3319 | J98: =IF($P$1,SUMIFS(Breakdowns!S:S,Breakdowns!$C:$C,"="&$A98,Breakdowns!$AA:$AA,"=No"),SUMIFS(Breakdowns!S:S,Breakdowns!$C:$C,"="&$A98)) -> 6789317 | K98: =IF($P$1,SUMIFS(Breakdowns!U:U,Breakdowns!$C:$C,"="&$A98,Breakdowns!$AA:$AA,"=No"),SUMIFS(Breakdowns!U:U,Breakdowns!$C:$C,"="&$A98)) -> 6653157 | L98: =IF($P$1,SUMIFS(Breakdowns!W:W,Breakdowns!$C:$C,"="&$A98,Breakdowns!$AA:$AA,"=No"),SUMIFS(Breakdowns!W:W,Breakdowns!$C:$C,"="&$A98)) -> 0 | M98: =IF($P$1,SUMIFS(Breakdowns!Y:Y,Breakdowns!$C:$C,"="&$A98,Breakdowns!$AA:$AA,"=No"),SUMIFS(Breakdowns!Y:Y,Breakdowns!$C:$C,"="&$A98)) -> 0
A99: NH | B99: New Hampshire | F99: =IF($P$1,SUMIFS(Breakdowns!L:L,Breakdowns!$C:$C,"="&$A99,Breakdowns!$AA:$AA,"=No"),SUMIFS(Breakdowns!L:L,Breakdowns!$C:$C,"="&$A99)) -> 58 | G99: =IF($P$1,SUMIFS(Breakdowns!M:M,Breakdowns!$C:$C,"="&$A99,Breakdowns!$AA:$AA,"=No"),SUMIFS(Breakdowns!M:M,Breakdowns!$C:$C,"="&$A99)) -> 128 | H99: =IF($P$1,SUMIFS(Breakdowns!O:O,Breakdowns!$C:$C,"="&$A99,Breakdowns!$AA:$AA,"=No"),SUMIFS(Breakdowns!O:O,Breakdowns!$C:$C,"="&$A99)) -> 442 | I99: =IF($P$1,SUMIFS(Breakdowns!Q:Q,Breakdowns!$C:$C,"="&$A99,Breakdowns!$AA:$AA,"=No"),SUMIFS(Breakdowns!Q:Q,Breakdowns!$C:$C,"="&$A99)) -> 570 | J99: =IF($P$1,SUMIFS(Breakdowns!S:S,Breakdowns!$C:$C,"="&$A99,Breakdowns!$AA:$AA,"=No"),SUMIFS(Breakdowns!S:S,Breakdowns!$C:$C,"="&$A99)) -> 2175195 | K99: =IF($P$1,SUMIFS(Breakdowns!U:U,Breakdowns!$C:$C,"="&$A99,Breakdowns!$AA:$AA,"=No"),SUMIFS(Breakdowns!U:U,Breakdowns!$C:$C,"="&$A99)) -> 1948189 | L99: =IF($P$1,SUMIFS(Breakdowns!W:W,Breakdowns!$C:$C,"="&$A99,Breakdowns!$AA:$AA,"=No"),SUMIFS(Breakdowns!W:W,Breakdowns!$C:$C,"="&$A99)) -> 0 | M99: =IF($P$1,SUMIFS(Breakdowns!Y:Y,Breakdowns!$C:$C,"="&$A99,Breakdowns!$AA:$AA,"=No"),SUMIFS(Breakdowns!Y:Y,Breakdowns!$C:$C,"="&$A99)) -> 0
A100: NJ | B100: New Jersey | F100: =IF($P$1,SUMIFS(Breakdowns!L:L,Breakdowns!$C:$C,"="&$A100,Breakdowns!$AA:$AA,"=No"),SUMIFS(Breakdowns!L:L,Breakdowns!$C:$C,"="&$A100)) -> 5581 | G100: =IF($P$1,SUMIFS(Breakdowns!M:M,Breakdowns!$C:$C,"="&$A100,Breakdowns!$AA:$AA,"=No"),SUMIFS(Breakdowns!M:M,Breakdowns!$C:$C,"="&$A100)) -> 8765 | H100: =IF($P$1,SUMIFS(Breakdowns!O:O,Breakdowns!$C:$C,"="&$A100,Breakdowns!$AA:$AA,"=No"),SUMIFS(Breakdowns!O:O,Breakdowns!$C:$C,"="&$A100)) -> 6866 | I100: =IF($P$1,SUMIFS(Breakdowns!Q:Q,Breakdowns!$C:$C,"="&$A100,Breakdowns!$AA:$AA,"=No"),SUMIFS(Breakdowns!Q:Q,Breakdowns!$C:$C,"="&$A100)) -> 15631 | J100: =IF($P$1,SUMIFS(Breakdowns!S:S,Breakdowns!$C:$C,"="&$A100,Breakdowns!$AA:$AA,"=No"),SUMIFS(Breakdowns!S:S,Breakdowns!$C:$C,"="&$A100)) -> 255710318 | K100: =IF($P$1,SUMIFS(Breakdowns!U:U,Breakdowns!$C:$C,"="&$A100,Breakdowns!$AA:$AA,"=No"),SUMIFS(Breakdowns!U:U,Breakdowns!$C:$C,"="&$A100)) -> 218880619 | L100: =IF($P$1,SUMIFS(Breakdowns!W:W,Breakdowns!$C:$C,"="&$A100,Breakdowns!$AA:$AA,"=No"),SUMIFS(Breakdowns!W:W,Breakdowns!$C:$C,"="&$A100)) -> 15167738 | M100: =IF($P$1,SUMIFS(Breakdowns!Y:Y,Breakdowns!$C:$C,"="&$A100,Breakdowns!$AA:$AA,"=No"),SUMIFS(Breakdowns!Y:Y,Breakdowns!$C:$C,"="&$A100)) -> 14515542
A101: NM | B101: New Mexico | F101: =IF($P$1,SUMIFS(Breakdowns!L:L,Breakdowns!$C:$C,"="&$A101,Breakdowns!$AA:$AA,"=No"),SUMIFS(Breakdowns!L:L,Breakdowns!$C:$C,"="&$A101)) -> 287 | G101: =IF($P$1,SUMIFS(Breakdowns!M:M,Breakdowns!$C:$C,"="&$A101,Breakdowns!$AA:$AA,"=No"),SUMIFS(Breakdowns!M:M,Breakdowns!$C:$C,"="&$A101)) -> 210 | H101: =IF($P$1,SUMIFS(Breakdowns!O:O,Breakdowns!$C:$C,"="&$A101,Breakdowns!$AA:$AA,"=No"),SUMIFS(Breakdowns!O:O,Breakdowns!$C:$C,"="&$A101)) -> 394 | I101: =IF($P$1,SUMIFS(Breakdowns!Q:Q,Breakdowns!$C:$C,"="&$A101,Breakdowns!$AA:$AA,"=No"),SUMIFS(Breakdowns!Q:Q,Breakdowns!$C:$C,"="&$A101)) -> 604 | J101: =IF($P$1,SUMIFS(Breakdowns!S:S,Breakdowns!$C:$C,"="&$A101,Breakdowns!$AA:$AA,"=No"),SUMIFS(Breakdowns!S:S,Breakdowns!$C:$C,"="&$A101)) -> 12361989 | K101: =IF($P$1,SUMIFS(Breakdowns!U:U,Breakdowns!$C:$C,"="&$A101,Breakdowns!$AA:$AA,"=No"),SUMIFS(Breakdowns!U:U,Breakdowns!$C:$C,"="&$A101)) -> 10719650 | L101: =IF($P$1,SUMIFS(Breakdowns!W:W,Breakdowns!$C:$C,"="&$A101,Breakdowns!$AA:$AA,"=No"),SUMIFS(Breakdowns!W:W,Breakdowns!$C:$C,"="&$A101)) -> 529477 | M101: =IF($P$1,SUMIFS(Breakdowns!Y:Y,Breakdowns!$C:$C,"="&$A101,Breakdowns!$AA:$AA,"=No"),SUMIFS(Breakdowns!Y:Y,Breakdowns!$C:$C,"="&$A101)) -> 520766
A102: NV | B102: Nevada | F102: =IF($P$1,SUMIFS(Breakdowns!L:L,Breakdowns!$C:$C,"="&$A102,Breakdowns!$AA:$AA,"=No"),SUMIFS(Breakdowns!L:L,Breakdowns!$C:$C,"="&$A102)) -> 867 | G102: =IF($P$1,SUMIFS(Breakdowns!M:M,Breakdowns!$C:$C,"="&$A102,Breakdowns!$AA:$AA,"=No"),SUMIFS(Breakdowns!M:M,Breakdowns!$C:$C,"="&$A102)) -> 1824 | H102: =IF($P$1,SUMIFS(Breakdowns!O:O,Breakdowns!$C:$C,"="&$A102,Breakdowns!$AA:$AA,"=No"),SUMIFS(Breakdowns!O:O,Breakdowns!$C:$C,"="&$A102)) -> 746 | I102: =IF($P$1,SUMIFS(Breakdowns!Q:Q,Breakdowns!$C:$C,"="&$A102,Breakdowns!$AA:$AA,"=No"),SUMIFS(Breakdowns!Q:Q,Breakdowns!$C:$C,"="&$A102)) -> 2570 | J102: =IF($P$1,SUMIFS(Breakdowns!S:S,Breakdowns!$C:$C,"="&$A102,Breakdowns!$AA:$AA,"=No"),SUMIFS(Breakdowns!S:S,Breakdowns!$C:$C,"="&$A102)) -> 39266171 | K102: =IF($P$1,SUMIFS(Breakdowns!U:U,Breakdowns!$C:$C,"="&$A102,Breakdowns!$AA:$AA,"=No"),SUMIFS(Breakdowns!U:U,Breakdowns!$C:$C,"="&$A102)) -> 35552894 | L102: =IF($P$1,SUMIFS(Breakdowns!W:W,Breakdowns!$C:$C,"="&$A102,Breakdowns!$AA:$AA,"=No"),SUMIFS(Breakdowns!W:W,Breakdowns!$C:$C,"="&$A102)) -> 469793 | M102: =IF($P$1,SUMIFS(Breakdowns!Y:Y,Breakdowns!$C:$C,"="&$A102,Breakdowns!$AA:$AA,"=No"),SUMIFS(Breakdowns!Y:Y,Breakdowns!$C:$C,"="&$A102)) -> 466806
A103: NY | B103: New York | F103: =IF($P$1,SUMIFS(Breakdowns!L:L,Breakdowns!$C:$C,"="&$A103,Breakdowns!$AA:$AA,"=No"),SUMIFS(Breakdowns!L:L,Breakdowns!$C:$C,"="&$A103)) -> 16881 | G103: =IF($P$1,SUMIFS(Breakdowns!M:M,Breakdowns!$C:$C,"="&$A103,Breakdowns!$AA:$AA,"=No"),SUMIFS(Breakdowns!M:M,Breakdowns!$C:$C,"="&$A103)) -> 29694 | H103: =IF($P$1,SUMIFS(Breakdowns!O:O,Breakdowns!$C:$C,"="&$A103,Breakdowns!$AA:$AA,"=No"),SUMIFS(Breakdowns!O:O,Breakdowns!$C:$C,"="&$A103)) -> 29582 | I103: =IF($P$1,SUMIFS(Breakdowns!Q:Q,Breakdowns!$C:$C,"="&$A103,Breakdowns!$AA:$AA,"=No"),SUMIFS(Breakdowns!Q:Q,Breakdowns!$C:$C,"="&$A103)) -> 59276 | J103: =IF($P$1,SUMIFS(Breakdowns!S:S,Breakdowns!$C:$C,"="&$A103,Breakdowns!$AA:$AA,"=No"),SUMIFS(Breakdowns!S:S,Breakdowns!$C:$C,"="&$A103)) -> 835706649 | K103: =IF($P$1,SUMIFS(Breakdowns!U:U,Breakdowns!$C:$C,"="&$A103,Breakdowns!$AA:$AA,"=No"),SUMIFS(Breakdowns!U:U,Breakdowns!$C:$C,"="&$A103)) -> 752151098 | L103: =IF($P$1,SUMIFS(Breakdowns!W:W,Breakdowns!$C:$C,"="&$A103,Breakdowns!$AA:$AA,"=No"),SUMIFS(Breakdowns!W:W,Breakdowns!$C:$C,"="&$A103)) -> 59863658 | M103: =IF($P$1,SUMIFS(Breakdowns!Y:Y,Breakdowns!$C:$C,"="&$A103,Breakdowns!$AA:$AA,"=No"),SUMIFS(Breakdowns!Y:Y,Breakdowns!$C:$C,"="&$A103)) -> 56387182
A104: OH | B104: Ohio | F104: =IF($P$1,SUMIFS(Breakdowns!L:L,Breakdowns!$C:$C,"="&$A104,Breakdowns!$AA:$AA,"=No"),SUMIFS(Breakdowns!L:L,Breakdowns!$C:$C,"="&$A104)) -> 2432 | G104: =IF($P$1,SUMIFS(Breakdowns!M:M,Breakdowns!$C:$C,"="&$A104,Breakdowns!$AA:$AA,"=No"),SUMIFS(Breakdowns!M:M,Breakdowns!$C:$C,"="&$A104)) -> 12611 | H104: =IF($P$1,SUMIFS(Breakdowns!O:O,Breakdowns!$C:$C,"="&$A104,Breakdowns!$AA:$AA,"=No"),SUMIFS(Breakdowns!O:O,Breakdowns!$C:$C,"="&$A104)) -> 9794 | I104: =IF($P$1,SUMIFS(Breakdowns!Q:Q,Breakdowns!$C:$C,"="&$A104,Breakdowns!$AA:$AA,"=No"),SUMIFS(Breakdowns!Q:Q,Breakdowns!$C:$C,"="&$A104)) -> 22405 | J104: =IF($P$1,SUMIFS(Breakdowns!S:S,Breakdowns!$C:$C,"="&$A104,Breakdowns!$AA:$AA,"=No"),SUMIFS(Breakdowns!S:S,Breakdowns!$C:$C,"="&$A104)) -> 100702575 | K104: =IF($P$1,SUMIFS(Breakdowns!U:U,Breakdowns!$C:$C,"="&$A104,Breakdowns!$AA:$AA,"=No"),SUMIFS(Breakdowns!U:U,Breakdowns!$C:$C,"="&$A104)) -> 86842641 | L104: =IF($P$1,SUMIFS(Breakdowns!W:W,Breakdowns!$C:$C,"="&$A104,Breakdowns!$AA:$AA,"=No"),SUMIFS(Breakdowns!W:W,Breakdowns!$C:$C,"="&$A104)) -> 2140902 | M104: =IF($P$1,SUMIFS(Breakdowns!Y:Y,Breakdowns!$C:$C,"="&$A104,Breakdowns!$AA:$AA,"=No"),SUMIFS(Breakdowns!Y:Y,Breakdowns!$C:$C,"="&$A104)) -> 2128137
A105: OK | B105: Oklahoma | F105: =IF($P$1,SUMIFS(Breakdowns!L:L,Breakdowns!$C:$C,"="&$A105,Breakdowns!$AA:$AA,"=No"),SUMIFS(Breakdowns!L:L,Breakdowns!$C:$C,"="&$A105)) -> 164 | G105: =IF($P$1,SUMIFS(Breakdowns!M:M,Breakdowns!$C:$C,"="&$A105,Breakdowns!$AA:$AA,"=No"),SUMIFS(Breakdowns!M:M,Breakdowns!$C:$C,"="&$A105)) -> 451 | H105: =IF($P$1,SUMIFS(Breakdowns!O:O,Breakdowns!$C:$C,"="&$A105,Breakdowns!$AA:$AA,"=No"),SUMIFS(Breakdowns!O:O,Breakdowns!$C:$C,"="&$A105)) -> 154 | I105: =IF($P$1,SUMIFS(Breakdowns!Q:Q,Breakdowns!$C:$C,"="&$A105,Breakdowns!$AA:$AA,"=No"),SUMIFS(Breakdowns!Q:Q,Breakdowns!$C:$C,"="&$A105)) -> 605 | J105: =IF($P$1,SUMIFS(Breakdowns!S:S,Breakdowns!$C:$C,"="&$A105,Breakdowns!$AA:$AA,"=No"),SUMIFS(Breakdowns!S:S,Breakdowns!$C:$C,"="&$A105)) -> 7764250 | K105: =IF($P$1,SUMIFS(Breakdowns!U:U,Breakdowns!$C:$C,"="&$A105,Breakdowns!$AA:$AA,"=No"),SUMIFS(Breakdowns!U:U,Breakdowns!$C:$C,"="&$A105)) -> 7339795 | L105: =IF($P$1,SUMIFS(Breakdowns!W:W,Breakdowns!$C:$C,"="&$A105,Breakdowns!$AA:$AA,"=No"),SUMIFS(Breakdowns!W:W,Breakdowns!$C:$C,"="&$A105)) -> 0 | M105: =IF($P$1,SUMIFS(Breakdowns!Y:Y,Breakdowns!$C:$C,"="&$A105,Breakdowns!$AA:$AA,"=No"),SUMIFS(Breakdowns!Y:Y,Breakdowns!$C:$C,"="&$A105)) -> 0
A106: OR | B106: Oregon | F106: =IF($P$1,SUMIFS(Breakdowns!L:L,Breakdowns!$C:$C,"="&$A106,Breakdowns!$AA:$AA,"=No"),SUMIFS(Breakdowns!L:L,Breakdowns!$C:$C,"="&$A106)) -> 1421 | G106: =IF($P$1,SUMIFS(Breakdowns!M:M,Breakdowns!$C:$C,"="&$A106,Breakdowns!$AA:$AA,"=No"),SUMIFS(Breakdowns!M:M,Breakdowns!$C:$C,"="&$A106)) -> 2678 | H106: =IF($P$1,SUMIFS(Breakdowns!O:O,Breakdowns!$C:$C,"="&$A106,Breakdowns!$AA:$AA,"=No"),SUMIFS(Breakdowns!O:O,Breakdowns!$C:$C,"="&$A106)) -> 6149 | I106: =IF($P$1,SUMIFS(Breakdowns!Q:Q,Breakdowns!$C:$C,"="&$A106,Breakdowns!$AA:$AA,"=No"),SUMIFS(Breakdowns!Q:Q,Breakdowns!$C:$C,"="&$A106)) -> 8827 | J106: =IF($P$1,SUMIFS(Breakdowns!S:S,Breakdowns!$C:$C,"="&$A106,Breakdowns!$AA:$AA,"=No"),SUMIFS(Breakdowns!S:S,Breakdowns!$C:$C,"="&$A106)) -> 58546134 | K106: =IF($P$1,SUMIFS(Breakdowns!U:U,Breakdowns!$C:$C,"="&$A106,Breakdowns!$AA:$AA,"=No"),SUMIFS(Breakdowns!U:U,Breakdowns!$C:$C,"="&$A106)) -> 52282088 | L106: =IF($P$1,SUMIFS(Breakdowns!W:W,Breakdowns!$C:$C,"="&$A106,Breakdowns!$AA:$AA,"=No"),SUMIFS(Breakdowns!W:W,Breakdowns!$C:$C,"="&$A106)) -> 5029302 | M106: =IF($P$1,SUMIFS(Breakdowns!Y:Y,Breakdowns!$C:$C,"="&$A106,Breakdowns!$AA:$AA,"=No"),SUMIFS(Breakdowns!Y:Y,Breakdowns!$C:$C,"="&$A106)) -> 4952641
A107: PA | B107: Pennsylvania | F107: =IF($P$1,SUMIFS(Breakdowns!L:L,Breakdowns!$C:$C,"="&$A107,Breakdowns!$AA:$AA,"=No"),SUMIFS(Breakdowns!L:L,Breakdowns!$C:$C,"="&$A107)) -> 4874 | G107: =IF($P$1,SUMIFS(Breakdowns!M:M,Breakdowns!$C:$C,"="&$A107,Breakdowns!$AA:$AA,"=No"),SUMIFS(Breakdowns!M:M,Breakdowns!$C:$C,"="&$A107)) -> 11231 | H107: =IF($P$1,SUMIFS(Breakdowns!O:O,Breakdowns!$C:$C,"="&$A107,Breakdowns!$AA:$AA,"=No"),SUMIFS(Breakdowns!O:O,Breakdowns!$C:$C,"="&$A107)) -> 12318 | I107: =IF($P$1,SUMIFS(Breakdowns!Q:Q,Breakdowns!$C:$C,"="&$A107,Breakdowns!$AA:$AA,"=No"),SUMIFS(Breakdowns!Q:Q,Breakdowns!$C:$C,"="&$A107)) -> 23549 | J107: =IF($P$1,SUMIFS(Breakdowns!S:S,Breakdowns!$C:$C,"="&$A107,Breakdowns!$AA:$AA,"=No"),SUMIFS(Breakdowns!S:S,Breakdowns!$C:$C,"="&$A107)) -> 201050544 | K107: =IF($P$1,SUMIFS(Breakdowns!U:U,Breakdowns!$C:$C,"="&$A107,Breakdowns!$AA:$AA,"=No"),SUMIFS(Breakdowns!U:U,Breakdowns!$C:$C,"="&$A107)) -> 177696394 | L107: =IF($P$1,SUMIFS(Breakdowns!W:W,Breakdowns!$C:$C,"="&$A107,Breakdowns!$AA:$AA,"=No"),SUMIFS(Breakdowns!W:W,Breakdowns!$C:$C,"="&$A107)) -> 14480539 | M107: =IF($P$1,SUMIFS(Breakdowns!Y:Y,Breakdowns!$C:$C,"="&$A107,Breakdowns!$AA:$AA,"=No"),SUMIFS(Breakdowns!Y:Y,Breakdowns!$C:$C,"="&$A107)) -> 13958243
A108: PR | B108: Puerto Rico | F108: =IF($P$1,SUMIFS(Breakdowns!L:L,Breakdowns!$C:$C,"="&$A108,Breakdowns!$AA:$AA,"=No"),SUMIFS(Breakdowns!L:L,Breakdowns!$C:$C,"="&$A108)) -> 186 | G108: =IF($P$1,SUMIFS(Breakdowns!M:M,Breakdowns!$C:$C,"="&$A108,Breakdowns!$AA:$AA,"=No"),SUMIFS(Breakdowns!M:M,Breakdowns!$C:$C,"="&$A108)) -> 3901 | H108: =IF($P$1,SUMIFS(Breakdowns!O:O,Breakdowns!$C:$C,"="&$A108,Breakdowns!$AA:$AA,"=No"),SUMIFS(Breakdowns!O:O,Breakdowns!$C:$C,"="&$A108)) -> 4520 | I108: =IF($P$1,SUMIFS(Breakdowns!Q:Q,Breakdowns!$C:$C,"="&$A108,Breakdowns!$AA:$AA,"=No"),SUMIFS(Breakdowns!Q:Q,Breakdowns!$C:$C,"="&$A108)) -> 8421 | J108: =IF($P$1,SUMIFS(Breakdowns!S:S,Breakdowns!$C:$C,"="&$A108,Breakdowns!$AA:$AA,"=No"),SUMIFS(Breakdowns!S:S,Breakdowns!$C:$C,"="&$A108)) -> 6502449 | K108: =IF($P$1,SUMIFS(Breakdowns!U:U,Breakdowns!$C:$C,"="&$A108,Breakdowns!$AA:$AA,"=No"),SUMIFS(Breakdowns!U:U,Breakdowns!$C:$C,"="&$A108)) -> 5827421 | L108: =IF($P$1,SUMIFS(Breakdowns!W:W,Breakdowns!$C:$C,"="&$A108,Breakdowns!$AA:$AA,"=No"),SUMIFS(Breakdowns!W:W,Breakdowns!$C:$C,"="&$A108)) -> 625384 | M108: =IF($P$1,SUMIFS(Breakdowns!Y:Y,Breakdowns!$C:$C,"="&$A108,Breakdowns!$AA:$AA,"=No"),SUMIFS(Breakdowns!Y:Y,Breakdowns!$C:$C,"="&$A108)) -> 592614
A109: RI | B109: Rhode Island | F109: =IF($P$1,SUMIFS(Breakdowns!L:L,Breakdowns!$C:$C,"="&$A109,Breakdowns!$AA:$AA,"=No"),SUMIFS(Breakdowns!L:L,Breakdowns!$C:$C,"="&$A109)) -> 283 | G109: =IF($P$1,SUMIFS(Breakdowns!M:M,Breakdowns!$C:$C,"="&$A109,Breakdowns!$AA:$AA,"=No"),SUMIFS(Breakdowns!M:M,Breakdowns!$C:$C,"="&$A109)) -> 774 | H109: =IF($P$1,SUMIFS(Breakdowns!O:O,Breakdowns!$C:$C,"="&$A109,Breakdowns!$AA:$AA,"=No"),SUMIFS(Breakdowns!O:O,Breakdowns!$C:$C,"="&$A109)) -> 1412 | I109: =IF($P$1,SUMIFS(Breakdowns!Q:Q,Breakdowns!$C:$C,"="&$A109,Breakdowns!$AA:$AA,"=No"),SUMIFS(Breakdowns!Q:Q,Breakdowns!$C:$C,"="&$A109)) -> 2186 | J109: =IF($P$1,SUMIFS(Breakdowns!S:S,Breakdowns!$C:$C,"="&$A109,Breakdowns!$AA:$AA,"=No"),SUMIFS(Breakdowns!S:S,Breakdowns!$C:$C,"="&$A109)) -> 13052039 | K109: =IF($P$1,SUMIFS(Breakdowns!U:U,Breakdowns!$C:$C,"="&$A109,Breakdowns!$AA:$AA,"=No"),SUMIFS(Breakdowns!U:U,Breakdowns!$C:$C,"="&$A109)) -> 11029508 | L109: =IF($P$1,SUMIFS(Breakdowns!W:W,Breakdowns!$C:$C,"="&$A109,Breakdowns!$AA:$AA,"=No"),SUMIFS(Breakdowns!W:W,Breakdowns!$C:$C,"="&$A109)) -> 0 | M109: =IF($P$1,SUMIFS(Breakdowns!Y:Y,Breakdowns!$C:$C,"="&$A109,Breakdowns!$AA:$AA,"=No"),SUMIFS(Breakdowns!Y:Y,Breakdowns!$C:$C,"="&$A109)) -> 0
A110: SC | B110: South Carolina | F110: =IF($P$1,SUMIFS(Breakdowns!L:L,Breakdowns!$C:$C,"="&$A110,Breakdowns!$AA:$AA,"=No"),SUMIFS(Breakdowns!L:L,Breakdowns!$C:$C,"="&$A110)) -> 273 | G110: =IF($P$1,SUMIFS(Breakdowns!M:M,Breakdowns!$C:$C,"="&$A110,Breakdowns!$AA:$AA,"=No"),SUMIFS(Breakdowns!M:M,Breakdowns!$C:$C,"="&$A110)) -> 1538 | H110: =IF($P$1,SUMIFS(Breakdowns!O:O,Breakdowns!$C:$C,"="&$A110,Breakdowns!$AA:$AA,"=No"),SUMIFS(Breakdowns!O:O,Breakdowns!$C:$C,"="&$A110)) -> 1107 | I110: =IF($P$1,SUMIFS(Breakdowns!Q:Q,Breakdowns!$C:$C,"="&$A110,Breakdowns!$AA:$AA,"=No"),SUMIFS(Breakdowns!Q:Q,Breakdowns!$C:$C,"="&$A110)) -> 2645 | J110: =IF($P$1,SUMIFS(Breakdowns!S:S,Breakdowns!$C:$C,"="&$A110,Breakdowns!$AA:$AA,"=No"),SUMIFS(Breakdowns!S:S,Breakdowns!$C:$C,"="&$A110)) -> 10938967 | K110: =IF($P$1,SUMIFS(Breakdowns!U:U,Breakdowns!$C:$C,"="&$A110,Breakdowns!$AA:$AA,"=No"),SUMIFS(Breakdowns!U:U,Breakdowns!$C:$C,"="&$A110)) -> 10183042 | L110: =IF($P$1,SUMIFS(Breakdowns!W:W,Breakdowns!$C:$C,"="&$A110,Breakdowns!$AA:$AA,"=No"),SUMIFS(Breakdowns!W:W,Breakdowns!$C:$C,"="&$A110)) -> 0 | M110: =IF($P$1,SUMIFS(Breakdowns!Y:Y,Breakdowns!$C:$C,"="&$A110,Breakdowns!$AA:$AA,"=No"),SUMIFS(Breakdowns!Y:Y,Breakdowns!$C:$C,"="&$A110)) -> 0
A111: SD | B111: South Dakota | F111: =IF($P$1,SUMIFS(Breakdowns!L:L,Breakdowns!$C:$C,"="&$A111,Breakdowns!$AA:$AA,"=No"),SUMIFS(Breakdowns!L:L,Breakdowns!$C:$C,"="&$A111)) -> 42 | G111: =IF($P$1,SUMIFS(Breakdowns!M:M,Breakdowns!$C:$C,"="&$A111,Breakdowns!$AA:$AA,"=No"),SUMIFS(Breakdowns!M:M,Breakdowns!$C:$C,"="&$A111)) -> 47 | H111: =IF($P$1,SUMIFS(Breakdowns!O:O,Breakdowns!$C:$C,"="&$A111,Breakdowns!$AA:$AA,"=No"),SUMIFS(Breakdowns!O:O,Breakdowns!$C:$C,"="&$A111)) -> 56 | I111: =IF($P$1,SUMIFS(Breakdowns!Q:Q,Breakdowns!$C:$C,"="&$A111,Breakdowns!$AA:$AA,"=No"),SUMIFS(Breakdowns!Q:Q,Breakdowns!$C:$C,"="&$A111)) -> 103 | J111: =IF($P$1,SUMIFS(Breakdowns!S:S,Breakdowns!$C:$C,"="&$A111,Breakdowns!$AA:$AA,"=No"),SUMIFS(Breakdowns!S:S,Breakdowns!$C:$C,"="&$A111)) -> 1342102 | K111: =IF($P$1,SUMIFS(Breakdowns!U:U,Breakdowns!$C:$C,"="&$A111,Breakdowns!$AA:$AA,"=No"),SUMIFS(Breakdowns!U:U,Breakdowns!$C:$C,"="&$A111)) -> 1323018 | L111: =IF($P$1,SUMIFS(Breakdowns!W:W,Breakdowns!$C:$C,"="&$A111,Breakdowns!$AA:$AA,"=No"),SUMIFS(Breakdowns!W:W,Breakdowns!$C:$C,"="&$A111)) -> 0 | M111: =IF($P$1,SUMIFS(Breakdowns!Y:Y,Breakdowns!$C:$C,"="&$A111,Breakdowns!$AA:$AA,"=No"),SUMIFS(Breakdowns!Y:Y,Breakdowns!$C:$C,"="&$A111)) -> 0
A112: TN | B112: Tennessee | F112: =IF($P$1,SUMIFS(Breakdowns!L:L,Breakdowns!$C:$C,"="&$A112,Breakdowns!$AA:$AA,"=No"),SUMIFS(Breakdowns!L:L,Breakdowns!$C:$C,"="&$A112)) -> 658 | G112: =IF($P$1,SUMIFS(Breakdowns!M:M,Breakdowns!$C:$C,"="&$A112,Breakdowns!$AA:$AA,"=No"),SUMIFS(Breakdowns!M:M,Breakdowns!$C:$C,"="&$A112)) -> 1830 | H112: =IF($P$1,SUMIFS(Breakdowns!O:O,Breakdowns!$C:$C,"="&$A112,Breakdowns!$AA:$AA,"=No"),SUMIFS(Breakdowns!O:O,Breakdowns!$C:$C,"="&$A112)) -> 2696 | I112: =IF($P$1,SUMIFS(Breakdowns!Q:Q,Breakdowns!$C:$C,"="&$A112,Breakdowns!$AA:$AA,"=No"),SUMIFS(Breakdowns!Q:Q,Breakdowns!$C:$C,"="&$A112)) -> 4526 | J112: =IF($P$1,SUMIFS(Breakdowns!S:S,Breakdowns!$C:$C,"="&$A112,Breakdowns!$AA:$AA,"=No"),SUMIFS(Breakdowns!S:S,Breakdowns!$C:$C,"="&$A112)) -> 27830918 | K112: =IF($P$1,SUMIFS(Breakdowns!U:U,Breakdowns!$C:$C,"="&$A112,Breakdowns!$AA:$AA,"=No"),SUMIFS(Breakdowns!U:U,Breakdowns!$C:$C,"="&$A112)) -> 24503900 | L112: =IF($P$1,SUMIFS(Breakdowns!W:W,Breakdowns!$C:$C,"="&$A112,Breakdowns!$AA:$AA,"=No"),SUMIFS(Breakdowns!W:W,Breakdowns!$C:$C,"="&$A112)) -> 108793 | M112: =IF($P$1,SUMIFS(Breakdowns!Y:Y,Breakdowns!$C:$C,"="&$A112,Breakdowns!$AA:$AA,"=No"),SUMIFS(Breakdowns!Y:Y,Breakdowns!$C:$C,"="&$A112)) -> 103811
A113: TX | B113: Texas | F113: =IF($P$1,SUMIFS(Breakdowns!L:L,Breakdowns!$C:$C,"="&$A113,Breakdowns!$AA:$AA,"=No"),SUMIFS(Breakdowns!L:L,Breakdowns!$C:$C,"="&$A113)) -> 6037 | G113: =IF($P$1,SUMIFS(Breakdowns!M:M,Breakdowns!$C:$C,"="&$A113,Breakdowns!$AA:$AA,"=No"),SUMIFS(Breakdowns!M:M,Breakdowns!$C:$C,"="&$A113)) -> 15770 | H113: =IF($P$1,SUMIFS(Breakdowns!O:O,Breakdowns!$C:$C,"="&$A113,Breakdowns!$AA:$AA,"=No"),SUMIFS(Breakdowns!O:O,Breakdowns!$C:$C,"="&$A113)) -> 13745 | I113: =IF($P$1,SUMIFS(Breakdowns!Q:Q,Breakdowns!$C:$C,"="&$A113,Breakdowns!$AA:$AA,"=No"),SUMIFS(Breakdowns!Q:Q,Breakdowns!$C:$C,"="&$A113)) -> 29515 | J113: =IF($P$1,SUMIFS(Breakdowns!S:S,Breakdowns!$C:$C,"="&$A113,Breakdowns!$AA:$AA,"=No"),SUMIFS(Breakdowns!S:S,Breakdowns!$C:$C,"="&$A113)) -> 257378607 | K113: =IF($P$1,SUMIFS(Breakdowns!U:U,Breakdowns!$C:$C,"="&$A113,Breakdowns!$AA:$AA,"=No"),SUMIFS(Breakdowns!U:U,Breakdowns!$C:$C,"="&$A113)) -> 226568329 | L113: =IF($P$1,SUMIFS(Breakdowns!W:W,Breakdowns!$C:$C,"="&$A113,Breakdowns!$AA:$AA,"=No"),SUMIFS(Breakdowns!W:W,Breakdowns!$C:$C,"="&$A113)) -> 8770142 | M113: =IF($P$1,SUMIFS(Breakdowns!Y:Y,Breakdowns!$C:$C,"="&$A113,Breakdowns!$AA:$AA,"=No"),SUMIFS(Breakdowns!Y:Y,Breakdowns!$C:$C,"="&$A113)) -> 8586635
A114: UT | B114: Utah | F114: =IF($P$1,SUMIFS(Breakdowns!L:L,Breakdowns!$C:$C,"="&$A114,Breakdowns!$AA:$AA,"=No"),SUMIFS(Breakdowns!L:L,Breakdowns!$C:$C,"="&$A114)) -> 1109 | G114: =IF($P$1,SUMIFS(Breakdowns!M:M,Breakdowns!$C:$C,"="&$A114,Breakdowns!$AA:$AA,"=No"),SUMIFS(Breakdowns!M:M,Breakdowns!$C:$C,"="&$A114)) -> 1429 | H114: =IF($P$1,SUMIFS(Breakdowns!O:O,Breakdowns!$C:$C,"="&$A114,Breakdowns!$AA:$AA,"=No"),SUMIFS(Breakdowns!O:O,Breakdowns!$C:$C,"="&$A114)) -> 902 | I114: =IF($P$1,SUMIFS(Breakdowns!Q:Q,Breakdowns!$C:$C,"="&$A114,Breakdowns!$AA:$AA,"=No"),SUMIFS(Breakdowns!Q:Q,Breakdowns!$C:$C,"="&$A114)) -> 2331 | J114: =IF($P$1,SUMIFS(Breakdowns!S:S,Breakdowns!$C:$C,"="&$A114,Breakdowns!$AA:$AA,"=No"),SUMIFS(Breakdowns!S:S,Breakdowns!$C:$C,"="&$A114)) -> 42108434 | K114: =IF($P$1,SUMIFS(Breakdowns!U:U,Breakdowns!$C:$C,"="&$A114,Breakdowns!$AA:$AA,"=No"),SUMIFS(Breakdowns!U:U,Breakdowns!$C:$C,"="&$A114)) -> 38899486 | L114: =IF($P$1,SUMIFS(Breakdowns!W:W,Breakdowns!$C:$C,"="&$A114,Breakdowns!$AA:$AA,"=No"),SUMIFS(Breakdowns!W:W,Breakdowns!$C:$C,"="&$A114)) -> 4328385 | M114: =IF($P$1,SUMIFS(Breakdowns!Y:Y,Breakdowns!$C:$C,"="&$A114,Breakdowns!$AA:$AA,"=No"),SUMIFS(Breakdowns!Y:Y,Breakdowns!$C:$C,"="&$A114)) -> 4278468
A115: VA | B115: Virginia | F115: =IF($P$1,SUMIFS(Breakdowns!L:L,Breakdowns!$C:$C,"="&$A115,Breakdowns!$AA:$AA,"=No"),SUMIFS(Breakdowns!L:L,Breakdowns!$C:$C,"="&$A115)) -> 2058 | G115: =IF($P$1,SUMIFS(Breakdowns!M:M,Breakdowns!$C:$C,"="&$A115,Breakdowns!$AA:$AA,"=No"),SUMIFS(Breakdowns!M:M,Breakdowns!$C:$C,"="&$A115)) -> 4723 | H115: =IF($P$1,SUMIFS(Breakdowns!O:O,Breakdowns!$C:$C,"="&$A115,Breakdowns!$AA:$AA,"=No"),SUMIFS(Breakdowns!O:O,Breakdowns!$C:$C,"="&$A115)) -> 4704 | I115: =IF($P$1,SUMIFS(Breakdowns!Q:Q,Breakdowns!$C:$C,"="&$A115,Breakdowns!$AA:$AA,"=No"),SUMIFS(Breakdowns!Q:Q,Breakdowns!$C:$C,"="&$A115)) -> 9427 | J115: =IF($P$1,SUMIFS(Breakdowns!S:S,Breakdowns!$C:$C,"="&$A115,Breakdowns!$AA:$AA,"=No"),SUMIFS(Breakdowns!S:S,Breakdowns!$C:$C,"="&$A115)) -> 74383789 | K115: =IF($P$1,SUMIFS(Breakdowns!U:U,Breakdowns!$C:$C,"="&$A115,Breakdowns!$AA:$AA,"=No"),SUMIFS(Breakdowns!U:U,Breakdowns!$C:$C,"="&$A115)) -> 66073383 | L115: =IF($P$1,SUMIFS(Breakdowns!W:W,Breakdowns!$C:$C,"="&$A115,Breakdowns!$AA:$AA,"=No"),SUMIFS(Breakdowns!W:W,Breakdowns!$C:$C,"="&$A115)) -> 785089 | M115: =IF($P$1,SUMIFS(Breakdowns!Y:Y,Breakdowns!$C:$C,"="&$A115,Breakdowns!$AA:$AA,"=No"),SUMIFS(Breakdowns!Y:Y,Breakdowns!$C:$C,"="&$A115)) -> 746400
A116: VI | B116: Virgin Islands | F116: =IF($P$1,SUMIFS(Breakdowns!L:L,Breakdowns!$C:$C,"="&$A116,Breakdowns!$AA:$AA,"=No"),SUMIFS(Breakdowns!L:L,Breakdowns!$C:$C,"="&$A116)) -> 0 | G116: =IF($P$1,SUMIFS(Breakdowns!M:M,Breakdowns!$C:$C,"="&$A116,Breakdowns!$AA:$AA,"=No"),SUMIFS(Breakdowns!M:M,Breakdowns!$C:$C,"="&$A116)) -> 0 | H116: =IF($P$1,SUMIFS(Breakdowns!O:O,Breakdowns!$C:$C,"="&$A116,Breakdowns!$AA:$AA,"=No"),SUMIFS(Breakdowns!O:O,Breakdowns!$C:$C,"="&$A116)) -> 0 | I116: =IF($P$1,SUMIFS(Breakdowns!Q:Q,Breakdowns!$C:$C,"="&$A116,Breakdowns!$AA:$AA,"=No"),SUMIFS(Breakdowns!Q:Q,Breakdowns!$C:$C,"="&$A116)) -> 0 | J116: =IF($P$1,SUMIFS(Breakdowns!S:S,Breakdowns!$C:$C,"="&$A116,Breakdowns!$AA:$AA,"=No"),SUMIFS(Breakdowns!S:S,Breakdowns!$C:$C,"="&$A116)) -> 0 | K116: =IF($P$1,SUMIFS(Breakdowns!U:U,Breakdowns!$C:$C,"="&$A116,Breakdowns!$AA:$AA,"=No"),SUMIFS(Breakdowns!U:U,Breakdowns!$C:$C,"="&$A116)) -> 0 | L116: =IF($P$1,SUMIFS(Breakdowns!W:W,Breakdowns!$C:$C,"="&$A116,Breakdowns!$AA:$AA,"=No"),SUMIFS(Breakdowns!W:W,Breakdowns!$C:$C,"="&$A116)) -> 0 | M116: =IF($P$1,SUMIFS(Breakdowns!Y:Y,Breakdowns!$C:$C,"="&$A116,Breakdowns!$AA:$AA,"=No"),SUMIFS(Breakdowns!Y:Y,Breakdowns!$C:$C,"="&$A116)) -> 0
A117: VT | B117: Vermont | F117: =IF($P$1,SUMIFS(Breakdowns!L:L,Breakdowns!$C:$C,"="&$A117,Breakdowns!$AA:$AA,"=No"),SUMIFS(Breakdowns!L:L,Breakdowns!$C:$C,"="&$A117)) -> 74 | G117: =IF($P$1,SUMIFS(Breakdowns!M:M,Breakdowns!$C:$C,"="&$A117,Breakdowns!$AA:$AA,"=No"),SUMIFS(Breakdowns!M:M,Breakdowns!$C:$C,"="&$A117)) -> 106 | H117: =IF($P$1,SUMIFS(Breakdowns!O:O,Breakdowns!$C:$C,"="&$A117,Breakdowns!$AA:$AA,"=No"),SUMIFS(Breakdowns!O:O,Breakdowns!$C:$C,"="&$A117)) -> 109 | I117: =IF($P$1,SUMIFS(Breakdowns!Q:Q,Breakdowns!$C:$C,"="&$A117,Breakdowns!$AA:$AA,"=No"),SUMIFS(Breakdowns!Q:Q,Breakdowns!$C:$C,"="&$A117)) -> 215 | J117: =IF($P$1,SUMIFS(Breakdowns!S:S,Breakdowns!$C:$C,"="&$A117,Breakdowns!$AA:$AA,"=No"),SUMIFS(Breakdowns!S:S,Breakdowns!$C:$C,"="&$A117)) -> 2205158 | K117: =IF($P$1,SUMIFS(Breakdowns!U:U,Breakdowns!$C:$C,"="&$A117,Breakdowns!$AA:$AA,"=No"),SUMIFS(Breakdowns!U:U,Breakdowns!$C:$C,"="&$A117)) -> 1966632 | L117: =IF($P$1,SUMIFS(Breakdowns!W:W,Breakdowns!$C:$C,"="&$A117,Breakdowns!$AA:$AA,"=No"),SUMIFS(Breakdowns!W:W,Breakdowns!$C:$C,"="&$A117)) -> 0 | M117: =IF($P$1,SUMIFS(Breakdowns!Y:Y,Breakdowns!$C:$C,"="&$A117,Breakdowns!$AA:$AA,"=No"),SUMIFS(Breakdowns!Y:Y,Breakdowns!$C:$C,"="&$A117)) -> 0
A118: WA | B118: Washington | F118: =IF($P$1,SUMIFS(Breakdowns!L:L,Breakdowns!$C:$C,"="&$A118,Breakdowns!$AA:$AA,"=No"),SUMIFS(Breakdowns!L:L,Breakdowns!$C:$C,"="&$A118)) -> 6125 | G118: =IF($P$1,SUMIFS(Breakdowns!M:M,Breakdowns!$C:$C,"="&$A118,Breakdowns!$AA:$AA,"=No"),SUMIFS(Breakdowns!M:M,Breakdowns!$C:$C,"="&$A118)) -> 15183 | H118: =IF($P$1,SUMIFS(Breakdowns!O:O,Breakdowns!$C:$C,"="&$A118,Breakdowns!$AA:$AA,"=No"),SUMIFS(Breakdowns!O:O,Breakdowns!$C:$C,"="&$A118)) -> 13343 | I118: =IF($P$1,SUMIFS(Breakdowns!Q:Q,Breakdowns!$C:$C,"="&$A118,Breakdowns!$AA:$AA,"=No"),SUMIFS(Breakdowns!Q:Q,Breakdowns!$C:$C,"="&$A118)) -> 28526 | J118: =IF($P$1,SUMIFS(Breakdowns!S:S,Breakdowns!$C:$C,"="&$A118,Breakdowns!$AA:$AA,"=No"),SUMIFS(Breakdowns!S:S,Breakdowns!$C:$C,"="&$A118)) -> 172128973 | K118: =IF($P$1,SUMIFS(Breakdowns!U:U,Breakdowns!$C:$C,"="&$A118,Breakdowns!$AA:$AA,"=No"),SUMIFS(Breakdowns!U:U,Breakdowns!$C:$C,"="&$A118)) -> 148717194 | L118: =IF($P$1,SUMIFS(Breakdowns!W:W,Breakdowns!$C:$C,"="&$A118,Breakdowns!$AA:$AA,"=No"),SUMIFS(Breakdowns!W:W,Breakdowns!$C:$C,"="&$A118)) -> 2567069 | M118: =IF($P$1,SUMIFS(Breakdowns!Y:Y,Breakdowns!$C:$C,"="&$A118,Breakdowns!$AA:$AA,"=No"),SUMIFS(Breakdowns!Y:Y,Breakdowns!$C:$C,"="&$A118)) -> 2440099
A119: WI | B119: Wisconsin | F119: =IF($P$1,SUMIFS(Breakdowns!L:L,Breakdowns!$C:$C,"="&$A119,Breakdowns!$AA:$AA,"=No"),SUMIFS(Breakdowns!L:L,Breakdowns!$C:$C,"="&$A119)) -> 1095 | G119: =IF($P$1,SUMIFS(Breakdowns!M:M,Breakdowns!$C:$C,"="&$A119,Breakdowns!$AA:$AA,"=No"),SUMIFS(Breakdowns!M:M,Breakdowns!$C:$C,"="&$A119)) -> 1329 | H119: =IF($P$1,SUMIFS(Breakdowns!O:O,Breakdowns!$C:$C,"="&$A119,Breakdowns!$AA:$AA,"=No"),SUMIFS(Breakdowns!O:O,Breakdowns!$C:$C,"="&$A119)) -> 2283 | I119: =IF($P$1,SUMIFS(Breakdowns!Q:Q,Breakdowns!$C:$C,"="&$A119,Breakdowns!$AA:$AA,"=No"),SUMIFS(Breakdowns!Q:Q,Breakdowns!$C:$C,"="&$A119)) -> 3612 | J119: =IF($P$1,SUMIFS(Breakdowns!S:S,Breakdowns!$C:$C,"="&$A119,Breakdowns!$AA:$AA,"=No"),SUMIFS(Breakdowns!S:S,Breakdowns!$C:$C,"="&$A119)) -> 44088326 | K119: =IF($P$1,SUMIFS(Breakdowns!U:U,Breakdowns!$C:$C,"="&$A119,Breakdowns!$AA:$AA,"=No"),SUMIFS(Breakdowns!U:U,Breakdowns!$C:$C,"="&$A119)) -> 39293753 | L119: =IF($P$1,SUMIFS(Breakdowns!W:W,Breakdowns!$C:$C,"="&$A119,Breakdowns!$AA:$AA,"=No"),SUMIFS(Breakdowns!W:W,Breakdowns!$C:$C,"="&$A119)) -> 17594 | M119: =IF($P$1,SUMIFS(Breakdowns!Y:Y,Breakdowns!$C:$C,"="&$A119,Breakdowns!$AA:$AA,"=No"),SUMIFS(Breakdowns!Y:Y,Breakdowns!$C:$C,"="&$A119)) -> 17523
A120: WV | B120: West Virginia | F120: =IF($P$1,SUMIFS(Breakdowns!L:L,Breakdowns!$C:$C,"="&$A120,Breakdowns!$AA:$AA,"=No"),SUMIFS(Breakdowns!L:L,Breakdowns!$C:$C,"="&$A120)) -> 155 | G120: =IF($P$1,SUMIFS(Breakdowns!M:M,Breakdowns!$C:$C,"="&$A120,Breakdowns!$AA:$AA,"=No"),SUMIFS(Breakdowns!M:M,Breakdowns!$C:$C,"="&$A120)) -> 587 | H120: =IF($P$1,SUMIFS(Breakdowns!O:O,Breakdowns!$C:$C,"="&$A120,Breakdowns!$AA:$AA,"=No"),SUMIFS(Breakdowns!O:O,Breakdowns!$C:$C,"="&$A120)) -> 1515 | I120: =IF($P$1,SUMIFS(Breakdowns!Q:Q,Breakdowns!$C:$C,"="&$A120,Breakdowns!$AA:$AA,"=No"),SUMIFS(Breakdowns!Q:Q,Breakdowns!$C:$C,"="&$A120)) -> 2102 | J120: =IF($P$1,SUMIFS(Breakdowns!S:S,Breakdowns!$C:$C,"="&$A120,Breakdowns!$AA:$AA,"=No"),SUMIFS(Breakdowns!S:S,Breakdowns!$C:$C,"="&$A120)) -> 5359579 | K120: =IF($P$1,SUMIFS(Breakdowns!U:U,Breakdowns!$C:$C,"="&$A120,Breakdowns!$AA:$AA,"=No"),SUMIFS(Breakdowns!U:U,Breakdowns!$C:$C,"="&$A120)) -> 5184351 | L120: =IF($P$1,SUMIFS(Breakdowns!W:W,Breakdowns!$C:$C,"="&$A120,Breakdowns!$AA:$AA,"=No"),SUMIFS(Breakdowns!W:W,Breakdowns!$C:$C,"="&$A120)) -> 676717 | M120: =IF($P$1,SUMIFS(Breakdowns!Y:Y,Breakdowns!$C:$C,"="&$A120,Breakdowns!$AA:$AA,"=No"),SUMIFS(Breakdowns!Y:Y,Breakdowns!$C:$C,"="&$A120)) -> 668979
A121: WY | B121: Wyoming | F121: =IF($P$1,SUMIFS(Breakdowns!L:L,Breakdowns!$C:$C,"="&$A121,Breakdowns!$AA:$AA,"=No"),SUMIFS(Breakdowns!L:L,Breakdowns!$C:$C,"="&$A121)) -> 0 | G121: =IF($P$1,SUMIFS(Breakdowns!M:M,Breakdowns!$C:$C,"="&$A121,Breakdowns!$AA:$AA,"=No"),SUMIFS(Breakdowns!M:M,Breakdowns!$C:$C,"="&$A121)) -> 0 | H121: =IF($P$1,SUMIFS(Breakdowns!O:O,Breakdowns!$C:$C,"="&$A121,Breakdowns!$AA:$AA,"=No"),SUMIFS(Breakdowns!O:O,Breakdowns!$C:$C,"="&$A121)) -> 0 | I121: =IF($P$1,SUMIFS(Breakdowns!Q:Q,Breakdowns!$C:$C,"="&$A121,Breakdowns!$AA:$AA,"=No"),SUMIFS(Breakdowns!Q:Q,Breakdowns!$C:$C,"="&$A121)) -> 0 | J121: =IF($P$1,SUMIFS(Breakdowns!S:S,Breakdowns!$C:$C,"="&$A121,Breakdowns!$AA:$AA,"=No"),SUMIFS(Breakdowns!S:S,Breakdowns!$C:$C,"="&$A121)) -> 0 | K121: =IF($P$1,SUMIFS(Breakdowns!U:U,Breakdowns!$C:$C,"="&$A121,Breakdowns!$AA:$AA,"=No"),SUMIFS(Breakdowns!U:U,Breakdowns!$C:$C,"="&$A121)) -> 0 | L121: =IF($P$1,SUMIFS(Breakdowns!W:W,Breakdowns!$C:$C,"="&$A121,Breakdowns!$AA:$AA,"=No"),SUMIFS(Breakdowns!W:W,Breakdowns!$C:$C,"="&$A121)) -> 0 | M121: =IF($P$1,SUMIFS(Breakdowns!Y:Y,Breakdowns!$C:$C,"="&$A121,Breakdowns!$AA:$AA,"=No"),SUMIFS(Breakdowns!Y:Y,Breakdowns!$C:$C,"="&$A121)) -> 0
